Workbook

Sheet Contents
F2: =Workbook.Title -> ALF 1800 MHz Benchmark Valuation Model
A4: Information
A6: Title | B6: ALF 1800 MHz Benchmark Valuation Model
A7: Project case code
A8: Objective | B8: Estimating the market value of UK spectrum in the 1800MHz band using evidence of market prices of spectrum in the UK and other European markets
A9: Version | B9: v1.0
A10: Status | B10: Approved for release
A11: Author | B11: Ofcom
A13: Confidentiality status | B13: Public
A15: Contents
A17: Sheet | B17: Description | D17: Status | E17: Notes
A18: Contents | B18: This contents sheet | D18: Approved for release
A19: Version History | B19: A history of the versions of this workbook | D19: Approved for release
A20: Style Guidelines | B20: A guide to the styles used in this workbook | D20: Approved for release
A22: Actual model sheets
A23: Control | B23: Control panel to set up key parameters of the model | D23: Approved for release
A24: I_Timeline | B24: Timeline of years and months the model operates on | D24: Approved for release
A25: I_Award | B25: Input data from I_AMTracker and I_Override combined | D25: Approved for release
A26: I_UKComp | B26: Input data for UK comparators | D26: Approved for release
A27: I_PPP_Override | B27: Input data on PPP conversion factors for Croatia, to correct for change of currency by the country | D27: Approved for release
A28: I_PPP | B28: Input data on PPP conversion factors from the World Bank | D28: Approved for release
A29: I_Population | B29: Input data on population from the World Bank | D29: Approved for release
A30: I_CPI_UK | B30: Input data on UK CPI index from ONS | D30: Approved for release
A31: I_CoD_WACC | B31: Input data on cost of debt and WACC by country and year | D31: Approved for release
A32: C_UKEq_detail | B32: Calculation of UK equivalent of lump sum value for each award and licensee combination | D32: Approved for release
A33: C_UKEqComp | B33: Calculation of UK equivalent of lump sum value for each award summed across all licensees | D33: Approved for release
A34: C_UKComp | B34: Calculation of lump sum value for UK comparators | D34: Approved for release
A35: C_UKEq_UKComp | B35: Appending the UK equivalent and UK comparator lump sum values into a single table | D35: Approved for release
A36: C_AllComp | B36: Appending the UK equivalent, UK comparator and national proxy lump sum values into a single table | D36: Approved for release
A37: C_Distance | B37: Calculation of the lump sum value of UK 1800 MHz spectrum using the distance method | D37: Approved for release
A38: O_Distance | B38: Distance method results | D38: Approved for release
A39: O_Results | B39: All results for graphical presentation | D39: Approved for release
A40: G_Results | B40: Graphical presentation of results | D40: Approved for release
A41: E_Results | B41: All results in a flat table for export | D41: Approved for release
A43: Terms and conditions
A44: The terms and conditions on which OFCOM is making available the model are set out below. This model has been developed to inform Ofcom's estimate of the market value of UK spectrum in the 1800 MHz band using evidence of market prices of spectrum in the UK and other European markets. All right, title and interest in the provided model (the ‘Model’) constructed in Excel to help respond to Ofcom's consultation on the annual licence fees for the 1800 MHz band are owned by OFCOM. Such title and interest is protected by United Kingdom intellectual property laws and international treaty provisions. While you may freely use the Model for the purposes for which it is provided, as set out in the accompanying model documentation, it is not to be modified in any way or used for commercial gain or otherwise without the prior written permission of OFCOM. No representation or warranty is given as to the accuracy, completeness or correctness of the provided Model and it is provided 'as is'. It is provided without any representation or endorsement made and without warranty of any kind, whether express or implied, including but not limited to the implied warranties of satisfactory quality, fitness for a particular purpose, non-infringement, compatibility, security and accuracy. OFCOM does not accept any responsibility for any loss, disruption or damage to your data or your computer system which may occur whilst using the Model or material derived from the Model. OFCOM does not warrant that the functions contained in the Model will be uninterrupted or error free. Also, OFCOM does not warrant that defects will be corrected, or that the Model provided is free of viruses. In no event will OFCOM be liable for any loss or damage including, without limitation, indirect or consequential loss or damage, or any loss or damages whatsoever arising from use or loss of use of, data or profits arising out of or in connection with the use or otherwise of the provided Model. By using this Model, you agree to the above.

Sheet Version History
D2: Version History
A4: History
A6: Version | B6: Date | C6: Author | D6: Details of modifications introduced
A7: v1.0 | B7: 2024-12-09 | C7: Ofcom | D7: Consultation version for release

Sheet Style Guidelines
H2: Style Guidelines
A3: NB Use Window Unfreeze Panes (on each worksheet) to have row 1 scroll with the rest of the worksheet
A5: Styles
B8: Input data | C8: 100 | E8: Input data (e.g. RFS data, inflation, etc)
B10: Input assumption or parameter | C10: 100 | E10: Input assumptions or parameters (e.g. for a scenario or control sheet)
B12: Feed internal | C12: 100 | E12: Feed cell from within this workbook
B14: Feed external | C14: 100 | E14: Feed cell from a different workbook
B16: Confidential | C16: 100 | E16: Confidential data, to be removed or randomized before publication
B18: Randomized | C18: 100 | E18: Randomized data
B20: Calculation | C20: 100 | E20: Intermediate calculation (not final output)
B22: Model logic | C22: 100 | E22: Cells required for model logic (e.g. year counters)
B24: Intentionally blank | E24: Cells left intentionally blank
B26: Output | C26: 100 | E26: A key result from this part of the model (in particular one that will be used elsewhere in the model)
B28: Highlight | C28: 100 | E28: A cell that is highlighted for uncertainty
B30: QA highlight | C30: 100 | E30: A cell that is highlighted for quality assurance
B32: Check pass | C32: TRUE | E32: A side calculation intended solely to cross check a result (and which therefore should not be referenced anywhere else in the model)
B33: Check fail | C33: FALSE
B35: Note or source | C35: Text | E35: Note/source
B37: Named range | E37: Cells which are part of a named range
B39: Name | C39: named_range_1 | E39: An Excel Name applying to one or more adjacent cells (use Insert Name Create to actually create the Excel Names)
B41: Un-format | E41: Going back to default Excel formatting
B43: H1 | C43: Title | E43: Heading level 1
B45: H2 | C45: Title | E45: Heading level 2
B47: H3 | C47: Title | E47: Heading level 3
B49: H4 | C49: Title | E49: Heading level 4
A52: Issues to discuss:
A54: 1 | B54: Inside borders within a calculation range
G55: vs
D58: Alternative 1: No border ("Normal")
D59: Alternative 2: No border, background shading
A61: 2 | B61: Table formatting can't set internal margins for cells, as this functionality is not available in Excel. Table formatting doesn’t correspond to Ofcom document template.
D63: Alternative 1: Macro for exporting table into a blank Word document and formatting in line with Ofcom document template

Sheet Control
A1: Control sheet
A2: Manual entry
A4: Parameter setup
D6: Effective date | E6: effective_date | F6: 2024-09-30
D7: Notional licence term | E7: notional_term | F7: 20 | G7: years
D9: UK CPI index as of effective date | E9: eff_cpi_uk | F9: =INDEX(I_CPI_UK[index],MATCH(TEXT(effective_date,"YYYY MMM"),I_CPI_UK[month],0)) -> 134.2
D10: UK population as of effective date | E10: eff_pop_uk | F10: =INDEX(I_Population[],MATCH("United Kingdom",I_Population[country],0),MATCH(TEXT(effective_date,"YYYY"),I_Population[#Headers],1)) -> 68350000
D12: Cost of debt liquidity risk premium | E12: cod_liquidity_premium | F12: 0.003
D14: Adjust for delayed spectrum availability | E14: delay_adj | F14: TRUE
D15: Delay adjustment threshold | E15: delay_threshold | F15: 365 | G15: days
A17: Benchmark setup
B20: Distance method
D22: benchmark_id | E22: target_band | F22: comp_band | G22: country | H22: int_comp1 | I22: int_comp2 | J22: int_comp3 | K22: uk_comp1 | L22: uk_comp3 | M22: tier | N22: recency | O22: bias_risk | P22: bias_scale | Q22: bias_direction
D23: Austria 800-2600 (2013) | E23: 1800 | F23: 800-2600 | G23: Austria | H23: Austria-2013 Oct-800-RC | I23: Austria-2013 Oct-1800-RC-CorrALF | J23: Austria-2010 Sep-2600 | K23: UK-2013 Mar-800 | L23: UK-2013 Mar-2600 | M23: 1 | N23: 0 | O23: Larger | P23: Unknown | Q23: Over
D24: Austria 800-3600 (2019) - UK 3.6GHz (2019) | E24: 1800 | F24: 800-3600 | G24: Austria | H24: Austria-2013 Oct-800-RC | I24: Austria-2013 Oct-1800-RC-CorrALF | J24: Austria-2019 Mar-3600 | K24: UK-2013 Mar-800 | L24: UK-2021 Mar-3600 | M24: 1 | N24: 0 | O24: Unknown | P24: Unknown | Q24: Unknown
D25: Austria 800 RC-3600 (2019) - UK 3.4 GHz (2018) | E25: 1800 | F25: 800-3400 | G25: Austria | H25: Austria-2013 Oct-800-RC | I25: Austria-2013 Oct-1800-RC-CorrALF | J25: Austria-2019 Mar-3600 | K25: UK-2013 Mar-800 | L25: UK-2018 Apr-3400 | M25: 1 | N25: 0 | O25: Unknown | P25: Unknown | Q25: Unknown
D26: Austria 700 NoExtCov -2600 (2020) | E26: 1800 | F26: 700-2600 | G26: Austria | H26: Austria-2020 Sep-700-NoExtCov | I26: Austria-2013 Oct-1800-RC-CorrALF | J26: Austria-2010 Sep-2600 | K26: UK-2021 Mar-700 | L26: UK-2013 Mar-2600 | M26: 1 | N26: 0 | O26: Larger | P26: Unknown | Q26: Over
D27: Austria 700 NoExtCov -3600 (2020) - UK 3.6 GHz (2021) | E27: 1800 | F27: 700-3600 | G27: Austria | H27: Austria-2020 Sep-700-NoExtCov | I27: Austria-2013 Oct-1800-RC-CorrALF | J27: Austria-2019 Mar-3600 | K27: UK-2021 Mar-700 | L27: UK-2021 Mar-3600 | M27: 1 | N27: 0 | O27: Larger | P27: Unknown | Q27: Over
D28: Austria 700 NoExtCov - 3600 (2020) - UK 3.4 GHz (2018) | E28: 1800 | F28: 700-3400 | G28: Austria | H28: Austria-2020 Sep-700-NoExtCov | I28: Austria-2013 Oct-1800-RC-CorrALF | J28: Austria-2019 Mar-3600 | K28: UK-2021 Mar-700 | L28: UK-2018 Apr-3400 | M28: 1 | N28: 0 | O28: Larger | P28: Unknown | Q28: Over
D29: Belgium 700-2600 (2022) | E29: 1800 | F29: 700-2600 | G29: Belgium | H29: Belgium-2022 Jun-700 | I29: Belgium-2022 Jun-1800 | J29: Belgium-2020 Oct-2600FDD | K29: UK-2021 Mar-700 | L29: UK-2013 Mar-2600 | M29: 3 | N29: 0 | O29: Unknown | P29: Unknown | Q29: Unknown
D30: Belgium 700-3500 (2022) - UK 3.4 GHz (2018) | E30: 1800 | F30: 700-3400 | G30: Belgium | H30: Belgium-2022 Jun-700 | I30: Belgium-2022 Jun-1800 | J30: Belgium-2022 Jun-3500 | K30: UK-2021 Mar-700 | L30: UK-2018 Apr-3400 | M30: 1 | N30: 1 | O30: Unknown | P30: Unknown | Q30: Unknown
D31: Belgium 800-2600 (2022) | E31: 1800 | F31: 800-2600 | G31: Belgium | H31: Belgium-2013 Nov-800 | I31: Belgium-2022 Jun-1800 | J31: Belgium-2020 Oct-2600FDD | K31: UK-2013 Mar-800 | L31: UK-2013 Mar-2600 | M31: 3 | N31: 0 | O31: Unknown | P31: Unknown | Q31: Unknown
D32: Belgium 700-3500 (2022) - UK 3.6 GHz (2021) | E32: 1800 | F32: 700-3600 | G32: Belgium | H32: Belgium-2022 Jun-700 | I32: Belgium-2022 Jun-1800 | J32: Belgium-2022 Jun-3500 | K32: UK-2021 Mar-700 | L32: UK-2021 Mar-3600 | M32: 1 | N32: 1 | O32: Unknown | P32: Unknown | Q32: Unknown
D33: Belgium 800-3500 (2022)- UK 3.4 GHz (2018) | E33: 1800 | F33: 800-3400 | G33: Belgium | H33: Belgium-2013 Nov-800 | I33: Belgium-2022 Jun-1800 | J33: Belgium-2022 Jun-3500 | K33: UK-2013 Mar-800 | L33: UK-2018 Apr-3400 | M33: 3 | N33: 0 | O33: Unknown | P33: Unknown | Q33: Unknown
D34: Croatia 700-3600 (2023) - UK 3.6 GHz (2021) | E34: 1800 | F34: 700-3600 | G34: Croatia | H34: Croatia-2021 Aug-700 | I34: Croatia-2023 Mar-1800 | J34: Croatia-2021 Aug-3600 | K34: UK-2021 Mar-700 | L34: UK-2021 Mar-3600 | M34: 3 | N34: 1 | O34: Unknown | P34: Unknown | Q34: Unknown
D35: Croatia 700-3600 (2023) - UK 3.4 GHz (2018) | E35: 1800 | F35: 700-3400 | G35: Croatia | H35: Croatia-2021 Aug-700 | I35: Croatia-2023 Mar-1800 | J35: Croatia-2021 Aug-3600 | K35: UK-2021 Mar-700 | L35: UK-2018 Apr-3400 | M35: 3 | N35: 1 | O35: Unknown | P35: Unknown | Q35: Unknown
D36: Belgium 800-3500 (2022)- UK 3.6 GHz (2021) | E36: 1800 | F36: 800-3600 | G36: Belgium | H36: Belgium-2013 Nov-800 | I36: Belgium-2022 Jun-1800 | J36: Belgium-2022 Jun-3500 | K36: UK-2013 Mar-800 | L36: UK-2021 Mar-3600 | M36: 3 | N36: 0 | O36: Unknown | P36: Unknown | Q36: Unknown
D37: Croatia 700-2600 (2023) | E37: 1800 | F37: 700-2600 | G37: Croatia | H37: Croatia-2021 Aug-700 | I37: Croatia-2023 Mar-1800 | J37: Croatia-2023 Mar-2600FDD | K37: UK-2021 Mar-700 | L37: UK-2013 Mar-2600 | M37: 3 | N37: 0 | O37: Unknown | P37: Unknown | Q37: Unknown
D38: Croatia 800-3600 (2023) - UK 3.6 GHz (2021) | E38: 1800 | F38: 800-3600 | G38: Croatia | H38: Croatia-2023 Mar-800 | I38: Croatia-2023 Mar-1800 | J38: Croatia-2021 Aug-3600 | K38: UK-2013 Mar-800 | L38: UK-2021 Mar-3600 | M38: 3 | N38: 0 | O38: Unknown | P38: Unknown | Q38: Unknown
D39: Croatia 800-3600 (2023) - UK 3.4 GHz (2018) | E39: 1800 | F39: 800-3400 | G39: Croatia | H39: Croatia-2023 Mar-800 | I39: Croatia-2023 Mar-1800 | J39: Croatia-2021 Aug-3600 | K39: UK-2013 Mar-800 | L39: UK-2018 Apr-3400 | M39: 3 | N39: 0 | O39: Unknown | P39: Unknown | Q39: Unknown
D40: Croatia 800-2600 (2023) | E40: 1800 | F40: 800-2600 | G40: Croatia | H40: Croatia-2023 Mar-800 | I40: Croatia-2023 Mar-1800 | J40: Croatia-2023 Mar-2600FDD | K40: UK-2013 Mar-800 | L40: UK-2013 Mar-2600 | M40: 3 | N40: 0 | O40: Unknown | P40: Unknown | Q40: Unknown
D41: Slovenia 700-3600 (2021) - UK 3.6 GHz (2021) | E41: 1800 | F41: 700-3600 | G41: Slovenia | H41: Slovenia-2021 Apr-700 | I41: Slovenia-2016 Sep-1800 | J41: Slovenia-2021 Apr-3600 | K41: UK-2021 Mar-700 | L41: UK-2021 Mar-3600 | M41: 3 | N41: 1 | O41: Unknown | P41: Unknown | Q41: Unknown
D42: Slovenia 700-2300 (2021) | E42: 1800 | F42: 700-2300 | G42: Slovenia | H42: Slovenia-2021 Apr-700 | I42: Slovenia-2016 Sep-1800 | J42: Slovenia-2021 Apr-2300 | K42: UK-2021 Mar-700 | L42: UK-2018 Apr-2300 | M42: 3 | N42: 1 | O42: Unknown | P42: Unknown | Q42: Unknown
D43: Slovenia 700-3600 (2021) - UK 3.4 GHz (2018) | E43: 1800 | F43: 700-3400 | G43: Slovenia | H43: Slovenia-2021 Apr-700 | I43: Slovenia-2016 Sep-1800 | J43: Slovenia-2021 Apr-3600 | K43: UK-2021 Mar-700 | L43: UK-2018 Apr-3400 | M43: 3 | N43: 1 | O43: Unknown | P43: Unknown | Q43: Unknown
D44: Slovakia 700-3600 (2020) - UK 3.4 GHz (2021) | E44: 1800 | F44: 700-3400 | G44: Slovakia | H44: Slovakia-2020 Nov-700 | I44: Slovakia-2020 Nov-1800 | J44: Slovakia-2017 Oct-3600 | K44: UK-2021 Mar-700 | L44: UK-2018 Apr-3400 | M44: 3 | N44: 1 | O44: Unknown | P44: Unknown | Q44: Unknown
D45: Slovakia 700-3600 (2020) - UK 3.6 GHz (2021) | E45: 1800 | F45: 700-3600 | G45: Slovakia | H45: Slovakia-2020 Nov-700 | I45: Slovakia-2020 Nov-1800 | J45: Slovakia-2017 Oct-3600 | K45: UK-2021 Mar-700 | L45: UK-2021 Mar-3600 | M45: 3 | N45: 1 | O45: Unknown | P45: Unknown | Q45: Unknown
D46: Slovakia 700-3400 (2020) - UK 3.4 GHz (2018) | E46: 1800 | F46: 700-3400 | G46: Slovakia | H46: Slovakia-2020 Nov-700 | I46: Slovakia-2020 Nov-1800 | J46: Slovakia-2016 Aug-3400 | K46: UK-2021 Mar-700 | L46: UK-2018 Apr-3400 | M46: 3 | N46: 1 | O46: Unknown | P46: Unknown | Q46: Unknown
D47: Slovakia 700-3400 (2020) - UK 3.6 GHz (2018) | E47: 1800 | F47: 700-3600 | G47: Slovakia | H47: Slovakia-2020 Nov-700 | I47: Slovakia-2020 Nov-1800 | J47: Slovakia-2016 Aug-3400 | K47: UK-2021 Mar-700 | L47: UK-2021 Mar-3600 | M47: 3 | N47: 1 | O47: Unknown | P47: Unknown | Q47: Unknown
D48: Slovakia 700-3500 (2020)- UK 3.4 GHz (2018) | E48: 1800 | F48: 700-3400 | G48: Slovakia | H48: Slovakia-2020 Nov-700 | I48: Slovakia-2020 Nov-1800 | J48: Slovakia-2022 May-3500 | K48: UK-2021 Mar-700 | L48: UK-2018 Apr-3400 | M48: 3 | N48: 1 | O48: Unknown | P48: Unknown | Q48: Unknown
D49: Czech Republic 700-3600 (2020) - UK 3.6 GHz (2021) | E49: 1800 | F49: 700-3600 | G49: Czech Republic | H49: Czech Republic-2020 Nov-700 | I49: Czech Republic-2016 Jun-1800 | J49: Czech Republic-2017 Jul-3600 | K49: UK-2021 Mar-700 | L49: UK-2021 Mar-3600 | M49: 3 | N49: 1 | O49: Unknown | P49: Unknown | Q49: Unknown
D50: Czech Republic 700-2600 (2020) | E50: 1800 | F50: 700-2600 | G50: Czech Republic | H50: Czech Republic-2020 Nov-700 | I50: Czech Republic-2016 Jun-1800 | J50: Czech Republic-2016 Jun-2600FDD | K50: UK-2021 Mar-700 | L50: UK-2013 Mar-2600 | M50: 3 | N50: 0 | O50: Unknown | P50: Unknown | Q50: Unknown
D51: Slovakia 700-3500 (2022) - UK 3.6 GHz (2021) | E51: 1800 | F51: 700-3600 | G51: Slovakia | H51: Slovakia-2020 Nov-700 | I51: Slovakia-2020 Nov-1800 | J51: Slovakia-2022 May-3500 | K51: UK-2021 Mar-700 | L51: UK-2021 Mar-3600 | M51: 3 | N51: 1 | O51: Unknown | P51: Unknown | Q51: Unknown
D52: Czech Republic 700-3500 (2020) - UK 3.4 GHz (2018) | E52: 1800 | F52: 700-3400 | G52: Czech Republic | H52: Czech Republic-2020 Nov-700 | I52: Czech Republic-2016 Jun-1800 | J52: Czech Republic-2020 Nov-3500 | K52: UK-2021 Mar-700 | L52: UK-2018 Apr-3400 | M52: 3 | N52: 1 | O52: Unknown | P52: Unknown | Q52: Unknown
D53: Czech Republic 800-2600 (2016) | E53: 1800 | F53: 800-2600 | G53: Czech Republic | H53: Czech Republic-2013 Nov-800 | I53: Czech Republic-2016 Jun-1800 | J53: Czech Republic-2016 Jun-2600FDD | K53: UK-2013 Mar-800 | L53: UK-2013 Mar-2600 | M53: 1 | N53: 0 | O53: Unknown | P53: Unknown | Q53: Under
D54: Czech Republic 800-3600 (2017) - UK 3.6 GHz (2021) | E54: 1800 | F54: 800-3600 | G54: Czech Republic | H54: Czech Republic-2013 Nov-800 | I54: Czech Republic-2016 Jun-1800 | J54: Czech Republic-2017 Jul-3600 | K54: UK-2013 Mar-800 | L54: UK-2021 Mar-3600 | M54: 1 | N54: 0 | O54: Unknown | P54: Unknown | Q54: Under
D55: Norway 700-2600 (2021) | E55: 1800 | F55: 700-2600 | G55: Norway | H55: Norway-2019 Jun-700 | I55: Norway-2015 Dec-1800 | J55: Norway-2021 Sep-2600FDD | K55: UK-2021 Mar-700 | L55: UK-2013 Mar-2600 | M55: 3 | N55: 0 | O55: Unknown | P55: Unknown | Q55: Unknown
D56: Norway 700-3600 (2021) - UK 3.6 GHz (2021) | E56: 1800 | F56: 700-3600 | G56: Norway | H56: Norway-2019 Jun-700 | I56: Norway-2015 Dec-1800 | J56: Norway-2021 Sep-3600 | K56: UK-2021 Mar-700 | L56: UK-2021 Mar-3600 | M56: 3 | N56: 1 | O56: Unknown | P56: Unknown | Q56: Unknown
D57: Norway 700-3600 (2021) - UK 3.4 GHz (2018) | E57: 1800 | F57: 700-3400 | G57: Norway | H57: Norway-2019 Jun-700 | I57: Norway-2015 Dec-1800 | J57: Norway-2021 Sep-3600 | K57: UK-2021 Mar-700 | L57: UK-2018 Apr-3400 | M57: 3 | N57: 1 | O57: Unknown | P57: Unknown | Q57: Unknown
D58: Italy 700-3600 (2018) - UK 3.6 GHz (2021) | E58: 1800 | F58: 700-3600 | G58: Italy | H58: Italy-2018 Oct-700 | I58: Italy-2011 Sep-1800 | J58: Italy-2018 Oct-3600 | K58: UK-2021 Mar-700 | L58: UK-2021 Mar-3600 | M58: 3 | N58: 0 | O58: Unknown | P58: Unknown | Q58: Unknown
D59: Italy 700-3400 (2018) - UK 3.4 GHz (2018) | E59: 1800 | F59: 700-3400 | G59: Italy | H59: Italy-2018 Oct-700 | I59: Italy-2011 Sep-1800 | J59: Italy-2018 Oct-3600 | K59: UK-2021 Mar-700 | L59: UK-2018 Apr-3400 | M59: 3 | N59: 0 | O59: Unknown | P59: Unknown | Q59: Unknown
D60: Italy 700-2600 (2018) | E60: 1800 | F60: 700-2600 | G60: Italy | H60: Italy-2018 Oct-700 | I60: Italy-2011 Sep-1800 | J60: Italy-2011 Sep-2600FDD | K60: UK-2021 Mar-700 | L60: UK-2013 Mar-2600 | M60: 3 | N60: 0 | O60: Unknown | P60: Unknown | Q60: Unknown
D61: Czech Republic 800-3600 (2017) - UK 3.4 GHz (2018) | E61: 1800 | F61: 800-3400 | G61: Czech Republic | H61: Czech Republic-2013 Nov-800 | I61: Czech Republic-2016 Jun-1800 | J61: Czech Republic-2017 Jul-3600 | K61: UK-2013 Mar-800 | L61: UK-2018 Apr-3400 | M61: 1 | N61: 0 | O61: Unknown | P61: Unknown | Q61: Under
D62: Czech Republic 800-3500 (2020) - UK 3.4 GHz (2018) | E62: 1800 | F62: 800-3400 | G62: Czech Republic | H62: Czech Republic-2013 Nov-800 | I62: Czech Republic-2016 Jun-1800 | J62: Czech Republic-2020 Nov-3500 | K62: UK-2013 Mar-800 | L62: UK-2018 Apr-3400 | M62: 1 | N62: 0 | O62: Unknown | P62: Unknown | Q62: Under
D63: Czech Republic 800-3500 (2020) - UK 3.6 GHz (2021) | E63: 1800 | F63: 800-3600 | G63: Czech Republic | H63: Czech Republic-2013 Nov-800 | I63: Czech Republic-2016 Jun-1800 | J63: Czech Republic-2020 Nov-3500 | K63: UK-2013 Mar-800 | L63: UK-2021 Mar-3600 | M63: 1 | N63: 0 | O63: Unknown | P63: Unknown | Q63: Under
D64: Czech Republic 700-3500 (2020) - UK 3.6 GHz (2021) | E64: 1800 | F64: 700-3600 | G64: Czech Republic | H64: Czech Republic-2020 Nov-700 | I64: Czech Republic-2016 Jun-1800 | J64: Czech Republic-2020 Nov-3500 | K64: UK-2021 Mar-700 | L64: UK-2021 Mar-3600 | M64: 3 | N64: 1 | O64: Unknown | P64: Unknown | Q64: Unknown
D65: Denmark 800-2600 (2016) | E65: 1800 | F65: 800-2600 | G65: Denmark | H65: Denmark-2012 Jun-800 | I65: Denmark-2016 Sep-1800 | J65: Denmark-2010 May-2600 | K65: UK-2013 Mar-800 | L65: UK-2013 Mar-2600 | M65: 1 | N65: 0 | O65: Unknown | P65: Unknown | Q65: Over
D66: Germany 800-2600 (2015) | E66: 1800 | F66: 800-2600 | G66: Germany | H66: Germany-2010 May-800 | I66: Germany-2015 Jun-1800 | J66: Germany-2010 May-2600FDD | K66: UK-2013 Mar-800 | L66: UK-2013 Mar-2600 | M66: 1 | N66: 0 | O66: Larger | P66: Unknown | Q66: Under
D67: Germany 700-2600 (2015) | E67: 1800 | F67: 700-2600 | G67: Germany | H67: Germany-2015 Jun-700 | I67: Germany-2015 Jun-1800 | J67: Germany-2010 May-2600FDD | K67: UK-2021 Mar-700 | L67: UK-2013 Mar-2600 | M67: 1 | N67: 0 | O67: Larger | P67: Unknown | Q67: Over
D68: Germany 700-3600 (2019) - UK 3.6 GHz (2021) | E68: 1800 | F68: 700-3600 | G68: Germany | H68: Germany-2015 Jun-700 | I68: Germany-2015 Jun-1800 | J68: Germany-2019 Jun-3600 | K68: UK-2021 Mar-700 | L68: UK-2021 Mar-3600 | M68: 1 | N68: 1 | O68: Larger | P68: Unknown | Q68: Over
D69: Germany 800-3600 (2019) - UK 3.6 GHz (2021) | E69: 1800 | F69: 800-3600 | G69: Germany | H69: Germany-2010 May-800 | I69: Germany-2015 Jun-1800 | J69: Germany-2019 Jun-3600 | K69: UK-2013 Mar-800 | L69: UK-2021 Mar-3600 | M69: 1 | N69: 0 | O69: Unknown | P69: Unknown | Q69: Under
D70: Germany 700-3600 (2019) - UK 3.4 GHz (2018) | E70: 1800 | F70: 700-3400 | G70: Germany | H70: Germany-2015 Jun-700 | I70: Germany-2015 Jun-1800 | J70: Germany-2019 Jun-3600 | K70: UK-2021 Mar-700 | L70: UK-2018 Apr-3400 | M70: 1 | N70: 1 | O70: Larger | P70: Unknown | Q70: Over
D71: Portugal 800-2600 (2021) | E71: 1800 | F71: 800-2600 | G71: Portugal | H71: Portugal-2011 Nov-800 | I71: Portugal-2021 Oct-1800 | J71: Portugal-2021 Oct-2600FDD | K71: UK-2013 Mar-800 | L71: UK-2013 Mar-2600 | M71: 3 | N71: 0 | O71: Larger | P71: Unknown | Q71: Under
D72: Germany 800-3600 (2019) - UK 3.4 GHz (2018) | E72: 1800 | F72: 800-3400 | G72: Germany | H72: Germany-2010 May-800 | I72: Germany-2015 Jun-1800 | J72: Germany-2019 Jun-3600 | K72: UK-2013 Mar-800 | L72: UK-2018 Apr-3400 | M72: 1 | N72: 0 | O72: Unknown | P72: Unknown | Q72: Under
D73: Hungary 700-3600 (2021) - UK 3.4 GHz (2018) | E73: 1800 | F73: 700-3400 | G73: Hungary | H73: Hungary-2020 Mar-700-Ext5Y | I73: Hungary-2021 Jan-1800-Ext5Y | J73: Hungary-2020 Mar-3600-Ext5Y | K73: UK-2021 Mar-700 | L73: UK-2018 Apr-3400 | M73: 1 | N73: 1 | O73: Unknown | P73: Unknown | Q73: Unknown
D74: Hungary 700-3600 (2021) - UK 3.6 GHz (2021) | E74: 1800 | F74: 700-3600 | G74: Hungary | H74: Hungary-2020 Mar-700-Ext5Y | I74: Hungary-2021 Jan-1800-Ext5Y | J74: Hungary-2020 Mar-3600-Ext5Y | K74: UK-2021 Mar-700 | L74: UK-2021 Mar-3600 | M74: 1 | N74: 1 | O74: Unknown | P74: Unknown | Q74: Unknown
D75: Portugal 800-3600 (2021) - UK 3.6 GHz (2021) | E75: 1800 | F75: 800-3600 | G75: Portugal | H75: Portugal-2011 Nov-800 | I75: Portugal-2021 Oct-1800 | J75: Portugal-2021 Oct-3600 | K75: UK-2013 Mar-800 | L75: UK-2021 Mar-3600 | M75: 3 | N75: 0 | O75: Unknown | P75: Unknown | Q75: Unknown
D76: Ireland 800-2600(p1800) (2012) | E76: 1800 | F76: 800-2600 | G76: Ireland | H76: Ireland-2012 Nov-800 | I76: Ireland-2012 Nov-1800 | J76: Ireland-Proxy-1800-2600 | K76: UK-2013 Mar-800 | L76: UK-2013 Mar-2600 | M76: 1 | N76: 0 | O76: Unknown | P76: Unknown | Q76: Over
D77: Ireland 800-3600(p1800) (2012) - UK 3.6 GHz (2021) | E77: 1800 | F77: 800-3600 | G77: Ireland | H77: Ireland-2012 Nov-800 | I77: Ireland-2012 Nov-1800 | J77: Ireland-Proxy-1800-3600 | K77: UK-2013 Mar-800 | L77: UK-2021 Mar-3600 | M77: 1 | N77: 0 | O77: Unknown | P77: Unknown | Q77: Over
D78: Ireland 800-3600(p1800) (2012) - UK 3.4 Ghz (2018) | E78: 1801 | F78: 800-3400 | G78: Ireland | H78: Ireland-2012 Nov-800 | I78: Ireland-2012 Nov-1800 | J78: Ireland-Proxy-1800-3600 | K78: UK-2013 Mar-800 | L78: UK-2018 Apr-3400 | M78: 1 | N78: 0 | O78: Unknown | P78: Unknown | Q78: Over
D79: Ireland 800-2600(p800) (2012) | E79: 1800 | F79: 800-2600 | G79: Ireland | H79: Ireland-2012 Nov-800 | I79: Ireland-2012 Nov-1800 | J79: Ireland-Proxy-800-2600 | K79: UK-2013 Mar-800 | L79: UK-2013 Mar-2600 | M79: 1 | N79: 0 | O79: Unknown | P79: Unknown | Q79: Over
D80: Ireland 800-3600(p800) (2012) - UK 3.6 Ghz (2021) | E80: 1800 | F80: 800-3600 | G80: Ireland | H80: Ireland-2012 Nov-800 | I80: Ireland-2012 Nov-1800 | J80: Ireland-Proxy-800-3600 | K80: UK-2013 Mar-800 | L80: UK-2021 Mar-3600 | M80: 1 | N80: 0 | O80: Unknown | P80: Unknown | Q80: Over
D81: Ireland 800-3600(p800) (2012) - UK 3.4 Ghz (2018) | E81: 1801 | F81: 800-3400 | G81: Ireland | H81: Ireland-2012 Nov-800 | I81: Ireland-2012 Nov-1800 | J81: Ireland-Proxy-800-3600 | K81: UK-2013 Mar-800 | L81: UK-2018 Apr-3400 | M81: 1 | N81: 0 | O81: Unknown | P81: Unknown | Q81: Over
D82: Italy 800-2600 (2011) | E82: 1800 | F82: 800-2600 | G82: Italy | H82: Italy-2011 Sep-800 | I82: Italy-2011 Sep-1800 | J82: Italy-2011 Sep-2600FDD | K82: UK-2013 Mar-800 | L82: UK-2013 Mar-2600 | M82: 1 | N82: 0 | O82: Unknown | P82: Unknown | Q82: Unknown
D83: Portugal 800-3600 (2021) - UK 3.4 GHz (2018) | E83: 1800 | F83: 800-3400 | G83: Portugal | H83: Portugal-2011 Nov-800 | I83: Portugal-2021 Oct-1800 | J83: Portugal-2021 Oct-3600 | K83: UK-2013 Mar-800 | L83: UK-2018 Apr-3400 | M83: 3 | N83: 0 | O83: Unknown | P83: Unknown | Q83: Unknown
D84: Portugal 700-2600 (2021) | E84: 1800 | F84: 700-2600 | G84: Portugal | H84: Portugal-2021 Oct-700 | I84: Portugal-2021 Oct-1800 | J84: Portugal-2021 Oct-2600FDD | K84: UK-2021 Mar-700 | L84: UK-2013 Mar-2600 | M84: 3 | N84: 0 | O84: Unknown | P84: Unknown | Q84: Unknown
D85: Italy 800-3600 (2018) - UK 3.6 GHz (2021) | E85: 1800 | F85: 800-3600 | G85: Italy | H85: Italy-2011 Sep-800 | I85: Italy-2011 Sep-1800 | J85: Italy-2018 Oct-3600 | K85: UK-2013 Mar-800 | L85: UK-2021 Mar-3600 | M85: 1 | N85: 0 | O85: Larger | P85: Unknown | Q85: Under
D86: Italy 800-3600 (2018) - UK 3.4 GHz (2018) | E86: 1800 | F86: 800-3400 | G86: Italy | H86: Italy-2011 Sep-800 | I86: Italy-2011 Sep-1800 | J86: Italy-2018 Oct-3600 | K86: UK-2013 Mar-800 | L86: UK-2018 Apr-3400 | M86: 1 | N86: 0 | O86: Larger | P86: Unknown | Q86: Under
D87: Sweden 700-2300 (2021) | E87: 1800 | F87: 700-2300 | G87: Sweden | H87: Sweden-2018 Dec-700 | I87: Sweden-2011 Oct-1800 | J87: Sweden-2021 Jan-2300 | K87: UK-2021 Mar-700 | L87: UK-2018 Apr-2300 | M87: 1 | N87: 0 | O87: Unknown | P87: Unknown | Q87: Over
D88: Sweden 700-2300 (2016) | E88: 1800 | F88: 700-2300 | G88: Sweden | H88: Sweden-2018 Dec-700 | I88: Sweden-2016 Oct-1800 | J88: Sweden-2021 Jan-2300 | K88: UK-2021 Mar-700 | L88: UK-2018 Apr-2300 | M88: 3 | N88: 0 | O88: Unknown | P88: Unknown | Q88: Over
D89: Sweden 700-2600 (2023) | E89: 1800 | F89: 700-2600 | G89: Sweden | H89: Sweden-2018 Dec-700 | I89: Sweden-2011 Oct-1800 | J89: Sweden-2023 Sep-2600FDD | K89: UK-2021 Mar-700 | L89: UK-2013 Mar-2600 | M89: 1 | N89: 0 | O89: Unknown | P89: Unknown | Q89: Over
D90: Sweden 700-2600 (2016) | E90: 1800 | F90: 700-2600 | G90: Sweden | H90: Sweden-2018 Dec-700 | I90: Sweden-2016 Oct-1800 | J90: Sweden-2023 Sep-2600FDD | K90: UK-2021 Mar-700 | L90: UK-2013 Mar-2600 | M90: 3 | N90: 0 | O90: Unknown | P90: Unknown | Q90: Over
D91: Sweden 700-3500 (2021) - UK 3.4 GHz (2018) | E91: 1800 | F91: 700-3400 | G91: Sweden | H91: Sweden-2018 Dec-700 | I91: Sweden-2011 Oct-1800 | J91: Sweden-2021 Jan-3500 | K91: UK-2021 Mar-700 | L91: UK-2018 Apr-3400 | M91: 1 | N91: 0 | O91: Unknown | P91: Unknown | Q91: Over
D92: Sweden 700-3500 (2016) - UK 3.4 GHz (2018) | E92: 1800 | F92: 700-3400 | G92: Sweden | H92: Sweden-2018 Dec-700 | I92: Sweden-2016 Oct-1800 | J92: Sweden-2021 Jan-3500 | K92: UK-2021 Mar-700 | L92: UK-2018 Apr-3400 | M92: 3 | N92: 0 | O92: Unknown | P92: Unknown | Q92: Over
D93: Sweden 700-3500 (2021) - UK 3.6 GHz (2021) | E93: 1800 | F93: 700-3600 | G93: Sweden | H93: Sweden-2018 Dec-700 | I93: Sweden-2011 Oct-1800 | J93: Sweden-2021 Jan-3500 | K93: UK-2021 Mar-700 | L93: UK-2021 Mar-3600 | M93: 1 | N93: 0 | O93: Unknown | P93: Unknown | Q93: Over
D94: Czech Republic 800-2600 (2013) | E94: 1800 | F94: 800-2600 | G94: Czech Republic | H94: Czech Republic-2013 Nov-800 | I94: Czech Republic-2013 Nov-1800 | J94: Czech Republic-2013 Nov-2600FDD | K94: UK-2013 Mar-800 | L94: UK-2013 Mar-2600 | M94: 3 | N94: 0 | O94: Larger | P94: Unknown | Q94: Under
D95: Greece 700-2600 (2020) | E95: 1800 | F95: 700-2600 | G95: Greece | H95: Greece-2020 Dec-700 | I95: Greece-2017 Nov-1800 | J95: Greece-2014 Oct-2600FDD | K95: UK-2021 Mar-700 | L95: UK-2013 Mar-2600 | M95: 3 | N95: 0 | O95: Unknown | P95: Unknown | Q95: Unknown
D96: Greece 700-3500 (2020) - UK 3.4 GHz (2018) | E96: 1800 | F96: 700-3400 | G96: Greece | H96: Greece-2020 Dec-700 | I96: Greece-2017 Nov-1800 | J96: Greece-2020 Dec-3500 | K96: UK-2021 Mar-700 | L96: UK-2018 Apr-3400 | M96: 3 | N96: 1 | O96: Unknown | P96: Unknown | Q96: Unknown
D97: Greece 800-2600 (2017) | E97: 1800 | F97: 800-2600 | G97: Greece | H97: Greece-2014 Oct-800 | I97: Greece-2017 Nov-1800 | J97: Greece-2014 Oct-2600FDD | K97: UK-2013 Mar-800 | L97: UK-2013 Mar-2600 | M97: 3 | N97: 0 | O97: Unknown | P97: Unknown | Q97: Under
D98: Greece 700-3500 (2020) - UK 3.6 GHz (2021) | E98: 1800 | F98: 700-3600 | G98: Greece | H98: Greece-2020 Dec-700 | I98: Greece-2017 Nov-1800 | J98: Greece-2020 Dec-3500 | K98: UK-2021 Mar-700 | L98: UK-2021 Mar-3600 | M98: 3 | N98: 1 | O98: Unknown | P98: Unknown | Q98: Unknown
D99: Greece 800-3500 (2020) - UK 3.4 GHz (2018) | E99: 1800 | F99: 800-3400 | G99: Greece | H99: Greece-2014 Oct-800 | I99: Greece-2017 Nov-1800 | J99: Greece-2020 Dec-3500 | K99: UK-2013 Mar-800 | L99: UK-2018 Apr-3400 | M99: 3 | N99: 0 | O99: Unknown | P99: Unknown | Q99: Unknown
D100: Greece 800-3500 (2020) - UK 3.6 GHz (2021) | E100: 1800 | F100: 800-3600 | G100: Greece | H100: Greece-2014 Oct-800 | I100: Greece-2017 Nov-1800 | J100: Greece-2020 Dec-3500 | K100: UK-2013 Mar-800 | L100: UK-2021 Mar-3600 | M100: 3 | N100: 0 | O100: Unknown | P100: Unknown | Q100: Unknown
D101: Portugal 700-3600 (2021) - UK 3.6 GHz (2021) | E101: 1800 | F101: 700-3600 | G101: Portugal | H101: Portugal-2021 Oct-700 | I101: Portugal-2021 Oct-1800 | J101: Portugal-2021 Oct-3600 | K101: UK-2021 Mar-700 | L101: UK-2021 Mar-3600 | M101: 3 | N101: 1 | O101: Unknown | P101: Unknown | Q101: Unknown
D102: Portugal 700-3600 (2021) - UK 3.4 GHz (2018) | E102: 1800 | F102: 700-3400 | G102: Portugal | H102: Portugal-2021 Oct-700 | I102: Portugal-2021 Oct-1800 | J102: Portugal-2021 Oct-3600 | K102: UK-2021 Mar-700 | L102: UK-2018 Apr-3400 | M102: 3 | N102: 1 | O102: Unknown | P102: Unknown | Q102: Unknown
D103: Romania 800-2600 (2021) | E103: 1800 | F103: 800-2600 | G103: Romania | H103: Romania-2021 Nov-800 | I103: Romania-2012 Sep-1800 | J103: Romania-2021 Nov-2600FDD | K103: UK-2013 Mar-800 | L103: UK-2013 Mar-2600 | M103: 3 | N103: 0 | O103: Unknown | P103: Unknown | Q103: Unknown
D104: Slovakia 800-2600 (2020) | E104: 1800 | F104: 800-2600 | G104: Slovakia | H104: Slovakia-2013 Dec-800 | I104: Slovakia-2020 Nov-1800 | J104: Slovakia-2013 Dec-2600 | K104: UK-2013 Mar-800 | L104: UK-2013 Mar-2600 | M104: 3 | N104: 0 | O104: Unknown | P104: Unknown | Q104: Under
D105: Sweden 700-3500 (2016) - UK 3.6 GHz (2021) | E105: 1800 | F105: 700-3600 | G105: Sweden | H105: Sweden-2018 Dec-700 | I105: Sweden-2016 Oct-1800 | J105: Sweden-2021 Jan-3500 | K105: UK-2021 Mar-700 | L105: UK-2021 Mar-3600 | M105: 3 | N105: 0 | O105: Unknown | P105: Unknown | Q105: Over
D106: Greece 800-2600 (2011) | E106: 1800 | F106: 800-2600 | G106: Greece | H106: Greece-2014 Oct-800 | I106: Greece-2011 Nov-1800 | J106: Greece-2014 Oct-2600FDD | K106: UK-2013 Mar-800 | L106: UK-2013 Mar-2600 | M106: 3 | N106: 0 | O106: Larger | P106: Unknown | Q106: Over
D107: Germany 800-2600 (2010) | E107: 1800 | F107: 800-2600 | G107: Germany | H107: Germany-2010 May-800 | I107: Germany-2010 May-1800 | J107: Germany-2010 May-2600FDD | K107: UK-2013 Mar-800 | L107: UK-2013 Mar-2600 | M107: 2 | N107: 0 | O107: Larger | P107: Larger | Q107: Under
D108: Sweden 800-2300 (2021) | E108: 1800 | F108: 800-2300 | G108: Sweden | H108: Sweden-2011 Mar-800 | I108: Sweden-2011 Oct-1800 | J108: Sweden-2021 Jan-2300 | K108: UK-2013 Mar-800 | L108: UK-2018 Apr-2300 | M108: 1 | N108: 0 | O108: Unknown | P108: Unknown | Q108: Unknown
D109: Sweden 800-2300 (2016) | E109: 1800 | F109: 800-2300 | G109: Sweden | H109: Sweden-2011 Mar-800 | I109: Sweden-2016 Oct-1800 | J109: Sweden-2021 Jan-2300 | K109: UK-2013 Mar-800 | L109: UK-2018 Apr-2300 | M109: 3 | N109: 0 | O109: Unknown | P109: Unknown | Q109: Unknown
D110: Sweden 800-2600 (2023) | E110: 1800 | F110: 800-2600 | G110: Sweden | H110: Sweden-2011 Mar-800 | I110: Sweden-2011 Oct-1800 | J110: Sweden-2023 Sep-2600FDD | K110: UK-2013 Mar-800 | L110: UK-2013 Mar-2600 | M110: 1 | N110: 0 | O110: Unknown | P110: Unknown | Q110: Unknown
D111: Sweden 800-2600 (2016) | E111: 1800 | F111: 800-2600 | G111: Sweden | H111: Sweden-2011 Mar-800 | I111: Sweden-2016 Oct-1800 | J111: Sweden-2023 Sep-2600FDD | K111: UK-2013 Mar-800 | L111: UK-2013 Mar-2600 | M111: 3 | N111: 0 | O111: Larger | P111: Unknown | Q111: Under
D112: Sweden 800-3500 (2021) - UK 3.4 GHz (2018) | E112: 1800 | F112: 800-3400 | G112: Sweden | H112: Sweden-2011 Mar-800 | I112: Sweden-2011 Oct-1800 | J112: Sweden-2021 Jan-3500 | K112: UK-2013 Mar-800 | L112: UK-2018 Apr-3400 | M112: 1 | N112: 0 | O112: Unknown | P112: Unknown | Q112: Unknown
D113: Sweden 800-3500 (2016) - UK 3.4 GHz (2018) | E113: 1800 | F113: 800-3400 | G113: Sweden | H113: Sweden-2011 Mar-800 | I113: Sweden-2016 Oct-1800 | J113: Sweden-2021 Jan-3500 | K113: UK-2013 Mar-800 | L113: UK-2018 Apr-3400 | M113: 3 | N113: 0 | O113: Unknown | P113: Unknown | Q113: Unknown
D114: Sweden 800-3500 (2021) - UK 3.6 GHz (2021) | E114: 1800 | F114: 800-3600 | G114: Sweden | H114: Sweden-2011 Mar-800 | I114: Sweden-2011 Oct-1800 | J114: Sweden-2021 Jan-3500 | K114: UK-2013 Mar-800 | L114: UK-2021 Mar-3600 | M114: 1 | N114: 0 | O114: Unknown | P114: Unknown | Q114: Unknown
D115: Sweden 800-3500 (2016) - UK 3.6 GHz (2021) | E115: 1800 | F115: 800-3600 | G115: Sweden | H115: Sweden-2011 Mar-800 | I115: Sweden-2016 Oct-1800 | J115: Sweden-2021 Jan-3500 | K115: UK-2013 Mar-800 | L115: UK-2021 Mar-3600 | M115: 3 | N115: 0 | O115: Unknown | P115: Unknown | Q115: Unknown
D116: Czech Republic 700-3600 (2020) - UK 3.4 GHz (2018) | E116: 1800 | F116: 700-3400 | G116: Czech Republic | H116: Czech Republic-2020 Nov-700 | I116: Czech Republic-2016 Jun-1800 | J116: Czech Republic-2017 Jul-3600 | K116: UK-2021 Mar-700 | L116: UK-2018 Apr-3400 | M116: 3 | N116: 1 | O116: Unknown | P116: Unknown | Q116: Unknown
D117: Portugal 800-2600 (2011) | E117: 1800 | F117: 800-2600 | G117: Portugal | H117: Portugal-2011 Nov-800 | I117: Portugal-2011 Nov-1800 | J117: Portugal-2011 Nov-2600FDD | K117: UK-2013 Mar-800 | L117: UK-2013 Mar-2600 | M117: 2 | N117: 0 | O117: Unknown | P117: Unknown | Q117: Unknown
D118: Romania 800-2600 (2012) | E118: 1800 | F118: 800-2600 | G118: Romania | H118: Romania-2012 Sep-800 | I118: Romania-2012 Sep-1800 | J118: Romania-2012 Sep-2600 | K118: UK-2013 Mar-800 | L118: UK-2013 Mar-2600 | M118: 3 | N118: 0 | O118: Unknown | P118: Unknown | Q118: Unknown
D119: Slovakia 800-2600 (2013) | E119: 1800 | F119: 800-2600 | G119: Slovakia | H119: Slovakia-2013 Dec-800 | I119: Slovakia-2013 Dec-1800 | J119: Slovakia-2013 Dec-2600 | K119: UK-2013 Mar-800 | L119: UK-2013 Mar-2600 | M119: 3 | N119: 0 | O119: Unknown | P119: Unknown | Q119: Under
B123: Proxy sample
D126: proxy_id | E126: comp1 | F126: comp2
D127: Proxy 800-2600 | E127: Germany-2010 May-800 | F127: Germany-2010 May-2600FDD
D128: Proxy 800-2600 | E128: Austria-2013 Oct-800-RC | F128: Austria-2010 Sep-2600
D129: Proxy 800-2600 | E129: Czech Republic-2013 Nov-800 | F129: Czech Republic-2013 Nov-2600FDD
D130: Proxy 800-2600 | E130: Denmark-2012 Jun-800 | F130: Denmark-2010 May-2600
D131: Proxy 800-2600 | E131: Italy-2011 Sep-800 | F131: Italy-2011 Sep-2600FDD
D132: Proxy 800-2600 | E132: Sweden-2011 Mar-800 | F132: Sweden-2023 Sep-2600FDD
D133: Proxy 800-3600 | E133: Austria-2013 Oct-800-UC | F133: Austria-2019 Mar-3600
D134: Proxy 800-3600 | E134: Czech Republic-2013 Nov-800 | F134: Czech Republic-2017 Jul-3600
D135: Proxy 800-3600 | E135: Czech Republic-2013 Nov-800 | F135: Czech Republic-2020 Nov-3500
D136: Proxy 800-3600 | E136: Italy-2011 Sep-800 | F136: Italy-2018 Oct-3600
D137: Proxy 800-3600 | E137: Germany-2010 May-800 | F137: Germany-2019 Jun-3600
D138: Proxy 800-2600 | E138: UK-2013 Mar-800 | F138: UK-2013 Mar-2600
D139: Proxy 800-3600 | E139: UK-2013 Mar-800 | F139: UK-2021 Mar-3600
D140: Proxy 800-2300 | E140: UK-2013 Mar-800 | F140: UK-2018 Apr-2300
D141: Proxy 800-3600 | E141: UK-2013 Mar-800 | F141: UK-2018 Apr-3400
D142: Proxy 1800-2600 | E142: Sweden-2016 Oct-1800 | F142: Sweden-2023 Sep-2600FDD
D143: Proxy 1800-2600 | E143: Denmark-2016 Sep-1800 | F143: Denmark-2010 May-2600
D144: Proxy 1800-2600 | E144: Czech Republic-2016 Jun-1800 | F144: Czech Republic-2016 Jun-2600FDD
D145: Proxy 1800-2600 | E145: Germany-2015 Jun-1800 | F145: Germany-2010 May-2600FDD
D146: Proxy 1800-2600 | E146: Italy-2011 Sep-1800 | F146: Italy-2011 Sep-2600FDD
D147: Proxy 1800-2600 | E147: Austria-2013 Oct-1800-RC-CorrALF | F147: Austria-2010 Sep-2600
D148: Proxy 1800-3600 | E148: Belgium-2022 Jun-1800 | F148: Belgium-2022 Jun-3500
D149: Proxy 1800-3600 | E149: Hungary-2021 Jan-1800 | F149: Hungary-2020 Mar-3600
D150: Proxy 1800-3600 | E150: Germany-2015 Jun-1800 | F150: Germany-2019 Jun-3600
D151: Proxy 1800-3600 | E151: Austria-2013 Oct-1800-RC-CorrALF | F151: Austria-2019 Mar-3600
D152: Proxy 1800-3600 | E152: Czech Republic-2016 Jun-1800 | F152: Czech Republic-2017 Jul-3600
D153: Proxy 1800-3600 | E153: Czech Republic-2016 Jun-1800 | F153: Czech Republic-2020 Nov-3500
D154: Proxy 1800-3600 | E154: Italy-2011 Sep-1800 | F154: Italy-2018 Oct-3600
D155: Proxy 1800-3600 | E155: UK-2018 Apr-1800 | F155: UK-2021 Mar-3600
D156: Proxy 1800-2600 | E156: UK-2018 Apr-1800 | F156: UK-2013 Mar-2600
D157: Proxy 1800-3600 | E157: UK-2018 Apr-1800 | F157: UK-2018 Apr-3400
B160: Proxy comparator
D162: comp_id | E162: proxy_id | F162: base_id
D163: Ireland-Proxy-800-2600 | E163: Proxy 800-2600 | F163: Ireland-2012 Nov-800
D164: Ireland-Proxy-800-3600 | E164: Proxy 800-3600 | F164: Ireland-2012 Nov-800
D165: Ireland-Proxy-1800-2600 | E165: Proxy 1800-2600 | F165: Ireland-2012 Nov-1800
D166: Ireland-Proxy-1800-3600 | E166: Proxy 1800-3600 | F166: Ireland-2012 Nov-1800
B175: Bias risk score calibration
D176: bias_risk | E176: bias_risk_val
D177: Larger | E177: 3
D178: Smaller | E178: 1
D179: Unknown | E179: 2
D182: bias_scale | E182: bias_scale_val
D183: Larger | E183: 3
D184: Smaller | E184: 1
D185: Unknown | E185: 2
D188: bias_direction | E188: bias_over | F188: bias_under
D189: Over | E189: 1 | F189: 0
D190: Under | E190: 0 | F190: 1
D191: Unknown | E191: 1 | F191: 1

Sheet I_Timeline
A1: Timeline
A2: Manual entry
A4: year | C4: month
A5: 2010 | C5: 2010 JAN
A6: 2011 | C6: 2010 FEB
A7: 2012 | C7: 2010 MAR
A8: 2013 | C8: 2010 APR
A9: 2014 | C9: 2010 MAY
A10: 2015 | C10: 2010 JUN
A11: 2016 | C11: 2010 JUL
A12: 2017 | C12: 2010 AUG
A13: 2018 | C13: 2010 SEP
A14: 2019 | C14: 2010 OCT
A15: 2020 | C15: 2010 NOV
A16: 2021 | C16: 2010 DEC
A17: 2022 | C17: 2011 JAN
A18: 2023 | C18: 2011 FEB
A19: 2024 | C19: 2011 MAR
C20: 2011 APR
C21: 2011 MAY
C22: 2011 JUN
C23: 2011 JUL
C24: 2011 AUG
C25: 2011 SEP
C26: 2011 OCT
C27: 2011 NOV
C28: 2011 DEC
C29: 2012 JAN
C30: 2012 FEB
C31: 2012 MAR
C32: 2012 APR
C33: 2012 MAY
C34: 2012 JUN
C35: 2012 JUL
C36: 2012 AUG
C37: 2012 SEP
C38: 2012 OCT
C39: 2012 NOV
C40: 2012 DEC
C41: 2013 JAN
C42: 2013 FEB
C43: 2013 MAR
C44: 2013 APR
C45: 2013 MAY
C46: 2013 JUN
C47: 2013 JUL
C48: 2013 AUG
C49: 2013 SEP
C50: 2013 OCT
C51: 2013 NOV
C52: 2013 DEC
C53: 2014 JAN
C54: 2014 FEB
C55: 2014 MAR
C56: 2014 APR
C57: 2014 MAY
C58: 2014 JUN
C59: 2014 JUL
C60: 2014 AUG
C61: 2014 SEP
C62: 2014 OCT
C63: 2014 NOV
C64: 2014 DEC
C65: 2015 JAN
C66: 2015 FEB
C67: 2015 MAR
C68: 2015 APR
C69: 2015 MAY
C70: 2015 JUN
C71: 2015 JUL
C72: 2015 AUG
C73: 2015 SEP
C74: 2015 OCT
C75: 2015 NOV
C76: 2015 DEC
C77: 2016 JAN
C78: 2016 FEB
C79: 2016 MAR
C80: 2016 APR
C81: 2016 MAY
C82: 2016 JUN
C83: 2016 JUL
C84: 2016 AUG
C85: 2016 SEP
C86: 2016 OCT
C87: 2016 NOV
C88: 2016 DEC
C89: 2017 JAN
C90: 2017 FEB
C91: 2017 MAR
C92: 2017 APR
C93: 2017 MAY
C94: 2017 JUN
C95: 2017 JUL
C96: 2017 AUG
C97: 2017 SEP
C98: 2017 OCT
C99: 2017 NOV
C100: 2017 DEC
C101: 2018 JAN
C102: 2018 FEB
C103: 2018 MAR
C104: 2018 APR
C105: 2018 MAY
C106: 2018 JUN
C107: 2018 JUL
C108: 2018 AUG
C109: 2018 SEP
C110: 2018 OCT
C111: 2018 NOV
C112: 2018 DEC
C113: 2019 JAN
C114: 2019 FEB
C115: 2019 MAR
C116: 2019 APR
C117: 2019 MAY
C118: 2019 JUN
C119: 2019 JUL
C120: 2019 AUG
C121: 2019 SEP
C122: 2019 OCT
C123: 2019 NOV
C124: 2019 DEC
C125: 2020 JAN
C126: 2020 FEB
C127: 2020 MAR
C128: 2020 APR
C129: 2020 MAY
C130: 2020 JUN
C131: 2020 JUL
C132: 2020 AUG
C133: 2020 SEP
C134: 2020 OCT
C135: 2020 NOV
C136: 2020 DEC
C137: 2021 JAN
C138: 2021 FEB
C139: 2021 MAR
C140: 2021 APR
C141: 2021 MAY
C142: 2021 JUN
C143: 2021 JUL
C144: 2021 AUG
C145: 2021 SEP
C146: 2021 OCT
C147: 2021 NOV
C148: 2021 DEC
C149: 2022 JAN
C150: 2022 FEB
C151: 2022 MAR
C152: 2022 APR
C153: 2022 MAY
C154: 2022 JUN
C155: 2022 JUL
C156: 2022 AUG
C157: 2022 SEP
C158: 2022 OCT
C159: 2022 NOV
C160: 2022 DEC
C161: 2023 JAN
C162: 2023 FEB
C163: 2023 MAR
C164: 2023 APR
C165: 2023 MAY
C166: 2023 JUN
C167: 2023 JUL
C168: 2023 AUG
C169: 2023 SEP
C170: 2023 OCT
C171: 2023 NOV
C172: 2023 DEC
C173: 2024 JAN
C174: 2024 FEB
C175: 2024 MAR
C176: 2024 APR
C177: 2024 MAY
C178: 2024 JUN
C179: 2024 JUL
C180: 2024 AUG
C181: 2024 SEP

Sheet I_Award
A1: Spectrum award data
A2: Data pulled automatically via query 'I_Award'. Do not change manually!
A4: award_id | B4: country | C4: band | D4: award_date | E4: licensee | F4: amount_mhz | G4: duration_years | H4: lcu | I4: headline_price | J4: alf | K4: reserve_price | L4: start_date | M4: end_date
A5: Sweden-2023 Sep-900 | B5: Sweden | C5: 900MHz FDD | D5: 2023-09-21 | E5: Telia Sweden | F5: 30 | G5: 23 | H5: SEK | I5: 833176563 | J5: 0 | K5: 450000000 | L5: 2026-01-01 | M5: 2048-12-31
A6: Sweden-2023 Sep-900 | B6: Sweden | C6: 900MHz FDD | D6: 2023-09-21 | E6: Hi3G Access | F6: 20 | G6: 23 | H6: SEK | I6: 701564274 | J6: 0 | K6: 300000000 | L6: 2026-01-01 | M6: 2048-12-31
A7: Sweden-2023 Sep-900 | B7: Sweden | C7: 900MHz FDD | D7: 2023-09-21 | E7: Net4Mobility | F7: 20 | G7: 23 | H7: SEK | I7: 755451044 | J7: 0 | K7: 300000000 | L7: 2026-01-01 | M7: 2048-12-31
A8: Sweden-2023 Sep-2100 | B8: Sweden | C8: 2100MHz FDD/TDD | D8: 2023-09-21 | E8: Telia Sweden | F8: 40 | G8: 25 | H8: SEK | I8: 190468456 | J8: 0 | K8: 140000000 | L8: 2026-01-01 | M8: 2050-12-31
A9: Sweden-2023 Sep-2100 | B9: Sweden | C9: 2100MHz FDD/TDD | D9: 2023-09-21 | E9: Hi3G Access | F9: 40 | G9: 25 | H9: SEK | I9: 190468456 | J9: 0 | K9: 140000000 | L9: 2026-01-01 | M9: 2050-12-31
A10: Sweden-2023 Sep-2100 | B10: Sweden | C10: 2100MHz FDD/TDD | D10: 2023-09-21 | E10: Net4Mobility | F10: 40 | G10: 25 | H10: SEK | I10: 190468456 | J10: 0 | K10: 140000000 | L10: 2026-01-01 | M10: 2050-12-31
A11: Sweden-2023 Sep-2600FDD | B11: Sweden | C11: 2600MHz FDD | D11: 2023-09-21 | E11: Telia Sweden | F11: 60 | G11: 25 | H11: SEK | I11: 528815766 | J11: 1977908.4 | K11: 210000000 | L11: 2026-01-01 | M11: 2050-12-31
A12: Sweden-2023 Sep-2600FDD | B12: Sweden | C12: 2600MHz FDD | D12: 2023-09-21 | E12: Hi3G Access | F12: 20 | G12: 25 | H12: SEK | I12: 176271922 | J12: 659302.8 | K12: 70000000 | L12: 2026-01-01 | M12: 2050-12-31
A13: Sweden-2023 Sep-2600FDD | B13: Sweden | C13: 2600MHz FDD | D13: 2023-09-21 | E13: Net4Mobility | F13: 60 | G13: 25 | H13: SEK | I13: 528815766 | J13: 1977908.4 | K13: 210000000 | L13: 2026-01-01 | M13: 2050-12-31
A14: Croatia-2023 Mar-800 | B14: Croatia | C14: 800MHz FDD | D14: 2023-03-08 | E14: A1 Hrvatska | F14: 20 | G14: 15 | H14: EUR | I14: 19600000 | J14: 0 | K14: 14000000 | L14: 2024-10-18 | M14: 2039-10-18
A15: Croatia-2023 Mar-800 | B15: Croatia | C15: 800MHz FDD | D15: 2023-03-08 | E15: Hrvatski Telekom | F15: 20 | G15: 15 | H15: EUR | I15: 19616011 | J15: 0 | K15: 14000000 | L15: 2024-10-18 | M15: 2039-10-18
A16: Croatia-2023 Mar-800 | B16: Croatia | C16: 800MHz FDD | D16: 2023-03-08 | E16: Telemach Hrvatska | F16: 20 | G16: 15 | H16: EUR | I16: 20011011 | J16: 0 | K16: 14000000 | L16: 2024-10-18 | M16: 2039-10-18
A17: Croatia-2023 Mar-900 | B17: Croatia | C17: 900MHz FDD | D17: 2023-03-08 | E17: A1 Hrvatska | F17: 30 | G17: 15 | H17: EUR | I17: 28840000 | J17: 0 | K17: 21000000 | L17: 2024-10-18 | M17: 2039-10-18
A18: Croatia-2023 Mar-900 | B18: Croatia | C18: 900MHz FDD | D18: 2023-03-08 | E18: Hrvatski Telekom | F18: 30 | G18: 15 | H18: EUR | I18: 28840202.5 | J18: 0 | K18: 21000000 | L18: 2024-10-18 | M18: 2039-10-18
A19: Croatia-2023 Mar-900 | B19: Croatia | C19: 900MHz FDD | D19: 2023-03-08 | E19: Telemach Hrvatska | F19: 10 | G19: 15 | H19: EUR | I19: 9520200.5 | J19: 0 | K19: 7000000 | L19: 2024-10-18 | M19: 2039-10-18
A20: Croatia-2023 Mar-1800 | B20: Croatia | C20: 1800MHz FDD | D20: 2023-03-08 | E20: A1 Hrvatska | F20: 50 | G20: 15 | H20: EUR | I20: 27340000 | J20: 0 | K20: 10000000 | L20: 2024-10-18 | M20: 2039-10-18
A21: Croatia-2023 Mar-1800 | B21: Croatia | C21: 1800MHz FDD | D21: 2023-03-08 | E21: Hrvatski Telekom | F21: 60 | G21: 15 | H21: EUR | I21: 33020385 | J21: 0 | K21: 12000000 | L21: 2024-10-18 | M21: 2039-10-18
A22: Croatia-2023 Mar-2100 | B22: Croatia | C22: 2100MHz FDD/TDD | D22: 2023-03-08 | E22: A1 Hrvatska | F22: 30 | G22: 15 | H22: EUR | I22: 30000000 | J22: 0 | K22: 6000000 | L22: 2024-10-18 | M22: 2039-10-18
A23: Croatia-2023 Mar-2100 | B23: Croatia | C23: 2100MHz FDD/TDD | D23: 2023-03-08 | E23: Hrvatski Telekom | F23: 50 | G23: 15 | H23: EUR | I23: 50240000 | J23: 0 | K23: 10000000 | L23: 2024-10-18 | M23: 2039-10-18
A24: Croatia-2023 Mar-2100 | B24: Croatia | C24: 2100MHz FDD/TDD | D24: 2023-03-08 | E24: Telemach Hrvatska | F24: 40 | G24: 15 | H24: EUR | I24: 40162883 | J24: 0 | K24: 8000000 | L24: 2024-10-18 | M24: 2039-10-18
A25: Croatia-2023 Mar-2600FDD | B25: Croatia | C25: 2600MHz FDD | D25: 2023-03-08 | E25: A1 Hrvatska | F25: 50 | G25: 15 | H25: EUR | I25: 3500000 | J25: 0 | K25: 3500000 | L25: 2024-10-18 | M25: 2039-10-18
A26: Croatia-2023 Mar-2600FDD | B26: Croatia | C26: 2600MHz FDD | D26: 2023-03-08 | E26: Hrvatski Telekom | F26: 50 | G26: 15 | H26: EUR | I26: 3598000 | J26: 0 | K26: 3500000 | L26: 2024-10-18 | M26: 2039-10-18
A27: Croatia-2023 Mar-2600FDD | B27: Croatia | C27: 2600MHz FDD | D27: 2023-03-08 | E27: Telemach Hrvatska | F27: 40 | G27: 15 | H27: EUR | I27: 2800000 | J27: 0 | K27: 2800000 | L27: 2024-10-18 | M27: 2039-10-18
A28: Belgium-2022 Jun-700 | B28: Belgium | C28: 700MHz FDD | D28: 2022-06-20 | E28: Orange Belgium | F28: 20 | G28: 20 | H28: EUR | I28: 122860000 | J28: 2040000 | K28: 38680000 | L28: 2022-09-01 | M28: 2042-08-31
A29: Belgium-2022 Jun-700 | B29: Belgium | C29: 700MHz FDD | D29: 2022-06-20 | E29: Proximus | F29: 20 | G29: 20 | H29: EUR | I29: 122870000 | J29: 2040000 | K29: 38680000 | L29: 2022-09-01 | M29: 2042-08-31
A30: Belgium-2022 Jun-3500 | B30: Belgium | C30: 3.4-3.8GHz FDD/TDD | D30: 2022-06-20 | E30: Citymesh | F30: 50 | G30: 18 | H30: EUR | I30: 30990000 | J30: 560000 | K30: 23050000 | L30: 2022-09-01 | M30: 2040-05-06
A31: Belgium-2022 Jun-3500 | B31: Belgium | C31: 3.4-3.8GHz FDD/TDD | D31: 2022-06-20 | E31: Network Research Belgium | F31: 20 | G31: 18 | H31: EUR | I31: 10970000 | J31: 224000 | K31: 9220000 | L31: 2022-09-01 | M31: 2040-05-06
A32: Belgium-2022 Jun-3500 | B32: Belgium | C32: 3.4-3.8GHz FDD/TDD | D32: 2022-06-20 | E32: Orange Belgium | F32: 100 | G32: 18 | H32: EUR | I32: 54850000 | J32: 1120000 | K32: 46100000 | L32: 2022-09-01 | M32: 2040-05-06
A33: Belgium-2022 Jun-3500 | B33: Belgium | C33: 3.4-3.8GHz FDD/TDD | D33: 2022-06-20 | E33: Proximus | F33: 100 | G33: 18 | H33: EUR | I33: 56320000 | J33: 1120000 | K33: 46100000 | L33: 2022-09-01 | M33: 2040-05-06
A34: Belgium-2022 Jun-3500 | B34: Belgium | C34: 3.4-3.8GHz FDD/TDD | D34: 2022-06-20 | E34: Telenet | F34: 100 | G34: 18 | H34: EUR | I34: 55800000 | J34: 1120000 | K34: 46100000 | L34: 2022-09-01 | M34: 2040-05-06
A35: Portugal-2021 Oct-700 | B35: Portugal | C35: 700MHz FDD | D35: 2021-10-27 | E35: MEO | F35: 10 | G35: 20 | H35: EUR | I35: 19200000 | J35: 908000 | K35: 19200000
A36: Portugal-2021 Oct-700 | B36: Portugal | C36: 700MHz FDD | D36: 2021-10-27 | E36: Vodafone | F36: 10 | G36: 20 | H36: EUR | I36: 19200000 | J36: 908000 | K36: 19200000
A37: Portugal-2021 Oct-700 | B37: Portugal | C37: 700MHz FDD | D37: 2021-10-27 | E37: Vodafone | F37: 10 | G37: 20 | H37: EUR | I37: 19200000 | J37: 908000 | K37: 19200000
A38: Portugal-2021 Oct-700 | B38: Portugal | C38: 700MHz FDD | D38: 2021-10-27 | E38: NOS | F38: 10 | G38: 20 | H38: EUR | I38: 19200000 | J38: 908000 | K38: 19200000
A39: Portugal-2021 Oct-700 | B39: Portugal | C39: 700MHz FDD | D39: 2021-10-27 | E39: NOS | F39: 10 | G39: 20 | H39: EUR | I39: 19200000 | J39: 908000 | K39: 19200000
A40: Portugal-2021 Oct-2100 | B40: Portugal | C40: 2100MHz FDD/TDD | D40: 2021-10-27 | E40: NOS | F40: 10 | G40: 20 | H40: EUR | I40: 10616000 | J40: 908000 | K40: 2000000
A41: Portugal-2021 Oct-3600 | B41: Portugal | C41: 3.4-3.8GHz FDD/TDD | D41: 2021-10-27 | E41: Dense Air | F41: 10 | G41: 20 | H41: EUR | I41: 946000 | J41: 908000 | K41: 3000000
A42: Portugal-2021 Oct-3600 | B42: Portugal | C42: 3.4-3.8GHz FDD/TDD | D42: 2021-10-27 | E42: Dixarobil | F42: 10 | G42: 20 | H42: EUR | I42: 1069000 | J42: 908000 | K42: 840000
A43: Portugal-2021 Oct-3600 | B43: Portugal | C43: 3.4-3.8GHz FDD/TDD | D43: 2021-10-27 | E43: Dixarobil | F43: 10 | G43: 20 | H43: EUR | I43: 1041000 | J43: 908000 | K43: 840000
A44: Portugal-2021 Oct-3600 | B44: Portugal | C44: 3.4-3.8GHz FDD/TDD | D44: 2021-10-27 | E44: Dixarobil | F44: 10 | G44: 20 | H44: EUR | I44: 1130000 | J44: 908000 | K44: 840000
A45: Portugal-2021 Oct-3600 | B45: Portugal | C45: 3.4-3.8GHz FDD/TDD | D45: 2021-10-27 | E45: Dixarobil | F45: 10 | G45: 20 | H45: EUR | I45: 1602000 | J45: 908000 | K45: 840000
A46: Portugal-2021 Oct-3600 | B46: Portugal | C46: 3.4-3.8GHz FDD/TDD | D46: 2021-10-27 | E46: Dense Air | F46: 10 | G46: 20 | H46: EUR | I46: 1400000 | J46: 908000 | K46: 840000
A47: Portugal-2021 Oct-3600 | B47: Portugal | C47: 3.4-3.8GHz FDD/TDD | D47: 2021-10-27 | E47: Dense Air | F47: 10 | G47: 20 | H47: EUR | I47: 1563000 | J47: 908000 | K47: 940000
A48: Portugal-2021 Oct-3600 | B48: Portugal | C48: 3.4-3.8GHz FDD/TDD | D48: 2021-10-27 | E48: NOWO | F48: 10 | G48: 20 | H48: EUR | I48: 1590000 | J48: 908000 | K48: 940000
A49: Portugal-2021 Oct-3600 | B49: Portugal | C49: 3.4-3.8GHz FDD/TDD | D49: 2021-10-27 | E49: Dense Air | F49: 10 | G49: 20 | H49: EUR | I49: 1856000 | J49: 908000 | K49: 940000
A50: Portugal-2021 Oct-3600 | B50: Portugal | C50: 3.4-3.8GHz FDD/TDD | D50: 2021-10-27 | E50: NOWO | F50: 10 | G50: 20 | H50: EUR | I50: 1836000 | J50: 908000 | K50: 940000
A51: Portugal-2021 Oct-3600 | B51: Portugal | C51: 3.4-3.8GHz FDD/TDD | D51: 2021-10-27 | E51: NOS | F51: 10 | G51: 20 | H51: EUR | I51: 10461000 | J51: 908000 | K51: 1230000
A52: Portugal-2021 Oct-3600 | B52: Portugal | C52: 3.4-3.8GHz FDD/TDD | D52: 2021-10-27 | E52: NOS | F52: 10 | G52: 20 | H52: EUR | I52: 10441000 | J52: 908000 | K52: 1230000
A53: Portugal-2021 Oct-3600 | B53: Portugal | C53: 3.4-3.8GHz FDD/TDD | D53: 2021-10-27 | E53: NOS | F53: 10 | G53: 20 | H53: EUR | I53: 10493000 | J53: 908000 | K53: 1230000
A54: Portugal-2021 Oct-3600 | B54: Portugal | C54: 3.4-3.8GHz FDD/TDD | D54: 2021-10-27 | E54: MEO | F54: 10 | G54: 20 | H54: EUR | I54: 10521000 | J54: 908000 | K54: 1230000
A55: Portugal-2021 Oct-3600 | B55: Portugal | C55: 3.4-3.8GHz FDD/TDD | D55: 2021-10-27 | E55: Vodafone | F55: 10 | G55: 20 | H55: EUR | I55: 10521000 | J55: 908000 | K55: 1230000
A56: Portugal-2021 Oct-3600 | B56: Portugal | C56: 3.4-3.8GHz FDD/TDD | D56: 2021-10-27 | E56: NOS | F56: 10 | G56: 20 | H56: EUR | I56: 10532000 | J56: 908000 | K56: 1230000
A57: Portugal-2021 Oct-3600 | B57: Portugal | C57: 3.4-3.8GHz FDD/TDD | D57: 2021-10-27 | E57: MEO | F57: 10 | G57: 20 | H57: EUR | I57: 10499000 | J57: 908000 | K57: 1230000
A58: Portugal-2021 Oct-3600 | B58: Portugal | C58: 3.4-3.8GHz FDD/TDD | D58: 2021-10-27 | E58: MEO | F58: 10 | G58: 20 | H58: EUR | I58: 10440000 | J58: 908000 | K58: 1230000
A59: Portugal-2021 Oct-3600 | B59: Portugal | C59: 3.4-3.8GHz FDD/TDD | D59: 2021-10-27 | E59: NOS | F59: 10 | G59: 20 | H59: EUR | I59: 10532000 | J59: 908000 | K59: 1230000
A60: Portugal-2021 Oct-3600 | B60: Portugal | C60: 3.4-3.8GHz FDD/TDD | D60: 2021-10-27 | E60: Vodafone | F60: 10 | G60: 20 | H60: EUR | I60: 10428000 | J60: 908000 | K60: 1230000
A61: Portugal-2021 Oct-3600 | B61: Portugal | C61: 3.4-3.8GHz FDD/TDD | D61: 2021-10-27 | E61: MEO | F61: 10 | G61: 20 | H61: EUR | I61: 10041000 | J61: 908000 | K61: 1230000
A62: Portugal-2021 Oct-3600 | B62: Portugal | C62: 3.4-3.8GHz FDD/TDD | D62: 2021-10-27 | E62: MEO | F62: 10 | G62: 20 | H62: EUR | I62: 10487000 | J62: 908000 | K62: 1230000
A63: Portugal-2021 Oct-3600 | B63: Portugal | C63: 3.4-3.8GHz FDD/TDD | D63: 2021-10-27 | E63: MEO | F63: 10 | G63: 20 | H63: EUR | I63: 10584000 | J63: 908000 | K63: 1230000
A64: Portugal-2021 Oct-3600 | B64: Portugal | C64: 3.4-3.8GHz FDD/TDD | D64: 2021-10-27 | E64: MEO | F64: 10 | G64: 20 | H64: EUR | I64: 10576000 | J64: 908000 | K64: 1230000
A65: Portugal-2021 Oct-3600 | B65: Portugal | C65: 3.4-3.8GHz FDD/TDD | D65: 2021-10-27 | E65: NOS | F65: 10 | G65: 20 | H65: EUR | I65: 10080000 | J65: 908000 | K65: 1230000
A66: Portugal-2021 Oct-3600 | B66: Portugal | C66: 3.4-3.8GHz FDD/TDD | D66: 2021-10-27 | E66: NOWO | F66: 10 | G66: 20 | H66: EUR | I66: 10479000 | J66: 908000 | K66: 1230000
A67: Portugal-2021 Oct-3600 | B67: Portugal | C67: 3.4-3.8GHz FDD/TDD | D67: 2021-10-27 | E67: NOS | F67: 10 | G67: 20 | H67: EUR | I67: 10482000 | J67: 908000 | K67: 1230000
A68: Portugal-2021 Oct-3600 | B68: Portugal | C68: 3.4-3.8GHz FDD/TDD | D68: 2021-10-27 | E68: NOS | F68: 10 | G68: 20 | H68: EUR | I68: 10482000 | J68: 908000 | K68: 1230000
A69: Portugal-2021 Oct-3600 | B69: Portugal | C69: 3.4-3.8GHz FDD/TDD | D69: 2021-10-27 | E69: Vodafone | F69: 10 | G69: 20 | H69: EUR | I69: 10483000 | J69: 908000 | K69: 1230000
A70: Portugal-2021 Oct-3600 | B70: Portugal | C70: 3.4-3.8GHz FDD/TDD | D70: 2021-10-27 | E70: NOS | F70: 10 | G70: 20 | H70: EUR | I70: 10117000 | J70: 908000 | K70: 1230000
A71: Portugal-2021 Oct-3600 | B71: Portugal | C71: 3.4-3.8GHz FDD/TDD | D71: 2021-10-27 | E71: Vodafone | F71: 10 | G71: 20 | H71: EUR | I71: 10515000 | J71: 908000 | K71: 1230000
A72: Portugal-2021 Oct-3600 | B72: Portugal | C72: 3.4-3.8GHz FDD/TDD | D72: 2021-10-27 | E72: NOS | F72: 10 | G72: 20 | H72: EUR | I72: 10455000 | J72: 908000 | K72: 1230000
A73: Portugal-2021 Oct-3600 | B73: Portugal | C73: 3.4-3.8GHz FDD/TDD | D73: 2021-10-27 | E73: Vodafone | F73: 10 | G73: 20 | H73: EUR | I73: 10498000 | J73: 908000 | K73: 1230000
A74: Portugal-2021 Oct-3600 | B74: Portugal | C74: 3.4-3.8GHz FDD/TDD | D74: 2021-10-27 | E74: Vodafone | F74: 10 | G74: 20 | H74: EUR | I74: 10437000 | J74: 908000 | K74: 1230000
A75: Portugal-2021 Oct-3600 | B75: Portugal | C75: 3.4-3.8GHz FDD/TDD | D75: 2021-10-27 | E75: Vodafone | F75: 10 | G75: 20 | H75: EUR | I75: 10511000 | J75: 908000 | K75: 1230000
A76: Portugal-2021 Oct-3600 | B76: Portugal | C76: 3.4-3.8GHz FDD/TDD | D76: 2021-10-27 | E76: MEO | F76: 10 | G76: 20 | H76: EUR | I76: 10441000 | J76: 908000 | K76: 1230000
A77: Portugal-2021 Oct-3600 | B77: Portugal | C77: 3.4-3.8GHz FDD/TDD | D77: 2021-10-27 | E77: Vodafone | F77: 10 | G77: 20 | H77: EUR | I77: 10442000 | J77: 908000 | K77: 1230000
A78: Portugal-2021 Oct-3600 | B78: Portugal | C78: 3.4-3.8GHz FDD/TDD | D78: 2021-10-27 | E78: MEO | F78: 10 | G78: 20 | H78: EUR | I78: 10440000 | J78: 908000 | K78: 1230000
A79: Portugal-2021 Oct-3600 | B79: Portugal | C79: 3.4-3.8GHz FDD/TDD | D79: 2021-10-27 | E79: Vodafone | F79: 10 | G79: 20 | H79: EUR | I79: 10970000 | J79: 908000 | K79: 1230000
A80: Portugal-2021 Oct-3600 | B80: Portugal | C80: 3.4-3.8GHz FDD/TDD | D80: 2021-10-27 | E80: NOWO | F80: 10 | G80: 20 | H80: EUR | I80: 10448000 | J80: 908000 | K80: 1230000
A81: Portugal-2021 Oct-2600FDD | B81: Portugal | C81: 2600MHz FDD | D81: 2021-10-27 | E81: NOWO | F81: 10 | G81: 20 | H81: EUR | I81: 9588000 | J81: 908000 | K81: 3000000
A82: Portugal-2021 Oct-2600FDD | B82: Portugal | C82: 2600MHz FDD | D82: 2021-10-27 | E82: Dixarobil | F82: 10 | G82: 20 | H82: EUR | I82: 9132000 | J82: 908000 | K82: 3000000
A83: Slovakia-2022 May-3500 | B83: Slovakia | C83: 3.4-3.8GHz FDD/TDD | D83: 2022-05-05 | E83: SWAN | F83: 90 | G83: 20 | H83: EUR | I83: 14400000 | J83: 0 | K83: 14400000 | L83: 2025-09-01 | M83: 1945-12-31
A84: Slovakia-2022 May-3500 | B84: Slovakia | C84: 3.4-3.8GHz FDD/TDD | D84: 2022-05-05 | E84: Orange Slovensko | F84: 100 | G84: 20 | H84: EUR | I84: 16000000 | J84: 0 | K84: 16000000 | L84: 2025-09-01 | M84: 1945-12-31
A85: Slovakia-2022 May-3500 | B85: Slovakia | C85: 3.4-3.8GHz FDD/TDD | D85: 2022-05-05 | E85: O2 Slovakia | F85: 100 | G85: 20 | H85: EUR | I85: 17210000 | J85: 0 | K85: 16000000 | L85: 2025-09-01 | M85: 1945-12-31
A86: Slovakia-2022 May-3500 | B86: Slovakia | C86: 3.4-3.8GHz FDD/TDD | D86: 2022-05-05 | E86: Slovak Telekom | F86: 100 | G86: 20 | H86: EUR | I86: 16000000 | J86: 0 | K86: 16000000 | L86: 2025-09-01 | M86: 1945-12-31
A87: Romania-2021 Nov-800 | B87: Romania | C87: 800MHz FDD | D87: 2021-11-23 | E87: DIGI | F87: 10 | G87: 7 | H87: RON | I87: 22000000 | J87: 0 | K87: 22000000 | L87: 2022-01-01 | M87: 2029-04-05
A88: Romania-2021 Nov-2600FDD | B88: Romania | C88: 2600MHz FDD | D88: 2021-11-23 | E88: DIGI | F88: 40 | G88: 7 | H88: RON | I88: 17200000 | J88: 0 | K88: 17200000 | L88: 2022-01-01 | M88: 2029-04-05
A89: Portugal-2021 Oct-900 | B89: Portugal | C89: 900MHz FDD | D89: 2021-10-27 | E89: Dixarobil | F89: 10 | G89: 20 | H89: EUR | I89: 30000000 | J89: 908000 | K89: 30000000
A90: Portugal-2021 Oct-900 | B90: Portugal | C90: 900MHz FDD | D90: 2021-10-27 | E90: MEO | F90: 2 | G90: 20 | H90: EUR | I90: 6000000 | J90: 181600 | K90: 6000000
A91: Portugal-2021 Oct-900 | B91: Portugal | C91: 900MHz FDD | D91: 2021-10-27 | E91: NOS | F91: 2 | G91: 20 | H91: EUR | I91: 6000000 | J91: 181600 | K91: 6000000
A92: Portugal-2021 Oct-900 | B92: Portugal | C92: 900MHz FDD | D92: 2021-10-27 | E92: NOS | F92: 2 | G92: 20 | H92: EUR | I92: 6000000 | J92: 181600 | K92: 6000000
A93: Portugal-2021 Oct-900 | B93: Portugal | C93: 900MHz FDD | D93: 2021-10-27 | E93: MEO | F93: 2 | G93: 20 | H93: EUR | I93: 6000000 | J93: 181600 | K93: 6000000
A94: Portugal-2021 Oct-1800 | B94: Portugal | C94: 1800MHz FDD | D94: 2021-10-27 | E94: Dixarobil | F94: 10 | G94: 20 | H94: EUR | I94: 18117000 | J94: 908000 | K94: 4000000
A95: Portugal-2021 Oct-1800 | B95: Portugal | C95: 1800MHz FDD | D95: 2021-10-27 | E95: NOWO | F95: 10 | G95: 20 | H95: EUR | I95: 18117000 | J95: 908000 | K95: 4000000
A96: Portugal-2021 Oct-1800 | B96: Portugal | C96: 1800MHz FDD | D96: 2021-10-27 | E96: NOWO | F96: 10 | G96: 20 | H96: EUR | I96: 18117000 | J96: 908000 | K96: 4000000
A97: Norway-2021 Sep-3600 | B97: Norway | C97: 3.4-3.8GHz FDD/TDD | D97: 2021-09-30 | E97: Telenor Norge | F97: 120 | G97: 20 | H97: NOK | I97: 887928000 | J97: 0 | K97: 300000000 | L97: 2022-01-01 | M97: 2042-12-31
A98: Norway-2021 Sep-3600 | B98: Norway | C98: 3.4-3.8GHz FDD/TDD | D98: 2021-09-30 | E98: Telia Norge | F98: 100 | G98: 20 | H98: NOK | I98: 680946000 | J98: 0 | K98: 250000000 | L98: 2022-01-01 | M98: 2042-12-31
A99: Croatia-2021 Aug-3600 | B99: Croatia | C99: 3.4-3.8GHz FDD/TDD | D99: 2021-08-12 | E99: A1 Hrvatska | F99: 100 | G99: 15 | H99: HRK | I99: 52920000 | J99: 0 | K99: 52500000 | L99: 2021-08-12 | M99: 2036-08-12
A100: Croatia-2021 Aug-700 | B100: Croatia | C100: 700MHz FDD | D100: 2021-08-12 | E100: A1 Hrvatska | F100: 20 | G100: 15 | H100: HRK | I100: 45000000 | J100: 0 | K100: 45000000 | L100: 2021-08-12 | M100: 2036-08-12
A101: Croatia-2021 Aug-700 | B101: Croatia | C101: 700MHz FDD | D101: 2021-08-12 | E101: Hrvatski Telekom | F101: 20 | G101: 15 | H101: HRK | I101: 48894999 | J101: 0 | K101: 45000000 | L101: 2021-08-12 | M101: 2036-08-12
A102: Croatia-2021 Aug-700 | B102: Croatia | C102: 700MHz FDD | D102: 2021-08-12 | E102: Telemach Hrvatska | F102: 20 | G102: 15 | H102: HRK | I102: 46094999 | J102: 0 | K102: 45000000 | L102: 2021-08-12 | M102: 2036-08-12
A103: Slovenia-2021 Apr-700 | B103: Slovenia | C103: 700MHz FDD | D103: 2021-04-14 | E103: A1 Slovenia | F103: 20 | G103: 15 | H103: EUR | I103: 10462000 | J103: 0 | K103: 5800000 | L103: 2021-04-14 | M103: 1936-04-14
A104: Slovenia-2021 Apr-2100 | B104: Slovenia | C104: 2100MHz FDD/TDD | D104: 2021-04-14 | E104: A1 Slovenia | F104: 30 | G104: 15 | H104: EUR | I104: 17643258 | J104: 0 | K104: 7500000 | L104: 2021-09-22 | M104: 1936-09-22
A105: Slovenia-2021 Apr-3600 | B105: Slovenia | C105: 3.4-3.8GHz FDD/TDD | D105: 2021-04-14 | E105: A1 Slovenia | F105: 100 | G105: 15 | H105: EUR | I105: 12230000 | J105: 0 | K105: 4500000 | L105: 2021-04-14 | M105: 1936-04-14
A106: Sweden-2021 Jan-3500 | B106: Sweden | C106: 3.4-3.8GHz FDD/TDD | D106: 2021-01-19 | E106: Net4Mobility | F106: 100 | G106: 25 | H106: SEK | I106: 665500000 | J106: 0 | K106: 500000000 | L106: 2021-01-20 | M106: 2045-12-31
A107: Sweden-2021 Jan-3500 | B107: Sweden | C107: 3.4-3.8GHz FDD/TDD | D107: 2021-01-19 | E107: Telia | F107: 120 | G107: 25 | H107: SEK | I107: 760250006 | J107: 0 | K107: 600000000 | L107: 2021-01-20 | M107: 2045-12-31
A108: Sweden-2021 Jan-2300 | B108: Sweden | C108: 2300MHz FDD/TDD | D108: 2021-01-19 | E108: Teracom | F108: 80 | G108: 25 | H108: SEK | I108: 400000000 | J108: 0 | K108: 160000000 | L108: 2021-01-20 | M108: 2045-12-31
A109: Greece-2020 Dec-700 | B109: Greece | C109: 700MHz FDD | D109: 2020-12-16 | E109: Cosmote | F109: 20 | G109: 15 | H109: EUR | I109: 50578000 | J109: 0 | K109: 50060000
A110: Greece-2020 Dec-700 | B110: Greece | C110: 700MHz FDD | D110: 2020-12-16 | E110: Vodafone | F110: 20 | G110: 15 | H110: EUR | I110: 51060000 | J110: 0 | K110: 50060000
A111: Greece-2020 Dec-700 | B111: Greece | C111: 700MHz FDD | D111: 2020-12-16 | E111: Wind | F111: 20 | G111: 15 | H111: EUR | I111: 50080051 | J111: 0 | K111: 50060000
A112: Greece-2020 Dec-2100 | B112: Greece | C112: 2100MHz FDD/TDD | D112: 2020-12-16 | E112: Cosmote | F112: 40 | G112: 15 | H112: EUR | I112: 35270000 | J112: 0 | K112: 35270000
A113: Greece-2020 Dec-2100 | B113: Greece | C113: 2100MHz FDD/TDD | D113: 2020-12-16 | E113: Vodafone | F113: 40 | G113: 15 | H113: EUR | I113: 35420000 | J113: 0 | K113: 35270000
A114: Greece-2020 Dec-2100 | B114: Greece | C114: 2100MHz FDD/TDD | D114: 2020-12-16 | E114: Wind | F114: 40 | G114: 15 | H114: EUR | I114: 35420000 | J114: 0 | K114: 35270000
A115: Greece-2020 Dec-3500 | B115: Greece | C115: 3.4-3.8GHz FDD/TDD | D115: 2020-12-16 | E115: Cosmote | F115: 150 | G115: 15 | H115: EUR | I115: 30705000 | J115: 0 | K115: 37750000
A116: Greece-2020 Dec-3500 | B116: Greece | C116: 3.4-3.8GHz FDD/TDD | D116: 2020-12-16 | E116: Vodafone | F116: 140 | G116: 15 | H116: EUR | I116: 37516000 | J116: 0 | K116: 35233333.33
A117: Greece-2020 Dec-3500 | B117: Greece | C117: 3.4-3.8GHz FDD/TDD | D117: 2020-12-16 | E117: Wind | F117: 100 | G117: 15 | H117: EUR | I117: 30306051 | J117: 0 | K117: 25166666.67
A118: Slovakia-2020 Nov-700 | B118: Slovakia | C118: 700MHz FDD | D118: 2020-11-24 | E118: Orange | F118: 20 | G118: 20 | H118: EUR | I118: 33600000 | J118: 0 | K118: 32000000 | L118: 2021-01-01 | M118: 2040-12-31
A119: Slovakia-2020 Nov-700 | B119: Slovakia | C119: 700MHz FDD | D119: 2020-11-24 | E119: O2 | F119: 20 | G119: 20 | H119: EUR | I119: 32000000 | J119: 0 | K119: 32000000 | L119: 2021-01-01 | M119: 2040-12-31
A120: Slovakia-2020 Nov-700 | B120: Slovakia | C120: 700MHz FDD | D120: 2020-11-24 | E120: Slovak Telecom | F120: 20 | G120: 20 | H120: EUR | I120: 32000000 | J120: 0 | K120: 32000000 | L120: 2021-01-01 | M120: 2040-12-31
A121: Slovakia-2020 Nov-900 | B121: Slovakia | C121: 900MHz FDD | D121: 2020-11-24 | E121: O2 | F121: 8 | G121: 5 | H121: EUR | I121: 840000 | J121: 0 | K121: 840000 | L121: 2021-01-01 | M121: 2025-12-31
A122: Slovakia-2020 Nov-1800 | B122: Slovakia | C122: 1800MHz FDD | D122: 2020-11-24 | E122: O2 | F122: 6 | G122: 5 | H122: EUR | I122: 550000 | J122: 0 | K122: 550000 | L122: 2021-01-01 | M122: 2025-12-31
A123: Slovakia-2020 Nov-1800 | B123: Slovakia | C123: 1800MHz FDD | D123: 2020-11-24 | E123: Slovak Telecom | F123: 6 | G123: 5 | H123: EUR | I123: 550000 | J123: 0 | K123: 550000 | L123: 2021-01-01 | M123: 2025-12-31
A124: Slovakia-2020 Nov-1800 | B124: Slovakia | C124: 1800MHz FDD | D124: 2020-11-24 | E124: Swan Mobile | F124: 6 | G124: 5 | H124: EUR | I124: 550000 | J124: 0 | K124: 550000 | L124: 2021-01-01 | M124: 2025-12-31
A125: Czech Republic-2020 Nov-700 | B125: Czech Republic | C125: 700MHz FDD | D125: 2020-11-16 | E125: T-Mobile | F125: 20 | G125: 16 | H125: CZK | I125: 1400000000 | J125: 32000000 | K125: 1400000000 | L125: 2020-11-16 | M125: 2036-06-30
A126: Czech Republic-2020 Nov-700 | B126: Czech Republic | C126: 700MHz FDD | D126: 2020-11-16 | E126: Vodafone | F126: 10 | G126: 16 | H126: CZK | I126: 700000000 | J126: 16000000 | K126: 700000000 | L126: 2020-11-16 | M126: 2036-06-30
A127: Czech Republic-2020 Nov-700 | B127: Czech Republic | C127: 700MHz FDD | D127: 2020-11-16 | E127: Vodafone | F127: 10 | G127: 16 | H127: CZK | I127: 700000000 | J127: 16000000 | K127: 700000000 | L127: 2020-11-16 | M127: 2036-06-30
A128: Czech Republic-2020 Nov-700 | B128: Czech Republic | C128: 700MHz FDD | D128: 2020-11-16 | E128: O2 | F128: 20 | G128: 16 | H128: CZK | I128: 1190000000 | J128: 32000000 | K128: 1120000000 | L128: 2020-11-16 | M128: 2036-06-30
A129: Czech Republic-2020 Nov-3500 | B129: Czech Republic | C129: 3.4-3.8GHz FDD/TDD | D129: 2020-11-16 | E129: CentroNet | F129: 20 | G129: 12 | H129: CZK | I129: 138000000 | J129: 6400000 | K129: 110000000 | L129: 2020-11-16 | M129: 2032-06-30
A130: Czech Republic-2020 Nov-3500 | B130: Czech Republic | C130: 3.4-3.8GHz FDD/TDD | D130: 2020-11-16 | E130: O2 | F130: 20 | G130: 12 | H130: CZK | I130: 152000000 | J130: 6400000 | K130: 110000000 | L130: 2020-11-16 | M130: 2032-06-30
A131: Czech Republic-2020 Nov-3500 | B131: Czech Republic | C131: 3.4-3.8GHz FDD/TDD | D131: 2020-11-16 | E131: Vodafone | F131: 20 | G131: 12 | H131: CZK | I131: 168000000 | J131: 6400000 | K131: 140000000 | L131: 2020-11-16 | M131: 2032-06-30
A132: Czech Republic-2020 Nov-3500 | B132: Czech Republic | C132: 3.4-3.8GHz FDD/TDD | D132: 2020-11-16 | E132: CentroNet | F132: 20 | G132: 12 | H132: CZK | I132: 168000000 | J132: 6400000 | K132: 140000000 | L132: 2020-11-16 | M132: 2032-06-30
A133: Czech Republic-2020 Nov-3500 | B133: Czech Republic | C133: 3.4-3.8GHz FDD/TDD | D133: 2020-11-16 | E133: T-Mobile | F133: 20 | G133: 12 | H133: CZK | I133: 154000000 | J133: 6400000 | K133: 140000000 | L133: 2020-11-16 | M133: 2032-06-30
A134: Czech Republic-2020 Nov-3500 | B134: Czech Republic | C134: 3.4-3.8GHz FDD/TDD | D134: 2020-11-16 | E134: CentroNet | F134: 20 | G134: 12 | H134: CZK | I134: 154000000 | J134: 6400000 | K134: 140000000 | L134: 2020-11-16 | M134: 2032-06-30
A135: Czech Republic-2020 Nov-3500 | B135: Czech Republic | C135: 3.4-3.8GHz FDD/TDD | D135: 2020-11-16 | E135: T-Mobile | F135: 20 | G135: 12 | H135: CZK | I135: 168000000 | J135: 6400000 | K135: 140000000 | L135: 2020-11-16 | M135: 2032-06-30
A136: Czech Republic-2020 Nov-3500 | B136: Czech Republic | C136: 3.4-3.8GHz FDD/TDD | D136: 2020-11-16 | E136: CentroNet | F136: 20 | G136: 12 | H136: CZK | I136: 168000000 | J136: 6400000 | K136: 140000000 | L136: 2020-11-16 | M136: 2032-06-30
A137: Czech Republic-2020 Nov-3500 | B137: Czech Republic | C137: 3.4-3.8GHz FDD/TDD | D137: 2020-11-16 | E137: Nordic Telecom 5G | F137: 20 | G137: 12 | H137: CZK | I137: 168000000 | J137: 6400000 | K137: 140000000 | L137: 2020-11-16 | M137: 2032-06-30
A138: Czech Republic-2020 Nov-3500 | B138: Czech Republic | C138: 3.4-3.8GHz FDD/TDD | D138: 2020-11-16 | E138: T-Mobile | F138: 20 | G138: 12 | H138: CZK | I138: 168000000 | J138: 6400000 | K138: 140000000 | L138: 2020-11-16 | M138: 2032-06-30
A139: Belgium-2020 Oct-2600FDD | B139: Belgium | C139: 2600MHz FDD | D139: 2020-10-01 | E139: Citymesh | F139: 30 | G139: 15 | H139: EUR | I139: 15010000 | J139: 0 | K139: 15010000 | L139: 2020-10-01 | M139: 2035-09-30
A140: Netherlands-2020 Jul-700 | B140: Netherlands | C140: 700MHz FDD | D140: 2020-07-21 | E140: KPN | F140: 20 | G140: 20 | H140: EUR | I140: 157970000 | J140: 0 | K140: 150360000 | L140: 2021-01-01 | M140: 2040-12-31
A141: Netherlands-2020 Jul-700 | B141: Netherlands | C141: 700MHz FDD | D141: 2020-07-21 | E141: T-Mobile | F141: 20 | G141: 20 | H141: EUR | I141: 157970000 | J141: 0 | K141: 150360000 | L141: 2021-01-01 | M141: 2040-12-31
A142: Netherlands-2020 Jul-700 | B142: Netherlands | C142: 700MHz FDD | D142: 2020-07-21 | E142: Vodafone | F142: 20 | G142: 20 | H142: EUR | I142: 157970000 | J142: 0 | K142: 150360000 | L142: 2021-01-01 | M142: 2040-12-31
A143: Netherlands-2020 Jul-2100 | B143: Netherlands | C143: 2100MHz FDD/TDD | D143: 2020-07-21 | E143: KPN | F143: 40 | G143: 20 | H143: EUR | I143: 163330000 | J143: 0 | K143: 141116000 | L143: 2021-01-01 | M143: 2040-12-31
A144: Netherlands-2020 Jul-2100 | B144: Netherlands | C144: 2100MHz FDD/TDD | D144: 2020-07-21 | E144: T-Mobile | F144: 40 | G144: 20 | H144: EUR | I144: 167250000 | J144: 0 | K144: 141116000 | L144: 2021-01-01 | M144: 2040-12-31
A145: Netherlands-2020 Jul-2100 | B145: Netherlands | C145: 2100MHz FDD/TDD | D145: 2020-07-21 | E145: Vodafone | F145: 40 | G145: 20 | H145: EUR | I145: 163330000 | J145: 0 | K145: 141116000 | L145: 2021-01-01 | M145: 2040-12-31
A146: Hungary-2020 Mar-3600 | B146: Hungary | C146: 3.4-3.8GHz FDD/TDD | D146: 2020-03-26 | E146: Hungarian Telekom | F146: 120 | G146: 15 | H146: HUF | I146: 19800000000 | J146: 1123200000 | K146: 18000000000 | L146: 2020-04-01 | M146: 2035-04-01
A147: Hungary-2020 Mar-3600 | B147: Hungary | C147: 3.4-3.8GHz FDD/TDD | D147: 2020-03-26 | E147: Vodafone | F147: 50 | G147: 15 | H147: HUF | I147: 8250000000 | J147: 468000000 | K147: 7500000000 | L147: 2020-04-01 | M147: 2035-04-01
A148: Hungary-2020 Mar-3600 | B148: Hungary | C148: 3.4-3.8GHz FDD/TDD | D148: 2020-03-26 | E148: Telenor | F148: 140 | G148: 15 | H148: HUF | I148: 23100000000 | J148: 1310400000 | K148: 21000000000 | L148: 2020-04-01 | M148: 2035-04-01
A149: Germany-2019 Jun-2100 | B149: Germany | C149: 2100MHz FDD/TDD | D149: 2019-06-13 | E149: Telekom Deutschland | F149: 40 | G149: 20 | H149: EUR | I149: 851520000 | J149: 0 | K149: 20000000 | L149: 2021-01-01 | M149: 2040-12-31
A150: Germany-2019 Jun-2100 | B150: Germany | C150: 2100MHz FDD/TDD | D150: 2019-06-13 | E150: Telefonica Deutschland | F150: 20 | G150: 20 | H150: EUR | I150: 381104000 | J150: 0 | K150: 10000000 | L150: 2021-01-01 | M150: 2040-12-31
A151: Germany-2019 Jun-2100 | B151: Germany | C151: 2100MHz FDD/TDD | D151: 2019-06-13 | E151: Vodafone | F151: 40 | G151: 20 | H151: EUR | I151: 806501000 | J151: 0 | K151: 20000000 | L151: 2021-01-01 | M151: 2040-12-31
A152: Germany-2019 Jun-2100 | B152: Germany | C152: 2100MHz FDD/TDD | D152: 2019-06-13 | E152: Drillisch Netz | F152: 20 | G152: 15 | H152: EUR | I152: 334997000 | J152: 0 | K152: 7500000 | L152: 2026-01-01 | M152: 2040-12-31
A153: Germany-2019 Jun-3600 | B153: Germany | C153: 3.4-3.8GHz FDD/TDD | D153: 2019-06-13 | E153: Telekom Deutschland | F153: 90 | G153: 20 | H153: EUR | I153: 1323423000 | J153: 0 | K153: 15300000 | L153: 2021-01-01 | M153: 2040-12-31
A154: Germany-2019 Jun-3600 | B154: Germany | C154: 3.4-3.8GHz FDD/TDD | D154: 2019-06-13 | E154: Telefonica Deutschland | F154: 70 | G154: 20 | H154: EUR | I154: 1043728000 | J154: 0 | K154: 11900000 | L154: 2021-01-01 | M154: 2040-12-31
A155: Germany-2019 Jun-3600 | B155: Germany | C155: 3.4-3.8GHz FDD/TDD | D155: 2019-06-13 | E155: Vodafone | F155: 90 | G155: 20 | H155: EUR | I155: 1073188000 | J155: 0 | K155: 13900000 | L155: 2021-01-01 | M155: 2040-12-31
A156: Germany-2019 Jun-3600 | B156: Germany | C156: 3.4-3.8GHz FDD/TDD | D156: 2019-06-13 | E156: Drillisch Netz | F156: 50 | G156: 20 | H156: EUR | I156: 735190000 | J156: 0 | K156: 8500000 | L156: 2021-01-01 | M156: 2040-12-31
A157: Norway-2019 Jun-700 | B157: Norway | C157: 700MHz FDD | D157: 2019-06-05 | E157: Ice | F157: 20 | G157: 20 | H157: NOK | I157: 262176000 | J157: 15830000 | K157: 250000000 | L157: 2019-11-01 | M157: 2039-12-31
A158: Norway-2019 Jun-700 | B158: Norway | C158: 700MHz FDD | D158: 2019-06-05 | E158: Telia | F158: 20 | G158: 20 | H158: NOK | I158: 217881000 | J158: 15830000 | K158: 155000000 | L158: 2019-11-01 | M158: 2039-12-31
A159: Norway-2019 Jun-700 | B159: Norway | C159: 700MHz FDD | D159: 2019-06-05 | E159: Telenor | F159: 20 | G159: 20 | H159: NOK | I159: 180000000 | J159: 15830000 | K159: 180000000 | L159: 2019-11-01 | M159: 2039-12-31
A160: Norway-2019 Jun-2100 | B160: Norway | C160: 2100MHz FDD/TDD | D160: 2019-06-05 | E160: Ice | F160: 30 | G160: 14 | H160: NOK | I160: 75000000 | J160: 22086000 | K160: 75000000 | L160: 2019-11-01 | M160: 2032-12-31
A161: Sweden-2018 Dec-700 | B161: Sweden | C161: 700MHz FDD | D161: 2018-12-12 | E161: Telia Sverige | F161: 20 | G161: 22 | H161: SEK | I161: 1382657650 | J161: 1218804 | K161: 200000000 | L161: 2019-01-01 | M161: 2040-12-31
A162: Sweden-2018 Dec-700 | B162: Sweden | C162: 700MHz FDD | D162: 2018-12-12 | E162: Net4Mobility | F162: 20 | G162: 22 | H162: SEK | I162: 1441936796 | J162: 1218804 | K162: 200000000 | L162: 2019-01-01 | M162: 2040-12-31
A163: Italy-2018 Oct-700 | B163: Italy | C163: 700MHz FDD | D163: 2018-10-02 | E163: Vodafone | F163: 20 | G163: 16 | H163: EUR | I163: 683236396 | J163: 0 | K163: 676473000 | L163: 2022-07-01 | M163: 2037-12-31
A164: Italy-2018 Oct-700 | B164: Italy | C164: 700MHz FDD | D164: 2018-10-02 | E164: Telecom Italia | F164: 20 | G164: 16 | H164: EUR | I164: 680200000 | J164: 0 | K164: 676473000 | L164: 2022-07-01 | M164: 2037-12-31
A165: Italy-2018 Oct-3600 | B165: Italy | C165: 3.4-3.8GHz FDD/TDD | D165: 2018-10-02 | E165: Telecom Italia | F165: 80 | G165: 19 | H165: EUR | I165: 1694000000 | J165: 0 | K165: 158374000 | L165: 2019-01-01 | M165: 2037-12-31
A166: Italy-2018 Oct-3600 | B166: Italy | C166: 3.4-3.8GHz FDD/TDD | D166: 2018-10-02 | E166: Vodafone | F166: 80 | G166: 19 | H166: EUR | I166: 1685000000 | J166: 0 | K166: 158696000 | L166: 2019-01-01 | M166: 2037-12-31
A167: Italy-2018 Oct-3600 | B167: Italy | C167: 3.4-3.8GHz FDD/TDD | D167: 2018-10-02 | E167: Wind | F167: 20 | G167: 19 | H167: EUR | I167: 483920000 | J167: 0 | K167: 39674000 | L167: 2019-01-01 | M167: 2037-12-31
A168: Italy-2018 Oct-3600 | B168: Italy | C168: 3.4-3.8GHz FDD/TDD | D168: 2018-10-02 | E168: Iliad | F168: 20 | G168: 19 | H168: EUR | I168: 483900000 | J168: 0 | K168: 39674000 | L168: 2019-01-01 | M168: 2037-12-31
A169: Greece-2017 Nov-1800 | B169: Greece | C169: 1800MHz FDD | D169: 2017-11-03 | E169: COSMOTE Mobile Telecommunications SA | F169: 50 | G169: 15 | H169: EUR | I169: 83150000 | J169: 0 | K169: 82500000 | L169: 2020-12-06 | M169: 2035-12-05
A170: Greece-2017 Nov-1800 | B170: Greece | C170: 1800MHz FDD | D170: 2017-11-03 | E170: VODAFONE-PANAFON PANAFON SA | F170: 30 | G170: 18 | H170: EUR | I170: 59200000 | J170: 0 | K170: 59100000 | L170: 2018-02-06 | M170: 2035-12-05
A171: Greece-2017 Nov-1800 | B171: Greece | C171: 1800MHz FDD | D171: 2017-11-03 | E171: WIND Hellas AEBE Telecommunications | F171: 30 | G171: 18 | H171: EUR | I171: 59100000 | J171: 0 | K171: 59100000 | L171: 2018-02-06 | M171: 2035-12-05
A172: Slovakia-2017 Oct-3600 | B172: Slovakia | C172: 3.4-3.8GHz FDD/TDD WiMAX | D172: 2017-10-05 | E172: AMTEL SLOVAKIA | F172: 40 | G172: 7 | H172: EUR | I172: 5600 | J172: 0 | M172: 2024-12-31
A173: Slovakia-2017 Oct-3600 | B173: Slovakia | C173: 3.4-3.8GHz FDD/TDD WiMAX | D173: 2017-10-05 | E173: AMTEL SLOVAKIA | F173: 40 | G173: 7 | H173: EUR | I173: 700 | J173: 0 | M173: 2024-12-31
A174: Slovakia-2017 Oct-3600 | B174: Slovakia | C174: 3.4-3.8GHz FDD/TDD WiMAX | D174: 2017-10-05 | E174: AMTEL SLOVAKIA | F174: 40 | G174: 7 | H174: EUR | I174: 1600 | J174: 0 | M174: 2024-12-31
A175: Slovakia-2017 Oct-3600 | B175: Slovakia | C175: 3.4-3.8GHz FDD/TDD WiMAX | D175: 2017-10-05 | E175: AMTEL SLOVAKIA | F175: 40 | G175: 7 | H175: EUR | I175: 3300 | J175: 0 | M175: 2024-12-31
A176: Slovakia-2017 Oct-3600 | B176: Slovakia | C176: 3.4-3.8GHz FDD/TDD WiMAX | D176: 2017-10-05 | E176: O2 Slovakia | F176: 40 | G176: 7 | H176: EUR | I176: 209999 | J176: 0 | M176: 2024-12-31
A177: Slovakia-2017 Oct-3600 | B177: Slovakia | C177: 3.4-3.8GHz FDD/TDD WiMAX | D177: 2017-10-05 | E177: AMTEL SLOVAKIA | F177: 40 | G177: 7 | H177: EUR | I177: 2700 | J177: 0 | M177: 2024-12-31
A178: Slovakia-2017 Oct-3600 | B178: Slovakia | C178: 3.4-3.8GHz FDD/TDD WiMAX | D178: 2017-10-05 | E178: AMTEL SLOVAKIA | F178: 40 | G178: 7 | H178: EUR | I178: 4201 | J178: 0 | M178: 2024-12-31
A179: Slovakia-2017 Oct-3600 | B179: Slovakia | C179: 3.4-3.8GHz FDD/TDD WiMAX | D179: 2017-10-05 | E179: DSI DATA | F179: 40 | G179: 7 | H179: EUR | I179: 10000 | J179: 0 | M179: 2024-12-31
A180: Slovakia-2017 Oct-3600 | B180: Slovakia | C180: 3.4-3.8GHz FDD/TDD WiMAX | D180: 2017-10-05 | E180: AMTEL SLOVAKIA | F180: 40 | G180: 7 | H180: EUR | I180: 5800 | J180: 0 | M180: 2024-12-31
A181: Slovakia-2017 Oct-3600 | B181: Slovakia | C181: 3.4-3.8GHz FDD/TDD WiMAX | D181: 2017-10-05 | E181: DSI DATA | F181: 40 | G181: 7 | H181: EUR | I181: 16000 | J181: 0 | M181: 2024-12-31
A182: Slovakia-2017 Oct-3600 | B182: Slovakia | C182: 3.4-3.8GHz FDD/TDD WiMAX | D182: 2017-10-05 | E182: AMTEL SLOVAKIA | F182: 40 | G182: 7 | H182: EUR | I182: 22222 | J182: 0 | M182: 2024-12-31
A183: Slovakia-2017 Oct-3600 | B183: Slovakia | C183: 3.4-3.8GHz FDD/TDD WiMAX | D183: 2017-10-05 | E183: AMTEL SLOVAKIA | F183: 40 | G183: 7 | H183: EUR | I183: 26000 | J183: 0 | M183: 2024-12-31
A184: Slovakia-2017 Oct-3600 | B184: Slovakia | C184: 3.4-3.8GHz FDD/TDD WiMAX | D184: 2017-10-05 | E184: AMTEL SLOVAKIA | F184: 40 | G184: 7 | H184: EUR | I184: 4800 | J184: 0 | M184: 2024-12-31
A185: Slovakia-2017 Oct-3600 | B185: Slovakia | C185: 3.4-3.8GHz FDD/TDD WiMAX | D185: 2017-10-05 | E185: AMTEL SLOVAKIA | F185: 40 | G185: 7 | H185: EUR | I185: 11111 | J185: 0 | M185: 2024-12-31
A186: Slovakia-2017 Oct-3600 | B186: Slovakia | C186: 3.4-3.8GHz FDD/TDD WiMAX | D186: 2017-10-05 | E186: AMTEL SLOVAKIA | F186: 40 | G186: 7 | H186: EUR | I186: 5210 | J186: 0 | M186: 2024-12-31
A187: Slovakia-2017 Oct-3600 | B187: Slovakia | C187: 3.4-3.8GHz FDD/TDD WiMAX | D187: 2017-10-05 | E187: AMTEL SLOVAKIA | F187: 40 | G187: 7 | H187: EUR | I187: 2600 | J187: 0 | M187: 2024-12-31
A188: Slovakia-2017 Oct-3600 | B188: Slovakia | C188: 3.4-3.8GHz FDD/TDD WiMAX | D188: 2017-10-05 | E188: AMTEL SLOVAKIA | F188: 40 | G188: 7 | H188: EUR | I188: 11111 | J188: 0 | M188: 2024-12-31
A189: Slovakia-2017 Oct-3600 | B189: Slovakia | C189: 3.4-3.8GHz FDD/TDD WiMAX | D189: 2017-10-05 | E189: AMTEL SLOVAKIA | F189: 40 | G189: 7 | H189: EUR | I189: 4400 | J189: 0 | M189: 2024-12-31
A190: Slovakia-2017 Oct-3600 | B190: Slovakia | C190: 3.4-3.8GHz FDD/TDD WiMAX | D190: 2017-10-05 | E190: AMTEL SLOVAKIA | F190: 40 | G190: 7 | H190: EUR | I190: 179999 | J190: 0 | M190: 2024-12-31
A191: Slovakia-2017 Oct-3600 | B191: Slovakia | C191: 3.4-3.8GHz FDD/TDD WiMAX | D191: 2017-10-05 | E191: AMTEL SLOVAKIA | F191: 40 | G191: 7 | H191: EUR | I191: 5678 | J191: 0 | M191: 2024-12-31
A192: Slovakia-2017 Oct-3600 | B192: Slovakia | C192: 3.4-3.8GHz FDD/TDD WiMAX | D192: 2017-10-05 | E192: AMTEL SLOVAKIA | F192: 40 | G192: 7 | H192: EUR | I192: 6900 | J192: 0 | M192: 2024-12-31
A193: Slovakia-2017 Oct-3600 | B193: Slovakia | C193: 3.4-3.8GHz FDD/TDD WiMAX | D193: 2017-10-05 | E193: Fibris | F193: 40 | G193: 7 | H193: EUR | I193: 13121 | J193: 0 | M193: 2024-12-31
A194: Slovakia-2017 Oct-3600 | B194: Slovakia | C194: 3.4-3.8GHz FDD/TDD WiMAX | D194: 2017-10-05 | E194: AMTEL SLOVAKIA | F194: 40 | G194: 7 | H194: EUR | I194: 4800 | J194: 0 | M194: 2024-12-31
A195: Slovakia-2017 Oct-3600 | B195: Slovakia | C195: 3.4-3.8GHz FDD/TDD WiMAX | D195: 2017-10-05 | E195: AMTEL SLOVAKIA | F195: 40 | G195: 7 | H195: EUR | I195: 23501 | J195: 0 | M195: 2024-12-31
A196: Slovakia-2017 Oct-3600 | B196: Slovakia | C196: 3.4-3.8GHz FDD/TDD WiMAX | D196: 2017-10-05 | E196: AMTEL SLOVAKIA | F196: 40 | G196: 7 | H196: EUR | I196: 3100 | J196: 0 | M196: 2024-12-31
A197: Slovakia-2017 Oct-3600 | B197: Slovakia | C197: 3.4-3.8GHz FDD/TDD WiMAX | D197: 2017-10-05 | E197: AMTEL SLOVAKIA | F197: 40 | G197: 7 | H197: EUR | I197: 14999 | J197: 0 | M197: 2024-12-31
A198: Slovakia-2017 Oct-3600 | B198: Slovakia | C198: 3.4-3.8GHz FDD/TDD WiMAX | D198: 2017-10-05 | E198: AMTEL SLOVAKIA | F198: 40 | G198: 7 | H198: EUR | I198: 12501 | J198: 0 | M198: 2024-12-31
A199: Slovakia-2017 Oct-3600 | B199: Slovakia | C199: 3.4-3.8GHz FDD/TDD WiMAX | D199: 2017-10-05 | E199: AMTEL SLOVAKIA | F199: 40 | G199: 7 | H199: EUR | I199: 1000 | J199: 0 | M199: 2024-12-31
A200: Slovakia-2017 Oct-3600 | B200: Slovakia | C200: 3.4-3.8GHz FDD/TDD WiMAX | D200: 2017-10-05 | E200: AMTEL SLOVAKIA | F200: 40 | G200: 7 | H200: EUR | I200: 4900 | J200: 0 | M200: 2024-12-31
A201: Slovakia-2017 Oct-3600 | B201: Slovakia | C201: 3.4-3.8GHz FDD/TDD WiMAX | D201: 2017-10-05 | E201: AMTEL SLOVAKIA | F201: 40 | G201: 7 | H201: EUR | I201: 6400 | J201: 0 | M201: 2024-12-31
... 353 more rows

Sheet I_UKComp
A1: UK comparator data
A2: Manual entry
A4: comp_id | B4: comp_date | C4: duration_years | D4: amount_mhz | E4: lsv_nom_gbp | F4: source | G4: comment
A5: UK-2013 Mar-800 | B5: 2013-03-31 | C5: 20 | D5: 1 | E5: 33000000 | F5: 2015 ALF Statement, Section 2
A6: UK-2013 Mar-800-DTT | B6: 2013-03-31 | C6: 20 | D6: 1 | E6: 30000000 | F6: 2015 ALF Statement, Section 2 | G6: Net of DTT co-existence costs
A7: UK-2013 Mar-2600 | B7: 2013-03-31 | C7: 20 | D7: 1 | E7: 5500000 | F7: 2015 ALF Statement, Section 2
A8: UK-2018 Apr-2300 | B8: 2018-04-13 | C8: 20 | D8: 1 | E8: 5147400 | F8: Publication of auction results, 13 April 2018
A9: UK-2018 Apr-3400 | B9: 2018-04-13 | C9: 20 | D9: 1 | E9: 7564800 | F9: Publication of auction results, 13 April 2018 | G9: Lowest price increment in principal stage
A10: UK-2018 Apr-900 | B10: 2018-04-30 | C10: 20 | D10: 1 | E10: 19000000 | F10: 2018 ALF Statement
A11: UK-2018 Apr-1800 | B11: 2018-04-30 | C11: 20 | D11: 1 | E11: 14000000 | F11: 2018 ALF Statement
A12: UK-2021 Mar-700 | B12: 2021-03-17 | C12: 20 | D12: 1 | E12: 14000000 | F12: Publication of principal stage results, 17 March 2021
A13: UK-2021 Mar-3600 | B13: 2021-03-17 | C13: 20 | D13: 1 | E13: 4200000 | F13: Publication of principal stage results, 17 March 2021

Sheet I_PPP_Override
A1: PPP conversion factor for Croatia, corrected
A2: Data pulled automatically via query 'I_PPP_Override'. Do not change manually!
A5: country | B5: 2010 | C5: 2011 | D5: 2012 | E5: 2013 | F5: 2014 | G5: 2015 | H5: 2016 | I5: 2017 | J5: 2018 | K5: 2019 | L5: 2020 | M5: 2021 | N5: 2022 | O5: 2023 | P5: 2024
A6: Croatia | B6: 3.87355365 | C6: 3.752626403 | D6: 3.664146374 | E6: 3.575118167 | F6: 3.543472808 | G6: 3.512371682 | H6: 3.382018726 | I6: 3.324656593 | J6: 3.311038331 | K6: 3.21437667 | L6: 3.16305957 | M6: 3.256167335 | N6: 3.231162813 | O6: 0.432290263 | P6: 0.432290263
A9: World Bank PPP based on HRK for 2010-2022
A10: Wolrd Bank PPP based on EUR for 2023-2024 after adoption of Euro in 2023.

Sheet I_PPP
A1: PPP conversion factor, GDP (LCU per international $)
A2: Data pulled automatically via query 'I_PPP'. Do not change manually!
A4: country | B4: 2010 | C4: 2011 | D4: 2012 | E4: 2013 | F4: 2014 | G4: 2015 | H4: 2016 | I4: 2017 | J4: 2018 | K4: 2019 | L4: 2020 | M4: 2021 | N4: 2022 | O4: 2023 | P4: 2024
A5: Afghanistan | B5: 14.54305294 | C5: 16.61347791 | D5: 16.93029509 | E5: 16.88154584 | F5: 16.12780381 | G5: 15.82358245 | H5: 15.92365597 | I5: 15.42020702 | J5: 14.85623498 | K5: 15.02643439 | L5: 15.33524309 | M5: 14.58794212 | N5: 14.91028205 | O5: 14.91028205 | P5: 14.91028205
A6: Albania | B6: 44.20565841 | C6: 43.86025303 | D6: 43.65747407 | E6: 44.11600854 | F6: 42.89701678 | G6: 42.70885002 | H6: 42.38746154 | I6: 42.25956222 | J6: 42.30566329 | K6: 40.55187796 | L6: 40.21207688 | M6: 40.59623655 | N6: 39.49290564 | O6: 39.36256107 | P6: 39.36256107
A7: Algeria | B7: 25.73290522 | C7: 29.4758873 | D7: 32.39485693 | E7: 33.02465504 | F7: 33.4217802 | G7: 34.16624139 | H7: 36.03880866 | I7: 37.45825195 | J7: 38.87734985 | K7: 38.38938522 | L7: 37.43886566 | M7: 38.76309967 | N7: 44.50111666 | O7: 41.96649166 | P7: 41.96649166
A8: Andorra | B8: 0.735279068 | C8: 0.721833616 | D8: 0.709874591 | E8: 0.701125997 | F8: 0.68854509 | G8: 0.686720483 | H8: 0.682621757 | I8: 0.678233981 | J8: 0.65632801 | K8: 0.641227887 | L8: 0.62787878 | M8: 0.604573548 | N8: 0.588730553 | O8: 0.60131182 | P8: 0.60131182
A9: Angola | B9: 50.04015159 | C9: 64.60575104 | D9: 66.01718562 | E9: 66.69557274 | F9: 66.00187576 | G9: 69.58590353 | H9: 82.86332664 | I9: 95.83724213 | J9: 111.4418106 | K9: 124.4396057 | L9: 146.9091339 | M9: 174.0905151 | N9: 184.9366237 | O9: 209.9221375 | P9: 209.9221375
A10: Antigua and Barbuda | B10: 1.714805668 | C10: 1.691376686 | D10: 1.835040877 | E10: 1.867559899 | F10: 1.935110052 | G10: 2.068558697 | H10: 2.096744449 | I10: 2.138337374 | J10: 2.011817932 | K10: 1.921622276 | L10: 1.855063558 | M10: 1.819394827 | N10: 1.810179474 | O10: 1.830447486 | P10: 1.830447486
A11: Argentina | B11: 2.25500158 | C11: 2.733127832 | D11: 3.220031636 | E11: 3.945567609 | F11: 5.461513786 | G11: 6.882589712 | H11: 9.322117326 | I11: 10.29278564 | J11: 13.52681351 | K11: 20.3836689 | L11: 26.88718414 | M11: 38.78333282 | N11: 61.40318097 | O11: 138.5355044 | P11: 138.5355044
A12: Armenia | B12: 160.1685897 | C12: 163.6500092 | D12: 157.7633274 | E12: 159.4405605 | F12: 164.5576665 | G12: 172.0472008 | H12: 160.2082079 | I12: 154.7865906 | J12: 157.3769073 | K12: 147.486145 | L12: 141.9405518 | M12: 148.2412262 | N12: 149.549509 | O12: 148.3766147 | P12: 148.3766147
A13: Aruba | B13: 1.278604949 | C13: 1.302940607 | D13: 1.318766618 | E13: 1.287024359 | F13: 1.311720986 | G13: 1.366313786 | H13: 1.360014589 | I13: 1.356636643 | J13: 1.370605588 | K13: 1.423211813 | L13: 1.411908627 | M13: 1.36395359 | N13: 1.317722025 | O13: 1.317722025 | P13: 1.317722025
A14: Australia | B14: 1.503623 | C14: 1.511052 | D14: 1.540115 | E14: 1.447123 | F14: 1.452489 | G14: 1.473691 | H14: 1.450156 | I14: 1.477553 | J14: 1.470403 | K14: 1.459253 | L14: 1.431163 | M14: 1.416683 | N14: 1.372115 | O14: 1.391128 | P14: 1.391128
A15: Austria | B15: 0.842336 | C15: 0.831374 | D15: 0.813648 | E15: 0.797081 | F15: 0.798797 | G15: 0.798813 | H15: 0.776931 | I15: 0.775009 | J15: 0.765403 | K15: 0.738332 | L15: 0.728799 | M15: 0.713469 | N15: 0.69687 | O15: 0.708583 | P15: 0.708583
A16: Azerbaijan | B16: 0.319464642 | C16: 0.383509785 | D16: 0.368202768 | E16: 0.357812484 | F16: 0.352385194 | G16: 0.373831914 | H16: 0.426016726 | I16: 0.498603374 | J16: 0.527234912 | K16: 0.489932567 | L16: 0.474218667 | M16: 0.457138151 | N16: 0.586238874 | O16: 0.513547203 | P16: 0.513547203
A17: Bahamas, The | B17: 0.925044272 | C17: 0.898563445 | D17: 0.919978032 | E17: 0.912468043 | F17: 0.918396825 | G17: 0.955871814 | H17: 0.94831267 | I17: 0.929797828 | J17: 0.926608264 | K17: 0.931452453 | L17: 0.962290525 | M17: 0.977568686 | N17: 0.952545398 | O17: 0.97735436 | P17: 0.97735436
A18: Bahrain | B18: 0.166183913 | C18: 0.178678498 | D18: 0.175286384 | E18: 0.18021832 | F18: 0.183168478 | G18: 0.185784212 | H18: 0.188678215 | I18: 0.185696244 | J18: 0.190370858 | K18: 0.181090996 | L18: 0.171287224 | M18: 0.185745358 | N18: 0.18688724 | O18: 0.171277544 | P18: 0.171277544
A19: Bangladesh | B19: 22.15153146 | C19: 23.40955544 | D19: 23.73549952 | E19: 24.85747308 | F19: 25.65040461 | G19: 27.04661205 | H19: 28.18957073 | I19: 29.35134506 | J19: 29.397892 | K19: 29.59568214 | L19: 28.70980072 | M19: 28.29668808 | N19: 27.77009449 | O19: 28.64145276 | P19: 28.64145276
A20: Barbados | B20: 1.988678514 | C20: 2.018887043 | D20: 2.122325635 | E20: 2.144778 | F20: 2.171854456 | G20: 2.129127613 | H20: 2.11681499 | I20: 2.200443745 | J20: 2.162226677 | K20: 2.19438386 | L20: 2.318824768 | M20: 2.384203434 | N20: 2.318156922 | O20: 2.342554835 | P20: 2.342554835
A21: Belarus | B21: 0.116989823 | C21: 0.196053222 | D21: 0.320005868 | E21: 0.373530842 | F21: 0.4479619 | G21: 0.524063801 | H21: 0.562285911 | I21: 0.60713613 | J21: 0.647122502 | K21: 0.641350508 | L21: 0.641749382 | M21: 0.688632727 | N21: 0.739093726 | O21: 0.765644162 | P21: 0.765644162
A22: Belgium | B22: 0.836717 | C22: 0.831911 | D22: 0.822137 | E22: 0.806166 | F22: 0.800214 | G22: 0.799998 | H22: 0.781011 | I22: 0.775634 | J22: 0.766407 | K22: 0.735832 | L22: 0.716165 | M22: 0.705865 | N22: 0.694643 | O22: 0.701943 | P22: 0.701943
A23: Belize | B23: 1.120102846 | C23: 1.151228309 | D23: 1.232383516 | E23: 1.250777933 | F23: 1.291502048 | G23: 1.290495489 | H23: 1.306701529 | I23: 1.331451654 | J23: 1.266050696 | K23: 1.175549865 | L23: 1.086958766 | M23: 1.048620343 | N23: 1.05179251 | O23: 1.125383513 | P23: 1.125383513
A24: Benin | B24: 216.8848722 | C24: 220.4335785 | D24: 233.1861389 | E24: 229.8616012 | F24: 222.6922744 | G24: 217.4563027 | H24: 210.7117777 | I24: 212.2662354 | J24: 215.7384033 | K24: 210.4048767 | L24: 212.435318 | M24: 211.1066742 | N24: 205.3828549 | O24: 204.8685687 | P24: 204.8685687
A25: Bermuda | B25: 1.44221789 | C25: 1.396796823 | D25: 1.449238903 | E25: 1.422048652 | F25: 1.402467377 | G25: 1.380702972 | H25: 1.352374123 | I25: 1.311136246 | J25: 1.31666863 | K25: 1.272723317 | L25: 1.256383657 | M25: 1.221463203 | N25: 1.151823133 | O25: 1.151823133 | P25: 1.151823133
A26: Bhutan | B26: 15.33099057 | C26: 16.39680481 | D26: 17.1400516 | E26: 18.11942324 | F26: 18.65239098 | G26: 18.55403495 | H26: 18.7895935 | I26: 19.15760994 | J26: 19.42745781 | K26: 19.51221085 | L26: 18.95794678 | M26: 19.61039162 | N26: 19.38208849 | O26: 19.38208849 | P26: 19.38208849
A27: Bolivia | B27: 2.654754754 | C27: 2.98091197 | D27: 3.033481205 | E27: 3.009537636 | F27: 2.982221521 | G27: 2.89461967 | H27: 2.779299575 | I27: 2.68458724 | J27: 2.702014208 | K27: 2.639060974 | L27: 2.582664967 | M27: 2.473956823 | N27: 2.429660813 | O27: 2.384055482 | P27: 2.384055482
A28: Bosnia and Herzegovina | B28: 0.732406412 | C28: 0.718201529 | D28: 0.705977775 | E28: 0.686190971 | F28: 0.687254473 | G28: 0.694141201 | H28: 0.675592646 | I28: 0.680729263 | J28: 0.674483306 | K28: 0.651095042 | L28: 0.64300817 | M28: 0.650537906 | N28: 0.671847263 | O28: 0.66728664 | P28: 0.66728664
A29: Botswana | B29: 3.31109427 | C29: 3.654658079 | D29: 3.956585128 | E29: 4.110870547 | F29: 4.261119111 | G29: 4.398016906 | H29: 4.533646204 | I29: 4.682478428 | J29: 4.786637783 | K29: 4.833456516 | L29: 4.737116337 | M29: 4.819880486 | N29: 5.161038886 | O29: 5.085393025 | P29: 5.085393025
A30: Brazil | B30: 1.388137023 | C30: 1.473216414 | D30: 1.609135865 | E30: 1.708555429 | F30: 1.824850525 | G30: 2.005869311 | H30: 2.155971596 | I30: 2.209679127 | J30: 2.197591543 | K30: 2.216445208 | L30: 2.264911175 | M30: 2.37927413 | N30: 2.41326595 | O30: 2.436875874 | P30: 2.436875874
A31: British Virgin Islands | C31: 1.027546763 | D31: 1.088881183 | E31: 1.076733772 | F31: 1.064383241 | G31: 1.071502049 | H31: 1.055831415 | I31: 1.020229697 | J31: 1.020229697 | K31: 1.020229697 | L31: 1.020229697 | M31: 1.020229697 | N31: 1.020229697 | O31: 1.020229697 | P31: 1.020229697
A32: Brunei Darussalam | B32: 0.598895801 | C32: 0.705206811 | D32: 0.672622864 | E32: 0.661425097 | F32: 0.639973853 | G32: 0.671476414 | H32: 0.649816136 | I32: 0.627636611 | J32: 0.641614974 | K32: 0.598504782 | L32: 0.530513346 | M32: 0.532498598 | N32: 0.618042309 | O32: 0.519406037 | P32: 0.519406037
A33: Bulgaria | B33: 0.677084059 | C33: 0.701113148 | D33: 0.69285266 | E33: 0.68004272 | F33: 0.661276129 | G33: 0.678748014 | H33: 0.666690282 | I33: 0.676343931 | J33: 0.680144566 | K33: 0.675831036 | L33: 0.675228526 | M33: 0.687201251 | N33: 0.731910324 | O33: 0.738553967 | P33: 0.738553967
A34: Burkina Faso | B34: 213.3438208 | C34: 223.1158142 | D34: 237.5922422 | E34: 228.405865 | F34: 227.3231965 | G34: 220.2303563 | H34: 209.0264836 | I34: 201.5952759 | J34: 208.2841949 | K34: 200.7630615 | L34: 199.5170898 | M34: 199.7247467 | N34: 197.5754488 | O34: 194.4359163 | P34: 194.4359163
A35: Burundi | B35: 434.6733931 | C35: 461.5091248 | D35: 523.1272323 | E35: 531.3069159 | F35: 534.9652527 | G35: 553.8459543 | H35: 564.3957462 | I35: 626.1676025 | J35: 605.9476929 | K35: 582.1962891 | L35: 595.6138306 | M35: 609.5991821 | N35: 673.8997549 | O35: 724.1669522 | P35: 724.1669522
A36: Cabo Verde | B36: 49.36466549 | C36: 49.69546127 | D36: 51.0533172 | E36: 51.67798109 | F36: 51.5741783 | G36: 50.1083686 | H36: 48.94341988 | I36: 47.9817543 | J36: 50.68048477 | K36: 49.90723801 | L36: 49.99317551 | M36: 48.17049408 | N36: 48.39824175 | O36: 48.4973795 | P36: 48.4973795
A37: Cambodia | B37: 1353.976763 | C37: 1371.235352 | D37: 1342.429684 | E37: 1351.397929 | F37: 1403.651317 | G37: 1419.624906 | H37: 1431.956435 | I37: 1464.890991 | J37: 1468.921753 | K37: 1468.902588 | L37: 1433.769165 | M37: 1426.959839 | N37: 1387.358418 | O37: 1370.479956 | P37: 1370.479956
A38: Cameroon | B38: 237.4833172 | C38: 238.707077 | D38: 241.8081866 | E38: 240.3156228 | F38: 237.9785462 | G38: 239.1783216 | H38: 235.558762 | I38: 230.5853882 | J38: 223.1657715 | K38: 214.8725128 | L38: 205.1069946 | M38: 193.4589539 | N38: 190.3785075 | O38: 188.6904846 | P38: 188.6904846
A39: Canada | B39: 1.22182 | C39: 1.239904 | D39: 1.244607 | E39: 1.224 | F39: 1.230358 | G39: 1.248042 | H39: 1.207045 | I39: 1.212304 | J39: 1.206524 | K39: 1.21786 | L39: 1.201689 | M39: 1.180039 | N39: 1.164518 | O39: 1.169928 | P39: 1.169928
A40: Cayman Islands | B40: 0.96540813 | C40: 0.941537917 | D40: 0.96690504 | E40: 0.983444533 | F40: 0.994393606 | G40: 0.994372223 | H40: 0.987132743 | I40: 0.98079437 | J40: 0.973204851 | K40: 1.011659026 | L40: 1.03776145 | M40: 0.971421659 | N40: 0.940041538 | O40: 0.940041538 | P40: 0.940041538
A41: Central African Republic | B41: 251.9573599 | C41: 256.7613525 | D41: 261.7014402 | E41: 253.5181 | F41: 289.5238628 | G41: 281.6784455 | H41: 277.7713044 | I41: 284.0335083 | J41: 279.1550903 | K41: 267.2586975 | L41: 249.863266 | M41: 241.8806763 | N41: 239.4557881 | O41: 238.8896557 | P41: 238.8896557
A42: Chad | B42: 242.6375767 | C42: 258.1313171 | D42: 283.9562205 | E42: 305.406616 | F42: 295.9949645 | G42: 247.1739797 | H42: 240.8987086 | I42: 236.5829926 | J42: 236.5224915 | K42: 222.5734711 | L42: 228.2732086 | M42: 215.5109406 | N42: 231.8273139 | O42: 221.5794492 | P42: 221.5794492
A43: Chile | B43: 359.83702 | C43: 348.016847 | D43: 347.228507 | E43: 349.680536 | F43: 367.213907 | G43: 391.178861 | H43: 397.250703 | I43: 397.689401 | J43: 396.229413 | K43: 397.674408 | L43: 409.841785 | M43: 423.046172 | N43: 426.098226 | O43: 431.415905 | P43: 431.415905
A44: China | B44: 3.32839098 | C44: 3.524467707 | D44: 3.540276769 | E44: 3.621192961 | F44: 3.693706981 | G44: 3.781514936 | H44: 3.874289636 | I44: 4.040052414 | J44: 4.094089985 | K44: 4.059609413 | L44: 4.014656544 | M44: 3.987408876 | N44: 3.791641631 | O44: 3.638704153 | P44: 3.638704153
A45: Colombia | B45: 1120.764171 | C45: 1168.243042 | D45: 1205.59526 | E45: 1210.712886 | F45: 1226.732967 | G45: 1285.027924 | H45: 1298.142605 | I45: 1328.016627 | J45: 1322.160543 | K45: 1312.630441 | L45: 1270.743624 | M45: 1316.324081 | N45: 1345.664277 | O45: 1401.241791 | P45: 1401.241791
A46: Comoros | B46: 216.8895514 | C46: 218.9775848 | D46: 213.0387169 | E46: 209.6754692 | F46: 203.6787654 | G46: 199.85077 | H46: 193.3370983 | I46: 185.2477112 | J46: 194.2283478 | K46: 201.5426788 | L46: 201.6755676 | M46: 191.4807739 | N46: 188.12061 | O46: 187.3370485 | P46: 187.3370485
A47: Congo, Dem. Rep. | B47: 477.2234325 | C47: 532.0634155 | D47: 582.0245072 | E47: 556.5515433 | F47: 526.6711561 | G47: 504.3183977 | H47: 488.9378754 | I47: 637.2664185 | J47: 801.5734863 | K47: 786.3093872 | L47: 827.0042725 | M47: 845.4506836 | N47: 869.6623084 | O47: 949.6007281 | P47: 949.6007281
A48: Congo, Rep. | B48: 284.4722133 | C48: 309.2511902 | D48: 314.5498695 | E48: 313.0263396 | F48: 310.148249 | G48: 305.8605076 | H48: 308.8575622 | I48: 288.9322815 | J48: 267.5776978 | K48: 254.9121399 | L48: 240.5133362 | M48: 222.7753754 | N48: 246.1263416 | O48: 219.4994869 | P48: 219.4994869
A49: Costa Rica | B49: 336.211434 | C49: 344.5460205 | D49: 352.113803 | E49: 354.456 | F49: 358.2966474 | G49: 357.3314179 | H49: 343.013617 | I49: 340.991882 | J49: 337.901936 | K49: 324.21736 | L49: 328.024138 | M49: 330.139374 | N49: 330.359953 | O49: 323.002654 | P49: 323.002654
A50: Cote d'Ivoire | B50: 228.7388728 | C50: 236.9105835 | D50: 240.0089821 | E50: 243.7631129 | F50: 241.3351754 | G50: 243.6352911 | H50: 243.6262339 | I50: 243.1855774 | J50: 239.3190002 | K50: 227.4831085 | L50: 226.3087006 | M50: 225.2888031 | N50: 214.8597671 | O50: 212.4554228 | P50: 212.4554228
A51: Cuba | C51: 0.321938711 | D51: 0.321938711 | E51: 0.321938711 | F51: 0.321938711 | G51: 0.321938711 | H51: 0.321938711 | I51: 0.321938711 | J51: 0.321938711 | K51: 0.321938711 | L51: 0.321938711 | M51: 0.321938711 | N51: 0.321938711 | O51: 0.321938711 | P51: 0.321938711
A52: Curacao | B52: 1.368679066 | C52: 1.324621677 | D52: 1.412395148 | E52: 1.422182044 | F52: 1.442647003 | G52: 1.441806801 | H52: 1.433848535 | I52: 1.393792033 | J52: 1.389886498 | K52: 1.354688883 | L52: 1.343183994 | M52: 1.278984547 | N52: 1.242471531 | O52: 1.242471531 | P52: 1.242471531
A53: Cyprus | B53: 0.70029064 | C53: 0.698661839 | D53: 0.706888914 | E53: 0.687352067 | F53: 0.679758791 | G53: 0.663187331 | H53: 0.622352108 | I53: 0.61524255 | J53: 0.612482709 | K53: 0.58811905 | L53: 0.578571292 | M53: 0.571244435 | N53: 0.565932818 | O53: 0.562049097 | P53: 0.562049097
A54: Czech Republic | B54: 13.67437 | C54: 13.345305 | D54: 13.297699 | E54: 12.785271 | F54: 12.70321 | G54: 12.93798 | H54: 12.576343 | I54: 12.424986 | J54: 12.371528 | K54: 12.097428 | L54: 12.150267 | M54: 12.009202 | N54: 12.299963 | O54: 12.55055 | P54: 12.55055
A55: Denmark | B55: 7.59215 | C55: 7.466492 | D55: 7.564136 | E55: 7.354846 | F55: 7.328674 | G55: 7.305357 | H55: 7.079856 | I55: 6.871679 | J55: 6.765997 | K55: 6.538391 | L55: 6.365057 | M55: 6.232205 | N55: 6.153561 | O55: 6.106244 | P55: 6.106244
A56: Djibouti | C56: 93.57182312 | D56: 97.23897044 | E56: 98.06256479 | F56: 98.93170785 | G56: 99.03637048 | H56: 100.6768585 | I56: 99.52359772 | J56: 95.03245544 | K56: 93.40950012 | L56: 91.47750854 | M56: 90.22789001 | N56: 88.18648183 | O56: 88.96886562 | P56: 88.96886562
A57: Dominica | B57: 1.877378651 | C57: 1.870429516 | D57: 1.861289932 | E57: 1.871299295 | F57: 1.817031361 | G57: 1.849294052 | H57: 1.835991596 | I57: 1.74907136 | J57: 1.651061893 | K57: 1.599572659 | L57: 1.483801842 | M57: 1.430598259 | N57: 1.384115092 | O57: 1.373714974 | P57: 1.373714974
A58: Dominican Republic | B58: 17.92276395 | C58: 18.97597885 | D58: 20.07920289 | E58: 20.66036472 | F58: 21.01171218 | G58: 20.69375237 | H58: 20.2578266 | I58: 20.91620255 | J58: 21.688797 | K58: 21.234972 | L58: 21.22900391 | M58: 22.1248188 | N58: 22.88403545 | O58: 23.49760109 | P58: 23.49760109
A59: Ecuador | B59: 0.503995944 | C59: 0.527572334 | D59: 0.549960872 | E59: 0.540855147 | F59: 0.541231104 | G59: 0.54939296 | H59: 0.543826095 | I59: 0.528539717 | J59: 0.517270744 | K59: 0.49470225 | L59: 0.473994911 | M59: 0.448739469 | N59: 0.428426846 | O59: 0.411672575 | P59: 0.411672575
A60: Egypt, Arab Rep. | B60: 1.530647431 | C60: 1.67461729 | D60: 1.738121821 | E60: 1.856522731 | F60: 2.129368703 | G60: 2.250485684 | H60: 2.499198869 | I60: 3.169147015 | J60: 3.581174374 | K60: 3.893379688 | L60: 3.695092678 | M60: 3.85461998 | N60: 3.976507603 | O60: 4.788176906 | P60: 4.788176906
A61: El Salvador | B61: 0.486574039 | C61: 0.505120277 | D61: 0.521423531 | E61: 0.505071869 | F61: 0.488559922 | G61: 0.477749754 | H61: 0.461390404 | I61: 0.44841367 | J61: 0.454547405 | K61: 0.442782253 | L61: 0.425564259 | M61: 0.429484785 | N61: 0.429894913 | O61: 0.426094939 | P61: 0.426094939
A62: Equatorial Guinea | B62: 259.4277081 | C62: 297.509491 | D62: 294.4496435 | E62: 288.524324 | F62: 282.4884764 | G62: 275.2568406 | H62: 265.2820446 | I62: 245.9704742 | J62: 244.4173737 | K62: 242.3279877 | L62: 242.5738525 | M62: 228.967514 | N62: 256.1258494 | O62: 228.9295371 | P62: 228.9295371
A63: Eritrea | B63: 5.188798387 | C63: 6.077217994 | D63: 6.375450496 | E63: 6.061408941 | F63: 6.028778011 | G63: 5.771684116 | H63: 5.740963008 | I63: 5.392687798 | J63: 4.960841396 | K63: 4.690914663 | L63: 5.014288098 | M63: 4.938478947 | N63: 4.938478947 | O63: 4.938478947 | P63: 4.938478947
A64: Estonia | B64: 0.512185 | C64: 0.5116 | D64: 0.521063 | E64: 0.522424 | F64: 0.52689 | G64: 0.53758 | H64: 0.527849 | I64: 0.534908 | J64: 0.538757 | K64: 0.52869 | L64: 0.515202 | M64: 0.524476 | N64: 0.556882 | O64: 0.562992 | P64: 0.562992
A65: Eswatini | B65: 3.92604973 | C65: 4.052137852 | D65: 4.469325324 | E65: 4.633242664 | F65: 4.892111656 | G65: 5.194818611 | H65: 5.614289341 | I65: 5.982950211 | J65: 6.162479877 | K65: 6.114834309 | L65: 6.119993687 | M65: 5.895362854 | N65: 5.991967862 | O65: 5.968397205 | P65: 5.968397205
A66: Ethiopia | B66: 4.28061851 | C66: 5.035502911 | D66: 6.616768794 | E66: 7.029231055 | F66: 7.066470211 | G66: 7.654185969 | H66: 7.910324952 | I66: 8.336392403 | J66: 9.31989193 | K66: 10.36759758 | L66: 11.79116535 | M66: 13.73111248 | N66: 17.27498924 | O66: 22.17117221 | P66: 22.17117221
A67: Faroe Islands | B67: 6.7896145 | C67: 6.580026997 | D67: 6.308513735 | E67: 6.29718075 | F67: 6.354714939 | G67: 6.602248259 | H67: 7.048762566 | I67: 6.950629711 | J67: 6.699643431 | K67: 6.760001998 | L67: 6.605008779 | M67: 6.377927303 | N67: 6.190119652 | O67: 6.190119652 | P67: 6.190119652
A68: Fiji | B68: 0.885114988 | C68: 0.948667109 | D68: 0.929814844 | E68: 0.934859348 | F68: 0.932632883 | G68: 0.911280754 | H68: 0.937498468 | I68: 0.939452171 | J68: 0.960431039 | K68: 0.97249794 | L68: 0.935144365 | M68: 0.910048425 | N68: 0.871207956 | O68: 0.877554299 | P68: 0.877554299
A69: Finland | B69: 0.900632 | C69: 0.898068 | D69: 0.908495 | E69: 0.905357 | F69: 0.90721 | G69: 0.907748 | H69: 0.880895 | I69: 0.863657 | J69: 0.853746 | K69: 0.826328 | L69: 0.802112 | M69: 0.782813 | N69: 0.769643 | O69: 0.764142 | P69: 0.764142
A70: France | B70: 0.85478 | C70: 0.841361 | D70: 0.844301 | E70: 0.811643 | F70: 0.807565 | G70: 0.808694 | H70: 0.780044 | I70: 0.770109 | J70: 0.756166 | K70: 0.705954 | L70: 0.693052 | M70: 0.685873 | N70: 0.674142 | O70: 0.672356 | P70: 0.672356
A71: Gabon | B71: 295.0382859 | C71: 325.7325439 | D71: 324.672802 | E71: 313.3358784 | F71: 305.8664916 | G71: 291.2216719 | H71: 282.6792418 | I71: 271.6261597 | J71: 274.4210815 | K71: 273.3522034 | L71: 262.6354675 | M71: 244.9225464 | N71: 260.5147901 | O71: 232.7143268 | P71: 232.7143268
A72: Gambia, The | B72: 9.898633802 | C72: 10.14197159 | D72: 10.75930175 | E72: 11.71617441 | F72: 12.25860851 | G72: 13.23113423 | H72: 14.00850761 | I72: 14.68756771 | J72: 14.72011948 | K72: 15.25997925 | L72: 14.65876198 | M72: 14.74182224 | N72: 14.96234859 | O72: 16.30165251 | P72: 16.30165251
A73: Georgia | B73: 0.758468684 | C73: 0.811295331 | D73: 0.743673982 | E73: 0.725892426 | F73: 0.724575738 | G73: 0.755844017 | H73: 0.750560318 | I73: 0.808301926 | J73: 0.810541391 | K73: 0.797049463 | L73: 0.796508133 | M73: 0.86562115 | N73: 0.874471557 | O73: 0.864621897 | P73: 0.864621897
A74: Germany | B74: 0.80518 | C74: 0.788739 | D74: 0.787246 | E74: 0.774784 | F74: 0.768937 | G74: 0.778122 | H74: 0.752608 | I74: 0.744783 | J74: 0.735448 | K74: 0.717745 | L74: 0.706836 | M74: 0.70199 | N74: 0.694484 | O74: 0.703527 | P74: 0.703527
A75: Ghana | B75: 0.624646347 | C75: 0.697181165 | D75: 0.760881671 | E75: 0.871647762 | F75: 1.025692312 | G75: 1.231947858 | H75: 1.492734307 | I75: 1.693591118 | J75: 1.819233775 | K75: 1.900217533 | L75: 2.032516718 | M75: 2.148745775 | N75: 2.572854461 | O75: 3.303536468 | P75: 3.303536468
A76: Greece | B76: 0.722101 | C76: 0.713163 | D76: 0.684663 | E76: 0.631286 | F76: 0.611135 | G76: 0.60907 | H76: 0.58858 | I76: 0.575041 | J76: 0.564857 | K76: 0.540972 | L76: 0.530251 | M76: 0.520093 | N76: 0.509116 | O76: 0.516235 | P76: 0.516235
A77: Greenland | B77: 4.961424884 | C77: 5.001331695 | D77: 5.079063626 | E77: 5.047375857 | F77: 5.010101847 | G77: 5.368323272 | H77: 5.505918886 | I77: 5.585740089 | J77: 5.572713683 | K77: 5.532531364 | L77: 5.516859437 | M77: 5.27412653 | N77: 5.27412653 | O77: 5.27412653 | P77: 5.27412653
A78: Grenada | B78: 1.80348339 | C78: 1.770994782 | D78: 1.810889109 | E78: 1.790002905 | F78: 1.763326754 | G78: 1.776404427 | H78: 1.781242962 | I78: 1.750419497 | J78: 1.704187632 | K78: 1.717703104 | L78: 1.686156631 | M78: 1.698250771 | N78: 1.612322321 | O78: 1.600299519 | P78: 1.600299519
A79: Guatemala | B79: 3.472164811 | C79: 3.636532545 | D79: 3.547114411 | E79: 3.51432478 | F79: 3.463215908 | G79: 3.336025779 | H79: 3.353478465 | I79: 3.324187033 | J79: 3.290556803 | K79: 3.228698042 | L79: 3.158255755 | M79: 3.213164806 | N79: 3.188648376 | O79: 3.227963678 | P79: 3.227963678
A80: Guinea | B80: 2327.710314 | C80: 2485.900879 | D80: 2729.403404 | E80: 2806.856478 | F80: 2865.039211 | G80: 2899.107852 | H80: 2831.134954 | I80: 2819.405518 | J80: 2956.568604 | K80: 3049.657715 | L80: 3024.846191 | M80: 3108.34375 | N80: 3223.079652 | O80: 3339.638799 | P80: 3339.638799
A81: Guinea-Bissau | B81: 216.8175827 | C81: 230.3917694 | D81: 231.436308 | E81: 228.2490677 | F81: 221.1271997 | G81: 220.4530136 | H81: 220.7736592 | I81: 218.4277802 | J81: 218.2228546 | K81: 211.4972992 | L81: 208.3401642 | M81: 203.7161255 | N81: 204.2090595 | O81: 210.8402936 | P81: 210.8402936
A82: Guyana | B82: 99.93049395 | C82: 100.2694702 | D82: 104.6980572 | E82: 101.9079324 | F82: 101.3754122 | G82: 102.0947966 | H82: 105.2706123 | I82: 104.2122955 | J82: 100.9724655 | K82: 100.8698196 | L82: 83.99428558 | M82: 89.91506958 | N82: 94.07080731 | O82: 77.82059425 | P82: 77.82059425
A83: Haiti | B83: 18.09471033 | C83: 18.49496269 | D83: 20.00017616 | E83: 20.66374719 | F83: 21.18490118 | G83: 22.64506787 | H83: 24.46493118 | I83: 27.42480278 | J83: 30.61845398 | K83: 35.14567566 | L83: 41.55395889 | M83: 47.49952698 | N83: 57.77691049 | O83: 73.31135387 | P83: 73.31135387
A84: Honduras | B84: 9.520735947 | C84: 10.05656147 | D84: 10.32342836 | E84: 10.23821178 | F84: 10.2576083 | G84: 10.28602947 | H84: 10.15939882 | I84: 10.08325863 | J84: 10.45760155 | K84: 10.60140419 | L84: 10.53457642 | M84: 10.58992386 | N84: 10.81463794 | O84: 11.07900078 | P84: 11.07900078
A85: Hong Kong SAR, China | B85: 5.140234933 | C85: 5.232639313 | D85: 5.463108596 | E85: 5.565658854 | F85: 5.734369908 | G85: 5.869123013 | H85: 5.980741949 | I85: 6.070400238 | J85: 6.247290611 | K85: 6.18961668 | L85: 6.147001743 | M85: 5.872040749 | N85: 5.578505427 | O85: 5.552944236 | P85: 5.552944236
A86: Hungary | B86: 126.432497 | C86: 124.271836 | D86: 125.623608 | E86: 124.979432 | F86: 129.414974 | G86: 132.55351 | H86: 132.033797 | I86: 136.036522 | J86: 139.092451 | K86: 138.79714 | L86: 141.838435 | M86: 147.108198 | N86: 156.944391 | O86: 170.212279 | P86: 170.212279
A87: Iceland | B87: 132.90391 | C87: 135.152004 | D87: 136.96767 | E87: 137.022617 | F87: 138.547869 | G87: 141.974926 | H87: 140.02995 | I87: 138.277175 | J87: 140.970278 | K87: 138.667852 | L87: 143.25338 | M87: 141.919971 | N87: 138.343002 | O87: 140.155004 | P87: 140.155004
A88: India | B88: 14.59563226 | C88: 15.5495491 | D88: 16.13566331 | E88: 17.28834281 | F88: 18.30076662 | G88: 19.11544121 | H88: 19.7442391 | I88: 20.45557785 | J88: 20.47459602 | K88: 20.23950005 | L88: 20.31936646 | M88: 20.72789574 | N88: 20.67105861 | O88: 20.21662675 | P88: 20.21662675
A89: Indonesia | B89: 3336.15075 | C89: 3512.753906 | D89: 3577.518924 | E89: 3781.778237 | F89: 4056.662662 | G89: 4390.646497 | H89: 4566.570668 | I89: 4756.168945 | J89: 4833.599121 | K89: 4847.445313 | L89: 4791.006836 | M89: 4808.429199 | N89: 4921.885339 | O89: 4821.594574 | P89: 4821.594574
A90: Iran, Islamic Rep. | B90: 3925.111954 | C90: 4758.869629 | D90: 6093.5625 | E90: 8503.84668 | F90: 9758.553711 | G90: 10701.56152 | H90: 11796.81055 | I90: 13061.29492 | J90: 16923.19922 | K90: 23549.04102 | L90: 32954.58594 | M90: 50488.17188 | N90: 71026.72848 | O90: 91081.21115 | P90: 91081.21115
A91: Iraq | B91: 428.3741289 | C91: 523.34021 | D91: 524.5026705 | E91: 528.6354101 | F91: 553.360836 | G91: 555.2675008 | H91: 563.8148325 | I91: 552.9022827 | J91: 554.9608765 | K91: 547.3392334 | L91: 484.26474 | M91: 554.4653931 | N91: 657.8196101 | O91: 519.2398195 | P91: 519.2398195
A92: Ireland | B92: 0.84965 | C92: 0.831513 | D92: 0.823072 | E92: 0.811228 | F92: 0.819041 | G92: 0.809686 | H92: 0.794289 | I92: 0.794405 | J92: 0.792214 | K92: 0.794143 | L92: 0.775446 | M92: 0.755709 | N92: 0.737879 | O92: 0.751366 | P92: 0.751366
A93: Israel | B93: 3.990721 | C93: 3.944763 | D93: 3.955358 | E93: 3.839566 | F93: 3.940387 | G93: 3.923925 | H93: 3.788511 | I93: 3.751633 | J93: 3.784664 | K93: 3.816864 | L93: 3.746701 | M93: 3.650573 | N93: 3.539881 | O93: 3.586914 | P93: 3.586914
A94: Italy | B94: 0.773262 | C94: 0.758687 | D94: 0.747731 | E94: 0.737299 | F94: 0.739644 | G94: 0.738694 | H94: 0.700544 | I94: 0.689895 | J94: 0.681219 | K94: 0.647298 | L94: 0.632292 | M94: 0.617429 | N94: 0.595658 | O94: 0.604018 | P94: 0.604018
A95: Jamaica | B95: 51.90640859 | C95: 53.8049469 | D95: 56.60693584 | E95: 59.61132214 | F95: 63.1997713 | G95: 65.90626964 | H95: 66.67552449 | I95: 68.5327301 | J95: 71.63314056 | K95: 74.13214111 | L95: 77.28101349 | M95: 81.32698059 | N95: 85.70082771 | O95: 92.35014223 | P95: 92.35014223
A96: Japan | B96: 111.709563 | C96: 107.454281 | D96: 104.273972 | E96: 101.302673 | F96: 103.052076 | G96: 103.469437 | H96: 105.519502 | I96: 105.101901 | J96: 104.158636 | K96: 103.231509 | L96: 100.742048 | M96: 98.690527 | N96: 94.935505 | O96: 94.677395 | P96: 94.677395
A97: Jordan | B97: 0.280366412 | C97: 0.290935189 | D97: 0.303982846 | E97: 0.311815298 | F97: 0.325406556 | G97: 0.320099445 | H97: 0.323572038 | I97: 0.311540961 | J97: 0.32549578 | K97: 0.314005554 | L97: 0.298109263 | M97: 0.3234725 | N97: 0.31005356 | O97: 0.30446878 | P97: 0.30446878
A98: Kazakhstan | B98: 69.50526623 | C98: 82.09009552 | D98: 83.87394236 | E98: 86.32041979 | F98: 92.95147681 | G98: 100.5485038 | H98: 111.098913 | I98: 121.6137848 | J98: 130.108551 | K98: 126.1687546 | L98: 124.8751755 | M98: 129.0630035 | N98: 144.4095623 | O98: 152.3542149 | P98: 152.3542149
A99: Kenya | B99: 32.82276697 | C99: 35.39612198 | D99: 38.14916244 | E99: 38.00678073 | F99: 38.80719425 | G99: 39.74619238 | H99: 40.27688517 | I99: 41.27944946 | J99: 42.1700058 | K99: 42.65595245 | L99: 42.81653976 | M99: 42.33165359 | N99: 41.92342368 | O99: 43.12245917 | P99: 43.12245917
A100: Kiribati | B100: 0.962676747 | C100: 0.961621382 | D100: 0.938775466 | E100: 0.898365058 | F100: 0.925986847 | G100: 0.945663065 | H100: 0.952445144 | I100: 0.945901426 | J100: 0.961692389 | K100: 0.912577212 | L100: 0.941358622 | M100: 0.983862196 | N100: 0.896498866 | O100: 0.893225827 | P100: 0.893225827
A101: Korea, Rep. | B101: 840.991702 | C101: 854.585723 | D101: 854.887268 | E101: 869.081422 | F101: 871.878106 | G101: 857.483387 | H101: 858.809687 | I101: 872.624771 | J101: 854.871397 | K101: 847.547829 | L101: 829.359157 | M101: 827.274374 | N101: 810.430886 | O101: 800.348017 | P101: 800.348017
A102: Kosovo | B102: 0.313896406 | C102: 0.3269386 | D102: 0.336134256 | E102: 0.344754903 | F102: 0.358213027 | G102: 0.364103 | H102: 0.370901882 | I102: 0.378328005 | J102: 0.370546697 | K102: 0.363172821 | L102: 0.359145199 | M102: 0.360406752 | N102: 0.360937678 | O102: 0.365662395 | P102: 0.365662395
A103: Kuwait | B103: 0.149479689 | C103: 0.171689406 | D103: 0.177855684 | E103: 0.183309784 | F103: 0.184760306 | G103: 0.198600795 | H103: 0.197206611 | I103: 0.189230144 | J103: 0.188494757 | K103: 0.189867646 | L103: 0.186391652 | M103: 0.202588081 | N103: 0.233435362 | O103: 0.204475957 | P103: 0.204475957
A104: Kyrgyz Republic | B104: 13.10585275 | C104: 15.727808 | D104: 15.30660047 | E104: 15.37130277 | F104: 16.04632376 | G104: 17.16017107 | H104: 16.75466136 | I104: 16.97979164 | J104: 18.4928894 | K104: 18.70968056 | L104: 18.3638649 | M104: 19.918993 | N104: 22.2667205 | O104: 24.3658327 | P104: 24.3658327
A105: Lao PDR | B105: 2463.637223 | C105: 2666.534912 | D105: 2618.479391 | E105: 2719.065473 | F105: 2747.665717 | G105: 2832.497581 | H105: 2775.053749 | I105: 2808.074951 | J105: 2855.975342 | K105: 2902.381348 | L105: 2953.514404 | M105: 3031.696777 | N105: 3279.037132 | O105: 3936.354473 | P105: 3936.354473
A106: Latvia | B106: 0.487088 | C106: 0.498505 | D106: 0.506202 | E106: 0.499269 | F106: 0.497562 | G106: 0.497568 | H106: 0.484533 | I106: 0.484536 | J106: 0.489931 | K106: 0.479802 | L106: 0.469668 | M106: 0.481173 | N106: 0.496877 | O106: 0.5045 | P106: 0.5045
A107: Lebanon | B107: 781.8423633 | C107: 788.7518065 | D107: 786.1339199 | E107: 754.1724728 | F107: 707.7688883 | G107: 682.2181284 | H107: 643.8123447 | I107: 619.0128895 | J107: 629.0792236 | K107: 637.4685059 | L107: 1261.380493 | M107: 4099.507813 | N107: 8125.001035 | O107: 8125.001035 | P107: 8125.001035
A108: Lesotho | B108: 3.806158747 | C108: 4.080752373 | D108: 4.364680769 | E108: 4.375665259 | F108: 4.59576909 | G108: 4.713989734 | H108: 4.962021791 | I108: 5.440633297 | J108: 5.88551569 | K108: 6.087206364 | L108: 5.907959938 | M108: 6.194139481 | N108: 6.01523601 | O108: 5.798235385 | P108: 5.798235385
A109: Liberia | B109: 0.502238238 | C109: 0.545838708 | D109: 0.551767137 | E109: 0.522556696 | F109: 0.498116481 | G109: 0.516691388 | H109: 0.479498014 | I109: 0.41999536 | J109: 0.384615516 | K109: 0.346489368 | L109: 0.371666181 | M109: 0.433967147 | N109: 0.440555981 | O109: 0.439516464 | P109: 0.439516464
A110: Libya | B110: 0.486070535 | C110: 0.592176242 | D110: 0.704332749 | E110: 0.718589882 | F110: 0.648675126 | G110: 0.575411508 | H110: 0.616923074 | I110: 0.770584822 | J110: 0.809508692 | K110: 0.860261436 | L110: 0.843019121 | M110: 1.762639523 | N110: 2.028069286 | O110: 1.796143829 | P110: 1.796143829
A111: Lithuania | B111: 0.450453 | C111: 0.45192 | D111: 0.452656 | E111: 0.443345 | F111: 0.442623 | G111: 0.445856 | H111: 0.438439 | I111: 0.442719 | J111: 0.44662 | K111: 0.431815 | L111: 0.433452 | M111: 0.43449 | N111: 0.466993 | O111: 0.483176 | P111: 0.483176
A112: Luxembourg | B112: 0.925799 | C112: 0.905099 | D112: 0.90679 | E112: 0.895254 | F112: 0.884138 | G112: 0.881261 | H112: 0.851894 | I112: 0.84831 | J112: 0.848866 | K112: 0.829429 | L112: 0.838162 | M112: 0.819534 | N112: 0.810536 | O112: 0.82753 | P112: 0.82753
A113: Macao SAR, China | B113: 4.215608495 | C113: 4.439786911 | D113: 4.565290928 | E113: 4.643870831 | F113: 4.860661983 | G113: 5.137023449 | H113: 5.117854118 | I113: 5.154916286 | J113: 5.212246777 | K113: 5.243464455 | L113: 5.162554779 | M113: 4.897174411 | N113: 4.632518544 | O113: 4.761460759 | P113: 4.761460759
A114: Madagascar | B114: 642.4702827 | C114: 694.8626709 | D114: 740.1117444 | E114: 771.836097 | F114: 814.7194089 | G114: 872.8717767 | H114: 923.4951219 | I114: 990.8403931 | J114: 1079.0802 | K114: 1121.694458 | L114: 1145.665649 | M114: 1173.855225 | N114: 1188.000549 | O114: 1248.82975 | P114: 1248.82975
A115: Malawi | B115: 70.52742878 | C115: 78.76928711 | D115: 95.0219592 | E115: 116.2247771 | F115: 149.4388837 | G115: 192.1409471 | H115: 229.4150819 | I115: 262.3086548 | J115: 286.320282 | K115: 298.6713562 | L115: 298.3864441 | M115: 294.8579102 | N115: 335.4348912 | O115: 418.3092354 | P115: 418.3092354
A116: Malaysia | B116: 1.41955052 | C116: 1.466134429 | D116: 1.446341676 | E116: 1.457530498 | F116: 1.482936362 | G116: 1.536420748 | H116: 1.554682387 | I116: 1.605616093 | J116: 1.582747102 | K116: 1.563443661 | L116: 1.523446202 | M116: 1.5147717 | N116: 1.506347805 | O116: 1.426268078 | P116: 1.426268078
A117: Maldives | B117: 7.124127891 | C117: 7.861625671 | D117: 8.157437392 | E117: 8.253084598 | F117: 8.183590072 | G117: 8.2912451 | H117: 8.14523105 | I117: 8.180505753 | J117: 8.028241158 | K117: 7.82544136 | L117: 8.471082687 | M117: 8.210669518 | N117: 7.915569712 | O117: 7.85656492 | P117: 7.85656492
A118: Mali | B118: 196.5971287 | C118: 216.0901642 | D118: 223.8343599 | E118: 216.3171303 | F118: 214.2180457 | G118: 212.6414644 | H118: 204.2139066 | I118: 205.8392029 | J118: 206.1663818 | K118: 201.9513855 | L118: 201.4440308 | M118: 203.7225342 | N118: 201.223243 | O118: 199.6970031 | P118: 199.6970031
A119: Malta | B119: 0.572601081 | C119: 0.574181531 | D119: 0.579760032 | E119: 0.577507649 | F119: 0.586400998 | G119: 0.599742644 | H119: 0.583039876 | I119: 0.586479303 | J119: 0.586759201 | K119: 0.563557977 | L119: 0.557568015 | M119: 0.552444223 | N119: 0.553641521 | O119: 0.561048151 | P119: 0.561048151
A120: Marshall Islands | B120: 0.892484195 | C120: 0.938595164 | D120: 0.978469284 | E120: 0.95697239 | F120: 0.949708356 | G120: 0.910566955 | H120: 0.968259404 | I120: 0.9719187 | J120: 0.92668725 | K120: 0.873145478 | L120: 0.920480419 | M120: 0.932033025 | N120: 0.880012328 | O120: 0.90270995 | P120: 0.90270995
A121: Mauritania | B121: 13.98764814 | C121: 15.88449257 | D121: 15.3115702 | E121: 14.39916433 | F121: 13.41659545 | G121: 12.6922364 | H121: 11.78230238 | I121: 10.79906845 | J121: 11.32204723 | K121: 11.55683422 | L121: 11.63316822 | M121: 12.03512001 | N121: 11.44988726 | O121: 11.34488067 | P121: 11.34488067
A122: Mauritius | B122: 15.6845694 | C122: 15.85335922 | D122: 16.4036141 | E122: 16.44904951 | F122: 16.64886072 | G122: 16.65629111 | H122: 16.34486294 | I122: 16.54456711 | J122: 17.12804413 | K122: 16.8357048 | L122: 16.62539482 | M122: 16.629076 | N122: 17.02132433 | O122: 17.51987529 | P122: 17.51987529
A123: Mexico | B123: 7.727342 | C123: 7.673013 | D123: 7.858708 | E123: 7.884359 | F123: 8.045318 | G123: 8.327595 | H123: 8.446043 | I123: 8.913552 | J123: 9.276363 | K123: 9.528366 | L123: 9.814966 | M123: 9.941686 | N123: 9.681626 | O123: 9.65993 | P123: 9.65993
A124: Micronesia, Fed. Sts. | B124: 0.883339899 | C124: 0.87929396 | D124: 0.924702201 | E124: 0.915019505 | F124: 0.926551735 | G124: 0.869832031 | H124: 0.880549626 | I124: 0.947756064 | J124: 1.011698793 | K124: 0.960855602 | L124: 0.913286808 | M124: 0.890568631 | N124: 0.924514915 | O124: 0.946808219 | P124: 0.946808219
A125: Moldova | B125: 4.712711234 | C125: 4.995654106 | D125: 5.025430163 | E125: 5.01984435 | F125: 5.342622212 | G125: 5.625626285 | H125: 5.493488944 | I125: 5.677343369 | J125: 5.884372711 | K125: 5.771692753 | L125: 5.603167534 | M125: 5.946758747 | N125: 6.625217066 | O125: 6.948880475 | P125: 6.948880475
A126: Mongolia | B126: 473.0174579 | C126: 533.5269775 | D126: 578.898302 | E126: 633.386281 | F126: 688.1736089 | G126: 723.2398955 | H126: 737.0713621 | I126: 801.6688232 | J126: 824.5257568 | K126: 851.149353 | L126: 822.0648193 | M126: 870.1847534 | N126: 956.9559624 | O126: 1103.340171 | P126: 1103.340171
A127: Montenegro | B127: 0.370064789 | C127: 0.363822701 | D127: 0.369788459 | E127: 0.364024073 | F127: 0.361811433 | G127: 0.359664862 | H127: 0.349155744 | I127: 0.350987301 | J127: 0.348377363 | K127: 0.329704 | L127: 0.320737542 | M127: 0.326492326 | N127: 0.338917785 | O127: 0.355971914 | P127: 0.355971914
A128: Morocco | B128: 3.770619256 | C128: 3.67227602 | D128: 3.736094319 | E128: 3.766649918 | F128: 3.990338816 | G128: 3.939055643 | H128: 3.922472086 | I128: 3.937086105 | J128: 4.213162422 | K128: 4.192975521 | L128: 4.028110504 | M128: 3.946280718 | N128: 3.799199333 | O128: 3.818927832 | P128: 3.818927832
A129: Mozambique | B129: 16.84645773 | C129: 16.89354134 | D129: 18.08286188 | E129: 18.55586628 | F129: 18.74829903 | G129: 18.52346546 | H129: 20.18601276 | I129: 23.34384537 | J129: 23.55126572 | K129: 23.37877464 | L129: 22.75609589 | M129: 22.90715408 | N129: 22.77017524 | O129: 23.45702823 | P129: 23.45702823
A130: Myanmar | B130: 242.3344525 | C130: 261.7839355 | D130: 267.4871644 | E130: 278.540663 | F130: 293.9769791 | G130: 318.9356655 | H130: 347.0122667 | I130: 366.6393127 | J130: 343.6014404 | K130: 350.6853333 | L130: 354.559967 | M130: 410.4725952 | N130: 407.1083572 | O130: 422.3180628 | P130: 422.3180628
A131: Namibia | B131: 4.651669028 | C131: 4.731508255 | D131: 5.20011771 | E131: 5.374661184 | F131: 5.6261276 | G131: 5.876198853 | H131: 6.338653369 | I131: 6.92160368 | J131: 7.129662991 | K131: 7.114708424 | L131: 6.826316357 | M131: 6.716983795 | N131: 6.679761307 | O131: 6.858195218 | P131: 6.858195218
A132: Nauru | B132: 0.956671316 | C132: 0.998753796 | D132: 1.170713293 | E132: 1.037847824 | F132: 1.033728474 | G132: 0.935344367 | H132: 1.168915928 | I132: 1.3268642 | J132: 1.524770096 | K132: 1.430568594 | L132: 1.477405668 | M132: 1.656384835 | N132: 1.366486788 | O132: 1.414194128 | P132: 1.414194128
A133: Nepal | B133: 20.39255657 | C133: 25.25461197 | D133: 25.89791692 | E133: 26.58075575 | F133: 27.80819066 | G133: 29.45492094 | H133: 31.34876508 | I133: 30.47510529 | J133: 31.11036491 | K133: 31.87537575 | L133: 31.6953373 | M133: 32.48167801 | N133: 32.84586927 | O133: 33.40715984 | P133: 33.40715984
A134: Netherlands | B134: 0.854194 | C134: 0.836065 | D134: 0.824408 | E134: 0.798166 | F134: 0.808798 | G134: 0.809978 | H134: 0.795448 | I134: 0.78215 | J134: 0.776747 | K134: 0.767329 | L134: 0.747828 | M134: 0.733515 | N134: 0.726469 | O134: 0.739454 | P134: 0.739454
A135: New Zealand | B135: 1.497331 | C135: 1.485915 | D135: 1.495622 | E135: 1.445979 | F135: 1.44073 | G135: 1.478014 | H135: 1.441008 | I135: 1.430959 | J135: 1.47006 | K135: 1.436661 | L135: 1.422947 | M135: 1.455754 | N135: 1.45327 | O135: 1.460444 | P135: 1.460444
A136: Nicaragua | B136: 8.065421441 | C136: 8.709558487 | D136: 9.322143683 | E136: 9.633043482 | F136: 10.03150896 | G136: 10.37699565 | H136: 10.37183496 | I136: 10.53589439 | J136: 10.81957912 | K136: 10.84630489 | L136: 10.61035728 | M136: 10.56432343 | N136: 10.73573741 | O136: 11.46318455 | P136: 11.46318455
A137: Niger | B137: 221.976991 | C137: 226.1277771 | D137: 232.2574618 | E137: 239.6651863 | F137: 240.3512089 | G137: 244.9508674 | H137: 250.6456627 | I137: 250.7884521 | J137: 251.8530273 | K137: 231.8972168 | L137: 222.843277 | M137: 212.8881378 | N137: 206.877793 | O137: 206.3646607 | P137: 206.3646607
A138: Nigeria | B138: 73.24002796 | C138: 78.7765274 | D138: 86.68154368 | E138: 89.96098815 | F138: 92.31954247 | G138: 96.18936553 | H138: 104.4999522 | I138: 114.8244934 | J138: 123.9148254 | K138: 129.6474457 | L138: 134.6390991 | M138: 146.7176819 | N138: 152.5708567 | O138: 165.7852849 | P138: 165.7852849
A139: Macedonia | B139: 18.73435158 | C139: 19.29061052 | D139: 19.00454092 | E139: 19.10633876 | F139: 18.9972554 | G139: 19.44201226 | H139: 18.95938822 | I139: 18.97197096 | J139: 18.95237191 | K139: 18.25664568 | L139: 18.06384025 | M139: 17.7484897 | N139: 18.13368174 | O139: 18.65168287 | P139: 18.65168287
A140: Norway | B140: 9.152811 | C140: 9.082736 | D140: 9.037085 | E140: 9.029349 | F140: 9.278458 | G140: 9.932516 | H140: 10.0419 | I140: 9.74983 | J140: 9.583999 | K140: 9.481152 | L140: 9.588324 | M140: 8.962043 | N140: 8.418371 | O140: 8.894996 | P140: 8.894996
A141: Oman | B141: 0.162801261 | C141: 0.184847802 | D141: 0.189539292 | E141: 0.191851599 | F141: 0.201313489 | G141: 0.200559125 | H141: 0.197362899 | I141: 0.203804806 | J141: 0.20254527 | K141: 0.197977468 | L141: 0.18353723 | M141: 0.192684263 | N141: 0.224375562 | O141: 0.20163919 | P141: 0.20163919
A142: Pakistan | B142: 21.88511202 | C142: 24.96168137 | D142: 26.58982505 | E142: 28.42439301 | F142: 30.24798955 | G142: 31.25346118 | H142: 32.1021392 | I142: 33.24623489 | J142: 34.6823616 | K142: 37.67061996 | L142: 40.07473373 | M142: 43.44072342 | N142: 46.23137845 | O142: 56.27446284 | P142: 56.27446284
A143: Palau | B143: 0.760587111 | C143: 0.749237503 | D143: 0.788124227 | E143: 0.830696895 | F143: 0.849643915 | G143: 0.896551223 | H143: 0.936091177 | I143: 0.912604133 | J143: 0.873858793 | K143: 0.832971652 | L143: 0.824258433 | M143: 0.808066926 | N143: 0.798780001 | O143: 0.83274464 | P143: 0.83274464
A144: Panama | B144: 0.533207176 | C144: 0.552960157 | D144: 0.568205385 | E144: 0.559820489 | F144: 0.542055921 | G144: 0.516884225 | H144: 0.489893444 | I144: 0.46803081 | J144: 0.497522056 | K144: 0.495729208 | L144: 0.491933197 | M144: 0.501403868 | N144: 0.479895693 | O144: 0.470127946 | P144: 0.470127946
A145: Papua New Guinea | B145: 1.817688789 | C145: 1.859033404 | D145: 1.814559094 | E145: 1.848192137 | F145: 1.915327904 | G145: 1.87435315 | H145: 1.90345749 | I145: 2.013949002 | J145: 2.161744587 | K145: 2.148682827 | L145: 2.155299398 | M145: 2.306354364 | N145: 2.48743886 | O145: 2.339600724 | P145: 2.339600724
A146: Paraguay | B146: 2065.303559 | C146: 2126.669922 | D146: 2279.112227 | E146: 2291.049894 | F146: 2354.522582 | G146: 2413.540976 | H146: 2456.88392 | I146: 2473.229736 | J146: 2537.227051 | K146: 2567.449463 | L146: 2538.992432 | M146: 2628.084473 | N146: 2652.966443 | O146: 2612.619954 | P146: 2612.619954
A147: Peru | B147: 1.475221832 | C147: 1.542905331 | D147: 1.598510571 | E147: 1.614550683 | F147: 1.643403283 | G147: 1.710676072 | H147: 1.738930249 | I147: 1.744237781 | J147: 1.753717899 | K147: 1.731280804 | L147: 1.70620811 | M147: 1.733540058 | N147: 1.696703268 | O147: 1.744526719 | P147: 1.744526719
A148: Philippines | B148: 17.77448136 | C148: 18.09765434 | D148: 18.11736784 | E148: 18.52468003 | F148: 19.02805664 | G148: 19.20535001 | H148: 19.2036679 | I148: 19.6985569 | J148: 19.96451378 | K148: 19.73829651 | L148: 19.44143486 | M148: 19.37526512 | N148: 19.09427258 | O148: 19.2695633 | P148: 19.2695633
A149: Poland | B149: 1.805127 | C149: 1.801424 | D149: 1.796168 | E149: 1.762045 | F149: 1.767142 | G149: 1.765116 | H149: 1.732843 | I149: 1.742879 | J149: 1.748426 | K149: 1.698557 | L149: 1.698184 | M149: 1.722789 | N149: 1.787327 | O149: 1.879248 | P149: 1.879248
A150: Portugal | B150: 0.62323 | C150: 0.623083 | D150: 0.605398 | E150: 0.583607 | F150: 0.578868 | G150: 0.584947 | H150: 0.571416 | I150: 0.575688 | J150: 0.571227 | K150: 0.550687 | L150: 0.542815 | M150: 0.537629 | N150: 0.523337 | O150: 0.517344 | P150: 0.517344
A151: Puerto Rico | B151: 0.854607174 | C151: 0.857175412 | D151: 0.864840544 | E151: 0.873995488 | F151: 0.882221594 | G151: 0.904666889 | H151: 0.929672823 | I151: 0.951732039 | J151: 0.910205299 | K151: 0.878866149 | L151: 0.852639704 | M151: 0.804228127 | N151: 0.77411534 | O151: 0.771056553 | P151: 0.771056553
A152: Qatar | B152: 1.857546296 | C152: 2.152514458 | D152: 2.182123532 | E152: 2.230790991 | F152: 2.350980468 | G152: 2.448721749 | H152: 2.479168335 | I152: 2.3182621 | J152: 2.350074291 | K152: 2.263225555 | L152: 2.290072203 | M152: 2.235479832 | N152: 2.62893385 | O152: 2.62893385 | P152: 2.62893385
A153: Romania | B153: 1.53797248 | C153: 1.550128899 | D153: 1.56367261 | E153: 1.606309895 | F153: 1.628483593 | G153: 1.662993235 | H153: 1.596986935 | I153: 1.613726743 | J153: 1.665701538 | K153: 1.636841284 | L153: 1.614703571 | M153: 1.637755552 | N153: 1.712067232 | O153: 1.75887412 | P153: 1.75887412
A154: Russian Federation | B154: 15.821142 | C154: 18.443729 | D154: 19.56826 | E154: 19.505592 | F154: 20.998875 | G154: 23.562632 | H154: 24.192337 | I154: 24.124181 | J154: 24.542904 | K154: 23.93427467 | L154: 23.1451683 | M154: 23.68514633 | N154: 25.82578335 | O154: 26.6801077 | P154: 26.6801077
A155: Rwanda | B155: 263.4135153 | C155: 276.649231 | D155: 298.5128418 | E155: 301.4262567 | F155: 294.913953 | G155: 296.7167686 | H155: 307.7144355 | I155: 320.420105 | J155: 312.6655273 | K155: 311.8612061 | L155: 321.4724426 | M155: 300.0285034 | N155: 324.9002279 | O155: 345.2294374 | P155: 345.2294374
A156: Samoa | B156: 1.710389606 | C156: 1.660568119 | D156: 1.695850942 | E156: 1.706596298 | F156: 1.691692671 | G156: 1.742590655 | H156: 1.764934998 | I156: 1.739171245 | J156: 1.718882391 | K156: 1.715856016 | L156: 1.714213175 | M156: 1.632489364 | N156: 1.611097482 | O156: 1.691703253 | P156: 1.691703253
A157: San Marino | B157: 0.723805033 | C157: 0.7102569 | D157: 0.727814456 | E157: 0.753500571 | F157: 0.729271897 | G157: 0.744308864 | H157: 0.755666151 | I157: 0.762517095 | J157: 0.74555036 | K157: 0.725066229 | L157: 0.704549975 | M157: 0.707382143 | N157: 0.707382143 | O157: 0.707382143 | P157: 0.707382143
A158: Sao Tome and Principe | B158: 6.791426287 | C158: 7.431393623 | D158: 8.632288225 | E158: 8.727782068 | F158: 8.5666147 | G158: 9.104483202 | H158: 9.630696047 | I158: 9.921541214 | J158: 9.684535027 | K158: 9.16576767 | L158: 9.128153801 | M158: 8.599293709 | N158: 9.343417156 | O158: 9.795201286 | P158: 9.795201286
A159: Saudi Arabia | B159: 1.402870607 | C159: 1.586354256 | D159: 1.656841448 | E159: 1.679913954 | F159: 1.666247736 | G159: 1.617082202 | H159: 1.672183845 | I159: 1.689270854 | J159: 1.85423243 | K159: 1.861568213 | L159: 1.920739055 | M159: 1.909426093 | N159: 2.104628784 | O159: 1.97040766 | P159: 1.97040766
A160: Senegal | B160: 237.1074997 | C160: 241.276062 | D160: 245.0656683 | E160: 246.1377923 | F160: 242.0322961 | G160: 240.4916697 | H160: 242.008809 | I160: 243.5838013 | J160: 238.6880493 | K160: 229.8673401 | L160: 224.0872345 | M160: 212.3305511 | N160: 215.6849552 | O160: 219.1282247 | P160: 219.1282247
A161: Serbia | B161: 34.84098031 | C161: 36.32579314 | D161: 37.98442057 | E161: 39.32484702 | F161: 39.80479695 | G161: 40.74029344 | H161: 40.45668285 | I161: 40.82479962 | J161: 41.00701131 | K161: 39.65093898 | L161: 39.76211617 | M161: 40.65336932 | N161: 42.50232754 | O161: 44.94445933 | P161: 44.94445933
A162: Seychelles | B162: 6.951892387 | C162: 6.883865356 | D162: 7.593878524 | E162: 7.89489833 | F162: 7.748970496 | G162: 8.026026122 | H162: 7.658696287 | I162: 7.777408123 | J162: 7.993576527 | K162: 7.849941254 | L162: 7.965042591 | M162: 8.456309319 | N162: 8.020333634 | O162: 7.666113778 | P162: 7.666113778
A163: Sierra Leone | B163: 1.410126331 | C163: 1.620575073 | D163: 1.757539261 | E163: 1.792637956 | F163: 1.830859287 | G163: 1.912536064 | H163: 2.015741651 | I163: 2.300201416 | J163: 2.541012939 | K163: 2.811343262 | L163: 3.055827148 | M163: 3.243864014 | N163: 3.79816877 | O163: 4.999763562 | P163: 4.999763562
A164: Singapore | B164: 0.854205842 | C164: 0.846737742 | D164: 0.845431352 | E164: 0.857922523 | F164: 0.862601523 | G164: 0.877768679 | H164: 0.876020604 | I164: 0.883214712 | J164: 0.867735684 | K164: 0.854120195 | L164: 0.834628344 | M164: 0.811010361 | N164: 0.859781984 | O164: 0.804086117 | P164: 0.804086117
A165: Sint Maarten (Dutch part) | B165: 1.369680089 | C165: 1.345952392 | D165: 1.551308865 | E165: 1.543703552 | F165: 1.527580363 | G165: 1.51909832 | H165: 1.489179648 | I165: 1.396499991 | J165: 1.362629414 | K165: 1.365002275 | L165: 1.38735342 | M165: 1.43830955 | N165: 1.390202564 | O165: 1.369850361 | P165: 1.369850361
A166: Slovakia | B166: 0.502173 | C166: 0.506407 | D166: 0.504542 | E166: 0.491124 | F166: 0.485412 | G166: 0.491548 | H166: 0.503194 | I166: 0.516433 | J166: 0.526001 | K166: 0.510067 | L166: 0.48909 | M166: 0.486965 | N166: 0.49218 | O166: 0.506852 | P166: 0.506852
A167: Slovenia | B167: 0.63801 | C167: 0.62397 | D167: 0.606793 | E167: 0.590407 | F167: 0.591238 | G167: 0.595298 | H167: 0.577106 | I167: 0.570149 | J167: 0.567612 | K167: 0.544192 | L167: 0.532257 | M167: 0.533293 | N167: 0.526632 | O167: 0.541355 | P167: 0.541355
A168: Solomon Islands | B168: 6.227584279 | C168: 6.374862124 | D168: 6.549471037 | E168: 6.591355578 | F168: 6.716304127 | G168: 6.877991665 | H168: 6.836745645 | I168: 6.889529176 | J168: 7.264478493 | K168: 7.233242146 | L168: 7.044306923 | M168: 6.364729134 | N168: 6.065974212 | O168: 6.080337277 | P168: 6.080337277
A169: Somalia | B169: 8408.934393 | C169: 8001.031314 | D169: 7863.4404 | E169: 8032.809423 | F169: 7703.878776 | G169: 7392.4201 | H169: 7238.5441 | I169: 7390.984523 | J169: 7866.176888 | K169: 8740.898287 | L169: 9178.746316 | M169: 10268.41727 | N169: 10219.72577 | O169: 10867.51648 | P169: 10867.51648
A170: South Africa | B170: 4.619309414 | C170: 4.776628494 | D170: 5.106044878 | E170: 5.292064846 | F170: 5.566094923 | G170: 5.817177329 | H170: 6.148418341 | I170: 6.413336754 | J170: 6.855415344 | K170: 7.06522131 | L170: 7.248924255 | M170: 7.37613821 | N170: 7.218918421 | O170: 7.280194662 | P170: 7.280194662
A171: South Sudan | B171: 1.17140595 | C171: 1.593427879 | D171: 2.308700137 | E171: 2.539609146 | F171: 2.670588427 | G171: 3.370950535 | H171: 3.370950535 | I171: 3.370950535 | J171: 3.370950535 | K171: 3.370950535 | L171: 3.370950535 | M171: 3.370950535 | N171: 3.370950535 | O171: 3.370950535 | P171: 3.370950535
A172: Spain | B172: 0.72705 | C172: 0.714129 | D172: 0.694976 | E172: 0.6748 | F172: 0.662359 | G172: 0.66474 | H172: 0.642644 | I172: 0.630839 | J172: 0.631798 | K172: 0.604131 | L172: 0.606275 | M172: 0.590962 | N172: 0.57881 | O172: 0.572592 | P172: 0.572592
A173: Sri Lanka | B173: 38.56461533 | C173: 39.28888702 | D173: 41.43121018 | E173: 42.90531364 | F173: 44.24623885 | G173: 45.11238913 | H173: 46.1923261 | I173: 49.27409363 | J173: 49.96760178 | K173: 51.70858765 | L173: 55.16009521 | M173: 55.52654648 | N173: 76.49543422 | O173: 86.73531779 | P173: 86.73531779
A174: St. Kitts and Nevis | B174: 1.89443693 | C174: 1.961193919 | D174: 2.017936954 | E174: 2.037258886 | F174: 2.040409253 | G174: 2.042147869 | H174: 2.046675735 | I174: 2.050651789 | J174: 2.007921219 | K174: 1.961321473 | L174: 1.863400578 | M174: 1.843171954 | N174: 1.780822192 | O174: 1.823017131 | P174: 1.823017131
A175: St. Lucia | B175: 1.841433277 | C175: 1.829693198 | D175: 1.859854007 | E175: 1.845718451 | F175: 1.883000914 | G175: 1.944125262 | H175: 1.876491622 | I175: 1.896934867 | J175: 1.803174615 | K175: 1.701983571 | L175: 1.522911668 | M175: 1.47842586 | N175: 1.494186396 | O175: 1.502117281 | P175: 1.502117281
A176: St. Vincent and the Grenadines | B176: 1.675011705 | C176: 1.635919213 | D176: 1.649658865 | E176: 1.64265701 | F176: 1.594965611 | G176: 1.60395333 | H176: 1.532120348 | I176: 1.588731766 | J176: 1.549092889 | K176: 1.538480282 | L176: 1.470224857 | M176: 1.440133214 | N176: 1.391201107 | O176: 1.396411133 | P176: 1.396411133
A177: Sudan | B177: 0.994932969 | C177: 1.231475711 | D177: 1.648170208 | E177: 2.231428848 | F177: 2.664290639 | G177: 3.034035277 | H177: 3.466892025 | I177: 4.772955418 | J177: 7.085268974 | K177: 10.97369194 | L177: 25.95143127 | M177: 85.72268677 | N177: 173.6813364 | O177: 514.3071349 | P177: 514.3071349
A178: Suriname | B178: 1.67250223 | C178: 1.86556232 | D178: 1.92355858 | E178: 1.845241877 | F178: 1.810927508 | G178: 1.820235095 | H178: 2.428665006 | I178: 2.578414679 | J178: 2.785877228 | K178: 2.649446487 | L178: 3.731323957 | M178: 5.368227959 | N178: 7.21619912 | O178: 10.6044508 | P178: 10.6044508
A179: Sweden | B179: 9.026183 | C179: 8.844042 | D179: 8.654768 | E179: 8.597681 | F179: 8.727131 | G179: 8.854383 | H179: 8.822586 | I179: 8.852247 | J179: 8.865881 | K179: 8.584015 | L179: 8.435616 | M179: 8.311676 | N179: 8.363085 | O179: 8.509281 | P179: 8.509281
A180: Switzerland | B180: 1.466316 | C180: 1.397498 | D180: 1.354072 | E180: 1.312477 | F180: 1.281761 | G180: 1.235788 | H180: 1.201964 | I180: 1.187726 | J180: 1.178866 | K180: 1.133809 | L180: 1.104751 | M180: 1.046474 | N180: 0.981279 | O180: 0.966273 | P180: 0.966273
A181: Syrian Arab Republic | I181: 132.9959106 | J181: 141.6033325 | K181: 163.0274353 | L181: 237.00914 | M181: 417.3224182 | N181: 417.3224182 | O181: 417.3224182 | P181: 417.3224182
A182: Tajikistan | B182: 1.409285194 | C182: 1.564780235 | D182: 1.684332447 | E182: 1.67842 | F182: 1.694372735 | G182: 1.982068464 | H182: 2.120927498 | I182: 2.350559235 | J182: 2.487616777 | K182: 2.399198294 | L182: 2.356817722 | M182: 2.544257879 | N182: 2.573285693 | O182: 2.537117049 | P182: 2.537117049
A183: Tanzania | B183: 496.744243 | C183: 546.0731201 | D183: 650.2379944 | E183: 707.4686971 | F183: 760.901227 | G183: 806.4526603 | H183: 852.1666994 | I183: 889.4487305 | J183: 849.0432129 | K183: 815.9642944 | L183: 779.0391846 | M183: 762.958374 | N183: 732.4630611 | O183: 726.4761028 | P183: 726.4761028
A184: Thailand | B184: 12.18660245 | C184: 12.38719749 | D184: 12.17564332 | E184: 12.15247236 | F184: 12.26280799 | G184: 12.33792186 | H184: 12.35085342 | I184: 12.38575745 | J184: 12.15261173 | K184: 11.82858467 | L184: 11.40729523 | M184: 11.14812756 | N184: 10.91129146 | O184: 10.65599746 | P184: 10.65599746
A185: Timor-Leste | B185: 0.415817434 | C185: 0.454532027 | D185: 0.42856697 | E185: 0.469428683 | F185: 0.428254989 | G185: 0.424637954 | H185: 0.393877192 | I185: 0.365617901 | J185: 0.342422766 | K185: 0.342878394 | L185: 0.265956835 | M185: 0.393393219 | N185: 0.40924923 | O185: 0.322713345 | P185: 0.322713345
A186: Togo | B186: 226.9428826 | C186: 228.6249695 | D186: 236.5774161 | E186: 237.9844478 | F186: 234.2853971 | G186: 236.2282259 | H186: 236.8616371 | I186: 231.8401794 | J186: 228.7066803 | K186: 218.5904236 | L186: 208.4675446 | M186: 202.174469 | N186: 196.7250036 | O186: 194.7312186 | P186: 194.7312186
A187: Tonga | B187: 1.475617974 | C187: 1.452684751 | D187: 1.485940689 | E187: 1.42642591 | F187: 1.402173388 | G187: 1.46268107 | H187: 1.49317537 | I187: 1.549255717 | J187: 1.592405197 | K187: 1.686767281 | L187: 1.594893178 | M187: 1.495297592 | N187: 1.515828803 | O187: 1.515828803 | P187: 1.515828803
A188: Trinidad and Tobago | B188: 3.483195322 | C188: 3.949606895 | D188: 4.100198839 | E188: 4.323668496 | F188: 4.384252209 | G188: 4.252395816 | H188: 4.121887996 | I188: 4.18089962 | J188: 4.149242878 | K188: 3.965765715 | L188: 3.859908104 | M188: 3.927250385 | N188: 4.432589087 | O188: 3.91967295 | P188: 3.91967295
A189: Tunisia | B189: 0.582029228 | C189: 0.596331477 | D189: 0.632328272 | E189: 0.665264819 | F189: 0.691510979 | G189: 0.730423356 | H189: 0.751815692 | I189: 0.775635421 | J189: 0.810976982 | K189: 0.828764498 | L189: 0.837391257 | M189: 0.877332568 | N189: 0.845232803 | O189: 0.884587105 | P189: 0.884587105
A190: Turkiye | B190: 0.920469 | C190: 0.966176 | D190: 1.019856 | E190: 1.070294 | F190: 1.104504 | G190: 1.162452 | H190: 1.241052 | I190: 1.38398 | J190: 1.63261 | K190: 1.837125 | L190: 2.111056 | M190: 2.725605 | N190: 4.605662 | O190: 6.974967 | P190: 6.974967
A191: Turkmenistan | B191: 1.289270164 | C191: 1.425625277 | D191: 1.563465134 | E191: 1.604478046 | F191: 1.636497249 | G191: 1.58541392 | H191: 1.540665648 | I191: 1.536305666 | J191: 1.491995506 | K191: 1.50332972 | L191: 1.529003884 | M191: 1.50170362 | N191: 1.493663177 | O191: 1.435913605 | P191: 1.435913605
A192: Turks and Caicos Islands | C192: 1.028408051 | D192: 1.097970986 | E192: 1.071960259 | F192: 1.068357836 | G192: 1.07176272 | H192: 1.053490656 | I192: 0.997238159 | J192: 1.015220523 | K192: 1.019476295 | L192: 1.059441328 | M192: 1.090707064 | N192: 1.127382307 | O192: 1.226388374 | P192: 1.226388374
A193: Tuvalu | B193: 1.114532035 | C193: 1.109926272 | D193: 1.11332319 | E193: 1.104295396 | F193: 1.166796414 | G193: 1.193098299 | H193: 1.278345672 | I193: 1.293154208 | J193: 1.356423313 | K193: 1.41992636 | L193: 1.413903158 | M193: 1.415255354 | N193: 1.395509274 | O193: 1.427272995 | P193: 1.427272995
A194: Uganda | B194: 798.8103814 | C194: 856.1682129 | D194: 1000.764564 | E194: 1036.867906 | F194: 1065.699988 | G194: 1114.238579 | H194: 1196.839427 | I194: 1251.634033 | J194: 1253.709961 | K194: 1258.258911 | L194: 1240.85022 | M194: 1203.160767 | N194: 1179.345749 | O194: 1228.430688 | P194: 1228.430688
A195: Ukraine | B195: 2.853492255 | C195: 3.192311049 | D195: 3.305512178 | E195: 3.027402573 | F195: 3.460409213 | G195: 4.611359817 | H195: 5.076235642 | I195: 6.004223347 | J195: 6.627536297 | K195: 6.580449581 | L195: 6.434979439 | M195: 7.302161694 | N195: 9.203698363 | O195: 10.52352199 | P195: 10.52352199
A196: United Arab Emirates | B196: 1.917942884 | C196: 2.126608372 | D196: 2.187969973 | E196: 2.234190586 | F196: 2.213516735 | G196: 2.229246931 | H196: 2.241748844 | I196: 2.285250425 | J196: 2.235158682 | K196: 2.113722801 | L196: 2.088984489 | M196: 2.362567186 | N196: 2.499422418 | O196: 2.318845469 | P196: 2.318845469
A197: United Kingdom | B197: 0.702364 | C197: 0.706052 | D197: 0.701634 | E197: 0.695248 | F197: 0.698444 | G197: 0.692551 | H197: 0.688603 | I197: 0.684601 | J197: 0.687714 | K197: 0.669665 | L197: 0.653446 | M197: 0.644896 | N197: 0.651256 | O197: 0.667418 | P197: 0.667418
A198: United States | B198: 1 | C198: 1 | D198: 1 | E198: 1 | F198: 1 | G198: 1 | H198: 1 | I198: 1 | J198: 1 | K198: 1 | L198: 1 | M198: 1 | N198: 1 | O198: 1 | P198: 1
A199: Uruguay | B199: 14.18771453 | C199: 15.27369785 | D199: 16.9394486 | E199: 18.17572733 | F199: 19.47719447 | G199: 21.11119148 | H199: 22.46261686 | I199: 23.30475616 | J199: 24.25356293 | K199: 25.04502106 | L199: 25.73447227 | M199: 26.4622879 | N199: 25.77097903 | O199: 25.71776242 | P199: 25.71776242
A200: Uzbekistan | B200: 505.1680638 | C200: 601.9983993 | D200: 706.9046133 | E200: 804.3101035 | F200: 935.2372458 | G200: 1058.677683 | H200: 1179.956705 | I200: 1432.907178 | J200: 1799.892375 | K200: 2111.319555 | L200: 2353.383387 | M200: 2591.112305 | N200: 2781.570007 | O200: 3012.052433 | P200: 3012.052433
A201: Vanuatu | B201: 99.80326895 | C201: 100.5110433 | D201: 98.21569786 | E201: 99.47625989 | F201: 99.13424125 | G201: 103.9822943 | H201: 104.6277773 | I201: 108.3006506 | J201: 109.2702077 | K201: 110.9905885 | L201: 112.5951042 | M201: 108.412512 | N201: 112.6506179 | O201: 120.9816514 | P201: 120.9816514
... 10 more rows

Sheet I_Population
A1: Population
A2: Data pulled automatically via query 'I_Population'. Do not change manually!
A4: country | B4: 2010 | C4: 2011 | D4: 2012 | E4: 2013 | F4: 2014 | G4: 2015 | H4: 2016 | I4: 2017 | J4: 2018 | K4: 2019 | L4: 2020 | M4: 2021 | N4: 2022 | O4: 2023 | P4: 2024
A5: Afghanistan | B5: 28189672 | C5: 29249157 | D5: 30466479 | E5: 31541209 | F5: 32716210 | G5: 33753499 | H5: 34636207 | I5: 35643418 | J5: 36686784 | K5: 37769499 | L5: 38972230 | M5: 40099462 | N5: 41128771 | O5: 42239854 | P5: 42239854
A6: Africa Eastern and Southern | B6: 523459657 | C6: 537792950 | D6: 552530654 | E6: 567892149 | F6: 583651101 | G6: 600008424 | H6: 616377605 | I6: 632746570 | J6: 649757148 | K6: 667242986 | L6: 685112979 | M6: 702977106 | N6: 720859132 | O6: 739108306 | P6: 739108306
A7: Africa Western and Central | B7: 356337762 | C7: 366489204 | D7: 376797999 | E7: 387204553 | F7: 397855507 | G7: 408690375 | H7: 419778384 | I7: 431138704 | J7: 442646825 | K7: 454306063 | L7: 466189102 | M7: 478185907 | N7: 490330870 | O7: 502789511 | P7: 502789511
A8: Albania | B8: 2913021 | C8: 2905195 | D8: 2900401 | E8: 2895092 | F8: 2889104 | G8: 2880703 | H8: 2876101 | I8: 2873457 | J8: 2866376 | K8: 2854191 | L8: 2837849 | M8: 2811666 | N8: 2777689 | O8: 2745972 | P8: 2745972
A9: Algeria | B9: 35856344 | C9: 36543541 | D9: 37260563 | E9: 38000626 | F9: 38760168 | G9: 39543154 | H9: 40339329 | I9: 41136546 | J9: 41927007 | K9: 42705368 | L9: 43451666 | M9: 44177969 | N9: 44903225 | O9: 45606480 | P9: 45606480
A10: American Samoa | B10: 54849 | C10: 54310 | D10: 53691 | E10: 52995 | F10: 52217 | G10: 51368 | H10: 50448 | I10: 49463 | J10: 48424 | K10: 47321 | L10: 46189 | M10: 45035 | N10: 44273 | O10: 43914 | P10: 43914
A11: Andorra | B11: 71519 | C11: 70567 | D11: 71013 | E11: 71367 | F11: 71621 | G11: 71746 | H11: 72540 | I11: 73837 | J11: 75013 | K11: 76343 | L11: 77700 | M11: 79034 | N11: 79824 | O11: 80088 | P11: 80088
A12: Angola | B12: 23364185 | C12: 24259111 | D12: 25188292 | E12: 26147002 | F12: 27128337 | G12: 28127721 | H12: 29154746 | I12: 30208628 | J12: 31273533 | K12: 32353588 | L12: 33428486 | M12: 34503774 | N12: 35588987 | O12: 36684202 | P12: 36684202
A13: Antigua and Barbuda | B13: 85695 | C13: 86729 | D13: 87674 | E13: 88497 | F13: 89236 | G13: 89941 | H13: 90564 | I13: 91119 | J13: 91626 | K13: 92117 | L13: 92664 | M13: 93219 | N13: 93763 | O13: 94298 | P13: 94298
A14: Arab World | B14: 364427661 | C14: 372351065 | D14: 380383408 | E14: 389131555 | F14: 397922915 | G14: 406501999 | H14: 415077960 | I14: 423664839 | J14: 432545676 | K14: 441467739 | L14: 449228296 | M14: 456520777 | N14: 464684914 | O14: 473272080 | P14: 473272080
A15: Argentina | B15: 40788453 | C15: 41261490 | D15: 41733271 | E15: 42202935 | F15: 42669500 | G15: 43131966 | H15: 43590368 | I15: 44044811 | J15: 44494502 | K15: 44938712 | L15: 45376763 | M15: 45808747 | N15: 46234830 | O15: 46654581 | P15: 46654581
A16: Armenia | B16: 2946293 | C16: 2928976 | D16: 2914421 | E16: 2901385 | F16: 2889930 | G16: 2878595 | H16: 2865835 | I16: 2851923 | J16: 2836557 | K16: 2820602 | L16: 2805608 | M16: 2790974 | N16: 2780469 | O16: 2777970 | P16: 2777970
A17: Aruba | B17: 100341 | C17: 101288 | D17: 102112 | E17: 102880 | F17: 103594 | G17: 104257 | H17: 104874 | I17: 105439 | J17: 105962 | K17: 106442 | L17: 106585 | M17: 106537 | N17: 106445 | O17: 106277 | P17: 106277
A18: Australia | B18: 22031750 | C18: 22340024 | D18: 22733465 | E18: 23128129 | F18: 23475686 | G18: 23815995 | H18: 24190907 | I18: 24592588 | J18: 24963258 | K18: 25334826 | L18: 25649248 | M18: 25685412 | N18: 26014399 | O18: 26638544 | P18: 26638544
A19: Austria | B19: 8363404 | C19: 8391643 | D19: 8429991 | E19: 8479823 | F19: 8546356 | G19: 8642699 | H19: 8736668 | I19: 8797566 | J19: 8840521 | K19: 8879920 | L19: 8916864 | M19: 8955797 | N19: 9041851 | O19: 9132383 | P19: 9132383
A20: Azerbaijan | B20: 9054332 | C20: 9173082 | D20: 9295784 | E20: 9416801 | F20: 9535079 | G20: 9649341 | H20: 9757812 | I20: 9854033 | J20: 9939771 | K20: 10024283 | L20: 10093121 | M20: 10137750 | N20: 10141756 | O20: 10112555 | P20: 10112555
A21: Bahamas, The | B21: 373272 | C21: 377950 | D21: 382061 | E21: 385650 | F21: 389131 | G21: 392697 | H21: 395976 | I21: 399020 | J21: 401906 | K21: 404557 | L21: 406471 | M21: 407906 | N21: 409984 | O21: 412623 | P21: 412623
A22: Bahrain | B22: 1213645 | C22: 1212077 | D22: 1224939 | E22: 1261673 | F22: 1311134 | G22: 1362142 | H22: 1409661 | I22: 1456834 | J22: 1487340 | K22: 1494188 | L22: 1477469 | M22: 1463265 | N22: 1472233 | O22: 1485509 | P22: 1485509
A23: Bangladesh | B23: 148391139 | C23: 150211005 | D23: 152090649 | E23: 154030139 | F23: 155961299 | G23: 157830000 | H23: 159784568 | I23: 161793964 | J23: 163683958 | K23: 165516222 | L23: 167420951 | M23: 169356251 | N23: 171186372 | O23: 172954319 | P23: 172954319
A24: Barbados | B24: 274711 | C24: 275486 | D24: 276197 | E24: 276865 | F24: 277493 | G24: 278083 | H24: 278649 | I24: 279187 | J24: 279688 | K24: 280180 | L24: 280693 | M24: 281200 | N24: 281635 | O24: 281995 | P24: 281995
A25: Belarus | B25: 9483836 | C25: 9461643 | D25: 9446836 | E25: 9443211 | F25: 9448515 | G25: 9461076 | H25: 9469379 | I25: 9458989 | J25: 9438785 | K25: 9419758 | L25: 9379952 | M25: 9302585 | N25: 9228071 | O25: 9178298 | P25: 9178298
A26: Belgium | B26: 10895586 | C26: 11038264 | D26: 11106932 | E26: 11159407 | F26: 11209057 | G26: 11274196 | H26: 11331422 | I26: 11375158 | J26: 11427054 | K26: 11488980 | L26: 11538604 | M26: 11586195 | N26: 11685814 | O26: 11822592 | P26: 11822592
A27: Belize | B27: 322106 | C27: 329538 | D27: 337059 | E27: 344688 | F27: 352335 | G27: 359871 | H27: 367313 | I27: 374693 | J27: 382066 | K27: 389095 | L27: 394921 | M27: 400031 | N27: 405272 | O27: 410825 | P27: 410825
A28: Benin | B28: 9445710 | C28: 9726380 | D28: 10014078 | E28: 10308730 | F28: 10614844 | G28: 10932783 | H28: 11260085 | I28: 11596779 | J28: 11940683 | K28: 12290444 | L28: 12643123 | M28: 12996895 | N28: 13352864 | O28: 13712828 | P28: 13712828
A29: Bermuda | B29: 65124 | C29: 64564 | D29: 64798 | E29: 65001 | F29: 65138 | G29: 65237 | H29: 64554 | I29: 63873 | J29: 63918 | K29: 63911 | L29: 63893 | M29: 63764 | N29: 63595 | O29: 63489 | P29: 63489
A30: Bhutan | B30: 705516 | C30: 713331 | D30: 721145 | E30: 728889 | F30: 736357 | G30: 743274 | H30: 749761 | I30: 756121 | J30: 762096 | K30: 767459 | L30: 772506 | M30: 777486 | N30: 782455 | O30: 787424 | P30: 787424
A31: Bolivia | B31: 10223270 | C31: 10396246 | D31: 10569697 | E31: 10743349 | F31: 10916987 | G31: 11090085 | H31: 11263015 | I31: 11435533 | J31: 11606905 | K31: 11777315 | L31: 11936162 | M31: 12079472 | N31: 12224110 | O31: 12388571 | P31: 12388571
A32: Bosnia and Herzegovina | B32: 3811088 | C32: 3743142 | D32: 3674374 | E32: 3617559 | F32: 3571068 | G32: 3524324 | H32: 3480986 | I32: 3440027 | J32: 3400129 | K32: 3360711 | L32: 3318407 | M32: 3270943 | N32: 3233526 | O32: 3210847 | P32: 3210847
A33: Botswana | B33: 2091664 | C33: 2134037 | D33: 2175425 | E33: 2217278 | F33: 2260376 | G33: 2305171 | H33: 2352416 | I33: 2401840 | J33: 2451409 | K33: 2499702 | L33: 2546402 | M33: 2588423 | N33: 2630296 | O33: 2675352 | P33: 2675352
A34: Brazil | B34: 196353492 | C34: 198185302 | D34: 199977707 | E34: 201721767 | F34: 203459650 | G34: 205188205 | H34: 206859578 | I34: 208504960 | J34: 210166592 | K34: 211782878 | L34: 213196304 | M34: 214326223 | N34: 215313498 | O34: 216422446 | P34: 216422446
A35: British Virgin Islands | B35: 27556 | C35: 27962 | D35: 28421 | E35: 28657 | F35: 28971 | G35: 29366 | H35: 29739 | I35: 30060 | J35: 30335 | K35: 30610 | L35: 30910 | M35: 31122 | N35: 31305 | O35: 31538 | P35: 31538
A36: Brunei Darussalam | B36: 396053 | C36: 401506 | D36: 406634 | E36: 411702 | F36: 416656 | G36: 421437 | H36: 425994 | I36: 430276 | J36: 434274 | K36: 438048 | L36: 441725 | M36: 445373 | N36: 449002 | O36: 452524 | P36: 452524
A37: Bulgaria | B37: 7395599 | C37: 7348328 | D37: 7305888 | E37: 7265115 | F37: 7223938 | G37: 7177991 | H37: 7127822 | I37: 7075947 | J37: 7025037 | K37: 6975761 | L37: 6934015 | M37: 6877743 | N37: 6465097 | O37: 6430370 | P37: 6430370
A38: Burkina Faso | B38: 16116845 | C38: 16602651 | D38: 17113732 | E38: 17636408 | F38: 18169842 | G38: 18718019 | H38: 19275498 | I38: 19835858 | J38: 20392723 | K38: 20951639 | L38: 21522626 | M38: 22100683 | N38: 22673762 | O38: 23251485 | P38: 23251485
A39: Burundi | B39: 9126605 | C39: 9455733 | D39: 9795479 | E39: 10149577 | F39: 10494913 | G39: 10727148 | H39: 10903327 | I39: 11155593 | J39: 11493472 | K39: 11874838 | L39: 12220227 | M39: 12551213 | N39: 12889576 | O39: 13238559 | P39: 13238559
A40: Cabo Verde | B40: 521212 | C40: 527521 | D40: 533864 | E40: 539940 | F40: 546076 | G40: 552166 | H40: 558394 | I40: 564954 | J40: 571202 | K40: 577030 | L40: 582640 | M40: 587925 | N40: 593149 | O40: 598682 | P40: 598682
A41: Cambodia | B41: 14363532 | C41: 14573885 | D41: 14786640 | E41: 14999683 | F41: 15210817 | G41: 15417523 | H41: 15624584 | I41: 15830689 | J41: 16025238 | K41: 16207746 | L41: 16396860 | M41: 16589023 | N41: 16767842 | O41: 16944826 | P41: 16944826
A42: Cameroon | B42: 19878036 | C42: 20448873 | D42: 21032684 | E42: 21632850 | F42: 22299585 | G42: 23012646 | H42: 23711630 | I42: 24393181 | J42: 25076747 | K42: 25782341 | L42: 26491087 | M42: 27198628 | N42: 27914536 | O42: 28647293 | P42: 28647293
A43: Canada | B43: 34005902 | C43: 34339221 | D43: 34713395 | E43: 35080992 | F43: 35434066 | G43: 35704498 | H43: 36110803 | I43: 36545075 | J43: 37072620 | K43: 37618495 | L43: 38028638 | M43: 38239864 | N43: 38939056 | O43: 40097761 | P43: 40097761
A44: Caribbean small states | B44: 2860236 | C44: 2878168 | D44: 2898802 | E44: 2922026 | F44: 2945840 | G44: 2969980 | H44: 2993247 | I44: 3016651 | J44: 3058106 | K44: 3090374 | L44: 3106185 | M44: 3128519 | N44: 3147057 | O44: 3167738 | P44: 3167738
A45: Cayman Islands | B45: 54074 | C45: 55492 | D45: 56860 | E45: 58212 | F45: 59559 | G45: 60911 | H45: 62255 | I45: 63581 | J45: 64884 | K45: 66134 | L45: 67311 | M45: 68136 | N45: 68706 | O45: 69310 | P45: 69310
A46: Central African Republic | B46: 4660067 | C46: 4732022 | D46: 4773306 | E46: 4802428 | F46: 4798734 | G46: 4819333 | H46: 4904177 | I46: 4996741 | J46: 5094780 | K46: 5209324 | L46: 5343020 | M46: 5457154 | N46: 5579144 | O46: 5742315 | P46: 5742315
A47: Central Europe and the Baltics | B47: 104421447 | C47: 104174038 | D47: 103935318 | E47: 103713726 | F47: 103496179 | G47: 103257886 | H47: 102994278 | I47: 102740078 | J47: 102538451 | K47: 102398537 | L47: 102180124 | M47: 101413157 | N47: 100108262 | O47: 100156608 | P47: 100156608
A48: Chad | B48: 11894727 | C48: 12317730 | D48: 12754906 | E48: 13216766 | F48: 13697126 | G48: 14140274 | H48: 14592585 | I48: 15085884 | J48: 15604210 | K48: 16126866 | L48: 16644701 | M48: 17179740 | N48: 17723315 | O48: 18278568 | P48: 18278568
A49: Channel Islands | B49: 156933 | C49: 157819 | D49: 158621 | E49: 159794 | F49: 160912 | G49: 162190 | H49: 163721 | I49: 165215 | J49: 167259 | K49: 169410 | L49: 171113 | M49: 172683 | N49: 174079 | O49: 175346 | P49: 175346
A50: Chile | B50: 17004162 | C50: 17173573 | D50: 17341771 | E50: 17509925 | F50: 17687108 | G50: 17870124 | H50: 18083879 | I50: 18368577 | J50: 18701450 | K50: 19039485 | L50: 19300315 | M50: 19493184 | N50: 19603733 | O50: 19629590 | P50: 19629590
A51: China | B51: 1337705000 | C51: 1345035000 | D51: 1354190000 | E51: 1363240000 | F51: 1371860000 | G51: 1379860000 | H51: 1387790000 | I51: 1396215000 | J51: 1402760000 | K51: 1407745000 | L51: 1411100000 | M51: 1412360000 | N51: 1412175000 | O51: 1410710000 | P51: 1410710000
A52: Colombia | B52: 44816108 | C52: 45308899 | D52: 45782417 | E52: 46237930 | F52: 46677947 | G52: 47119728 | H52: 47625955 | I52: 48351671 | J52: 49276961 | K52: 50187406 | L52: 50930662 | M52: 51516562 | N52: 51874024 | O52: 52085168 | P52: 52085168
A53: Comoros | B53: 656024 | C53: 670071 | D53: 684553 | E53: 699393 | F53: 714612 | G53: 730216 | H53: 746232 | I53: 761664 | J53: 776313 | K53: 790986 | L53: 806166 | M53: 821625 | N53: 836774 | O53: 852075 | P53: 852075
A54: Congo, Dem. Rep. | B54: 66391257 | C54: 68654269 | D54: 70997870 | E54: 73460021 | F54: 76035588 | G54: 78656904 | H54: 81430977 | I54: 84283273 | J54: 87087355 | K54: 89906890 | L54: 92853164 | M54: 95894118 | N54: 99010212 | O54: 102262808 | P54: 102262808
A55: Congo, Rep. | B55: 4437884 | C55: 4584216 | D55: 4713257 | E55: 4828066 | F55: 4944861 | G55: 5064386 | H55: 5186824 | I55: 5312340 | J55: 5441062 | K55: 5570733 | L55: 5702174 | M55: 5835806 | N55: 5970424 | O55: 6106869 | P55: 6106869
A56: Costa Rica | B56: 4622252 | C56: 4679926 | D56: 4736593 | E56: 4791535 | F56: 4844288 | G56: 4895242 | H56: 4945205 | I56: 4993842 | J56: 5040734 | K56: 5084532 | L56: 5123105 | M56: 5153957 | N56: 5180829 | O56: 5212173 | P56: 5212173
A57: Cote d'Ivoire | B57: 21120042 | C57: 21562914 | D57: 22010712 | E57: 22469268 | F57: 22995555 | G57: 23596741 | H57: 24213622 | I57: 24848016 | J57: 25493988 | K57: 26147551 | L57: 26811790 | M57: 27478249 | N57: 28160542 | O57: 28873034 | P57: 28873034
A58: Croatia | B58: 4295427 | C58: 4280622 | D58: 4267558 | E58: 4255689 | F58: 4238389 | G58: 4203604 | H58: 4174349 | I58: 4124531 | J58: 4087843 | K58: 4065253 | L58: 4047680 | M58: 3878981 | N58: 3855641 | O58: 3853200 | P58: 3853200
A59: Cuba | B59: 11290417 | C59: 11298710 | D59: 11309290 | E59: 11321579 | F59: 11332026 | G59: 11339894 | H59: 11342012 | I59: 11336405 | J59: 11328244 | K59: 11316697 | L59: 11300698 | M59: 11256372 | N59: 11212191 | O59: 11194449 | P59: 11194449
A60: Curacao | B60: 148703 | C60: 150831 | D60: 152088 | E60: 153822 | F60: 155909 | G60: 157980 | H60: 159664 | I60: 160175 | J60: 159336 | K60: 157441 | L60: 154947 | M60: 152369 | N60: 149996 | O60: 147862 | P60: 147862
A61: Cyprus | B61: 1129686 | C61: 1145086 | D61: 1156556 | E61: 1166968 | F61: 1176995 | G61: 1187280 | H61: 1197881 | I61: 1208523 | J61: 1218831 | K61: 1228836 | L61: 1237537 | M61: 1244188 | N61: 1251488 | O61: 1260138 | P61: 1260138
A62: Czech Republic | B62: 10474410 | C62: 10496088 | D62: 10510785 | E62: 10514272 | F62: 10525347 | G62: 10546059 | H62: 10566332 | I62: 10594438 | J62: 10629928 | K62: 10671870 | L62: 10697858 | M62: 10505772 | N62: 10672118 | O62: 10873689 | P62: 10873689
A63: Denmark | B63: 5547683 | C63: 5570572 | D63: 5591572 | E63: 5614932 | F63: 5643475 | G63: 5683483 | H63: 5728010 | I63: 5764980 | J63: 5793636 | K63: 5814422 | L63: 5831404 | M63: 5856733 | N63: 5903037 | O63: 5946952 | P63: 5946952
A64: Djibouti | B64: 919199 | C64: 936811 | D64: 954297 | E64: 971753 | F64: 989087 | G64: 1006259 | H64: 1023261 | I64: 1040233 | J64: 1057198 | K64: 1073994 | L64: 1090156 | M64: 1105557 | N64: 1120849 | O64: 1136455 | P64: 1136455
A65: Dominica | B65: 68755 | C65: 68742 | D65: 68888 | E65: 68819 | F65: 69371 | G65: 70007 | H65: 70075 | I65: 70403 | J65: 70823 | K65: 71428 | L65: 71995 | M65: 72412 | N65: 72737 | O65: 73040 | P65: 73040
A66: Dominican Republic | B66: 9775755 | C66: 9903737 | D66: 10030882 | E66: 10157051 | F66: 10282115 | G66: 10405832 | H66: 10527592 | I66: 10647244 | J66: 10765531 | K66: 10881882 | L66: 10999664 | M66: 11117873 | N66: 11228821 | O66: 11332972 | P66: 11332972
A67: Early-demographic dividend | B67: 2946285613 | C67: 2991403487 | D67: 3035159632 | E67: 3078407213 | F67: 3121656203 | G67: 3165214886 | H67: 3208369547 | I67: 3250752755 | J67: 3292896609 | K67: 3334561751 | L67: 3374383528 | M67: 3411268373 | N67: 3447398652 | O67: 3486290439 | P67: 3486290439
A68: East Asia & Pacific | B68: 2210203758 | C68: 2225992094 | D68: 2243776727 | E68: 2261274500 | F68: 2278232287 | G68: 2294507020 | H68: 2310721864 | I68: 2327132966 | J68: 2341383691 | K68: 2353856866 | L68: 2363934334 | M68: 2370214403 | N68: 2375208613 | O68: 2380601170 | P68: 2380601170
A69: East Asia & Pacific (IDA & IBRD countries) | B69: 1944510719 | C69: 1959494275 | D69: 1976386829 | E69: 1993077336 | F69: 2009149689 | G69: 2024511016 | H69: 2039794828 | I69: 2055414680 | J69: 2068898629 | K69: 2080648616 | L69: 2090523535 | M69: 2097669023 | N69: 2103055378 | O69: 2107522258 | P69: 2107522258
A70: East Asia & Pacific (excluding high income) | B70: 1969168373 | C70: 1984249541 | D70: 2001246209 | E70: 2018050656 | F70: 2034247084 | G70: 2049740052 | H70: 2065155186 | I70: 2080901482 | J70: 2094506990 | K70: 2106374009 | L70: 2116360715 | M70: 2123610397 | N70: 2129094071 | O70: 2133652241 | P70: 2133652241
A71: Ecuador | B71: 14989585 | C71: 15237728 | D71: 15483883 | E71: 15722989 | F71: 15957994 | G71: 16195902 | H71: 16439585 | I71: 16696944 | J71: 17015672 | K71: 17343740 | L71: 17588595 | M71: 17797737 | N71: 18001000 | O71: 18190484 | P71: 18190484
A72: Egypt, Arab Rep. | B72: 87252413 | C72: 89200054 | D72: 91240376 | E72: 93377890 | F72: 95592324 | G72: 97723799 | H72: 99784030 | I72: 101789386 | J72: 103740765 | K72: 105618671 | L72: 107465134 | M72: 109262178 | N72: 110990103 | O72: 112716598 | P72: 112716598
A73: El Salvador | B73: 6114034 | C73: 6137349 | D73: 6161289 | E73: 6185642 | F73: 6209526 | G73: 6231066 | H73: 6250510 | I73: 6266654 | J73: 6276342 | K73: 6280217 | L73: 6292731 | M73: 6314167 | N73: 6336392 | O73: 6364943 | P73: 6364943
A74: Equatorial Guinea | B74: 1094524 | C74: 1144588 | D74: 1193636 | E74: 1243941 | F74: 1295183 | G74: 1346973 | H74: 1398927 | I74: 1450694 | J74: 1502091 | K74: 1553031 | L74: 1596049 | M74: 1634466 | N74: 1674908 | O74: 1714671 | P74: 1714671
A75: Eritrea | B75: 3147727 | C75: 3207570 | D75: 3252596 | E75: 3296367 | F75: 3323425 | G75: 3340006 | H75: 3365287 | I75: 3396933 | J75: 3445374 | K75: 3498818 | L75: 3555868 | M75: 3620312 | N75: 3684032 | O75: 3748901 | P75: 3748901
A76: Estonia | B76: 1331475 | C76: 1327439 | D76: 1322696 | E76: 1317997 | F76: 1314545 | G76: 1315407 | H76: 1315790 | I76: 1317384 | J76: 1321977 | K76: 1326898 | L76: 1329522 | M76: 1330932 | N76: 1348840 | O76: 1366188 | P76: 1366188
A77: Eswatini | B77: 1099920 | C77: 1105371 | D77: 1111444 | E77: 1118319 | F77: 1125865 | G77: 1133936 | H77: 1142524 | I77: 1151390 | J77: 1160428 | K77: 1169613 | L77: 1180655 | M77: 1192271 | N77: 1201670 | O77: 1210822 | P77: 1210822
A78: Ethiopia | B78: 89237791 | C78: 91817929 | D78: 94451280 | E78: 97084366 | F78: 99746766 | G78: 102471895 | H78: 105293228 | I78: 108197950 | J78: 111129438 | K78: 114120594 | L78: 117190911 | M78: 120283026 | N78: 123379924 | O78: 126527060 | P78: 126527060
A79: Euro area | B79: 340467048 | C79: 339722971 | D79: 340450693 | E79: 341584506 | F79: 342725321 | G79: 343718279 | H79: 344683796 | I79: 345370612 | J79: 346153001 | K79: 346517987 | L79: 346961127 | M79: 346942960 | N79: 348331552 | O79: 350357398 | P79: 350357398
A80: Europe & Central Asia | B80: 889077806 | C80: 891273900 | D80: 894705970 | E80: 898764759 | F80: 902938502 | G80: 907094808 | H80: 911173722 | I80: 914748588 | J80: 918181600 | K80: 921212388 | L80: 923384672 | M80: 924168763 | N80: 920988359 | O80: 923929755 | P80: 923929755
A81: Europe & Central Asia (IDA & IBRD countries) | B81: 441572315 | C81: 443764567 | D81: 445808734 | E81: 448060105 | F81: 450338927 | G81: 452672729 | H81: 454966816 | I81: 457063732 | J81: 459012381 | K81: 461027359 | L81: 462304330 | M81: 463035774 | N81: 457342249 | O81: 457326090 | P81: 457326090
A82: Europe & Central Asia (excluding high income) | B82: 228742156 | C82: 230906639 | D82: 232735642 | E82: 234709774 | F82: 236718663 | G82: 238848390 | H82: 240976831 | I82: 243006453 | J82: 245052675 | K82: 247195931 | L82: 248913167 | M82: 250663105 | N82: 246915820 | O82: 247474425 | P82: 247474425
A83: European Union | B83: 441552554 | C83: 440769682 | D83: 441419873 | E83: 442496175 | F83: 443601373 | G83: 444570054 | H83: 445515422 | I83: 446215182 | J83: 447001100 | K83: 447367191 | L83: 447692315 | M83: 447178093 | N83: 447370551 | O83: 449476878 | P83: 449476878
A84: Faroe Islands | B84: 48410 | C84: 48386 | D84: 48392 | E84: 48418 | F84: 48465 | G84: 48816 | H84: 49500 | I84: 50230 | J84: 50955 | K84: 51681 | L84: 52415 | M84: 52889 | N84: 53090 | O84: 53270 | P84: 53270
A85: Fiji | B85: 905169 | C85: 908355 | D85: 911059 | E85: 913453 | F85: 915560 | G85: 917200 | H85: 918371 | I85: 919019 | J85: 918996 | K85: 918465 | L85: 920422 | M85: 924610 | N85: 929766 | O85: 936375 | P85: 936375
A86: Finland | B86: 5363352 | C86: 5388272 | D86: 5413971 | E86: 5438972 | F86: 5461512 | G86: 5479531 | H86: 5495303 | I86: 5508214 | J86: 5515525 | K86: 5521606 | L86: 5529543 | M86: 5541017 | N86: 5556106 | O86: 5584264 | P86: 5584264
A87: Fragile and conflict affected situations | B87: 778734290 | C87: 797793348 | D87: 817412582 | E87: 837410155 | F87: 857018106 | G87: 876449625 | H87: 896306261 | I87: 916477490 | J87: 936789597 | K87: 957873862 | L87: 979839336 | M87: 1001870564 | N87: 1019145355 | O87: 1042703808 | P87: 1042703808
A88: France | B88: 65030575 | C88: 65345233 | D88: 65662240 | E88: 66002289 | F88: 66312067 | G88: 66548272 | H88: 66724104 | I88: 66918020 | J88: 67158348 | K88: 67388001 | L88: 67571107 | M88: 67764304 | N88: 67971311 | O88: 68170228 | P88: 68170228
A89: French Polynesia | B89: 283788 | C89: 285265 | D89: 286584 | E89: 288032 | F89: 289873 | G89: 291787 | H89: 293541 | I89: 295450 | J89: 297606 | K89: 299717 | L89: 301920 | M89: 304032 | N89: 306279 | O89: 308872 | P89: 308872
A90: Gabon | B90: 1711105 | C90: 1772500 | D90: 1836705 | E90: 1902226 | F90: 1966855 | G90: 2028517 | H90: 2086206 | I90: 2140215 | J90: 2192012 | K90: 2242785 | L90: 2292573 | M90: 2341179 | N90: 2388992 | O90: 2436566 | P90: 2436566
A91: Gambia, The | B91: 1937275 | C91: 1998212 | D91: 2061014 | E91: 2124869 | F91: 2189019 | G91: 2253133 | H91: 2317206 | I91: 2381182 | J91: 2444916 | K91: 2508883 | L91: 2573995 | M91: 2639916 | N91: 2705992 | O91: 2773168 | P91: 2773168
A92: Georgia | B92: 3786695 | C92: 3756441 | D92: 3728874 | E92: 3717668 | F92: 3719414 | G92: 3725276 | H92: 3727505 | I92: 3728004 | J92: 3726549 | K92: 3720161 | L92: 3722716 | M92: 3708610 | N92: 3712502 | O92: 3760365 | P92: 3760365
A93: Germany | B93: 81776930 | C93: 80274983 | D93: 80425823 | E93: 80645605 | F93: 80982500 | G93: 81686611 | H93: 82348669 | I93: 82657002 | J93: 82905782 | K93: 83092962 | L93: 83160871 | M93: 83196078 | N93: 83797985 | O93: 84482267 | P93: 84482267
A94: Ghana | B94: 25574719 | C94: 26205941 | D94: 26858762 | E94: 27525597 | F94: 28196358 | G94: 28870939 | H94: 29554303 | I94: 30222262 | J94: 30870641 | K94: 31522290 | L94: 32180401 | M94: 32833031 | N94: 33475870 | O94: 34121985 | P94: 34121985
A95: Gibraltar | B95: 31262 | C95: 31701 | D95: 32160 | E95: 32411 | F95: 32452 | G95: 32520 | H95: 32565 | I95: 32602 | J95: 32648 | K95: 32685 | L95: 32709 | M95: 32669 | N95: 32649 | O95: 32688 | P95: 32688
A96: Greece | B96: 11121341 | C96: 11104899 | D96: 11045011 | E96: 10965211 | F96: 10892413 | G96: 10820883 | H96: 10775971 | I96: 10754679 | J96: 10732882 | K96: 10721582 | L96: 10698599 | M96: 10569207 | N96: 10426919 | O96: 10361295 | P96: 10361295
A97: Greenland | B97: 56905 | C97: 56890 | D97: 56810 | E97: 56483 | F97: 56295 | G97: 56114 | H97: 56186 | I97: 56172 | J97: 56023 | K97: 56225 | L97: 56367 | M97: 56653 | N97: 56661 | O97: 56865 | P97: 56865
A98: Grenada | B98: 114039 | C98: 114918 | D98: 115912 | E98: 116945 | F98: 117972 | G98: 118980 | H98: 119966 | I98: 120921 | J98: 121838 | K98: 122724 | L98: 123663 | M98: 124610 | N98: 125438 | O98: 126183 | P98: 126183
A99: Guam | B99: 164905 | C99: 165649 | D99: 166392 | E99: 167054 | F99: 167543 | G99: 167978 | H99: 168346 | I99: 168606 | J99: 168678 | K99: 168624 | L99: 169231 | M99: 170534 | N99: 171774 | O99: 172952 | P99: 172952
A100: Guatemala | B100: 14259687 | C100: 14521515 | D100: 14781942 | E100: 15043981 | F100: 15306316 | G100: 15567419 | H100: 15827690 | I100: 16087418 | J100: 16346950 | K100: 16604026 | L100: 16858333 | M100: 17109746 | N100: 17357886 | O100: 17602431 | P100: 17602431
A101: Guinea | B101: 10270728 | C101: 10527712 | D101: 10788692 | E101: 11055430 | F101: 11333365 | G101: 11625998 | H101: 11930985 | I101: 12240789 | J101: 12554864 | K101: 12877539 | L101: 13205153 | M101: 13531906 | N101: 13859341 | O101: 14190612 | P101: 14190612
A102: Guinea-Bissau | B102: 1567220 | C102: 1609017 | D102: 1652717 | E102: 1697753 | F102: 1743309 | G102: 1788919 | H102: 1834552 | I102: 1879826 | J102: 1924955 | K102: 1970457 | L102: 2015828 | M102: 2060721 | N102: 2105566 | O102: 2150842 | P102: 2150842
A103: Guyana | B103: 747932 | C103: 744230 | D103: 743966 | E103: 747420 | F103: 751115 | G103: 755031 | H103: 759087 | I103: 763252 | J103: 785514 | K103: 798753 | L103: 797202 | M103: 804567 | N103: 808726 | O103: 813834 | P103: 813834
A104: Haiti | B104: 9842880 | C104: 9954312 | D104: 10108539 | E104: 10261206 | F104: 10412740 | G104: 10563757 | H104: 10713849 | I104: 10863543 | J104: 11012421 | K104: 11160438 | L104: 11306801 | M104: 11447569 | N104: 11584996 | O104: 11724763 | P104: 11724763
A105: Heavily indebted poor countries (HIPC) | B105: 630953183 | C105: 648927117 | D105: 667520863 | E105: 686620331 | F105: 706617213 | G105: 727129254 | H105: 748356635 | I105: 770390212 | J105: 792615894 | K105: 815100831 | L105: 838066650 | M105: 861156745 | N105: 884288332 | O105: 907995430 | P105: 907995430
A106: High income | B106: 1330723736 | C106: 1335858758 | D106: 1342743557 | E106: 1349905020 | F106: 1357161865 | G106: 1364282269 | H106: 1371516373 | I106: 1377929189 | J106: 1383955367 | K106: 1389172209 | L106: 1393950970 | M106: 1392964458 | N106: 1395940386 | O106: 1403021503 | P106: 1403021503
A107: Honduras | B107: 8450933 | C107: 8622504 | D107: 8792367 | E107: 8960657 | F107: 9127846 | G107: 9294505 | H107: 9460798 | I107: 9626842 | J107: 9792850 | K107: 9958829 | L107: 10121763 | M107: 10278345 | N107: 10432860 | O107: 10593798 | P107: 10593798
A108: Hong Kong SAR, China | B108: 7024200 | C108: 7071600 | D108: 7150100 | E108: 7178900 | F108: 7229500 | G108: 7291300 | H108: 7336600 | I108: 7393200 | J108: 7452600 | K108: 7507900 | L108: 7481000 | M108: 7413100 | N108: 7346100 | O108: 7536100 | P108: 7536100
A109: Hungary | B109: 10000023 | C109: 9971727 | D109: 9920362 | E109: 9893082 | F109: 9866468 | G109: 9843028 | H109: 9814023 | I109: 9787966 | J109: 9775564 | K109: 9771141 | L109: 9750149 | M109: 9709891 | N109: 9643048 | O109: 9589872 | P109: 9589872
A110: IBRD only | B110: 4424528755 | C110: 4469961043 | D110: 4517846874 | E110: 4566948798 | F110: 4615651856 | G110: 4662836842 | H110: 4708313438 | I110: 4752675645 | J110: 4794094269 | K110: 4832585266 | L110: 4866828116 | M110: 4894666421 | N110: 4912348798 | O110: 4937047867 | P110: 4937047867
A111: IDA & IBRD total | B111: 5838903143 | C111: 5917936328 | D111: 5998753810 | E111: 6079936045 | F111: 6160835364 | G111: 6240908648 | H111: 6320624467 | I111: 6400602851 | J111: 6478776303 | K111: 6555193386 | L111: 6628629499 | M111: 6696373761 | N111: 6754104791 | O111: 6819750360 | P111: 6819750360
A112: IDA blend | B112: 474626536 | C112: 486354807 | D112: 497317025 | E112: 507906365 | F112: 518378284 | G112: 528669692 | H112: 538868249 | I112: 549511044 | J112: 560698093 | K112: 572192040 | L112: 584212703 | M112: 596608333 | N112: 609342910 | O112: 622553200 | P112: 622553200
A113: IDA only | B113: 939747852 | C113: 961620478 | D113: 983589911 | E113: 1005080882 | F113: 1026805224 | G113: 1049402114 | H113: 1073442780 | I113: 1098416162 | J113: 1123983941 | K113: 1150416080 | L113: 1177588680 | M113: 1205099007 | N113: 1232413083 | O113: 1260149293 | P113: 1260149293
A114: IDA total | B114: 1414374388 | C114: 1447975285 | D114: 1480906936 | E114: 1512987247 | F114: 1545183508 | G114: 1578071806 | H114: 1612311029 | I114: 1647927206 | J114: 1684682034 | K114: 1722608120 | L114: 1761801383 | M114: 1801707340 | N114: 1841755993 | O114: 1882702493 | P114: 1882702493
A115: Iceland | B115: 318041 | C115: 319014 | D115: 320716 | E115: 323764 | F115: 327386 | G115: 330815 | H115: 335439 | I115: 343400 | J115: 352721 | K115: 360563 | L115: 366463 | M115: 372520 | N115: 382003 | O115: 393600 | P115: 393600
A116: India | B116: 1240613620 | C116: 1257621191 | D116: 1274487215 | E116: 1291132063 | F116: 1307246509 | G116: 1322866505 | H116: 1338636340 | I116: 1354195680 | J116: 1369003306 | K116: 1383112050 | L116: 1396387127 | M116: 1407563842 | N116: 1417173173 | O116: 1428627663 | P116: 1428627663
A117: Indonesia | B117: 244016173 | C117: 247099697 | D117: 250222695 | E117: 253275918 | F117: 256229761 | G117: 259091970 | H117: 261850182 | I117: 264498852 | J117: 267066843 | K117: 269582878 | L117: 271857970 | M117: 273753191 | N117: 275501339 | O117: 277534122 | P117: 277534122
A118: Iran, Islamic Rep. | B118: 75373855 | C118: 76342971 | D118: 77324451 | E118: 78458928 | F118: 79961672 | G118: 81790841 | H118: 83306231 | I118: 84505076 | J118: 85617562 | K118: 86564202 | L118: 87290193 | M118: 87923432 | N118: 88550570 | O118: 89172767 | P118: 89172767
A119: Iraq | B119: 31264875 | C119: 32378061 | D119: 33864447 | E119: 35481800 | F119: 36746488 | G119: 37757813 | H119: 38697943 | I119: 39621162 | J119: 40590700 | K119: 41563520 | L119: 42556984 | M119: 43533592 | N119: 44496122 | O119: 45504560 | P119: 45504560
A120: Ireland | B120: 4560155 | C120: 4580084 | D120: 4599533 | E120: 4623816 | F120: 4657740 | G120: 4701957 | H120: 4755335 | I120: 4807388 | J120: 4867316 | K120: 4934340 | L120: 4985382 | M120: 5033164 | N120: 5127170 | O120: 5262382 | P120: 5262382
A121: Isle of Man | B121: 83828 | C121: 84350 | D121: 84338 | E121: 84144 | F121: 83896 | G121: 83593 | H121: 83450 | I121: 83580 | J121: 83775 | K121: 83933 | L121: 84046 | M121: 84263 | N121: 84519 | O121: 84710 | P121: 84710
A122: Israel | B122: 7623600 | C122: 7765800 | D122: 7910500 | E122: 8059500 | F122: 8215700 | G122: 8380100 | H122: 8546000 | I122: 8713300 | J122: 8882800 | K122: 9054000 | L122: 9215100 | M122: 9371400 | N122: 9557500 | O122: 9756700 | P122: 9756700
A123: Italy | B123: 59277417 | C123: 59379449 | D123: 59539717 | E123: 60233948 | F123: 60789140 | G123: 60730582 | H123: 60627498 | I123: 60536709 | J123: 60421760 | K123: 59729081 | L123: 59438851 | M123: 59133173 | N123: 58940425 | O123: 58761146 | P123: 58761146
A124: Jamaica | B124: 2733896 | C124: 2746169 | D124: 2759817 | E124: 2773129 | F124: 2784543 | G124: 2794445 | H124: 2802695 | I124: 2808376 | J124: 2811835 | K124: 2813773 | L124: 2820436 | M124: 2827695 | N124: 2827377 | O124: 2825544 | P124: 2825544
A125: Japan | B125: 128070000 | C125: 127833000 | D125: 127629000 | E125: 127445000 | F125: 127276000 | G125: 127141000 | H125: 127076000 | I125: 126972000 | J125: 126811000 | K125: 126633000 | L125: 126261000 | M125: 125681593 | N125: 125124989 | O125: 124516650 | P125: 124516650
A126: Jordan | B126: 6931258 | C126: 7109980 | D126: 7211863 | E126: 7694814 | F126: 8658026 | G126: 9494246 | H126: 9964656 | I126: 10215381 | J126: 10459865 | K126: 10698683 | L126: 10928721 | M126: 11148278 | N126: 11285869 | O126: 11337052 | P126: 11337052
A127: Kazakhstan | B127: 16321872 | C127: 16557202 | D127: 16792090 | E127: 17035551 | F127: 17288285 | G127: 17542806 | H127: 17794055 | I127: 18037776 | J127: 18276452 | K127: 18513673 | L127: 18755666 | M127: 19191356 | N127: 19634983 | O127: 19900177 | P127: 19900177
A128: Kenya | B128: 41517895 | C128: 42635144 | D128: 43725806 | E128: 44792368 | F128: 45831863 | G128: 46851488 | H128: 47894670 | I128: 48948137 | J128: 49953304 | K128: 50951450 | L128: 51985780 | M128: 53005614 | N128: 54027487 | O128: 55100586 | P128: 55100586
A129: Kiribati | B129: 107995 | C129: 109871 | D129: 111618 | E129: 113311 | F129: 114985 | G129: 116707 | H129: 118513 | I129: 120362 | J129: 122261 | K129: 124241 | L129: 126463 | M129: 128874 | N129: 131232 | O129: 133515 | P129: 133515
A130: Korea, Dem. People's Rep. | B130: 24686435 | C130: 24783789 | D130: 24887770 | E130: 25001819 | F130: 25126131 | G130: 25258015 | H130: 25389611 | I130: 25516321 | J130: 25638149 | K130: 25755441 | L130: 25867467 | M130: 25971909 | N130: 26069416 | O130: 26160821 | P130: 26160821
A131: Korea, Rep. | B131: 49554112 | C131: 49936638 | D131: 50199853 | E131: 50428893 | F131: 50746659 | G131: 51014947 | H131: 51217803 | I131: 51361911 | J131: 51585058 | K131: 51764822 | L131: 51836239 | M131: 51769539 | N131: 51672569 | O131: 51712619 | P131: 51712619
A132: Kosovo | B132: 1792563 | C132: 1799338 | D132: 1807106 | E132: 1818117 | F132: 1812771 | G132: 1788196 | H132: 1777557 | I132: 1791003 | J132: 1797085 | K132: 1788878 | L132: 1790133 | M132: 1786038 | N132: 1768086 | O132: 1756374 | P132: 1756374
A133: Kuwait | B133: 2943356 | C133: 3143825 | D133: 3394663 | E133: 3646518 | F133: 3761584 | G133: 3908743 | H133: 4048085 | I133: 4124904 | J133: 4317185 | K133: 4441100 | L133: 4360444 | M133: 4250114 | N133: 4268873 | O133: 4310108 | P133: 4310108
A134: Kyrgyz Republic | B134: 5447900 | C134: 5514600 | D134: 5607200 | E134: 5719600 | F134: 5835500 | G134: 5956900 | H134: 6079500 | I134: 6198200 | J134: 6322800 | K134: 6456200 | L134: 6579900 | M134: 6773400 | N134: 6974900 | O134: 7100800 | P134: 7100800
A135: Lao PDR | B135: 6323418 | C135: 6416327 | D135: 6508803 | E135: 6600742 | F135: 6691454 | G135: 6787419 | H135: 6891363 | I135: 6997917 | J135: 7105006 | K135: 7212053 | L135: 7319399 | M135: 7425057 | N135: 7529475 | O135: 7633779 | P135: 7633779
A136: Late-demographic dividend | B136: 2182659481 | C136: 2196448219 | D136: 2212426916 | E136: 2228642364 | F136: 2244311001 | G136: 2258792292 | H136: 2272847109 | I136: 2287248399 | J136: 2299720675 | K136: 2310338402 | L136: 2318233156 | M136: 2323185156 | N136: 2325328254 | O136: 2326833223 | P136: 2326833223
A137: Latin America & Caribbean | B137: 588873862 | C137: 595510008 | D137: 602139396 | E137: 608642242 | F137: 615046755 | G137: 621390109 | H137: 627667493 | I137: 633795231 | J137: 639626265 | K137: 645293844 | L137: 650533026 | M137: 654978670 | N137: 659306928 | O137: 664155299 | P137: 664155299
A138: Latin America & Caribbean (excluding high income) | B138: 528978305 | C138: 535014773 | D138: 541048298 | E138: 546954103 | F138: 552781789 | G138: 558562792 | H138: 564377885 | I138: 570381211 | J138: 576620516 | K138: 582701622 | L138: 588011178 | M138: 592503434 | N138: 596596955 | O138: 600825676 | P138: 600825676
A139: Latin America & the Caribbean (IDA & IBRD countries) | B139: 572949377 | C139: 579610152 | D139: 586263141 | E139: 592784484 | F139: 599226878 | G139: 605613677 | H139: 611946736 | I139: 618155029 | J139: 624120970 | K139: 629795751 | L139: 634961078 | M139: 639469895 | N139: 643884393 | O139: 648763330 | P139: 648763330
A140: Latvia | B140: 2097555 | C140: 2059709 | D140: 2034319 | E140: 2012647 | F140: 1993782 | G140: 1977527 | H140: 1959537 | I140: 1942248 | J140: 1927174 | K140: 1913822 | L140: 1900449 | M140: 1884490 | N140: 1879383 | O140: 1881750 | P140: 1881750
A141: Least developed countries: UN classification | B141: 842807198 | C141: 863421305 | D141: 884653995 | E141: 906405074 | F141: 928661685 | G141: 951184941 | H141: 974516186 | I141: 998532743 | J141: 1022731692 | K141: 1047426093 | L141: 1072970944 | M141: 1098791080 | N141: 1124396999 | O141: 1150346774 | P141: 1150346774
A142: Lebanon | B142: 4995800 | C142: 5045056 | D142: 5178337 | E142: 5678851 | F142: 6274342 | G142: 6398940 | H142: 6258619 | I142: 6109252 | J142: 5950839 | K142: 5781907 | L142: 5662923 | M142: 5592631 | N142: 5489739 | O142: 5353930 | P142: 5353930
A143: Lesotho | B143: 2022747 | C143: 2037677 | D143: 2054718 | E143: 2073939 | F143: 2095242 | G143: 2118521 | H143: 2143872 | I143: 2170617 | J143: 2198017 | K143: 2225702 | L143: 2254100 | M143: 2281454 | N143: 2305825 | O143: 2330318 | P143: 2330318
A144: Liberia | B144: 4019956 | C144: 4181150 | D144: 4331740 | E144: 4427313 | F144: 4519398 | G144: 4612329 | H144: 4706097 | I144: 4796631 | J144: 4889391 | K144: 4985289 | L144: 5087584 | M144: 5193416 | N144: 5302681 | O144: 5418377 | P144: 5418377
A145: Libya | B145: 6491988 | C145: 6188132 | D145: 5869870 | E145: 5985221 | F145: 6097764 | G145: 6192235 | H145: 6282196 | I145: 6378261 | J145: 6477793 | K145: 6569088 | L145: 6653942 | M145: 6735277 | N145: 6812341 | O145: 6888388 | P145: 6888388
A146: Liechtenstein | B146: 35926 | C146: 36189 | D146: 36505 | E146: 36806 | F146: 37096 | G146: 37355 | H146: 37609 | I146: 37889 | J146: 38181 | K146: 38482 | L146: 38756 | M146: 39039 | N146: 39327 | O146: 39584 | P146: 39584
A147: Lithuania | B147: 3097282 | C147: 3028115 | D147: 2987773 | E147: 2957689 | F147: 2932367 | G147: 2904910 | H147: 2868231 | I147: 2828403 | J147: 2801543 | K147: 2794137 | L147: 2794885 | M147: 2800839 | N147: 2831639 | O147: 2871897 | P147: 2871897
A148: Low & middle income | B148: 5610455957 | C148: 5689033832 | D148: 5769216950 | E148: 5849715412 | F148: 5929949445 | G148: 6009439133 | H148: 6088698400 | I148: 6168617518 | J148: 6247396829 | K148: 6324580903 | L148: 6398830423 | M148: 6467799496 | N148: 6527353351 | O148: 6593137026 | P148: 6593137026
A149: Low income | B149: 510897321 | C149: 525506329 | D149: 540002626 | E149: 553835758 | F149: 567702296 | G149: 582173028 | H149: 597683499 | I149: 613946858 | J149: 630865826 | K149: 648755452 | L149: 667053670 | M149: 685250041 | N149: 703727949 | O149: 722984063 | P149: 722984063
A150: Lower middle income | B150: 2525974118 | C150: 2568598935 | D150: 2610684758 | E150: 2653214685 | F150: 2695950000 | G150: 2737695800 | H150: 2779326476 | I150: 2821058566 | J150: 2862391122 | K150: 2903108878 | L150: 2943860780 | M150: 2983113040 | N150: 3020375650 | O150: 3059564861 | P150: 3059564861
A151: Luxembourg | B151: 506953 | C151: 518347 | D151: 530946 | E151: 543360 | F151: 556319 | G151: 569604 | H151: 582014 | I151: 596336 | J151: 607950 | K151: 620001 | L151: 630419 | M151: 640064 | N151: 653103 | O151: 668606 | P151: 668606
A152: Macao SAR, China | B152: 557297 | C152: 571003 | D152: 582766 | E152: 593374 | F152: 604167 | G152: 615239 | H152: 626688 | I152: 638609 | J152: 650991 | K152: 663653 | L152: 676283 | M152: 686607 | N152: 695168 | O152: 704149 | P152: 704149
A153: Madagascar | B153: 21731053 | C153: 22348158 | D153: 22966240 | E153: 23588073 | F153: 24215976 | G153: 24850912 | H153: 25501941 | I153: 26169542 | J153: 26846541 | K153: 27533134 | L153: 28225177 | M153: 28915653 | N153: 29611714 | O153: 30325732 | P153: 30325732
A154: Malawi | B154: 14718422 | C154: 15146094 | D154: 15581251 | E154: 16024775 | F154: 16477966 | G154: 16938942 | H154: 17405624 | I154: 17881167 | J154: 18367883 | K154: 18867337 | L154: 19377061 | M154: 19889742 | N154: 20405317 | O154: 20931751 | P154: 20931751
A155: Malaysia | B155: 28717731 | C155: 29184133 | D155: 29660212 | E155: 30134807 | F155: 30606459 | G155: 31068833 | H155: 31526418 | I155: 31975806 | J155: 32399271 | K155: 32804020 | L155: 33199993 | M155: 33573874 | N155: 33938221 | O155: 34308525 | P155: 34308525
A156: Maldives | B156: 361575 | C156: 374440 | D156: 387539 | E156: 400728 | F156: 416738 | G156: 435582 | H156: 454252 | I156: 472442 | J156: 489758 | K156: 504508 | L156: 514438 | M156: 521457 | N156: 523787 | O156: 521021 | P156: 521021
A157: Mali | B157: 15529181 | C157: 16039734 | D157: 16514687 | E157: 17004033 | F157: 17551814 | G157: 18112907 | H157: 18700106 | I157: 19311355 | J157: 19934298 | K157: 20567424 | L157: 21224040 | M157: 21904983 | N157: 22593590 | O157: 23293698 | P157: 23293698
A158: Malta | B158: 414508 | C158: 416268 | D158: 420028 | E158: 425967 | F158: 434558 | G158: 445053 | H158: 455356 | I158: 467999 | J158: 484630 | K158: 504062 | L158: 515332 | M158: 518536 | N158: 531113 | O158: 553214 | P158: 553214
A159: Marshall Islands | B159: 53416 | C159: 52971 | D159: 52203 | E159: 51352 | F159: 50419 | G159: 49410 | H159: 48329 | I159: 47187 | J159: 45989 | K159: 44728 | L159: 43413 | M159: 42050 | N159: 41569 | O159: 41996 | P159: 41996
A160: Mauritania | B160: 3419461 | C160: 3524249 | D160: 3636113 | E160: 3742959 | F160: 3843174 | G160: 3946220 | H160: 4051890 | I160: 4160015 | J160: 4270712 | K160: 4383849 | L160: 4498604 | M160: 4614974 | N160: 4736139 | O160: 4862989 | P160: 4862989
A161: Mauritius | B161: 1250400 | C161: 1252404 | D161: 1255882 | E161: 1258927 | F161: 1261208 | G161: 1262879 | H161: 1263747 | I161: 1264887 | J161: 1265577 | K161: 1265985 | L161: 1266014 | M161: 1266334 | N161: 1262523 | O161: 1261041 | P161: 1261041
A162: Mexico | B162: 112532401 | C162: 114150481 | D162: 115755909 | E162: 117290686 | F162: 118755887 | G162: 120149897 | H162: 121519221 | I162: 122839258 | J162: 124013861 | K162: 125085311 | L162: 125998302 | M162: 126705138 | N162: 127504125 | O162: 128455567 | P162: 128455567
A163: Micronesia, Fed. Sts. | B163: 107588 | C163: 107887 | D163: 108232 | E163: 108609 | F163: 109024 | G163: 109462 | H163: 109925 | I163: 110430 | J163: 110929 | K163: 111379 | L163: 112106 | M163: 113131 | N163: 114164 | O163: 115224 | P163: 115224
A164: Middle East & North Africa | B164: 397997557 | C164: 406045323 | D164: 414117603 | E164: 422790409 | F164: 431664579 | G164: 440506473 | H164: 448917409 | I164: 456885486 | J164: 465073490 | K164: 473201775 | L164: 479966649 | M164: 486174763 | N164: 493279469 | O164: 500787313 | P164: 500787313
A165: Middle East & North Africa (IDA & IBRD countries) | B165: 339527169 | C165: 345887176 | D165: 352259724 | E165: 359233517 | F165: 366582958 | G165: 373867247 | H165: 380687450 | I165: 387152617 | J165: 393806257 | K165: 400574097 | L165: 407006855 | M165: 413124452 | N165: 419284769 | O165: 425691336 | P165: 425691336
A166: Middle East & North Africa (excluding high income) | B166: 343313330 | C166: 349770162 | D166: 356239722 | E166: 363310225 | F166: 370756356 | G166: 378137339 | H166: 385054538 | I166: 391607422 | J166: 398375344 | K166: 405259403 | L166: 411810124 | M166: 418047201 | N166: 424328381 | O166: 430857111 | P166: 430857111
A167: Middle income | B167: 5099558636 | C167: 5163527503 | D167: 5229214324 | E167: 5295879654 | F167: 5362247149 | G167: 5427266105 | H167: 5491014901 | I167: 5554670660 | J167: 5616531003 | K167: 5675825451 | L167: 5731776753 | M167: 5782549455 | N167: 5823625402 | O167: 5870152963 | P167: 5870152963
A168: Moldova | B168: 2862354 | C168: 2860699 | D168: 2860324 | E168: 2859558 | F168: 2857815 | G168: 2835978 | H168: 2803186 | I168: 2755189 | J168: 2707203 | K168: 2664224 | L168: 2635130 | M168: 2595809 | N168: 2538894 | O168: 2486891 | P168: 2486891
A169: Monaco | B169: 33178 | C169: 33945 | D169: 34700 | E169: 35425 | F169: 36110 | G169: 36760 | H169: 37071 | I169: 37044 | J169: 37029 | K169: 37034 | L169: 36922 | M169: 36686 | N169: 36469 | O169: 36297 | P169: 36297
A170: Mongolia | B170: 2702520 | C170: 2743938 | D170: 2792349 | E170: 2845153 | F170: 2902823 | G170: 2964749 | H170: 3029555 | I170: 3096030 | J170: 3163991 | K170: 3232430 | L170: 3294335 | M170: 3347782 | N170: 3398366 | O170: 3447157 | P170: 3447157
A171: Montenegro | B171: 619428 | C171: 620079 | D171: 620601 | E171: 621207 | F171: 621810 | G171: 622159 | H171: 622303 | I171: 622373 | J171: 622227 | K171: 622028 | L171: 621306 | M171: 619211 | N171: 617213 | O171: 616177 | P171: 616177
A172: Morocco | B172: 32464865 | C172: 32903699 | D172: 33352169 | E172: 33803527 | F172: 34248603 | G172: 34680458 | H172: 35107264 | I172: 35528115 | J172: 35927511 | K172: 36304408 | L172: 36688772 | M172: 37076584 | N172: 37457971 | O172: 37840044 | P172: 37840044
A173: Mozambique | B173: 23073723 | C173: 23760421 | D173: 24487611 | E173: 25251731 | F173: 26038704 | G173: 26843246 | H173: 27696493 | I173: 28569441 | J173: 29423878 | K173: 30285595 | L173: 31178239 | M173: 32077072 | N173: 32969518 | O173: 33897354 | P173: 33897354
A174: Myanmar | B174: 49390988 | C174: 49794522 | D174: 50218185 | E174: 50648334 | F174: 51072436 | G174: 51483949 | H174: 51892349 | I174: 52288341 | J174: 52666014 | K174: 53040212 | L174: 53423198 | M174: 53798084 | N174: 54179306 | O174: 54577997 | P174: 54577997
A175: Namibia | B175: 2099271 | C175: 2132340 | D175: 2167470 | E175: 2204510 | F175: 2243001 | G175: 2282704 | H175: 2323352 | I175: 2364534 | J175: 2405680 | K175: 2446644 | L175: 2489098 | M175: 2530151 | N175: 2567012 | O175: 2604172 | P175: 2604172
A176: Nauru | B176: 10241 | C176: 10283 | D176: 10444 | E176: 10694 | F176: 10940 | G176: 11185 | H176: 11437 | I176: 11682 | J176: 11924 | K176: 12132 | L176: 12315 | M176: 12511 | N176: 12668 | O176: 12780 | P176: 12780
A177: Nepal | B177: 27161567 | C177: 27266399 | D177: 27330694 | E177: 27381555 | F177: 27462106 | G177: 27610325 | H177: 27861186 | I177: 28183426 | J177: 28506712 | K177: 28832496 | L177: 29348627 | M177: 30034989 | N177: 30547580 | O177: 30896590 | P177: 30896590
A178: Netherlands | B178: 16615394 | C178: 16693074 | D178: 16754962 | E178: 16804432 | F178: 16865008 | G178: 16939923 | H178: 17030314 | I178: 17131296 | J178: 17231624 | K178: 17344874 | L178: 17441500 | M178: 17533044 | N178: 17700982 | O178: 17879488 | P178: 17879488
A179: New Caledonia | B179: 249750 | C179: 254350 | D179: 259000 | E179: 263650 | F179: 268050 | G179: 269460 | H179: 270220 | I179: 270810 | J179: 271170 | K179: 271240 | L179: 271080 | M179: 270390 | N179: 269215 | O179: 267940 | P179: 267940
A180: New Zealand | B180: 4350700 | C180: 4384000 | D180: 4408100 | E180: 4442100 | F180: 4516500 | G180: 4609400 | H180: 4714100 | I180: 4813600 | J180: 4900600 | K180: 4979200 | L180: 5090200 | M180: 5111300 | N180: 5117200 | O180: 5223100 | P180: 5223100
A181: Nicaragua | B181: 5855734 | C181: 5942553 | D181: 6030607 | E181: 6119379 | F181: 6208676 | G181: 6298598 | H181: 6389235 | I181: 6480532 | J181: 6572233 | K181: 6663924 | L181: 6755895 | M181: 6850540 | N181: 6948392 | O181: 7046310 | P181: 7046310
A182: Niger | B182: 16647543 | C182: 17283112 | D182: 17954407 | E182: 18653199 | F182: 19372014 | G182: 20128124 | H182: 20921743 | I182: 21737922 | J182: 22577058 | K182: 23443393 | L182: 24333639 | M182: 25252722 | N182: 26207977 | O182: 27202843 | P182: 27202843
A183: Nigeria | B183: 160952853 | C183: 165463745 | D183: 170075932 | E183: 174726123 | F183: 179379016 | G183: 183995785 | H183: 188666931 | I183: 193495907 | J183: 198387623 | K183: 203304492 | L183: 208327405 | M183: 213401323 | N183: 218541212 | O183: 223804632 | P183: 223804632
A184: North America | B184: 343398169 | C184: 345987266 | D184: 348655855 | E184: 351205940 | F184: 353885533 | G184: 356508729 | H184: 359247112 | I184: 361731076 | J184: 363974737 | K184: 366012359 | L184: 369619464 | M184: 370352605 | N184: 372274062 | O184: 375076145 | P184: 375076145
A185: Macedonia | B185: 1946298 | C185: 1937398 | D185: 1929821 | E185: 1922716 | F185: 1917557 | G185: 1912430 | H185: 1906313 | I185: 1898657 | J185: 1889051 | K185: 1876262 | L185: 1856124 | M185: 1837114 | N185: 1831712 | O185: 1811980 | P185: 1811980
A186: Northern Mariana Islands | B186: 54087 | C186: 52520 | D186: 52359 | E186: 52141 | F186: 51856 | G186: 51514 | H186: 51133 | I186: 50729 | J186: 50304 | K186: 49858 | L186: 49587 | M186: 49481 | N186: 49551 | O186: 49796 | P186: 49796
A187: Norway | B187: 4889252 | C187: 4953088 | D187: 5018573 | E187: 5079623 | F187: 5137232 | G187: 5188607 | H187: 5234519 | I187: 5276968 | J187: 5311916 | K187: 5347896 | L187: 5379475 | M187: 5408320 | N187: 5457127 | O187: 5519594 | P187: 5519594
A188: OECD members | B188: 1290949310 | C188: 1297593832 | D188: 1305512665 | E188: 1313642010 | F188: 1322072133 | G188: 1330316951 | H188: 1338792226 | I188: 1346867182 | J188: 1354843844 | K188: 1362032167 | L188: 1369502262 | M188: 1371972508 | N188: 1377465841 | O188: 1385005653 | P188: 1385005653
A189: Oman | B189: 2881914 | C189: 3206870 | D189: 3535579 | E189: 3816680 | F189: 4009267 | G189: 4191776 | H189: 4398070 | I189: 4541854 | J189: 4601157 | K189: 4602768 | L189: 4543399 | M189: 4520471 | N189: 4576298 | O189: 4644384 | P189: 4644384
A190: Other small states | B190: 12328684 | C190: 12440374 | D190: 12569929 | E190: 12725773 | F190: 12900102 | G190: 13082531 | H190: 13258300 | I190: 13439650 | J190: 13608679 | K190: 13751038 | L190: 13853034 | M190: 13943732 | N190: 14095313 | O190: 14240737 | P190: 14240737
A191: Pacific island small states | B191: 2301401 | C191: 2327284 | D191: 2353058 | E191: 2379069 | F191: 2405308 | G191: 2431426 | H191: 2457814 | I191: 2484263 | J191: 2510226 | K191: 2536070 | L191: 2566819 | M191: 2602173 | N191: 2639019 | O191: 2677728 | P191: 2677728
A192: Pakistan | B192: 194454498 | C192: 198602738 | D192: 202205861 | E192: 205337562 | F192: 208251628 | G192: 210969298 | H192: 213524840 | I192: 216379655 | J192: 219731479 | K192: 223293280 | L192: 227196741 | M192: 231402117 | N192: 235824862 | O192: 240485658 | P192: 240485658
A193: Palau | B193: 18540 | C193: 18240 | D193: 17946 | E193: 17805 | F193: 17796 | G193: 17794 | H193: 17816 | I193: 17837 | J193: 17864 | K193: 17916 | L193: 17972 | M193: 18024 | N193: 18055 | O193: 18058 | P193: 18058
A194: Panama | B194: 3623617 | C194: 3688674 | D194: 3754862 | E194: 3821556 | F194: 3888793 | G194: 3957099 | H194: 4026336 | I194: 4096063 | J194: 4165255 | K194: 4232532 | L194: 4294396 | M194: 4351267 | N194: 4408581 | O194: 4468087 | P194: 4468087
A195: Papua New Guinea | B195: 7583269 | C195: 7806637 | D195: 8026545 | E195: 8245627 | F195: 8464153 | G195: 8682174 | H195: 8899169 | I195: 9114796 | J195: 9329227 | K195: 9542486 | L195: 9749640 | M195: 9949437 | N195: 10142619 | O195: 10329931 | P195: 10329931
A196: Paraguay | B196: 5768613 | C196: 5843939 | D196: 5923322 | E196: 6005652 | F196: 6090721 | G196: 6177950 | H196: 6266615 | I196: 6355404 | J196: 6443328 | K196: 6530026 | L196: 6618695 | M196: 6703799 | N196: 6780744 | O196: 6861524 | P196: 6861524
A197: Peru | B197: 29229572 | C197: 29477721 | D197: 29749589 | E197: 30038809 | F197: 30353951 | G197: 30711863 | H197: 31132779 | I197: 31605486 | J197: 32203944 | K197: 32824861 | L197: 33304756 | M197: 33715471 | N197: 34049588 | O197: 34352719 | P197: 34352719
A198: Philippines | B198: 94636700 | C198: 96337913 | D198: 98032317 | E198: 99700107 | F198: 101325201 | G198: 103031365 | H198: 104875266 | I198: 106738501 | J198: 108568836 | K198: 110380804 | L198: 112190977 | M198: 113880328 | N198: 115559009 | O198: 117337368 | P198: 117337368
A199: Poland | B199: 38042794 | C199: 38063255 | D199: 38063164 | E199: 38040196 | F199: 38011735 | G199: 37986412 | H199: 37970087 | I199: 37974826 | J199: 37974750 | K199: 37965475 | L199: 37899070 | M199: 37747124 | N199: 36821749 | O199: 36685849 | P199: 36685849
A200: Portugal | B200: 10573100 | C200: 10557560 | D200: 10514844 | E200: 10457295 | F200: 10401062 | G200: 10358076 | H200: 10325452 | I200: 10300300 | J200: 10283822 | K200: 10286263 | L200: 10297081 | M200: 10361831 | N200: 10409704 | O200: 10525347 | P200: 10525347
A201: Post-demographic dividend | B201: 1075047440 | C201: 1077986944 | D201: 1082488131 | E201: 1087228563 | F201: 1092176251 | G201: 1097076319 | H201: 1102054942 | I201: 1106262382 | J201: 1110198958 | K201: 1113410921 | L201: 1117530670 | M201: 1116651310 | N201: 1114354147 | O201: 1119478514 | P201: 1119478514
... 68 more rows

Sheet I_CoD_WACC
A1: Cost of debt and WACC
A2: Manual entry
A4: country | B4: year | C4: cod_pretax_real | D4: inflation_rate | E4: cod_pretax_nom | F4: tax_rate | G4: cod_posttax_nom | H4: cod_posttax_real | I4: wacc_pretax_nom | J4: wacc_pretax_real | K4: wacc_posttax_real | L4: note | M4: source | N4: source2
A5: United Kingdom | B5: 2011 | C5: 0.03 | D5: 0.025 | E5: 0.055 | F5: 0.24 | I5: 0.089 | J5: 0.062 | M5: MCT 2011 Statement, Annex 6
A6: United Kingdom | B6: 2015 | D6: 0.02 | E6: 0.054 | F6: 0.2 | I6: 0.091 | J6: 0.07 | M6: MCT 2015 Statement, Annex 10
A7: United Kingdom | B7: 2018 | D7: 0.02 | E7: 0.0455 | F7: 0.17 | J7: 0.07 | M7: MCT 2018 Statement, Annex 10
A8: United Kingdom | B8: 2021 | D8: 0.02 | E8: 0.017 | F8: 0.249 | I8: 0.075 | K8: 0.036 | M8: Draft ALF 2.1 GHz Statement, Annex A4, Tables A4.1 & A4.2
A9: Austria | B9: 2013 | D9: 0.0175 | E9: 0.0728 | F9: 0.25 | I9: 0.1137 | M9: ALF 900/1800 model
A10: Czech Republic | B10: 2013 | D10: 0.0175 | E10: 0.04511 | F10: 0.19 | I10: 0.0826 | M10: ALF 900/1800 model
A11: Czech Republic | B11: 2016 | D11: 0.0175 | E11: 0.0371 | F11: 0.19 | I11: 0.0789 | M11: ALF 900/1800 model
A12: Denmark | B12: 2010 | D12: 0.015 | E12: 0.0541 | F12: 0.22 | I12: 0.077 | M12: ALF 900/1800 model
A13: Denmark | B13: 2016 | D13: 0.015 | E13: 0.0541 | F13: 0.22 | I13: 0.0715 | M13: ALF 900/1800 model
A14: Germany | B14: 2010 | D14: 0.0102 | E14: 0.0495 | F14: 0.2941 | I14: 0.0794 | M14: ALF 900/1800 model
A15: Germany | B15: 2015 | D15: 0.0115 | E15: 0.0406 | F15: 0.2965 | I15: 0.0646 | M15: ALF 900/1800 model
A16: Ireland | B16: 2012 | D16: 0.0221 | E16: 0.069 | F16: 0.125 | I16: 0.1021 | M16: ALF 900/1800 model
A17: Italy | B17: 2011 | D17: 0.021 | E17: 0.069 | F17: 0.37 | I17: 0.104 | M17: ALF 900/1800 model
A18: Portugal | B18: 2011 | D18: 0.017 | E18: 0.061 | F18: 0.29 | I18: 0.111 | M18: ALF 900/1800 model
A19: Spain | B19: 2011 | D19: 0.017 | E19: 0.055 | F19: 0.301 | I19: 0.1144 | M19: ALF 900/1800 model
A20: Sweden | B20: 2011 | D20: 0.02 | E20: 0.0384 | F20: 0.263 | I20: 0.0944 | M20: ALF 900/1800 model
A21: Sweden | B21: 2016 | D21: 0.02 | E21: 0.0384 | F21: 0.263 | I21: 0.0944 | M21: ALF 900/1800 model
A22: Austria | B22: 2020 | D22: 0.01675 | E22: 0.0253 | F22: 0.25 | I22: 0.0791 | M22: BEREC Report on Regulatory Accounting in Practice 2020, ch5 | N22: ECB inflation outlook
A23: Czech Republic | B23: 2020 | D23: 0.01675 | E23: 0.0373 | F23: 0.19 | I23: 0.0725 | M23: BEREC Report on Regulatory Accounting in Practice 2020, ch5 | N23: ECB inflation outlook
A24: Germany | B24: 2020 | M24: BEREC Report on Regulatory Accounting in Practice 2020, ch5 | N24: ECB inflation outlook
A25: Greece | B25: 2020 | D25: 0.01675 | E25: 0.0491 | F25: 0.24 | I25: 0.0933 | M25: BEREC Report on Regulatory Accounting in Practice 2020, ch5 | N25: ECB inflation outlook
A26: Croatia | B26: 2020 | D26: 0.01675 | E26: 0.0392 | F26: 0.18 | I26: 0.0638 | M26: BEREC Report on Regulatory Accounting in Practice 2020, ch5 | N26: ECB inflation outlook
A27: Hungary | B27: 2020 | D27: 0.01675 | E27: 0.0428 | F27: 0.09 | I27: 0.07 | M27: BEREC Report on Regulatory Accounting in Practice 2020, ch5 | N27: ECB inflation outlook
A28: Iceland | B28: 2020 | D28: 0.01675 | E28: 0.0549 | F28: 0.2 | I28: 0.0707 | L28: fixed telecoms | M28: BEREC Report on Regulatory Accounting in Practice 2020, ch5 | N28: ECB inflation outlook
A29: Italy | B29: 2020 | D29: 0.01675 | E29: 0.0461 | F29: 0.329 | I29: 0.0855 | M29: BEREC Report on Regulatory Accounting in Practice 2020, ch5 | N29: ECB inflation outlook
A30: Netherlands | B30: 2020 | D30: 0.01675 | E30: 0.0291 | F30: 0.25 | I30: 0.0571 | M30: BEREC Report on Regulatory Accounting in Practice 2020, ch5 | N30: ECB inflation outlook
A31: Norway | B31: 2020 | D31: 0.01675 | E31: 0.05 | F31: 0.23 | I31: 0.0905 | M31: BEREC Report on Regulatory Accounting in Practice 2020, ch5 | N31: ECB inflation outlook
A32: Slovenia | B32: 2020 | D32: 0.01675 | E32: 0.0405 | F32: 0.19 | I32: 0.0716 | L32: fixed telecoms | M32: BEREC Report on Regulatory Accounting in Practice 2020, ch5 | N32: ECB inflation outlook
A33: Sweden | B33: 2020 | D33: 0.01675 | E33: 0.0324 | F33: 0.214 | I33: 0.0645 | M33: BEREC Report on Regulatory Accounting in Practice 2020, ch5 | N33: ECB inflation outlook
A34: Austria | B34: 2019 | D34: 0.0175 | E34: 0.0253 | F34: 0.25 | I34: 0.0791 | M34: BEREC Report on Regulatory Accounting in Practice 2019, ch5 | N34: ECB inflation outlook
A35: Czech Republic | B35: 2019 | D35: 0.0175 | E35: 0.0371 | F35: 0.19 | I35: 0.0725 | M35: BEREC Report on Regulatory Accounting in Practice 2019, ch5 | N35: ECB inflation outlook
A36: Germany | B36: 2019 | D36: 0.0175 | E36: 0.0315 | F36: 0.3109 | I36: 0.0555 | M36: BEREC Report on Regulatory Accounting in Practice 2019, ch5 | N36: ECB inflation outlook
A37: Greece | B37: 2019 | D37: 0.0175 | E37: 0.03 | F37: 0.1985 | I37: 0.1429 | M37: BEREC Report on Regulatory Accounting in Practice 2019, ch5 | N37: ECB inflation outlook
A38: Croatia | B38: 2019 | D38: 0.0175 | E38: 0.0578 | F38: 0.2 | I38: 0.0913 | M38: BEREC Report on Regulatory Accounting in Practice 2019, ch5 | N38: ECB inflation outlook
A39: Hungary | B39: 2019 | D39: 0.0175 | E39: 0.035 | F39: 0.09 | I39: 0.0749 | M39: BEREC Report on Regulatory Accounting in Practice 2019, ch5 | N39: ECB inflation outlook
A40: Iceland | B40: 2019 | D40: 0.0175 | E40: 0.0549 | F40: 0.2 | I40: 0.0707 | L40: fixed telecoms | M40: BEREC Report on Regulatory Accounting in Practice 2019, ch5 | N40: ECB inflation outlook
A41: Italy | B41: 2019 | D41: 0.0175 | E41: 0.0461 | F41: 0.329 | I41: 0.0855 | M41: BEREC Report on Regulatory Accounting in Practice 2019, ch5 | N41: ECB inflation outlook
A42: Netherlands | B42: 2019 | D42: 0.0175 | E42: 0.0291 | F42: 0.25 | I42: 0.0571 | M42: BEREC Report on Regulatory Accounting in Practice 2019, ch5 | N42: ECB inflation outlook
A43: Norway | B43: 2019 | D43: 0.0175 | E43: 0.05 | F43: 0.23 | I43: 0.0905 | M43: BEREC Report on Regulatory Accounting in Practice 2019, ch5 | N43: ECB inflation outlook
A44: Slovenia | B44: 2019 | D44: 0.0175 | E44: 0.0405 | F44: 0.19 | I44: 0.0716 | L44: fixed telecoms | M44: BEREC Report on Regulatory Accounting in Practice 2019, ch5 | N44: ECB inflation outlook
A45: Sweden | B45: 2019 | D45: 0.0175 | E45: 0.0416 | F45: 0.22 | I45: 0.0728 | M45: BEREC Report on Regulatory Accounting in Practice 2019, ch5 | N45: ECB inflation outlook
A46: Austria | B46: 2018 | D46: 0.019 | E46: 0.0253 | F46: 0.25 | I46: 0.0791 | M46: BEREC Report on Regulatory Accounting in Practice 2018, ch5 | N46: ECB inflation outlook
A47: Czech Republic | B47: 2018 | D47: 0.019 | E47: 0.0371 | F47: 0.19 | I47: 0.0789 | M47: BEREC Report on Regulatory Accounting in Practice 2018, ch5 | N47: ECB inflation outlook
A48: Germany | B48: 2018 | D48: 0.019 | E48: 0.0316 | F48: 0.3109 | I48: 0.0566 | M48: BEREC Report on Regulatory Accounting in Practice 2018, ch5 | N48: ECB inflation outlook
A49: Greece | B49: 2018 | M49: BEREC Report on Regulatory Accounting in Practice 2018, ch5 | N49: ECB inflation outlook
A50: Croatia | B50: 2018 | D50: 0.019 | E50: 0.0578 | F50: 0.2 | I50: 0.0913 | M50: BEREC Report on Regulatory Accounting in Practice 2018, ch5 | N50: ECB inflation outlook
A51: Hungary | B51: 2018 | D51: 0.019 | E51: 0.035 | F51: 0.09 | I51: 0.0824 | M51: BEREC Report on Regulatory Accounting in Practice 2018, ch5 | N51: ECB inflation outlook
A52: Iceland | B52: 2018 | D52: 0.019 | E52: 0.0549 | F52: 0.2 | I52: 0.071 | L52: fixed telecoms | M52: BEREC Report on Regulatory Accounting in Practice 2018, ch5 | N52: ECB inflation outlook
A53: Italy | B53: 2018 | D53: 0.019 | E53: 0.0697 | F53: 0.36 | I53: 0.1025 | M53: BEREC Report on Regulatory Accounting in Practice 2018, ch5 | N53: ECB inflation outlook
A54: Netherlands | B54: 2018 | D54: 0.019 | E54: 0.0291 | F54: 0.25 | I54: 0.0571 | M54: BEREC Report on Regulatory Accounting in Practice 2018, ch5 | N54: ECB inflation outlook
A55: Norway | B55: 2018 | D55: 0.019 | E55: 0.05 | F55: 0.23 | I55: 0.0905 | M55: BEREC Report on Regulatory Accounting in Practice 2018, ch5 | N55: ECB inflation outlook
A56: Slovenia | B56: 2018 | D56: 0.019 | E56: 0.06 | F56: 0.17 | I56: 0.1015 | L56: fixed telecoms | M56: BEREC Report on Regulatory Accounting in Practice 2018, ch5 | N56: ECB inflation outlook
A57: Sweden | B57: 2018 | D57: 0.019 | E57: 0.0416 | F57: 0.22 | I57: 0.0728 | M57: BEREC Report on Regulatory Accounting in Practice 2018, ch5 | N57: ECB inflation outlook
A58: Sweden | B58: 2023 | D58: 0.021 | E58: 0.0199 | F58: 0.214 | I58: 0.0444 | M58: BEREC Report on Regulatory Accounting in Practice 2023, ch 5
A59: Croatia | B59: 2023 | D59: 0.021 | E59: 0.0274 | F59: 0.18 | I59: 0.0471 | M59: BEREC Report on Regulatory Accounting in Practice 2023, ch 5
A60: Belgium | B60: 2022 | D60: 0.02125 | E60: 0.0225 | F60: 0.25 | I60: 0.0686 | M60: BEREC Report on Regulatory Accounting in Practice 2022, ch5
A61: Portugal | B61: 2021 | D61: 0.01775 | E61: 0.043 | F61: 0.295 | I61: 0.0763 | M61: BEREC Report on Regulatory Accounting in Practice 2021, ch5
A62: Hungary | B62: 2021 | D62: 0.01775 | E62: 0.0351 | F62: 0.09 | I62: 0.0591 | M62: BEREC Report on Regulatory Accounting in Practice 2021, ch5
A63: Slovakia | B63: 2020 | D63: 0.01675 | E63: 0.0257 | F63: 0.21 | I63: 0.0555 | M63: BEREC Report on Regulatory Accounting in Practice 2020, ch5
A64: Croatia | B64: 2021 | D64: 0.01775 | E64: 0.0394 | F64: 0.18 | I64: 0.0638 | M64: BEREC Report on Regulatory Accounting in Practice 2021, ch5
A65: Norway | B65: 2017 | D65: 0.01825 | E65: 0.05 | F65: 0.23 | I65: 0.073 | M65: BEREC Report on Regulatory Accounting in Practice 2017, C5
A66: Czech Republic | B66: 2017 | D66: 0.01825 | E66: 0.0372 | F66: 0.19 | I66: 0.0789 | M66: BEREC Report on Regulatory Accounting in Practice 2017, C5
A67: Sweden | B67: 2021 | D67: 0.01775 | E67: 0.0324 | F67: 0.22 | I67: 0.0645 | M67: BEREC Report on Regulatory Accounting in Practice 2021, ch5
A68: Belgium | B68: 2020 | D68: 0.01675 | E68: 0.0314 | F68: 0.25 | I68: 0.0798 | M68: BEREC Report on Regulatory Accounting in Practice 2020, ch5
A69: Hungary | B69: 2016 | D69: 0.018
A70: Slovakia | B70: 2016 | D70: 0.018
A71: Slovakia | B71: 2022 | D71: 0.02125 | E71: 0.021 | F71: 0.21 | I71: 0.0415 | M71: BEREC Report on Regulatory Accounting in Practice 2022, ch5
A72: Slovenia | B72: 2016 | D72: 0.018
A73: Norway | B73: 2015 | D73: 0.0185
A74: Norway | B74: 2021 | D74: 0.01775 | E74: 0.05 | F74: 0.23 | I74: 0.0905 | M74: BEREC Report on Regulatory Accounting in Practice 2021, ch5
A75: Iceland | B75: 2017 | D75: 0.01825 | E75: 0.0557 | F75: 0.2 | I75: 0.05082248957 | M75: BEREC Report on Regulatory Accounting in Practice 2017, C5
A76: France | B76: 2020 | D76: 0.01675 | E76: 0.044 | F76: 0.3259 | I76: 0.076 | M76: BEREC Report on Regulatory Accounting in Practice 2020, ch5
A77: France | B77: 2015 | D77: 0.0185

Sheet I_CPI_UK
A1: CPI index, United Kingdom
A2: Data pulled automatically via query 'I_CPI_UK'. Do not change manually!
A4: month | B4: index
A5: 2010 JAN | B5: 87.8
A6: 2010 FEB | B6: 88.2
A7: 2010 MAR | B7: 88.7
A8: 2010 APR | B8: 89.2
A9: 2010 MAY | B9: 89.4
A10: 2010 JUN | B10: 89.5
A11: 2010 JUL | B11: 89.3
A12: 2010 AUG | B12: 89.8
A13: 2010 SEP | B13: 89.8
A14: 2010 OCT | B14: 90
A15: 2010 NOV | B15: 90.3
A16: 2010 DEC | B16: 91.2
A17: 2011 JAN | B17: 91.3
A18: 2011 FEB | B18: 92
A19: 2011 MAR | B19: 92.2
A20: 2011 APR | B20: 93.2
A21: 2011 MAY | B21: 93.4
A22: 2011 JUN | B22: 93.3
A23: 2011 JUL | B23: 93.3
A24: 2011 AUG | B24: 93.8
A25: 2011 SEP | B25: 94.4
A26: 2011 OCT | B26: 94.5
A27: 2011 NOV | B27: 94.6
A28: 2011 DEC | B28: 95.1
A29: 2012 JAN | B29: 94.6
A30: 2012 FEB | B30: 95.1
A31: 2012 MAR | B31: 95.4
A32: 2012 APR | B32: 96
A33: 2012 MAY | B33: 95.9
A34: 2012 JUN | B34: 95.5
A35: 2012 JUL | B35: 95.6
A36: 2012 AUG | B36: 96.1
A37: 2012 SEP | B37: 96.5
A38: 2012 OCT | B38: 97
A39: 2012 NOV | B39: 97.2
A40: 2012 DEC | B40: 97.6
A41: 2013 JAN | B41: 97.1
A42: 2013 FEB | B42: 97.8
A43: 2013 MAR | B43: 98.1
A44: 2013 APR | B44: 98.3
A45: 2013 MAY | B45: 98.5
A46: 2013 JUN | B46: 98.3
A47: 2013 JUL | B47: 98.3
A48: 2013 AUG | B48: 98.7
A49: 2013 SEP | B49: 99.1
A50: 2013 OCT | B50: 99.1
A51: 2013 NOV | B51: 99.2
A52: 2013 DEC | B52: 99.6
A53: 2014 JAN | B53: 99
A54: 2014 FEB | B54: 99.5
A55: 2014 MAR | B55: 99.7
A56: 2014 APR | B56: 100.1
A57: 2014 MAY | B57: 100
A58: 2014 JUN | B58: 100.2
A59: 2014 JUL | B59: 99.9
A60: 2014 AUG | B60: 100.2
A61: 2014 SEP | B61: 100.3
A62: 2014 OCT | B62: 100.4
A63: 2014 NOV | B63: 100.1
A64: 2014 DEC | B64: 100.1
A65: 2015 JAN | B65: 99.3
A66: 2015 FEB | B66: 99.5
A67: 2015 MAR | B67: 99.7
A68: 2015 APR | B68: 99.9
A69: 2015 MAY | B69: 100.1
A70: 2015 JUN | B70: 100.2
A71: 2015 JUL | B71: 100
A72: 2015 AUG | B72: 100.3
A73: 2015 SEP | B73: 100.2
A74: 2015 OCT | B74: 100.3
A75: 2015 NOV | B75: 100.3
A76: 2015 DEC | B76: 100.3
A77: 2016 JAN | B77: 99.5
A78: 2016 FEB | B78: 99.8
A79: 2016 MAR | B79: 100.2
A80: 2016 APR | B80: 100.2
A81: 2016 MAY | B81: 100.4
A82: 2016 JUN | B82: 100.6
A83: 2016 JUL | B83: 100.6
A84: 2016 AUG | B84: 100.9
A85: 2016 SEP | B85: 101.1
A86: 2016 OCT | B86: 101.2
A87: 2016 NOV | B87: 101.4
A88: 2016 DEC | B88: 101.9
A89: 2017 JAN | B89: 101.4
A90: 2017 FEB | B90: 102.1
A91: 2017 MAR | B91: 102.5
A92: 2017 APR | B92: 102.9
A93: 2017 MAY | B93: 103.3
A94: 2017 JUN | B94: 103.3
A95: 2017 JUL | B95: 103.2
A96: 2017 AUG | B96: 103.8
A97: 2017 SEP | B97: 104.1
A98: 2017 OCT | B98: 104.2
A99: 2017 NOV | B99: 104.6
A100: 2017 DEC | B100: 104.9
A101: 2018 JAN | B101: 104.4
A102: 2018 FEB | B102: 104.9
A103: 2018 MAR | B103: 105
A104: 2018 APR | B104: 105.4
A105: 2018 MAY | B105: 105.8
A106: 2018 JUN | B106: 105.8
A107: 2018 JUL | B107: 105.8
A108: 2018 AUG | B108: 106.5
A109: 2018 SEP | B109: 106.6
A110: 2018 OCT | B110: 106.7
A111: 2018 NOV | B111: 107
A112: 2018 DEC | B112: 107.1
A113: 2019 JAN | B113: 106.3
A114: 2019 FEB | B114: 106.8
A115: 2019 MAR | B115: 107
A116: 2019 APR | B116: 107.6
A117: 2019 MAY | B117: 107.9
A118: 2019 JUN | B118: 107.9
A119: 2019 JUL | B119: 107.9
A120: 2019 AUG | B120: 108.4
A121: 2019 SEP | B121: 108.5
A122: 2019 OCT | B122: 108.3
A123: 2019 NOV | B123: 108.5
A124: 2019 DEC | B124: 108.5
A125: 2020 JAN | B125: 108.2
A126: 2020 FEB | B126: 108.6
A127: 2020 MAR | B127: 108.6
A128: 2020 APR | B128: 108.5
A129: 2020 MAY | B129: 108.5
A130: 2020 JUN | B130: 108.6
A131: 2020 JUL | B131: 109.1
A132: 2020 AUG | B132: 108.6
A133: 2020 SEP | B133: 109.1
A134: 2020 OCT | B134: 109.1
A135: 2020 NOV | B135: 108.9
A136: 2020 DEC | B136: 109.2
A137: 2021 JAN | B137: 109
A138: 2021 FEB | B138: 109.1
A139: 2021 MAR | B139: 109.4
A140: 2021 APR | B140: 110.1
A141: 2021 MAY | B141: 110.8
A142: 2021 JUN | B142: 111.3
A143: 2021 JUL | B143: 111.3
A144: 2021 AUG | B144: 112.1
A145: 2021 SEP | B145: 112.4
A146: 2021 OCT | B146: 113.6
A147: 2021 NOV | B147: 114.5
A148: 2021 DEC | B148: 115.1
A149: 2022 JAN | B149: 114.9
A150: 2022 FEB | B150: 115.8
A151: 2022 MAR | B151: 117.1
A152: 2022 APR | B152: 120
A153: 2022 MAY | B153: 120.8
A154: 2022 JUN | B154: 121.8
A155: 2022 JUL | B155: 122.5
A156: 2022 AUG | B156: 123.1
A157: 2022 SEP | B157: 123.8
A158: 2022 OCT | B158: 126.2
A159: 2022 NOV | B159: 126.7
A160: 2022 DEC | B160: 127.2
A161: 2023 JAN | B161: 126.4
A162: 2023 FEB | B162: 127.9
A163: 2023 MAR | B163: 128.9
A164: 2023 APR | B164: 130.4
A165: 2023 MAY | B165: 131.3
A166: 2023 JUN | B166: 131.5
A167: 2023 JUL | B167: 130.9
A168: 2023 AUG | B168: 131.3
A169: 2023 SEP | B169: 132
A170: 2023 OCT | B170: 132
A171: 2023 NOV | B171: 131.7
A172: 2023 DEC | B172: 132.2
A173: 2024 JAN | B173: 131.5
A174: 2024 FEB | B174: 132.3
A175: 2024 MAR | B175: 133
A176: 2024 APR | B176: 133.5
A177: 2024 MAY | B177: 133.9
A178: 2024 JUN | B178: 134.1
A179: 2024 JUL | B179: 133.8
A180: 2024 AUG | B180: 134.3
A181: 2024 SEP | B181: 134.2

Sheet C_UKEq_detail
A1: UK equivalent detail
A2: Data in columns A:P pulled automatically via query 'C_UKEq_detail'. Do not change manually! All other columns should follow a consistent formula.
A4: award_id | B4: country | C4: award_date | D4: licensee | E4: amount_mhz | F4: duration_years | G4: lcu | H4: headline_price | I4: alf | J4: start_date | K4: award_year | L4: cod_pretax_nom | M4: source_cod_pretax_nom | N4: wacc_posttax_real | O4: source_wacc_posttax_real | P4: delay_days | Q4: lf_pv_lcy | R4: lsv_lcy | S4: annuity_lcy | T4: lsv_norm_lcy | U4: ppp_lcy | V4: ppp_gbp | W4: lsv_norm_gbp | X4: cpi_factor | Y4: lsv_real_gbp | Z4: population | AA4: pop_factor | AB4: lsv_ukeq
A5: Sweden-2023 Sep-900 | B5: Sweden | C5: 2023-09-21 | D5: Telia Sweden | E5: 30 | F5: 23 | G5: SEK | H5: 833176563 | I5: 0 | J5: 2026-01-01 | K5: 2023 | L5: 0.0199 | M5: nat | N5: 0.01801410382 | O5: nat | P5: 833 | Q5: =C_UKEq_detail[[#This Row],[headline_price]]-PV(C_UKEq_detail[[#This Row],[cod_pretax_nom]]-cod_liquidity_premium,C_UKEq_detail[[#This Row],[duration_years]],C_UKEq_detail[[#This Row],[alf]])*(1+C_UKEq_detail[[#This Row],[cod_pretax_nom]]-cod_liquidity_premium)^(-YEARFRAC(C_UKEq_detail[[#This Row],[award_date]], C_UKEq_detail[[#This Row],[award_date]]+C_UKEq_detail[[#This Row],[delay_days]])*delay_adj*(C_UKEq_detail[[#This Row],[delay_days]]>delay_threshold)) -> 833176563 | R5: =C_UKEq_detail[[#This Row],[lf_pv_lcy]]*(1+C_UKEq_detail[[#This Row],[wacc_posttax_real]])^(YEARFRAC(C_UKEq_detail[[#This Row],[award_date]],C_UKEq_detail[[#This Row],[award_date]]+C_UKEq_detail[[#This Row],[delay_days]])*delay_adj*(C_UKEq_detail[[#This Row],[delay_days]]>delay_threshold)) -> 867757681 | S5: =-PMT(C_UKEq_detail[[#This Row],[wacc_posttax_real]],C_UKEq_detail[[#This Row],[duration_years]],C_UKEq_detail[[#This Row],[lsv_lcy]]) -> 46416766.84 | T5: =-PV(C_UKEq_detail[[#This Row],[wacc_posttax_real]],notional_term,C_UKEq_detail[[#This Row],[annuity_lcy]]) -> 773729334.8 | U5: =INDEX(I_PPP[],MATCH(C_UKEq_detail[[#This Row],[country]],I_PPP[country],0), MATCH(TEXT(C_UKEq_detail[[#This Row],[award_year]], "#"),I_PPP[#Headers],0)) -> 8.509281 | V5: =INDEX(I_PPP[],MATCH("United Kingdom",I_PPP[country],0), MATCH(TEXT(C_UKEq_detail[[#This Row],[award_year]], "#"),I_PPP[#Headers],0)) -> 0.667418 | W5: =C_UKEq_detail[[#This Row],[lsv_norm_lcy]]*C_UKEq_detail[[#This Row],[ppp_gbp]]/C_UKEq_detail[[#This Row],[ppp_lcy]] -> 60686782.48 | X5: =eff_cpi_uk/SUMIFS(I_CPI_UK[index],I_CPI_UK[month],TEXT(C_UKEq_detail[[#This Row],[award_date]],"YYYY MMM")) -> 1.016666667 | Y5: =C_UKEq_detail[[#This Row],[lsv_norm_gbp]]*C_UKEq_detail[[#This Row],[cpi_factor]] -> 61698228.86 | Z5: =INDEX(I_Population[], MATCH(C_UKEq_detail[[#This Row],[country]], I_Population[country], 0), MATCH(TEXT(C_UKEq_detail[[#This Row],[award_year]],"#"), I_Population[#Headers], 0)) -> 10536632 | AA5: =eff_pop_uk/C_UKEq_detail[[#This Row],[population]] -> 6.486892586 | AB5: =C_UKEq_detail[[#This Row],[lsv_real_gbp]]*C_UKEq_detail[[#This Row],[pop_factor]] -> 400229783.3
A6: Sweden-2023 Sep-900 | B6: Sweden | C6: 2023-09-21 | D6: Hi3G Access | E6: 20 | F6: 23 | G6: SEK | H6: 701564274 | I6: 0 | J6: 2026-01-01 | K6: 2023 | L6: 0.0199 | M6: nat | N6: 0.01801410382 | O6: nat | P6: 833 | Q6: =C_UKEq_detail[[#This Row],[headline_price]]-PV(C_UKEq_detail[[#This Row],[cod_pretax_nom]]-cod_liquidity_premium,C_UKEq_detail[[#This Row],[duration_years]],C_UKEq_detail[[#This Row],[alf]])*(1+C_UKEq_detail[[#This Row],[cod_pretax_nom]]-cod_liquidity_premium)^(-YEARFRAC(C_UKEq_detail[[#This Row],[award_date]], C_UKEq_detail[[#This Row],[award_date]]+C_UKEq_detail[[#This Row],[delay_days]])*delay_adj*(C_UKEq_detail[[#This Row],[delay_days]]>delay_threshold)) -> 701564274 | R6: =C_UKEq_detail[[#This Row],[lf_pv_lcy]]*(1+C_UKEq_detail[[#This Row],[wacc_posttax_real]])^(YEARFRAC(C_UKEq_detail[[#This Row],[award_date]],C_UKEq_detail[[#This Row],[award_date]]+C_UKEq_detail[[#This Row],[delay_days]])*delay_adj*(C_UKEq_detail[[#This Row],[delay_days]]>delay_threshold)) -> 730682804.2 | S6: =-PMT(C_UKEq_detail[[#This Row],[wacc_posttax_real]],C_UKEq_detail[[#This Row],[duration_years]],C_UKEq_detail[[#This Row],[lsv_lcy]]) -> 39084567.15 | T6: =-PV(C_UKEq_detail[[#This Row],[wacc_posttax_real]],notional_term,C_UKEq_detail[[#This Row],[annuity_lcy]]) -> 651507595.3 | U6: =INDEX(I_PPP[],MATCH(C_UKEq_detail[[#This Row],[country]],I_PPP[country],0), MATCH(TEXT(C_UKEq_detail[[#This Row],[award_year]], "#"),I_PPP[#Headers],0)) -> 8.509281 | V6: =INDEX(I_PPP[],MATCH("United Kingdom",I_PPP[country],0), MATCH(TEXT(C_UKEq_detail[[#This Row],[award_year]], "#"),I_PPP[#Headers],0)) -> 0.667418 | W6: =C_UKEq_detail[[#This Row],[lsv_norm_lcy]]*C_UKEq_detail[[#This Row],[ppp_gbp]]/C_UKEq_detail[[#This Row],[ppp_lcy]] -> 51100427.43 | X6: =eff_cpi_uk/SUMIFS(I_CPI_UK[index],I_CPI_UK[month],TEXT(C_UKEq_detail[[#This Row],[award_date]],"YYYY MMM")) -> 1.016666667 | Y6: =C_UKEq_detail[[#This Row],[lsv_norm_gbp]]*C_UKEq_detail[[#This Row],[cpi_factor]] -> 51952101.22 | Z6: =INDEX(I_Population[], MATCH(C_UKEq_detail[[#This Row],[country]], I_Population[country], 0), MATCH(TEXT(C_UKEq_detail[[#This Row],[award_year]],"#"), I_Population[#Headers], 0)) -> 10536632 | AA6: =eff_pop_uk/C_UKEq_detail[[#This Row],[population]] -> 6.486892586 | AB6: =C_UKEq_detail[[#This Row],[lsv_real_gbp]]*C_UKEq_detail[[#This Row],[pop_factor]] -> 337007700.2
A7: Sweden-2023 Sep-900 | B7: Sweden | C7: 2023-09-21 | D7: Net4Mobility | E7: 20 | F7: 23 | G7: SEK | H7: 755451044 | I7: 0 | J7: 2026-01-01 | K7: 2023 | L7: 0.0199 | M7: nat | N7: 0.01801410382 | O7: nat | P7: 833 | Q7: =C_UKEq_detail[[#This Row],[headline_price]]-PV(C_UKEq_detail[[#This Row],[cod_pretax_nom]]-cod_liquidity_premium,C_UKEq_detail[[#This Row],[duration_years]],C_UKEq_detail[[#This Row],[alf]])*(1+C_UKEq_detail[[#This Row],[cod_pretax_nom]]-cod_liquidity_premium)^(-YEARFRAC(C_UKEq_detail[[#This Row],[award_date]], C_UKEq_detail[[#This Row],[award_date]]+C_UKEq_detail[[#This Row],[delay_days]])*delay_adj*(C_UKEq_detail[[#This Row],[delay_days]]>delay_threshold)) -> 755451044 | R7: =C_UKEq_detail[[#This Row],[lf_pv_lcy]]*(1+C_UKEq_detail[[#This Row],[wacc_posttax_real]])^(YEARFRAC(C_UKEq_detail[[#This Row],[award_date]],C_UKEq_detail[[#This Row],[award_date]]+C_UKEq_detail[[#This Row],[delay_days]])*delay_adj*(C_UKEq_detail[[#This Row],[delay_days]]>delay_threshold)) -> 786806152.7 | S7: =-PMT(C_UKEq_detail[[#This Row],[wacc_posttax_real]],C_UKEq_detail[[#This Row],[duration_years]],C_UKEq_detail[[#This Row],[lsv_lcy]]) -> 42086631.48 | T7: =-PV(C_UKEq_detail[[#This Row],[wacc_posttax_real]],notional_term,C_UKEq_detail[[#This Row],[annuity_lcy]]) -> 701549539 | U7: =INDEX(I_PPP[],MATCH(C_UKEq_detail[[#This Row],[country]],I_PPP[country],0), MATCH(TEXT(C_UKEq_detail[[#This Row],[award_year]], "#"),I_PPP[#Headers],0)) -> 8.509281 | V7: =INDEX(I_PPP[],MATCH("United Kingdom",I_PPP[country],0), MATCH(TEXT(C_UKEq_detail[[#This Row],[award_year]], "#"),I_PPP[#Headers],0)) -> 0.667418 | W7: =C_UKEq_detail[[#This Row],[lsv_norm_lcy]]*C_UKEq_detail[[#This Row],[ppp_gbp]]/C_UKEq_detail[[#This Row],[ppp_lcy]] -> 55025423.45 | X7: =eff_cpi_uk/SUMIFS(I_CPI_UK[index],I_CPI_UK[month],TEXT(C_UKEq_detail[[#This Row],[award_date]],"YYYY MMM")) -> 1.016666667 | Y7: =C_UKEq_detail[[#This Row],[lsv_norm_gbp]]*C_UKEq_detail[[#This Row],[cpi_factor]] -> 55942513.84 | Z7: =INDEX(I_Population[], MATCH(C_UKEq_detail[[#This Row],[country]], I_Population[country], 0), MATCH(TEXT(C_UKEq_detail[[#This Row],[award_year]],"#"), I_Population[#Headers], 0)) -> 10536632 | AA7: =eff_pop_uk/C_UKEq_detail[[#This Row],[population]] -> 6.486892586 | AB7: =C_UKEq_detail[[#This Row],[lsv_real_gbp]]*C_UKEq_detail[[#This Row],[pop_factor]] -> 362893078.2
A8: Sweden-2023 Sep-2100 | B8: Sweden | C8: 2023-09-21 | D8: Telia Sweden | E8: 40 | F8: 25 | G8: SEK | H8: 190468456 | I8: 0 | J8: 2026-01-01 | K8: 2023 | L8: 0.0199 | M8: nat | N8: 0.01801410382 | O8: nat | P8: 833 | Q8: =C_UKEq_detail[[#This Row],[headline_price]]-PV(C_UKEq_detail[[#This Row],[cod_pretax_nom]]-cod_liquidity_premium,C_UKEq_detail[[#This Row],[duration_years]],C_UKEq_detail[[#This Row],[alf]])*(1+C_UKEq_detail[[#This Row],[cod_pretax_nom]]-cod_liquidity_premium)^(-YEARFRAC(C_UKEq_detail[[#This Row],[award_date]], C_UKEq_detail[[#This Row],[award_date]]+C_UKEq_detail[[#This Row],[delay_days]])*delay_adj*(C_UKEq_detail[[#This Row],[delay_days]]>delay_threshold)) -> 190468456 | R8: =C_UKEq_detail[[#This Row],[lf_pv_lcy]]*(1+C_UKEq_detail[[#This Row],[wacc_posttax_real]])^(YEARFRAC(C_UKEq_detail[[#This Row],[award_date]],C_UKEq_detail[[#This Row],[award_date]]+C_UKEq_detail[[#This Row],[delay_days]])*delay_adj*(C_UKEq_detail[[#This Row],[delay_days]]>delay_threshold)) -> 198373877.8 | S8: =-PMT(C_UKEq_detail[[#This Row],[wacc_posttax_real]],C_UKEq_detail[[#This Row],[duration_years]],C_UKEq_detail[[#This Row],[lsv_lcy]]) -> 9925456.195 | T8: =-PV(C_UKEq_detail[[#This Row],[wacc_posttax_real]],notional_term,C_UKEq_detail[[#This Row],[annuity_lcy]]) -> 165449193.1 | U8: =INDEX(I_PPP[],MATCH(C_UKEq_detail[[#This Row],[country]],I_PPP[country],0), MATCH(TEXT(C_UKEq_detail[[#This Row],[award_year]], "#"),I_PPP[#Headers],0)) -> 8.509281 | V8: =INDEX(I_PPP[],MATCH("United Kingdom",I_PPP[country],0), MATCH(TEXT(C_UKEq_detail[[#This Row],[award_year]], "#"),I_PPP[#Headers],0)) -> 0.667418 | W8: =C_UKEq_detail[[#This Row],[lsv_norm_lcy]]*C_UKEq_detail[[#This Row],[ppp_gbp]]/C_UKEq_detail[[#This Row],[ppp_lcy]] -> 12976862.51 | X8: =eff_cpi_uk/SUMIFS(I_CPI_UK[index],I_CPI_UK[month],TEXT(C_UKEq_detail[[#This Row],[award_date]],"YYYY MMM")) -> 1.016666667 | Y8: =C_UKEq_detail[[#This Row],[lsv_norm_gbp]]*C_UKEq_detail[[#This Row],[cpi_factor]] -> 13193143.55 | Z8: =INDEX(I_Population[], MATCH(C_UKEq_detail[[#This Row],[country]], I_Population[country], 0), MATCH(TEXT(C_UKEq_detail[[#This Row],[award_year]],"#"), I_Population[#Headers], 0)) -> 10536632 | AA8: =eff_pop_uk/C_UKEq_detail[[#This Row],[population]] -> 6.486892586 | AB8: =C_UKEq_detail[[#This Row],[lsv_real_gbp]]*C_UKEq_detail[[#This Row],[pop_factor]] -> 85582505.06
A9: Sweden-2023 Sep-2100 | B9: Sweden | C9: 2023-09-21 | D9: Hi3G Access | E9: 40 | F9: 25 | G9: SEK | H9: 190468456 | I9: 0 | J9: 2026-01-01 | K9: 2023 | L9: 0.0199 | M9: nat | N9: 0.01801410382 | O9: nat | P9: 833 | Q9: =C_UKEq_detail[[#This Row],[headline_price]]-PV(C_UKEq_detail[[#This Row],[cod_pretax_nom]]-cod_liquidity_premium,C_UKEq_detail[[#This Row],[duration_years]],C_UKEq_detail[[#This Row],[alf]])*(1+C_UKEq_detail[[#This Row],[cod_pretax_nom]]-cod_liquidity_premium)^(-YEARFRAC(C_UKEq_detail[[#This Row],[award_date]], C_UKEq_detail[[#This Row],[award_date]]+C_UKEq_detail[[#This Row],[delay_days]])*delay_adj*(C_UKEq_detail[[#This Row],[delay_days]]>delay_threshold)) -> 190468456 | R9: =C_UKEq_detail[[#This Row],[lf_pv_lcy]]*(1+C_UKEq_detail[[#This Row],[wacc_posttax_real]])^(YEARFRAC(C_UKEq_detail[[#This Row],[award_date]],C_UKEq_detail[[#This Row],[award_date]]+C_UKEq_detail[[#This Row],[delay_days]])*delay_adj*(C_UKEq_detail[[#This Row],[delay_days]]>delay_threshold)) -> 198373877.8 | S9: =-PMT(C_UKEq_detail[[#This Row],[wacc_posttax_real]],C_UKEq_detail[[#This Row],[duration_years]],C_UKEq_detail[[#This Row],[lsv_lcy]]) -> 9925456.195 | T9: =-PV(C_UKEq_detail[[#This Row],[wacc_posttax_real]],notional_term,C_UKEq_detail[[#This Row],[annuity_lcy]]) -> 165449193.1 | U9: =INDEX(I_PPP[],MATCH(C_UKEq_detail[[#This Row],[country]],I_PPP[country],0), MATCH(TEXT(C_UKEq_detail[[#This Row],[award_year]], "#"),I_PPP[#Headers],0)) -> 8.509281 | V9: =INDEX(I_PPP[],MATCH("United Kingdom",I_PPP[country],0), MATCH(TEXT(C_UKEq_detail[[#This Row],[award_year]], "#"),I_PPP[#Headers],0)) -> 0.667418 | W9: =C_UKEq_detail[[#This Row],[lsv_norm_lcy]]*C_UKEq_detail[[#This Row],[ppp_gbp]]/C_UKEq_detail[[#This Row],[ppp_lcy]] -> 12976862.51 | X9: =eff_cpi_uk/SUMIFS(I_CPI_UK[index],I_CPI_UK[month],TEXT(C_UKEq_detail[[#This Row],[award_date]],"YYYY MMM")) -> 1.016666667 | Y9: =C_UKEq_detail[[#This Row],[lsv_norm_gbp]]*C_UKEq_detail[[#This Row],[cpi_factor]] -> 13193143.55 | Z9: =INDEX(I_Population[], MATCH(C_UKEq_detail[[#This Row],[country]], I_Population[country], 0), MATCH(TEXT(C_UKEq_detail[[#This Row],[award_year]],"#"), I_Population[#Headers], 0)) -> 10536632 | AA9: =eff_pop_uk/C_UKEq_detail[[#This Row],[population]] -> 6.486892586 | AB9: =C_UKEq_detail[[#This Row],[lsv_real_gbp]]*C_UKEq_detail[[#This Row],[pop_factor]] -> 85582505.06
A10: Sweden-2023 Sep-2100 | B10: Sweden | C10: 2023-09-21 | D10: Net4Mobility | E10: 40 | F10: 25 | G10: SEK | H10: 190468456 | I10: 0 | J10: 2026-01-01 | K10: 2023 | L10: 0.0199 | M10: nat | N10: 0.01801410382 | O10: nat | P10: 833 | Q10: =C_UKEq_detail[[#This Row],[headline_price]]-PV(C_UKEq_detail[[#This Row],[cod_pretax_nom]]-cod_liquidity_premium,C_UKEq_detail[[#This Row],[duration_years]],C_UKEq_detail[[#This Row],[alf]])*(1+C_UKEq_detail[[#This Row],[cod_pretax_nom]]-cod_liquidity_premium)^(-YEARFRAC(C_UKEq_detail[[#This Row],[award_date]], C_UKEq_detail[[#This Row],[award_date]]+C_UKEq_detail[[#This Row],[delay_days]])*delay_adj*(C_UKEq_detail[[#This Row],[delay_days]]>delay_threshold)) -> 190468456 | R10: =C_UKEq_detail[[#This Row],[lf_pv_lcy]]*(1+C_UKEq_detail[[#This Row],[wacc_posttax_real]])^(YEARFRAC(C_UKEq_detail[[#This Row],[award_date]],C_UKEq_detail[[#This Row],[award_date]]+C_UKEq_detail[[#This Row],[delay_days]])*delay_adj*(C_UKEq_detail[[#This Row],[delay_days]]>delay_threshold)) -> 198373877.8 | S10: =-PMT(C_UKEq_detail[[#This Row],[wacc_posttax_real]],C_UKEq_detail[[#This Row],[duration_years]],C_UKEq_detail[[#This Row],[lsv_lcy]]) -> 9925456.195 | T10: =-PV(C_UKEq_detail[[#This Row],[wacc_posttax_real]],notional_term,C_UKEq_detail[[#This Row],[annuity_lcy]]) -> 165449193.1 | U10: =INDEX(I_PPP[],MATCH(C_UKEq_detail[[#This Row],[country]],I_PPP[country],0), MATCH(TEXT(C_UKEq_detail[[#This Row],[award_year]], "#"),I_PPP[#Headers],0)) -> 8.509281 | V10: =INDEX(I_PPP[],MATCH("United Kingdom",I_PPP[country],0), MATCH(TEXT(C_UKEq_detail[[#This Row],[award_year]], "#"),I_PPP[#Headers],0)) -> 0.667418 | W10: =C_UKEq_detail[[#This Row],[lsv_norm_lcy]]*C_UKEq_detail[[#This Row],[ppp_gbp]]/C_UKEq_detail[[#This Row],[ppp_lcy]] -> 12976862.51 | X10: =eff_cpi_uk/SUMIFS(I_CPI_UK[index],I_CPI_UK[month],TEXT(C_UKEq_detail[[#This Row],[award_date]],"YYYY MMM")) -> 1.016666667 | Y10: =C_UKEq_detail[[#This Row],[lsv_norm_gbp]]*C_UKEq_detail[[#This Row],[cpi_factor]] -> 13193143.55 | Z10: =INDEX(I_Population[], MATCH(C_UKEq_detail[[#This Row],[country]], I_Population[country], 0), MATCH(TEXT(C_UKEq_detail[[#This Row],[award_year]],"#"), I_Population[#Headers], 0)) -> 10536632 | AA10: =eff_pop_uk/C_UKEq_detail[[#This Row],[population]] -> 6.486892586 | AB10: =C_UKEq_detail[[#This Row],[lsv_real_gbp]]*C_UKEq_detail[[#This Row],[pop_factor]] -> 85582505.06
A11: Sweden-2023 Sep-2600FDD | B11: Sweden | C11: 2023-09-21 | D11: Telia Sweden | E11: 60 | F11: 25 | G11: SEK | H11: 528815766 | I11: 1977908.4 | J11: 2026-01-01 | K11: 2023 | L11: 0.0199 | M11: nat | N11: 0.01801410382 | O11: nat | P11: 833 | Q11: =C_UKEq_detail[[#This Row],[headline_price]]-PV(C_UKEq_detail[[#This Row],[cod_pretax_nom]]-cod_liquidity_premium,C_UKEq_detail[[#This Row],[duration_years]],C_UKEq_detail[[#This Row],[alf]])*(1+C_UKEq_detail[[#This Row],[cod_pretax_nom]]-cod_liquidity_premium)^(-YEARFRAC(C_UKEq_detail[[#This Row],[award_date]], C_UKEq_detail[[#This Row],[award_date]]+C_UKEq_detail[[#This Row],[delay_days]])*delay_adj*(C_UKEq_detail[[#This Row],[delay_days]]>delay_threshold)) -> 567374027.4 | R11: =C_UKEq_detail[[#This Row],[lf_pv_lcy]]*(1+C_UKEq_detail[[#This Row],[wacc_posttax_real]])^(YEARFRAC(C_UKEq_detail[[#This Row],[award_date]],C_UKEq_detail[[#This Row],[award_date]]+C_UKEq_detail[[#This Row],[delay_days]])*delay_adj*(C_UKEq_detail[[#This Row],[delay_days]]>delay_threshold)) -> 590922971.4 | S11: =-PMT(C_UKEq_detail[[#This Row],[wacc_posttax_real]],C_UKEq_detail[[#This Row],[duration_years]],C_UKEq_detail[[#This Row],[lsv_lcy]]) -> 29566292.36 | T11: =-PV(C_UKEq_detail[[#This Row],[wacc_posttax_real]],notional_term,C_UKEq_detail[[#This Row],[annuity_lcy]]) -> 492845781.4 | U11: =INDEX(I_PPP[],MATCH(C_UKEq_detail[[#This Row],[country]],I_PPP[country],0), MATCH(TEXT(C_UKEq_detail[[#This Row],[award_year]], "#"),I_PPP[#Headers],0)) -> 8.509281 | V11: =INDEX(I_PPP[],MATCH("United Kingdom",I_PPP[country],0), MATCH(TEXT(C_UKEq_detail[[#This Row],[award_year]], "#"),I_PPP[#Headers],0)) -> 0.667418 | W11: =C_UKEq_detail[[#This Row],[lsv_norm_lcy]]*C_UKEq_detail[[#This Row],[ppp_gbp]]/C_UKEq_detail[[#This Row],[ppp_lcy]] -> 38655927.06 | X11: =eff_cpi_uk/SUMIFS(I_CPI_UK[index],I_CPI_UK[month],TEXT(C_UKEq_detail[[#This Row],[award_date]],"YYYY MMM")) -> 1.016666667 | Y11: =C_UKEq_detail[[#This Row],[lsv_norm_gbp]]*C_UKEq_detail[[#This Row],[cpi_factor]] -> 39300192.52 | Z11: =INDEX(I_Population[], MATCH(C_UKEq_detail[[#This Row],[country]], I_Population[country], 0), MATCH(TEXT(C_UKEq_detail[[#This Row],[award_year]],"#"), I_Population[#Headers], 0)) -> 10536632 | AA11: =eff_pop_uk/C_UKEq_detail[[#This Row],[population]] -> 6.486892586 | AB11: =C_UKEq_detail[[#This Row],[lsv_real_gbp]]*C_UKEq_detail[[#This Row],[pop_factor]] -> 254936127.4
A12: Sweden-2023 Sep-2600FDD | B12: Sweden | C12: 2023-09-21 | D12: Hi3G Access | E12: 20 | F12: 25 | G12: SEK | H12: 176271922 | I12: 659302.8 | J12: 2026-01-01 | K12: 2023 | L12: 0.0199 | M12: nat | N12: 0.01801410382 | O12: nat | P12: 833 | Q12: =C_UKEq_detail[[#This Row],[headline_price]]-PV(C_UKEq_detail[[#This Row],[cod_pretax_nom]]-cod_liquidity_premium,C_UKEq_detail[[#This Row],[duration_years]],C_UKEq_detail[[#This Row],[alf]])*(1+C_UKEq_detail[[#This Row],[cod_pretax_nom]]-cod_liquidity_premium)^(-YEARFRAC(C_UKEq_detail[[#This Row],[award_date]], C_UKEq_detail[[#This Row],[award_date]]+C_UKEq_detail[[#This Row],[delay_days]])*delay_adj*(C_UKEq_detail[[#This Row],[delay_days]]>delay_threshold)) -> 189124675.8 | R12: =C_UKEq_detail[[#This Row],[lf_pv_lcy]]*(1+C_UKEq_detail[[#This Row],[wacc_posttax_real]])^(YEARFRAC(C_UKEq_detail[[#This Row],[award_date]],C_UKEq_detail[[#This Row],[award_date]]+C_UKEq_detail[[#This Row],[delay_days]])*delay_adj*(C_UKEq_detail[[#This Row],[delay_days]]>delay_threshold)) -> 196974323.8 | S12: =-PMT(C_UKEq_detail[[#This Row],[wacc_posttax_real]],C_UKEq_detail[[#This Row],[duration_years]],C_UKEq_detail[[#This Row],[lsv_lcy]]) -> 9855430.787 | T12: =-PV(C_UKEq_detail[[#This Row],[wacc_posttax_real]],notional_term,C_UKEq_detail[[#This Row],[annuity_lcy]]) -> 164281927.1 | U12: =INDEX(I_PPP[],MATCH(C_UKEq_detail[[#This Row],[country]],I_PPP[country],0), MATCH(TEXT(C_UKEq_detail[[#This Row],[award_year]], "#"),I_PPP[#Headers],0)) -> 8.509281 | V12: =INDEX(I_PPP[],MATCH("United Kingdom",I_PPP[country],0), MATCH(TEXT(C_UKEq_detail[[#This Row],[award_year]], "#"),I_PPP[#Headers],0)) -> 0.667418 | W12: =C_UKEq_detail[[#This Row],[lsv_norm_lcy]]*C_UKEq_detail[[#This Row],[ppp_gbp]]/C_UKEq_detail[[#This Row],[ppp_lcy]] -> 12885309.02 | X12: =eff_cpi_uk/SUMIFS(I_CPI_UK[index],I_CPI_UK[month],TEXT(C_UKEq_detail[[#This Row],[award_date]],"YYYY MMM")) -> 1.016666667 | Y12: =C_UKEq_detail[[#This Row],[lsv_norm_gbp]]*C_UKEq_detail[[#This Row],[cpi_factor]] -> 13100064.17 | Z12: =INDEX(I_Population[], MATCH(C_UKEq_detail[[#This Row],[country]], I_Population[country], 0), MATCH(TEXT(C_UKEq_detail[[#This Row],[award_year]],"#"), I_Population[#Headers], 0)) -> 10536632 | AA12: =eff_pop_uk/C_UKEq_detail[[#This Row],[population]] -> 6.486892586 | AB12: =C_UKEq_detail[[#This Row],[lsv_real_gbp]]*C_UKEq_detail[[#This Row],[pop_factor]] -> 84978709.15
A13: Sweden-2023 Sep-2600FDD | B13: Sweden | C13: 2023-09-21 | D13: Net4Mobility | E13: 60 | F13: 25 | G13: SEK | H13: 528815766 | I13: 1977908.4 | J13: 2026-01-01 | K13: 2023 | L13: 0.0199 | M13: nat | N13: 0.01801410382 | O13: nat | P13: 833 | Q13: =C_UKEq_detail[[#This Row],[headline_price]]-PV(C_UKEq_detail[[#This Row],[cod_pretax_nom]]-cod_liquidity_premium,C_UKEq_detail[[#This Row],[duration_years]],C_UKEq_detail[[#This Row],[alf]])*(1+C_UKEq_detail[[#This Row],[cod_pretax_nom]]-cod_liquidity_premium)^(-YEARFRAC(C_UKEq_detail[[#This Row],[award_date]], C_UKEq_detail[[#This Row],[award_date]]+C_UKEq_detail[[#This Row],[delay_days]])*delay_adj*(C_UKEq_detail[[#This Row],[delay_days]]>delay_threshold)) -> 567374027.4 | R13: =C_UKEq_detail[[#This Row],[lf_pv_lcy]]*(1+C_UKEq_detail[[#This Row],[wacc_posttax_real]])^(YEARFRAC(C_UKEq_detail[[#This Row],[award_date]],C_UKEq_detail[[#This Row],[award_date]]+C_UKEq_detail[[#This Row],[delay_days]])*delay_adj*(C_UKEq_detail[[#This Row],[delay_days]]>delay_threshold)) -> 590922971.4 | S13: =-PMT(C_UKEq_detail[[#This Row],[wacc_posttax_real]],C_UKEq_detail[[#This Row],[duration_years]],C_UKEq_detail[[#This Row],[lsv_lcy]]) -> 29566292.36 | T13: =-PV(C_UKEq_detail[[#This Row],[wacc_posttax_real]],notional_term,C_UKEq_detail[[#This Row],[annuity_lcy]]) -> 492845781.4 | U13: =INDEX(I_PPP[],MATCH(C_UKEq_detail[[#This Row],[country]],I_PPP[country],0), MATCH(TEXT(C_UKEq_detail[[#This Row],[award_year]], "#"),I_PPP[#Headers],0)) -> 8.509281 | V13: =INDEX(I_PPP[],MATCH("United Kingdom",I_PPP[country],0), MATCH(TEXT(C_UKEq_detail[[#This Row],[award_year]], "#"),I_PPP[#Headers],0)) -> 0.667418 | W13: =C_UKEq_detail[[#This Row],[lsv_norm_lcy]]*C_UKEq_detail[[#This Row],[ppp_gbp]]/C_UKEq_detail[[#This Row],[ppp_lcy]] -> 38655927.06 | X13: =eff_cpi_uk/SUMIFS(I_CPI_UK[index],I_CPI_UK[month],TEXT(C_UKEq_detail[[#This Row],[award_date]],"YYYY MMM")) -> 1.016666667 | Y13: =C_UKEq_detail[[#This Row],[lsv_norm_gbp]]*C_UKEq_detail[[#This Row],[cpi_factor]] -> 39300192.52 | Z13: =INDEX(I_Population[], MATCH(C_UKEq_detail[[#This Row],[country]], I_Population[country], 0), MATCH(TEXT(C_UKEq_detail[[#This Row],[award_year]],"#"), I_Population[#Headers], 0)) -> 10536632 | AA13: =eff_pop_uk/C_UKEq_detail[[#This Row],[population]] -> 6.486892586 | AB13: =C_UKEq_detail[[#This Row],[lsv_real_gbp]]*C_UKEq_detail[[#This Row],[pop_factor]] -> 254936127.4
A14: Croatia-2023 Mar-800 | B14: Croatia | C14: 2023-03-08 | D14: A1 Hrvatska | E14: 20 | F14: 15 | G14: EUR | H14: 19600000 | I14: 0 | J14: 2024-10-18 | K14: 2023 | L14: 0.0274 | M14: nat | N14: 0.02096180215 | O14: nat | P14: 590 | Q14: =C_UKEq_detail[[#This Row],[headline_price]]-PV(C_UKEq_detail[[#This Row],[cod_pretax_nom]]-cod_liquidity_premium,C_UKEq_detail[[#This Row],[duration_years]],C_UKEq_detail[[#This Row],[alf]])*(1+C_UKEq_detail[[#This Row],[cod_pretax_nom]]-cod_liquidity_premium)^(-YEARFRAC(C_UKEq_detail[[#This Row],[award_date]], C_UKEq_detail[[#This Row],[award_date]]+C_UKEq_detail[[#This Row],[delay_days]])*delay_adj*(C_UKEq_detail[[#This Row],[delay_days]]>delay_threshold)) -> 19600000 | R14: =C_UKEq_detail[[#This Row],[lf_pv_lcy]]*(1+C_UKEq_detail[[#This Row],[wacc_posttax_real]])^(YEARFRAC(C_UKEq_detail[[#This Row],[award_date]],C_UKEq_detail[[#This Row],[award_date]]+C_UKEq_detail[[#This Row],[delay_days]])*delay_adj*(C_UKEq_detail[[#This Row],[delay_days]]>delay_threshold)) -> 20266155.33 | S14: =-PMT(C_UKEq_detail[[#This Row],[wacc_posttax_real]],C_UKEq_detail[[#This Row],[duration_years]],C_UKEq_detail[[#This Row],[lsv_lcy]]) -> 1588594.453 | T14: =-PV(C_UKEq_detail[[#This Row],[wacc_posttax_real]],notional_term,C_UKEq_detail[[#This Row],[annuity_lcy]]) -> 25736302.9 | U14: =INDEX(I_PPP[],MATCH(C_UKEq_detail[[#This Row],[country]],I_PPP[country],0), MATCH(TEXT(C_UKEq_detail[[#This Row],[award_year]], "#"),I_PPP[#Headers],0)) -> 0.432290263 | V14: =INDEX(I_PPP[],MATCH("United Kingdom",I_PPP[country],0), MATCH(TEXT(C_UKEq_detail[[#This Row],[award_year]], "#"),I_PPP[#Headers],0)) -> 0.667418 | W14: =C_UKEq_detail[[#This Row],[lsv_norm_lcy]]*C_UKEq_detail[[#This Row],[ppp_gbp]]/C_UKEq_detail[[#This Row],[ppp_lcy]] -> 39734579.46 | X14: =eff_cpi_uk/SUMIFS(I_CPI_UK[index],I_CPI_UK[month],TEXT(C_UKEq_detail[[#This Row],[award_date]],"YYYY MMM")) -> 1.041117145 | Y14: =C_UKEq_detail[[#This Row],[lsv_norm_gbp]]*C_UKEq_detail[[#This Row],[cpi_factor]] -> 41368351.93 | Z14: =INDEX(I_Population[], MATCH(C_UKEq_detail[[#This Row],[country]], I_Population[country], 0), MATCH(TEXT(C_UKEq_detail[[#This Row],[award_year]],"#"), I_Population[#Headers], 0)) -> 3853200 | AA14: =eff_pop_uk/C_UKEq_detail[[#This Row],[population]] -> 17.73850306 | AB14: =C_UKEq_detail[[#This Row],[lsv_real_gbp]]*C_UKEq_detail[[#This Row],[pop_factor]] -> 733812637.4
A15: Croatia-2023 Mar-800 | B15: Croatia | C15: 2023-03-08 | D15: Hrvatski Telekom | E15: 20 | F15: 15 | G15: EUR | H15: 19616011 | I15: 0 | J15: 2024-10-18 | K15: 2023 | L15: 0.0274 | M15: nat | N15: 0.02096180215 | O15: nat | P15: 590 | Q15: =C_UKEq_detail[[#This Row],[headline_price]]-PV(C_UKEq_detail[[#This Row],[cod_pretax_nom]]-cod_liquidity_premium,C_UKEq_detail[[#This Row],[duration_years]],C_UKEq_detail[[#This Row],[alf]])*(1+C_UKEq_detail[[#This Row],[cod_pretax_nom]]-cod_liquidity_premium)^(-YEARFRAC(C_UKEq_detail[[#This Row],[award_date]], C_UKEq_detail[[#This Row],[award_date]]+C_UKEq_detail[[#This Row],[delay_days]])*delay_adj*(C_UKEq_detail[[#This Row],[delay_days]]>delay_threshold)) -> 19616011 | R15: =C_UKEq_detail[[#This Row],[lf_pv_lcy]]*(1+C_UKEq_detail[[#This Row],[wacc_posttax_real]])^(YEARFRAC(C_UKEq_detail[[#This Row],[award_date]],C_UKEq_detail[[#This Row],[award_date]]+C_UKEq_detail[[#This Row],[delay_days]])*delay_adj*(C_UKEq_detail[[#This Row],[delay_days]]>delay_threshold)) -> 20282710.51 | S15: =-PMT(C_UKEq_detail[[#This Row],[wacc_posttax_real]],C_UKEq_detail[[#This Row],[duration_years]],C_UKEq_detail[[#This Row],[lsv_lcy]]) -> 1589892.157 | T15: =-PV(C_UKEq_detail[[#This Row],[wacc_posttax_real]],notional_term,C_UKEq_detail[[#This Row],[annuity_lcy]]) -> 25757326.57 | U15: =INDEX(I_PPP[],MATCH(C_UKEq_detail[[#This Row],[country]],I_PPP[country],0), MATCH(TEXT(C_UKEq_detail[[#This Row],[award_year]], "#"),I_PPP[#Headers],0)) -> 0.432290263 | V15: =INDEX(I_PPP[],MATCH("United Kingdom",I_PPP[country],0), MATCH(TEXT(C_UKEq_detail[[#This Row],[award_year]], "#"),I_PPP[#Headers],0)) -> 0.667418 | W15: =C_UKEq_detail[[#This Row],[lsv_norm_lcy]]*C_UKEq_detail[[#This Row],[ppp_gbp]]/C_UKEq_detail[[#This Row],[ppp_lcy]] -> 39767038.16 | X15: =eff_cpi_uk/SUMIFS(I_CPI_UK[index],I_CPI_UK[month],TEXT(C_UKEq_detail[[#This Row],[award_date]],"YYYY MMM")) -> 1.041117145 | Y15: =C_UKEq_detail[[#This Row],[lsv_norm_gbp]]*C_UKEq_detail[[#This Row],[cpi_factor]] -> 41402145.23 | Z15: =INDEX(I_Population[], MATCH(C_UKEq_detail[[#This Row],[country]], I_Population[country], 0), MATCH(TEXT(C_UKEq_detail[[#This Row],[award_year]],"#"), I_Population[#Headers], 0)) -> 3853200 | AA15: =eff_pop_uk/C_UKEq_detail[[#This Row],[population]] -> 17.73850306 | AB15: =C_UKEq_detail[[#This Row],[lsv_real_gbp]]*C_UKEq_detail[[#This Row],[pop_factor]] -> 734412080
A16: Croatia-2023 Mar-800 | B16: Croatia | C16: 2023-03-08 | D16: Telemach Hrvatska | E16: 20 | F16: 15 | G16: EUR | H16: 20011011 | I16: 0 | J16: 2024-10-18 | K16: 2023 | L16: 0.0274 | M16: nat | N16: 0.02096180215 | O16: nat | P16: 590 | Q16: =C_UKEq_detail[[#This Row],[headline_price]]-PV(C_UKEq_detail[[#This Row],[cod_pretax_nom]]-cod_liquidity_premium,C_UKEq_detail[[#This Row],[duration_years]],C_UKEq_detail[[#This Row],[alf]])*(1+C_UKEq_detail[[#This Row],[cod_pretax_nom]]-cod_liquidity_premium)^(-YEARFRAC(C_UKEq_detail[[#This Row],[award_date]], C_UKEq_detail[[#This Row],[award_date]]+C_UKEq_detail[[#This Row],[delay_days]])*delay_adj*(C_UKEq_detail[[#This Row],[delay_days]]>delay_threshold)) -> 20011011 | R16: =C_UKEq_detail[[#This Row],[lf_pv_lcy]]*(1+C_UKEq_detail[[#This Row],[wacc_posttax_real]])^(YEARFRAC(C_UKEq_detail[[#This Row],[award_date]],C_UKEq_detail[[#This Row],[award_date]]+C_UKEq_detail[[#This Row],[delay_days]])*delay_adj*(C_UKEq_detail[[#This Row],[delay_days]]>delay_threshold)) -> 20691135.58 | S16: =-PMT(C_UKEq_detail[[#This Row],[wacc_posttax_real]],C_UKEq_detail[[#This Row],[duration_years]],C_UKEq_detail[[#This Row],[lsv_lcy]]) -> 1621907.198 | T16: =-PV(C_UKEq_detail[[#This Row],[wacc_posttax_real]],notional_term,C_UKEq_detail[[#This Row],[annuity_lcy]]) -> 26275991.86 | U16: =INDEX(I_PPP[],MATCH(C_UKEq_detail[[#This Row],[country]],I_PPP[country],0), MATCH(TEXT(C_UKEq_detail[[#This Row],[award_year]], "#"),I_PPP[#Headers],0)) -> 0.432290263 | V16: =INDEX(I_PPP[],MATCH("United Kingdom",I_PPP[country],0), MATCH(TEXT(C_UKEq_detail[[#This Row],[award_year]], "#"),I_PPP[#Headers],0)) -> 0.667418 | W16: =C_UKEq_detail[[#This Row],[lsv_norm_lcy]]*C_UKEq_detail[[#This Row],[ppp_gbp]]/C_UKEq_detail[[#This Row],[ppp_lcy]] -> 40567811.57 | X16: =eff_cpi_uk/SUMIFS(I_CPI_UK[index],I_CPI_UK[month],TEXT(C_UKEq_detail[[#This Row],[award_date]],"YYYY MMM")) -> 1.041117145 | Y16: =C_UKEq_detail[[#This Row],[lsv_norm_gbp]]*C_UKEq_detail[[#This Row],[cpi_factor]] -> 42235844.16 | Z16: =INDEX(I_Population[], MATCH(C_UKEq_detail[[#This Row],[country]], I_Population[country], 0), MATCH(TEXT(C_UKEq_detail[[#This Row],[award_year]],"#"), I_Population[#Headers], 0)) -> 3853200 | AA16: =eff_pop_uk/C_UKEq_detail[[#This Row],[population]] -> 17.73850306 | AB16: =C_UKEq_detail[[#This Row],[lsv_real_gbp]]*C_UKEq_detail[[#This Row],[pop_factor]] -> 749200651
A17: Croatia-2023 Mar-900 | B17: Croatia | C17: 2023-03-08 | D17: A1 Hrvatska | E17: 30 | F17: 15 | G17: EUR | H17: 28840000 | I17: 0 | J17: 2024-10-18 | K17: 2023 | L17: 0.0274 | M17: nat | N17: 0.02096180215 | O17: nat | P17: 590 | Q17: =C_UKEq_detail[[#This Row],[headline_price]]-PV(C_UKEq_detail[[#This Row],[cod_pretax_nom]]-cod_liquidity_premium,C_UKEq_detail[[#This Row],[duration_years]],C_UKEq_detail[[#This Row],[alf]])*(1+C_UKEq_detail[[#This Row],[cod_pretax_nom]]-cod_liquidity_premium)^(-YEARFRAC(C_UKEq_detail[[#This Row],[award_date]], C_UKEq_detail[[#This Row],[award_date]]+C_UKEq_detail[[#This Row],[delay_days]])*delay_adj*(C_UKEq_detail[[#This Row],[delay_days]]>delay_threshold)) -> 28840000 | R17: =C_UKEq_detail[[#This Row],[lf_pv_lcy]]*(1+C_UKEq_detail[[#This Row],[wacc_posttax_real]])^(YEARFRAC(C_UKEq_detail[[#This Row],[award_date]],C_UKEq_detail[[#This Row],[award_date]]+C_UKEq_detail[[#This Row],[delay_days]])*delay_adj*(C_UKEq_detail[[#This Row],[delay_days]]>delay_threshold)) -> 29820199.99 | S17: =-PMT(C_UKEq_detail[[#This Row],[wacc_posttax_real]],C_UKEq_detail[[#This Row],[duration_years]],C_UKEq_detail[[#This Row],[lsv_lcy]]) -> 2337503.267 | T17: =-PV(C_UKEq_detail[[#This Row],[wacc_posttax_real]],notional_term,C_UKEq_detail[[#This Row],[annuity_lcy]]) -> 37869131.41 | U17: =INDEX(I_PPP[],MATCH(C_UKEq_detail[[#This Row],[country]],I_PPP[country],0), MATCH(TEXT(C_UKEq_detail[[#This Row],[award_year]], "#"),I_PPP[#Headers],0)) -> 0.432290263 | V17: =INDEX(I_PPP[],MATCH("United Kingdom",I_PPP[country],0), MATCH(TEXT(C_UKEq_detail[[#This Row],[award_year]], "#"),I_PPP[#Headers],0)) -> 0.667418 | W17: =C_UKEq_detail[[#This Row],[lsv_norm_lcy]]*C_UKEq_detail[[#This Row],[ppp_gbp]]/C_UKEq_detail[[#This Row],[ppp_lcy]] -> 58466595.5 | X17: =eff_cpi_uk/SUMIFS(I_CPI_UK[index],I_CPI_UK[month],TEXT(C_UKEq_detail[[#This Row],[award_date]],"YYYY MMM")) -> 1.041117145 | Y17: =C_UKEq_detail[[#This Row],[lsv_norm_gbp]]*C_UKEq_detail[[#This Row],[cpi_factor]] -> 60870574.99 | Z17: =INDEX(I_Population[], MATCH(C_UKEq_detail[[#This Row],[country]], I_Population[country], 0), MATCH(TEXT(C_UKEq_detail[[#This Row],[award_year]],"#"), I_Population[#Headers], 0)) -> 3853200 | AA17: =eff_pop_uk/C_UKEq_detail[[#This Row],[population]] -> 17.73850306 | AB17: =C_UKEq_detail[[#This Row],[lsv_real_gbp]]*C_UKEq_detail[[#This Row],[pop_factor]] -> 1079752881
A18: Croatia-2023 Mar-900 | B18: Croatia | C18: 2023-03-08 | D18: Hrvatski Telekom | E18: 30 | F18: 15 | G18: EUR | H18: 28840202.5 | I18: 0 | J18: 2024-10-18 | K18: 2023 | L18: 0.0274 | M18: nat | N18: 0.02096180215 | O18: nat | P18: 590 | Q18: =C_UKEq_detail[[#This Row],[headline_price]]-PV(C_UKEq_detail[[#This Row],[cod_pretax_nom]]-cod_liquidity_premium,C_UKEq_detail[[#This Row],[duration_years]],C_UKEq_detail[[#This Row],[alf]])*(1+C_UKEq_detail[[#This Row],[cod_pretax_nom]]-cod_liquidity_premium)^(-YEARFRAC(C_UKEq_detail[[#This Row],[award_date]], C_UKEq_detail[[#This Row],[award_date]]+C_UKEq_detail[[#This Row],[delay_days]])*delay_adj*(C_UKEq_detail[[#This Row],[delay_days]]>delay_threshold)) -> 28840202.5 | R18: =C_UKEq_detail[[#This Row],[lf_pv_lcy]]*(1+C_UKEq_detail[[#This Row],[wacc_posttax_real]])^(YEARFRAC(C_UKEq_detail[[#This Row],[award_date]],C_UKEq_detail[[#This Row],[award_date]]+C_UKEq_detail[[#This Row],[delay_days]])*delay_adj*(C_UKEq_detail[[#This Row],[delay_days]]>delay_threshold)) -> 29820409.37 | S18: =-PMT(C_UKEq_detail[[#This Row],[wacc_posttax_real]],C_UKEq_detail[[#This Row],[duration_years]],C_UKEq_detail[[#This Row],[lsv_lcy]]) -> 2337519.68 | T18: =-PV(C_UKEq_detail[[#This Row],[wacc_posttax_real]],notional_term,C_UKEq_detail[[#This Row],[annuity_lcy]]) -> 37869397.3 | U18: =INDEX(I_PPP[],MATCH(C_UKEq_detail[[#This Row],[country]],I_PPP[country],0), MATCH(TEXT(C_UKEq_detail[[#This Row],[award_year]], "#"),I_PPP[#Headers],0)) -> 0.432290263 | V18: =INDEX(I_PPP[],MATCH("United Kingdom",I_PPP[country],0), MATCH(TEXT(C_UKEq_detail[[#This Row],[award_year]], "#"),I_PPP[#Headers],0)) -> 0.667418 | W18: =C_UKEq_detail[[#This Row],[lsv_norm_lcy]]*C_UKEq_detail[[#This Row],[ppp_gbp]]/C_UKEq_detail[[#This Row],[ppp_lcy]] -> 58467006.02 | X18: =eff_cpi_uk/SUMIFS(I_CPI_UK[index],I_CPI_UK[month],TEXT(C_UKEq_detail[[#This Row],[award_date]],"YYYY MMM")) -> 1.041117145 | Y18: =C_UKEq_detail[[#This Row],[lsv_norm_gbp]]*C_UKEq_detail[[#This Row],[cpi_factor]] -> 60871002.39 | Z18: =INDEX(I_Population[], MATCH(C_UKEq_detail[[#This Row],[country]], I_Population[country], 0), MATCH(TEXT(C_UKEq_detail[[#This Row],[award_year]],"#"), I_Population[#Headers], 0)) -> 3853200 | AA18: =eff_pop_uk/C_UKEq_detail[[#This Row],[population]] -> 17.73850306 | AB18: =C_UKEq_detail[[#This Row],[lsv_real_gbp]]*C_UKEq_detail[[#This Row],[pop_factor]] -> 1079760462
A19: Croatia-2023 Mar-900 | B19: Croatia | C19: 2023-03-08 | D19: Telemach Hrvatska | E19: 10 | F19: 15 | G19: EUR | H19: 9520200.5 | I19: 0 | J19: 2024-10-18 | K19: 2023 | L19: 0.0274 | M19: nat | N19: 0.02096180215 | O19: nat | P19: 590 | Q19: =C_UKEq_detail[[#This Row],[headline_price]]-PV(C_UKEq_detail[[#This Row],[cod_pretax_nom]]-cod_liquidity_premium,C_UKEq_detail[[#This Row],[duration_years]],C_UKEq_detail[[#This Row],[alf]])*(1+C_UKEq_detail[[#This Row],[cod_pretax_nom]]-cod_liquidity_premium)^(-YEARFRAC(C_UKEq_detail[[#This Row],[award_date]], C_UKEq_detail[[#This Row],[award_date]]+C_UKEq_detail[[#This Row],[delay_days]])*delay_adj*(C_UKEq_detail[[#This Row],[delay_days]]>delay_threshold)) -> 9520200.5 | R19: =C_UKEq_detail[[#This Row],[lf_pv_lcy]]*(1+C_UKEq_detail[[#This Row],[wacc_posttax_real]])^(YEARFRAC(C_UKEq_detail[[#This Row],[award_date]],C_UKEq_detail[[#This Row],[award_date]]+C_UKEq_detail[[#This Row],[delay_days]])*delay_adj*(C_UKEq_detail[[#This Row],[delay_days]]>delay_threshold)) -> 9843768.476 | S19: =-PMT(C_UKEq_detail[[#This Row],[wacc_posttax_real]],C_UKEq_detail[[#This Row],[duration_years]],C_UKEq_detail[[#This Row],[lsv_lcy]]) -> 771619.2709 | T19: =-PV(C_UKEq_detail[[#This Row],[wacc_posttax_real]],notional_term,C_UKEq_detail[[#This Row],[annuity_lcy]]) -> 12500753.25 | U19: =INDEX(I_PPP[],MATCH(C_UKEq_detail[[#This Row],[country]],I_PPP[country],0), MATCH(TEXT(C_UKEq_detail[[#This Row],[award_year]], "#"),I_PPP[#Headers],0)) -> 0.432290263 | V19: =INDEX(I_PPP[],MATCH("United Kingdom",I_PPP[country],0), MATCH(TEXT(C_UKEq_detail[[#This Row],[award_year]], "#"),I_PPP[#Headers],0)) -> 0.667418 | W19: =C_UKEq_detail[[#This Row],[lsv_norm_lcy]]*C_UKEq_detail[[#This Row],[ppp_gbp]]/C_UKEq_detail[[#This Row],[ppp_lcy]] -> 19300059.35 | X19: =eff_cpi_uk/SUMIFS(I_CPI_UK[index],I_CPI_UK[month],TEXT(C_UKEq_detail[[#This Row],[award_date]],"YYYY MMM")) -> 1.041117145 | Y19: =C_UKEq_detail[[#This Row],[lsv_norm_gbp]]*C_UKEq_detail[[#This Row],[cpi_factor]] -> 20093622.69 | Z19: =INDEX(I_Population[], MATCH(C_UKEq_detail[[#This Row],[country]], I_Population[country], 0), MATCH(TEXT(C_UKEq_detail[[#This Row],[award_year]],"#"), I_Population[#Headers], 0)) -> 3853200 | AA19: =eff_pop_uk/C_UKEq_detail[[#This Row],[population]] -> 17.73850306 | AB19: =C_UKEq_detail[[#This Row],[lsv_real_gbp]]*C_UKEq_detail[[#This Row],[pop_factor]] -> 356430787.6
A20: Croatia-2023 Mar-1800 | B20: Croatia | C20: 2023-03-08 | D20: A1 Hrvatska | E20: 50 | F20: 15 | G20: EUR | H20: 27340000 | I20: 0 | J20: 2024-10-18 | K20: 2023 | L20: 0.0274 | M20: nat | N20: 0.02096180215 | O20: nat | P20: 590 | Q20: =C_UKEq_detail[[#This Row],[headline_price]]-PV(C_UKEq_detail[[#This Row],[cod_pretax_nom]]-cod_liquidity_premium,C_UKEq_detail[[#This Row],[duration_years]],C_UKEq_detail[[#This Row],[alf]])*(1+C_UKEq_detail[[#This Row],[cod_pretax_nom]]-cod_liquidity_premium)^(-YEARFRAC(C_UKEq_detail[[#This Row],[award_date]], C_UKEq_detail[[#This Row],[award_date]]+C_UKEq_detail[[#This Row],[delay_days]])*delay_adj*(C_UKEq_detail[[#This Row],[delay_days]]>delay_threshold)) -> 27340000 | R20: =C_UKEq_detail[[#This Row],[lf_pv_lcy]]*(1+C_UKEq_detail[[#This Row],[wacc_posttax_real]])^(YEARFRAC(C_UKEq_detail[[#This Row],[award_date]],C_UKEq_detail[[#This Row],[award_date]]+C_UKEq_detail[[#This Row],[delay_days]])*delay_adj*(C_UKEq_detail[[#This Row],[delay_days]]>delay_threshold)) -> 28269218.71 | S20: =-PMT(C_UKEq_detail[[#This Row],[wacc_posttax_real]],C_UKEq_detail[[#This Row],[duration_years]],C_UKEq_detail[[#This Row],[lsv_lcy]]) -> 2215927.161 | T20: =-PV(C_UKEq_detail[[#This Row],[wacc_posttax_real]],notional_term,C_UKEq_detail[[#This Row],[annuity_lcy]]) -> 35899516.39 | U20: =INDEX(I_PPP[],MATCH(C_UKEq_detail[[#This Row],[country]],I_PPP[country],0), MATCH(TEXT(C_UKEq_detail[[#This Row],[award_year]], "#"),I_PPP[#Headers],0)) -> 0.432290263 | V20: =INDEX(I_PPP[],MATCH("United Kingdom",I_PPP[country],0), MATCH(TEXT(C_UKEq_detail[[#This Row],[award_year]], "#"),I_PPP[#Headers],0)) -> 0.667418 | W20: =C_UKEq_detail[[#This Row],[lsv_norm_lcy]]*C_UKEq_detail[[#This Row],[ppp_gbp]]/C_UKEq_detail[[#This Row],[ppp_lcy]] -> 55425683.8 | X20: =eff_cpi_uk/SUMIFS(I_CPI_UK[index],I_CPI_UK[month],TEXT(C_UKEq_detail[[#This Row],[award_date]],"YYYY MMM")) -> 1.041117145 | Y20: =C_UKEq_detail[[#This Row],[lsv_norm_gbp]]*C_UKEq_detail[[#This Row],[cpi_factor]] -> 57704629.69 | Z20: =INDEX(I_Population[], MATCH(C_UKEq_detail[[#This Row],[country]], I_Population[country], 0), MATCH(TEXT(C_UKEq_detail[[#This Row],[award_year]],"#"), I_Population[#Headers], 0)) -> 3853200 | AA20: =eff_pop_uk/C_UKEq_detail[[#This Row],[population]] -> 17.73850306 | AB20: =C_UKEq_detail[[#This Row],[lsv_real_gbp]]*C_UKEq_detail[[#This Row],[pop_factor]] -> 1023593750
A21: Croatia-2023 Mar-1800 | B21: Croatia | C21: 2023-03-08 | D21: Hrvatski Telekom | E21: 60 | F21: 15 | G21: EUR | H21: 33020385 | I21: 0 | J21: 2024-10-18 | K21: 2023 | L21: 0.0274 | M21: nat | N21: 0.02096180215 | O21: nat | P21: 590 | Q21: =C_UKEq_detail[[#This Row],[headline_price]]-PV(C_UKEq_detail[[#This Row],[cod_pretax_nom]]-cod_liquidity_premium,C_UKEq_detail[[#This Row],[duration_years]],C_UKEq_detail[[#This Row],[alf]])*(1+C_UKEq_detail[[#This Row],[cod_pretax_nom]]-cod_liquidity_premium)^(-YEARFRAC(C_UKEq_detail[[#This Row],[award_date]], C_UKEq_detail[[#This Row],[award_date]]+C_UKEq_detail[[#This Row],[delay_days]])*delay_adj*(C_UKEq_detail[[#This Row],[delay_days]]>delay_threshold)) -> 33020385 | R21: =C_UKEq_detail[[#This Row],[lf_pv_lcy]]*(1+C_UKEq_detail[[#This Row],[wacc_posttax_real]])^(YEARFRAC(C_UKEq_detail[[#This Row],[award_date]],C_UKEq_detail[[#This Row],[award_date]]+C_UKEq_detail[[#This Row],[delay_days]])*delay_adj*(C_UKEq_detail[[#This Row],[delay_days]]>delay_threshold)) -> 34142665.9 | S21: =-PMT(C_UKEq_detail[[#This Row],[wacc_posttax_real]],C_UKEq_detail[[#This Row],[duration_years]],C_UKEq_detail[[#This Row],[lsv_lcy]]) -> 2676326.554 | T21: =-PV(C_UKEq_detail[[#This Row],[wacc_posttax_real]],notional_term,C_UKEq_detail[[#This Row],[annuity_lcy]]) -> 43358297.46 | U21: =INDEX(I_PPP[],MATCH(C_UKEq_detail[[#This Row],[country]],I_PPP[country],0), MATCH(TEXT(C_UKEq_detail[[#This Row],[award_year]], "#"),I_PPP[#Headers],0)) -> 0.432290263 | V21: =INDEX(I_PPP[],MATCH("United Kingdom",I_PPP[country],0), MATCH(TEXT(C_UKEq_detail[[#This Row],[award_year]], "#"),I_PPP[#Headers],0)) -> 0.667418 | W21: =C_UKEq_detail[[#This Row],[lsv_norm_lcy]]*C_UKEq_detail[[#This Row],[ppp_gbp]]/C_UKEq_detail[[#This Row],[ppp_lcy]] -> 66941383.25 | X21: =eff_cpi_uk/SUMIFS(I_CPI_UK[index],I_CPI_UK[month],TEXT(C_UKEq_detail[[#This Row],[award_date]],"YYYY MMM")) -> 1.041117145 | Y21: =C_UKEq_detail[[#This Row],[lsv_norm_gbp]]*C_UKEq_detail[[#This Row],[cpi_factor]] -> 69693821.82 | Z21: =INDEX(I_Population[], MATCH(C_UKEq_detail[[#This Row],[country]], I_Population[country], 0), MATCH(TEXT(C_UKEq_detail[[#This Row],[award_year]],"#"), I_Population[#Headers], 0)) -> 3853200 | AA21: =eff_pop_uk/C_UKEq_detail[[#This Row],[population]] -> 17.73850306 | AB21: =C_UKEq_detail[[#This Row],[lsv_real_gbp]]*C_UKEq_detail[[#This Row],[pop_factor]] -> 1236264072
A22: Croatia-2023 Mar-2100 | B22: Croatia | C22: 2023-03-08 | D22: A1 Hrvatska | E22: 30 | F22: 15 | G22: EUR | H22: 30000000 | I22: 0 | J22: 2024-10-18 | K22: 2023 | L22: 0.0274 | M22: nat | N22: 0.02096180215 | O22: nat | P22: 590 | Q22: =C_UKEq_detail[[#This Row],[headline_price]]-PV(C_UKEq_detail[[#This Row],[cod_pretax_nom]]-cod_liquidity_premium,C_UKEq_detail[[#This Row],[duration_years]],C_UKEq_detail[[#This Row],[alf]])*(1+C_UKEq_detail[[#This Row],[cod_pretax_nom]]-cod_liquidity_premium)^(-YEARFRAC(C_UKEq_detail[[#This Row],[award_date]], C_UKEq_detail[[#This Row],[award_date]]+C_UKEq_detail[[#This Row],[delay_days]])*delay_adj*(C_UKEq_detail[[#This Row],[delay_days]]>delay_threshold)) -> 30000000 | R22: =C_UKEq_detail[[#This Row],[lf_pv_lcy]]*(1+C_UKEq_detail[[#This Row],[wacc_posttax_real]])^(YEARFRAC(C_UKEq_detail[[#This Row],[award_date]],C_UKEq_detail[[#This Row],[award_date]]+C_UKEq_detail[[#This Row],[delay_days]])*delay_adj*(C_UKEq_detail[[#This Row],[delay_days]]>delay_threshold)) -> 31019625.51 | S22: =-PMT(C_UKEq_detail[[#This Row],[wacc_posttax_real]],C_UKEq_detail[[#This Row],[duration_years]],C_UKEq_detail[[#This Row],[lsv_lcy]]) -> 2431522.123 | T22: =-PV(C_UKEq_detail[[#This Row],[wacc_posttax_real]],notional_term,C_UKEq_detail[[#This Row],[annuity_lcy]]) -> 39392300.35 | U22: =INDEX(I_PPP[],MATCH(C_UKEq_detail[[#This Row],[country]],I_PPP[country],0), MATCH(TEXT(C_UKEq_detail[[#This Row],[award_year]], "#"),I_PPP[#Headers],0)) -> 0.432290263 | V22: =INDEX(I_PPP[],MATCH("United Kingdom",I_PPP[country],0), MATCH(TEXT(C_UKEq_detail[[#This Row],[award_year]], "#"),I_PPP[#Headers],0)) -> 0.667418 | W22: =C_UKEq_detail[[#This Row],[lsv_norm_lcy]]*C_UKEq_detail[[#This Row],[ppp_gbp]]/C_UKEq_detail[[#This Row],[ppp_lcy]] -> 60818233.87 | X22: =eff_cpi_uk/SUMIFS(I_CPI_UK[index],I_CPI_UK[month],TEXT(C_UKEq_detail[[#This Row],[award_date]],"YYYY MMM")) -> 1.041117145 | Y22: =C_UKEq_detail[[#This Row],[lsv_norm_gbp]]*C_UKEq_detail[[#This Row],[cpi_factor]] -> 63318906.02 | Z22: =INDEX(I_Population[], MATCH(C_UKEq_detail[[#This Row],[country]], I_Population[country], 0), MATCH(TEXT(C_UKEq_detail[[#This Row],[award_year]],"#"), I_Population[#Headers], 0)) -> 3853200 | AA22: =eff_pop_uk/C_UKEq_detail[[#This Row],[population]] -> 17.73850306 | AB22: =C_UKEq_detail[[#This Row],[lsv_real_gbp]]*C_UKEq_detail[[#This Row],[pop_factor]] -> 1123182608
A23: Croatia-2023 Mar-2100 | B23: Croatia | C23: 2023-03-08 | D23: Hrvatski Telekom | E23: 50 | F23: 15 | G23: EUR | H23: 50240000 | I23: 0 | J23: 2024-10-18 | K23: 2023 | L23: 0.0274 | M23: nat | N23: 0.02096180215 | O23: nat | P23: 590 | Q23: =C_UKEq_detail[[#This Row],[headline_price]]-PV(C_UKEq_detail[[#This Row],[cod_pretax_nom]]-cod_liquidity_premium,C_UKEq_detail[[#This Row],[duration_years]],C_UKEq_detail[[#This Row],[alf]])*(1+C_UKEq_detail[[#This Row],[cod_pretax_nom]]-cod_liquidity_premium)^(-YEARFRAC(C_UKEq_detail[[#This Row],[award_date]], C_UKEq_detail[[#This Row],[award_date]]+C_UKEq_detail[[#This Row],[delay_days]])*delay_adj*(C_UKEq_detail[[#This Row],[delay_days]]>delay_threshold)) -> 50240000 | R23: =C_UKEq_detail[[#This Row],[lf_pv_lcy]]*(1+C_UKEq_detail[[#This Row],[wacc_posttax_real]])^(YEARFRAC(C_UKEq_detail[[#This Row],[award_date]],C_UKEq_detail[[#This Row],[award_date]]+C_UKEq_detail[[#This Row],[delay_days]])*delay_adj*(C_UKEq_detail[[#This Row],[delay_days]]>delay_threshold)) -> 51947532.85 | S23: =-PMT(C_UKEq_detail[[#This Row],[wacc_posttax_real]],C_UKEq_detail[[#This Row],[duration_years]],C_UKEq_detail[[#This Row],[lsv_lcy]]) -> 4071989.048 | T23: =-PV(C_UKEq_detail[[#This Row],[wacc_posttax_real]],notional_term,C_UKEq_detail[[#This Row],[annuity_lcy]]) -> 65968972.32 | U23: =INDEX(I_PPP[],MATCH(C_UKEq_detail[[#This Row],[country]],I_PPP[country],0), MATCH(TEXT(C_UKEq_detail[[#This Row],[award_year]], "#"),I_PPP[#Headers],0)) -> 0.432290263 | V23: =INDEX(I_PPP[],MATCH("United Kingdom",I_PPP[country],0), MATCH(TEXT(C_UKEq_detail[[#This Row],[award_year]], "#"),I_PPP[#Headers],0)) -> 0.667418 | W23: =C_UKEq_detail[[#This Row],[lsv_norm_lcy]]*C_UKEq_detail[[#This Row],[ppp_gbp]]/C_UKEq_detail[[#This Row],[ppp_lcy]] -> 101850269 | X23: =eff_cpi_uk/SUMIFS(I_CPI_UK[index],I_CPI_UK[month],TEXT(C_UKEq_detail[[#This Row],[award_date]],"YYYY MMM")) -> 1.041117145 | Y23: =C_UKEq_detail[[#This Row],[lsv_norm_gbp]]*C_UKEq_detail[[#This Row],[cpi_factor]] -> 106038061.3 | Z23: =INDEX(I_Population[], MATCH(C_UKEq_detail[[#This Row],[country]], I_Population[country], 0), MATCH(TEXT(C_UKEq_detail[[#This Row],[award_year]],"#"), I_Population[#Headers], 0)) -> 3853200 | AA23: =eff_pop_uk/C_UKEq_detail[[#This Row],[population]] -> 17.73850306 | AB23: =C_UKEq_detail[[#This Row],[lsv_real_gbp]]*C_UKEq_detail[[#This Row],[pop_factor]] -> 1880956475
A24: Croatia-2023 Mar-2100 | B24: Croatia | C24: 2023-03-08 | D24: Telemach Hrvatska | E24: 40 | F24: 15 | G24: EUR | H24: 40162883 | I24: 0 | J24: 2024-10-18 | K24: 2023 | L24: 0.0274 | M24: nat | N24: 0.02096180215 | O24: nat | P24: 590 | Q24: =C_UKEq_detail[[#This Row],[headline_price]]-PV(C_UKEq_detail[[#This Row],[cod_pretax_nom]]-cod_liquidity_premium,C_UKEq_detail[[#This Row],[duration_years]],C_UKEq_detail[[#This Row],[alf]])*(1+C_UKEq_detail[[#This Row],[cod_pretax_nom]]-cod_liquidity_premium)^(-YEARFRAC(C_UKEq_detail[[#This Row],[award_date]], C_UKEq_detail[[#This Row],[award_date]]+C_UKEq_detail[[#This Row],[delay_days]])*delay_adj*(C_UKEq_detail[[#This Row],[delay_days]]>delay_threshold)) -> 40162883 | R24: =C_UKEq_detail[[#This Row],[lf_pv_lcy]]*(1+C_UKEq_detail[[#This Row],[wacc_posttax_real]])^(YEARFRAC(C_UKEq_detail[[#This Row],[award_date]],C_UKEq_detail[[#This Row],[award_date]]+C_UKEq_detail[[#This Row],[delay_days]])*delay_adj*(C_UKEq_detail[[#This Row],[delay_days]]>delay_threshold)) -> 41527919.67 | S24: =-PMT(C_UKEq_detail[[#This Row],[wacc_posttax_real]],C_UKEq_detail[[#This Row],[duration_years]],C_UKEq_detail[[#This Row],[lsv_lcy]]) -> 3255231.284 | T24: =-PV(C_UKEq_detail[[#This Row],[wacc_posttax_real]],notional_term,C_UKEq_detail[[#This Row],[annuity_lcy]]) -> 52736945.01 | U24: =INDEX(I_PPP[],MATCH(C_UKEq_detail[[#This Row],[country]],I_PPP[country],0), MATCH(TEXT(C_UKEq_detail[[#This Row],[award_year]], "#"),I_PPP[#Headers],0)) -> 0.432290263 | V24: =INDEX(I_PPP[],MATCH("United Kingdom",I_PPP[country],0), MATCH(TEXT(C_UKEq_detail[[#This Row],[award_year]], "#"),I_PPP[#Headers],0)) -> 0.667418 | W24: =C_UKEq_detail[[#This Row],[lsv_norm_lcy]]*C_UKEq_detail[[#This Row],[ppp_gbp]]/C_UKEq_detail[[#This Row],[ppp_lcy]] -> 81421187.05 | X24: =eff_cpi_uk/SUMIFS(I_CPI_UK[index],I_CPI_UK[month],TEXT(C_UKEq_detail[[#This Row],[award_date]],"YYYY MMM")) -> 1.041117145 | Y24: =C_UKEq_detail[[#This Row],[lsv_norm_gbp]]*C_UKEq_detail[[#This Row],[cpi_factor]] -> 84768993.81 | Z24: =INDEX(I_Population[], MATCH(C_UKEq_detail[[#This Row],[country]], I_Population[country], 0), MATCH(TEXT(C_UKEq_detail[[#This Row],[award_year]],"#"), I_Population[#Headers], 0)) -> 3853200 | AA24: =eff_pop_uk/C_UKEq_detail[[#This Row],[population]] -> 17.73850306 | AB24: =C_UKEq_detail[[#This Row],[lsv_real_gbp]]*C_UKEq_detail[[#This Row],[pop_factor]] -> 1503675056
A25: Croatia-2023 Mar-2600FDD | B25: Croatia | C25: 2023-03-08 | D25: A1 Hrvatska | E25: 50 | F25: 15 | G25: EUR | H25: 3500000 | I25: 0 | J25: 2024-10-18 | K25: 2023 | L25: 0.0274 | M25: nat | N25: 0.02096180215 | O25: nat | P25: 590 | Q25: =C_UKEq_detail[[#This Row],[headline_price]]-PV(C_UKEq_detail[[#This Row],[cod_pretax_nom]]-cod_liquidity_premium,C_UKEq_detail[[#This Row],[duration_years]],C_UKEq_detail[[#This Row],[alf]])*(1+C_UKEq_detail[[#This Row],[cod_pretax_nom]]-cod_liquidity_premium)^(-YEARFRAC(C_UKEq_detail[[#This Row],[award_date]], C_UKEq_detail[[#This Row],[award_date]]+C_UKEq_detail[[#This Row],[delay_days]])*delay_adj*(C_UKEq_detail[[#This Row],[delay_days]]>delay_threshold)) -> 3500000 | R25: =C_UKEq_detail[[#This Row],[lf_pv_lcy]]*(1+C_UKEq_detail[[#This Row],[wacc_posttax_real]])^(YEARFRAC(C_UKEq_detail[[#This Row],[award_date]],C_UKEq_detail[[#This Row],[award_date]]+C_UKEq_detail[[#This Row],[delay_days]])*delay_adj*(C_UKEq_detail[[#This Row],[delay_days]]>delay_threshold)) -> 3618956.309 | S25: =-PMT(C_UKEq_detail[[#This Row],[wacc_posttax_real]],C_UKEq_detail[[#This Row],[duration_years]],C_UKEq_detail[[#This Row],[lsv_lcy]]) -> 283677.581 | T25: =-PV(C_UKEq_detail[[#This Row],[wacc_posttax_real]],notional_term,C_UKEq_detail[[#This Row],[annuity_lcy]]) -> 4595768.374 | U25: =INDEX(I_PPP[],MATCH(C_UKEq_detail[[#This Row],[country]],I_PPP[country],0), MATCH(TEXT(C_UKEq_detail[[#This Row],[award_year]], "#"),I_PPP[#Headers],0)) -> 0.432290263 | V25: =INDEX(I_PPP[],MATCH("United Kingdom",I_PPP[country],0), MATCH(TEXT(C_UKEq_detail[[#This Row],[award_year]], "#"),I_PPP[#Headers],0)) -> 0.667418 | W25: =C_UKEq_detail[[#This Row],[lsv_norm_lcy]]*C_UKEq_detail[[#This Row],[ppp_gbp]]/C_UKEq_detail[[#This Row],[ppp_lcy]] -> 7095460.619 | X25: =eff_cpi_uk/SUMIFS(I_CPI_UK[index],I_CPI_UK[month],TEXT(C_UKEq_detail[[#This Row],[award_date]],"YYYY MMM")) -> 1.041117145 | Y25: =C_UKEq_detail[[#This Row],[lsv_norm_gbp]]*C_UKEq_detail[[#This Row],[cpi_factor]] -> 7387205.702 | Z25: =INDEX(I_Population[], MATCH(C_UKEq_detail[[#This Row],[country]], I_Population[country], 0), MATCH(TEXT(C_UKEq_detail[[#This Row],[award_year]],"#"), I_Population[#Headers], 0)) -> 3853200 | AA25: =eff_pop_uk/C_UKEq_detail[[#This Row],[population]] -> 17.73850306 | AB25: =C_UKEq_detail[[#This Row],[lsv_real_gbp]]*C_UKEq_detail[[#This Row],[pop_factor]] -> 131037971
A26: Croatia-2023 Mar-2600FDD | B26: Croatia | C26: 2023-03-08 | D26: Hrvatski Telekom | E26: 50 | F26: 15 | G26: EUR | H26: 3598000 | I26: 0 | J26: 2024-10-18 | K26: 2023 | L26: 0.0274 | M26: nat | N26: 0.02096180215 | O26: nat | P26: 590 | Q26: =C_UKEq_detail[[#This Row],[headline_price]]-PV(C_UKEq_detail[[#This Row],[cod_pretax_nom]]-cod_liquidity_premium,C_UKEq_detail[[#This Row],[duration_years]],C_UKEq_detail[[#This Row],[alf]])*(1+C_UKEq_detail[[#This Row],[cod_pretax_nom]]-cod_liquidity_premium)^(-YEARFRAC(C_UKEq_detail[[#This Row],[award_date]], C_UKEq_detail[[#This Row],[award_date]]+C_UKEq_detail[[#This Row],[delay_days]])*delay_adj*(C_UKEq_detail[[#This Row],[delay_days]]>delay_threshold)) -> 3598000 | R26: =C_UKEq_detail[[#This Row],[lf_pv_lcy]]*(1+C_UKEq_detail[[#This Row],[wacc_posttax_real]])^(YEARFRAC(C_UKEq_detail[[#This Row],[award_date]],C_UKEq_detail[[#This Row],[award_date]]+C_UKEq_detail[[#This Row],[delay_days]])*delay_adj*(C_UKEq_detail[[#This Row],[delay_days]]>delay_threshold)) -> 3720287.086 | S26: =-PMT(C_UKEq_detail[[#This Row],[wacc_posttax_real]],C_UKEq_detail[[#This Row],[duration_years]],C_UKEq_detail[[#This Row],[lsv_lcy]]) -> 291620.5532 | T26: =-PV(C_UKEq_detail[[#This Row],[wacc_posttax_real]],notional_term,C_UKEq_detail[[#This Row],[annuity_lcy]]) -> 4724449.889 | U26: =INDEX(I_PPP[],MATCH(C_UKEq_detail[[#This Row],[country]],I_PPP[country],0), MATCH(TEXT(C_UKEq_detail[[#This Row],[award_year]], "#"),I_PPP[#Headers],0)) -> 0.432290263 | V26: =INDEX(I_PPP[],MATCH("United Kingdom",I_PPP[country],0), MATCH(TEXT(C_UKEq_detail[[#This Row],[award_year]], "#"),I_PPP[#Headers],0)) -> 0.667418 | W26: =C_UKEq_detail[[#This Row],[lsv_norm_lcy]]*C_UKEq_detail[[#This Row],[ppp_gbp]]/C_UKEq_detail[[#This Row],[ppp_lcy]] -> 7294133.516 | X26: =eff_cpi_uk/SUMIFS(I_CPI_UK[index],I_CPI_UK[month],TEXT(C_UKEq_detail[[#This Row],[award_date]],"YYYY MMM")) -> 1.041117145 | Y26: =C_UKEq_detail[[#This Row],[lsv_norm_gbp]]*C_UKEq_detail[[#This Row],[cpi_factor]] -> 7594047.462 | Z26: =INDEX(I_Population[], MATCH(C_UKEq_detail[[#This Row],[country]], I_Population[country], 0), MATCH(TEXT(C_UKEq_detail[[#This Row],[award_year]],"#"), I_Population[#Headers], 0)) -> 3853200 | AA26: =eff_pop_uk/C_UKEq_detail[[#This Row],[population]] -> 17.73850306 | AB26: =C_UKEq_detail[[#This Row],[lsv_real_gbp]]*C_UKEq_detail[[#This Row],[pop_factor]] -> 134707034.2
A27: Croatia-2023 Mar-2600FDD | B27: Croatia | C27: 2023-03-08 | D27: Telemach Hrvatska | E27: 40 | F27: 15 | G27: EUR | H27: 2800000 | I27: 0 | J27: 2024-10-18 | K27: 2023 | L27: 0.0274 | M27: nat | N27: 0.02096180215 | O27: nat | P27: 590 | Q27: =C_UKEq_detail[[#This Row],[headline_price]]-PV(C_UKEq_detail[[#This Row],[cod_pretax_nom]]-cod_liquidity_premium,C_UKEq_detail[[#This Row],[duration_years]],C_UKEq_detail[[#This Row],[alf]])*(1+C_UKEq_detail[[#This Row],[cod_pretax_nom]]-cod_liquidity_premium)^(-YEARFRAC(C_UKEq_detail[[#This Row],[award_date]], C_UKEq_detail[[#This Row],[award_date]]+C_UKEq_detail[[#This Row],[delay_days]])*delay_adj*(C_UKEq_detail[[#This Row],[delay_days]]>delay_threshold)) -> 2800000 | R27: =C_UKEq_detail[[#This Row],[lf_pv_lcy]]*(1+C_UKEq_detail[[#This Row],[wacc_posttax_real]])^(YEARFRAC(C_UKEq_detail[[#This Row],[award_date]],C_UKEq_detail[[#This Row],[award_date]]+C_UKEq_detail[[#This Row],[delay_days]])*delay_adj*(C_UKEq_detail[[#This Row],[delay_days]]>delay_threshold)) -> 2895165.048 | S27: =-PMT(C_UKEq_detail[[#This Row],[wacc_posttax_real]],C_UKEq_detail[[#This Row],[duration_years]],C_UKEq_detail[[#This Row],[lsv_lcy]]) -> 226942.0648 | T27: =-PV(C_UKEq_detail[[#This Row],[wacc_posttax_real]],notional_term,C_UKEq_detail[[#This Row],[annuity_lcy]]) -> 3676614.7 | U27: =INDEX(I_PPP[],MATCH(C_UKEq_detail[[#This Row],[country]],I_PPP[country],0), MATCH(TEXT(C_UKEq_detail[[#This Row],[award_year]], "#"),I_PPP[#Headers],0)) -> 0.432290263 | V27: =INDEX(I_PPP[],MATCH("United Kingdom",I_PPP[country],0), MATCH(TEXT(C_UKEq_detail[[#This Row],[award_year]], "#"),I_PPP[#Headers],0)) -> 0.667418 | W27: =C_UKEq_detail[[#This Row],[lsv_norm_lcy]]*C_UKEq_detail[[#This Row],[ppp_gbp]]/C_UKEq_detail[[#This Row],[ppp_lcy]] -> 5676368.495 | X27: =eff_cpi_uk/SUMIFS(I_CPI_UK[index],I_CPI_UK[month],TEXT(C_UKEq_detail[[#This Row],[award_date]],"YYYY MMM")) -> 1.041117145 | Y27: =C_UKEq_detail[[#This Row],[lsv_norm_gbp]]*C_UKEq_detail[[#This Row],[cpi_factor]] -> 5909764.562 | Z27: =INDEX(I_Population[], MATCH(C_UKEq_detail[[#This Row],[country]], I_Population[country], 0), MATCH(TEXT(C_UKEq_detail[[#This Row],[award_year]],"#"), I_Population[#Headers], 0)) -> 3853200 | AA27: =eff_pop_uk/C_UKEq_detail[[#This Row],[population]] -> 17.73850306 | AB27: =C_UKEq_detail[[#This Row],[lsv_real_gbp]]*C_UKEq_detail[[#This Row],[pop_factor]] -> 104830376.8
A28: Belgium-2022 Jun-700 | B28: Belgium | C28: 2022-06-20 | D28: Orange Belgium | E28: 20 | F28: 20 | G28: EUR | H28: 122860000 | I28: 2040000 | J28: 2022-09-01 | K28: 2022 | L28: 0.0225 | M28: nat | N28: 0.03477356181 | O28: nat | P28: 73 | Q28: =C_UKEq_detail[[#This Row],[headline_price]]-PV(C_UKEq_detail[[#This Row],[cod_pretax_nom]]-cod_liquidity_premium,C_UKEq_detail[[#This Row],[duration_years]],C_UKEq_detail[[#This Row],[alf]])*(1+C_UKEq_detail[[#This Row],[cod_pretax_nom]]-cod_liquidity_premium)^(-YEARFRAC(C_UKEq_detail[[#This Row],[award_date]], C_UKEq_detail[[#This Row],[award_date]]+C_UKEq_detail[[#This Row],[delay_days]])*delay_adj*(C_UKEq_detail[[#This Row],[delay_days]]>delay_threshold)) -> 156378437.3 | R28: =C_UKEq_detail[[#This Row],[lf_pv_lcy]]*(1+C_UKEq_detail[[#This Row],[wacc_posttax_real]])^(YEARFRAC(C_UKEq_detail[[#This Row],[award_date]],C_UKEq_detail[[#This Row],[award_date]]+C_UKEq_detail[[#This Row],[delay_days]])*delay_adj*(C_UKEq_detail[[#This Row],[delay_days]]>delay_threshold)) -> 156378437.3 | S28: =-PMT(C_UKEq_detail[[#This Row],[wacc_posttax_real]],C_UKEq_detail[[#This Row],[duration_years]],C_UKEq_detail[[#This Row],[lsv_lcy]]) -> 10980423.31 | T28: =-PV(C_UKEq_detail[[#This Row],[wacc_posttax_real]],notional_term,C_UKEq_detail[[#This Row],[annuity_lcy]]) -> 156378437.3 | U28: =INDEX(I_PPP[],MATCH(C_UKEq_detail[[#This Row],[country]],I_PPP[country],0), MATCH(TEXT(C_UKEq_detail[[#This Row],[award_year]], "#"),I_PPP[#Headers],0)) -> 0.694643 | V28: =INDEX(I_PPP[],MATCH("United Kingdom",I_PPP[country],0), MATCH(TEXT(C_UKEq_detail[[#This Row],[award_year]], "#"),I_PPP[#Headers],0)) -> 0.651256 | W28: =C_UKEq_detail[[#This Row],[lsv_norm_lcy]]*C_UKEq_detail[[#This Row],[ppp_gbp]]/C_UKEq_detail[[#This Row],[ppp_lcy]] -> 146611130.6 | X28: =eff_cpi_uk/SUMIFS(I_CPI_UK[index],I_CPI_UK[month],TEXT(C_UKEq_detail[[#This Row],[award_date]],"YYYY MMM")) -> 1.10180624 | Y28: =C_UKEq_detail[[#This Row],[lsv_norm_gbp]]*C_UKEq_detail[[#This Row],[cpi_factor]] -> 161537058.5 | Z28: =INDEX(I_Population[], MATCH(C_UKEq_detail[[#This Row],[country]], I_Population[country], 0), MATCH(TEXT(C_UKEq_detail[[#This Row],[award_year]],"#"), I_Population[#Headers], 0)) -> 11685814 | AA28: =eff_pop_uk/C_UKEq_detail[[#This Row],[population]] -> 5.848972096 | AB28: =C_UKEq_detail[[#This Row],[lsv_real_gbp]]*C_UKEq_detail[[#This Row],[pop_factor]] -> 944825747.4
A29: Belgium-2022 Jun-700 | B29: Belgium | C29: 2022-06-20 | D29: Proximus | E29: 20 | F29: 20 | G29: EUR | H29: 122870000 | I29: 2040000 | J29: 2022-09-01 | K29: 2022 | L29: 0.0225 | M29: nat | N29: 0.03477356181 | O29: nat | P29: 73 | Q29: =C_UKEq_detail[[#This Row],[headline_price]]-PV(C_UKEq_detail[[#This Row],[cod_pretax_nom]]-cod_liquidity_premium,C_UKEq_detail[[#This Row],[duration_years]],C_UKEq_detail[[#This Row],[alf]])*(1+C_UKEq_detail[[#This Row],[cod_pretax_nom]]-cod_liquidity_premium)^(-YEARFRAC(C_UKEq_detail[[#This Row],[award_date]], C_UKEq_detail[[#This Row],[award_date]]+C_UKEq_detail[[#This Row],[delay_days]])*delay_adj*(C_UKEq_detail[[#This Row],[delay_days]]>delay_threshold)) -> 156388437.3 | R29: =C_UKEq_detail[[#This Row],[lf_pv_lcy]]*(1+C_UKEq_detail[[#This Row],[wacc_posttax_real]])^(YEARFRAC(C_UKEq_detail[[#This Row],[award_date]],C_UKEq_detail[[#This Row],[award_date]]+C_UKEq_detail[[#This Row],[delay_days]])*delay_adj*(C_UKEq_detail[[#This Row],[delay_days]]>delay_threshold)) -> 156388437.3 | S29: =-PMT(C_UKEq_detail[[#This Row],[wacc_posttax_real]],C_UKEq_detail[[#This Row],[duration_years]],C_UKEq_detail[[#This Row],[lsv_lcy]]) -> 10981125.48 | T29: =-PV(C_UKEq_detail[[#This Row],[wacc_posttax_real]],notional_term,C_UKEq_detail[[#This Row],[annuity_lcy]]) -> 156388437.3 | U29: =INDEX(I_PPP[],MATCH(C_UKEq_detail[[#This Row],[country]],I_PPP[country],0), MATCH(TEXT(C_UKEq_detail[[#This Row],[award_year]], "#"),I_PPP[#Headers],0)) -> 0.694643 | V29: =INDEX(I_PPP[],MATCH("United Kingdom",I_PPP[country],0), MATCH(TEXT(C_UKEq_detail[[#This Row],[award_year]], "#"),I_PPP[#Headers],0)) -> 0.651256 | W29: =C_UKEq_detail[[#This Row],[lsv_norm_lcy]]*C_UKEq_detail[[#This Row],[ppp_gbp]]/C_UKEq_detail[[#This Row],[ppp_lcy]] -> 146620506 | X29: =eff_cpi_uk/SUMIFS(I_CPI_UK[index],I_CPI_UK[month],TEXT(C_UKEq_detail[[#This Row],[award_date]],"YYYY MMM")) -> 1.10180624 | Y29: =C_UKEq_detail[[#This Row],[lsv_norm_gbp]]*C_UKEq_detail[[#This Row],[cpi_factor]] -> 161547388.4 | Z29: =INDEX(I_Population[], MATCH(C_UKEq_detail[[#This Row],[country]], I_Population[country], 0), MATCH(TEXT(C_UKEq_detail[[#This Row],[award_year]],"#"), I_Population[#Headers], 0)) -> 11685814 | AA29: =eff_pop_uk/C_UKEq_detail[[#This Row],[population]] -> 5.848972096 | AB29: =C_UKEq_detail[[#This Row],[lsv_real_gbp]]*C_UKEq_detail[[#This Row],[pop_factor]] -> 944886166.6
A30: Belgium-2022 Jun-3500 | B30: Belgium | C30: 2022-06-20 | D30: Citymesh | E30: 50 | F30: 18 | G30: EUR | H30: 30990000 | I30: 560000 | J30: 2022-09-01 | K30: 2022 | L30: 0.0225 | M30: nat | N30: 0.03477356181 | O30: nat | P30: 73 | Q30: =C_UKEq_detail[[#This Row],[headline_price]]-PV(C_UKEq_detail[[#This Row],[cod_pretax_nom]]-cod_liquidity_premium,C_UKEq_detail[[#This Row],[duration_years]],C_UKEq_detail[[#This Row],[alf]])*(1+C_UKEq_detail[[#This Row],[cod_pretax_nom]]-cod_liquidity_premium)^(-YEARFRAC(C_UKEq_detail[[#This Row],[award_date]], C_UKEq_detail[[#This Row],[award_date]]+C_UKEq_detail[[#This Row],[delay_days]])*delay_adj*(C_UKEq_detail[[#This Row],[delay_days]]>delay_threshold)) -> 39422562.83 | R30: =C_UKEq_detail[[#This Row],[lf_pv_lcy]]*(1+C_UKEq_detail[[#This Row],[wacc_posttax_real]])^(YEARFRAC(C_UKEq_detail[[#This Row],[award_date]],C_UKEq_detail[[#This Row],[award_date]]+C_UKEq_detail[[#This Row],[delay_days]])*delay_adj*(C_UKEq_detail[[#This Row],[delay_days]]>delay_threshold)) -> 39422562.83 | S30: =-PMT(C_UKEq_detail[[#This Row],[wacc_posttax_real]],C_UKEq_detail[[#This Row],[duration_years]],C_UKEq_detail[[#This Row],[lsv_lcy]]) -> 2983286.422 | T30: =-PV(C_UKEq_detail[[#This Row],[wacc_posttax_real]],notional_term,C_UKEq_detail[[#This Row],[annuity_lcy]]) -> 42486674.27 | U30: =INDEX(I_PPP[],MATCH(C_UKEq_detail[[#This Row],[country]],I_PPP[country],0), MATCH(TEXT(C_UKEq_detail[[#This Row],[award_year]], "#"),I_PPP[#Headers],0)) -> 0.694643 | V30: =INDEX(I_PPP[],MATCH("United Kingdom",I_PPP[country],0), MATCH(TEXT(C_UKEq_detail[[#This Row],[award_year]], "#"),I_PPP[#Headers],0)) -> 0.651256 | W30: =C_UKEq_detail[[#This Row],[lsv_norm_lcy]]*C_UKEq_detail[[#This Row],[ppp_gbp]]/C_UKEq_detail[[#This Row],[ppp_lcy]] -> 39832981.17 | X30: =eff_cpi_uk/SUMIFS(I_CPI_UK[index],I_CPI_UK[month],TEXT(C_UKEq_detail[[#This Row],[award_date]],"YYYY MMM")) -> 1.10180624 | Y30: =C_UKEq_detail[[#This Row],[lsv_norm_gbp]]*C_UKEq_detail[[#This Row],[cpi_factor]] -> 43888227.2 | Z30: =INDEX(I_Population[], MATCH(C_UKEq_detail[[#This Row],[country]], I_Population[country], 0), MATCH(TEXT(C_UKEq_detail[[#This Row],[award_year]],"#"), I_Population[#Headers], 0)) -> 11685814 | AA30: =eff_pop_uk/C_UKEq_detail[[#This Row],[population]] -> 5.848972096 | AB30: =C_UKEq_detail[[#This Row],[lsv_real_gbp]]*C_UKEq_detail[[#This Row],[pop_factor]] -> 256701016.2
A31: Belgium-2022 Jun-3500 | B31: Belgium | C31: 2022-06-20 | D31: Network Research Belgium | E31: 20 | F31: 18 | G31: EUR | H31: 10970000 | I31: 224000 | J31: 2022-09-01 | K31: 2022 | L31: 0.0225 | M31: nat | N31: 0.03477356181 | O31: nat | P31: 73 | Q31: =C_UKEq_detail[[#This Row],[headline_price]]-PV(C_UKEq_detail[[#This Row],[cod_pretax_nom]]-cod_liquidity_premium,C_UKEq_detail[[#This Row],[duration_years]],C_UKEq_detail[[#This Row],[alf]])*(1+C_UKEq_detail[[#This Row],[cod_pretax_nom]]-cod_liquidity_premium)^(-YEARFRAC(C_UKEq_detail[[#This Row],[award_date]], C_UKEq_detail[[#This Row],[award_date]]+C_UKEq_detail[[#This Row],[delay_days]])*delay_adj*(C_UKEq_detail[[#This Row],[delay_days]]>delay_threshold)) -> 14343025.13 | R31: =C_UKEq_detail[[#This Row],[lf_pv_lcy]]*(1+C_UKEq_detail[[#This Row],[wacc_posttax_real]])^(YEARFRAC(C_UKEq_detail[[#This Row],[award_date]],C_UKEq_detail[[#This Row],[award_date]]+C_UKEq_detail[[#This Row],[delay_days]])*delay_adj*(C_UKEq_detail[[#This Row],[delay_days]]>delay_threshold)) -> 14343025.13 | S31: =-PMT(C_UKEq_detail[[#This Row],[wacc_posttax_real]],C_UKEq_detail[[#This Row],[duration_years]],C_UKEq_detail[[#This Row],[lsv_lcy]]) -> 1085402.598 | T31: =-PV(C_UKEq_detail[[#This Row],[wacc_posttax_real]],notional_term,C_UKEq_detail[[#This Row],[annuity_lcy]]) -> 15457834.12 | U31: =INDEX(I_PPP[],MATCH(C_UKEq_detail[[#This Row],[country]],I_PPP[country],0), MATCH(TEXT(C_UKEq_detail[[#This Row],[award_year]], "#"),I_PPP[#Headers],0)) -> 0.694643 | V31: =INDEX(I_PPP[],MATCH("United Kingdom",I_PPP[country],0), MATCH(TEXT(C_UKEq_detail[[#This Row],[award_year]], "#"),I_PPP[#Headers],0)) -> 0.651256 | W31: =C_UKEq_detail[[#This Row],[lsv_norm_lcy]]*C_UKEq_detail[[#This Row],[ppp_gbp]]/C_UKEq_detail[[#This Row],[ppp_lcy]] -> 14492346.74 | X31: =eff_cpi_uk/SUMIFS(I_CPI_UK[index],I_CPI_UK[month],TEXT(C_UKEq_detail[[#This Row],[award_date]],"YYYY MMM")) -> 1.10180624 | Y31: =C_UKEq_detail[[#This Row],[lsv_norm_gbp]]*C_UKEq_detail[[#This Row],[cpi_factor]] -> 15967758.07 | Z31: =INDEX(I_Population[], MATCH(C_UKEq_detail[[#This Row],[country]], I_Population[country], 0), MATCH(TEXT(C_UKEq_detail[[#This Row],[award_year]],"#"), I_Population[#Headers], 0)) -> 11685814 | AA31: =eff_pop_uk/C_UKEq_detail[[#This Row],[population]] -> 5.848972096 | AB31: =C_UKEq_detail[[#This Row],[lsv_real_gbp]]*C_UKEq_detail[[#This Row],[pop_factor]] -> 93394971.38
A32: Belgium-2022 Jun-3500 | B32: Belgium | C32: 2022-06-20 | D32: Orange Belgium | E32: 100 | F32: 18 | G32: EUR | H32: 54850000 | I32: 1120000 | J32: 2022-09-01 | K32: 2022 | L32: 0.0225 | M32: nat | N32: 0.03477356181 | O32: nat | P32: 73 | Q32: =C_UKEq_detail[[#This Row],[headline_price]]-PV(C_UKEq_detail[[#This Row],[cod_pretax_nom]]-cod_liquidity_premium,C_UKEq_detail[[#This Row],[duration_years]],C_UKEq_detail[[#This Row],[alf]])*(1+C_UKEq_detail[[#This Row],[cod_pretax_nom]]-cod_liquidity_premium)^(-YEARFRAC(C_UKEq_detail[[#This Row],[award_date]], C_UKEq_detail[[#This Row],[award_date]]+C_UKEq_detail[[#This Row],[delay_days]])*delay_adj*(C_UKEq_detail[[#This Row],[delay_days]]>delay_threshold)) -> 71715125.67 | R32: =C_UKEq_detail[[#This Row],[lf_pv_lcy]]*(1+C_UKEq_detail[[#This Row],[wacc_posttax_real]])^(YEARFRAC(C_UKEq_detail[[#This Row],[award_date]],C_UKEq_detail[[#This Row],[award_date]]+C_UKEq_detail[[#This Row],[delay_days]])*delay_adj*(C_UKEq_detail[[#This Row],[delay_days]]>delay_threshold)) -> 71715125.67 | S32: =-PMT(C_UKEq_detail[[#This Row],[wacc_posttax_real]],C_UKEq_detail[[#This Row],[duration_years]],C_UKEq_detail[[#This Row],[lsv_lcy]]) -> 5427012.991 | T32: =-PV(C_UKEq_detail[[#This Row],[wacc_posttax_real]],notional_term,C_UKEq_detail[[#This Row],[annuity_lcy]]) -> 77289170.61 | U32: =INDEX(I_PPP[],MATCH(C_UKEq_detail[[#This Row],[country]],I_PPP[country],0), MATCH(TEXT(C_UKEq_detail[[#This Row],[award_year]], "#"),I_PPP[#Headers],0)) -> 0.694643 | V32: =INDEX(I_PPP[],MATCH("United Kingdom",I_PPP[country],0), MATCH(TEXT(C_UKEq_detail[[#This Row],[award_year]], "#"),I_PPP[#Headers],0)) -> 0.651256 | W32: =C_UKEq_detail[[#This Row],[lsv_norm_lcy]]*C_UKEq_detail[[#This Row],[ppp_gbp]]/C_UKEq_detail[[#This Row],[ppp_lcy]] -> 72461733.72 | X32: =eff_cpi_uk/SUMIFS(I_CPI_UK[index],I_CPI_UK[month],TEXT(C_UKEq_detail[[#This Row],[award_date]],"YYYY MMM")) -> 1.10180624 | Y32: =C_UKEq_detail[[#This Row],[lsv_norm_gbp]]*C_UKEq_detail[[#This Row],[cpi_factor]] -> 79838790.35 | Z32: =INDEX(I_Population[], MATCH(C_UKEq_detail[[#This Row],[country]], I_Population[country], 0), MATCH(TEXT(C_UKEq_detail[[#This Row],[award_year]],"#"), I_Population[#Headers], 0)) -> 11685814 | AA32: =eff_pop_uk/C_UKEq_detail[[#This Row],[population]] -> 5.848972096 | AB32: =C_UKEq_detail[[#This Row],[lsv_real_gbp]]*C_UKEq_detail[[#This Row],[pop_factor]] -> 466974856.9
A33: Belgium-2022 Jun-3500 | B33: Belgium | C33: 2022-06-20 | D33: Proximus | E33: 100 | F33: 18 | G33: EUR | H33: 56320000 | I33: 1120000 | J33: 2022-09-01 | K33: 2022 | L33: 0.0225 | M33: nat | N33: 0.03477356181 | O33: nat | P33: 73 | Q33: =C_UKEq_detail[[#This Row],[headline_price]]-PV(C_UKEq_detail[[#This Row],[cod_pretax_nom]]-cod_liquidity_premium,C_UKEq_detail[[#This Row],[duration_years]],C_UKEq_detail[[#This Row],[alf]])*(1+C_UKEq_detail[[#This Row],[cod_pretax_nom]]-cod_liquidity_premium)^(-YEARFRAC(C_UKEq_detail[[#This Row],[award_date]], C_UKEq_detail[[#This Row],[award_date]]+C_UKEq_detail[[#This Row],[delay_days]])*delay_adj*(C_UKEq_detail[[#This Row],[delay_days]]>delay_threshold)) -> 73185125.67 | R33: =C_UKEq_detail[[#This Row],[lf_pv_lcy]]*(1+C_UKEq_detail[[#This Row],[wacc_posttax_real]])^(YEARFRAC(C_UKEq_detail[[#This Row],[award_date]],C_UKEq_detail[[#This Row],[award_date]]+C_UKEq_detail[[#This Row],[delay_days]])*delay_adj*(C_UKEq_detail[[#This Row],[delay_days]]>delay_threshold)) -> 73185125.67 | S33: =-PMT(C_UKEq_detail[[#This Row],[wacc_posttax_real]],C_UKEq_detail[[#This Row],[duration_years]],C_UKEq_detail[[#This Row],[lsv_lcy]]) -> 5538254.643 | T33: =-PV(C_UKEq_detail[[#This Row],[wacc_posttax_real]],notional_term,C_UKEq_detail[[#This Row],[annuity_lcy]]) -> 78873426.09 | U33: =INDEX(I_PPP[],MATCH(C_UKEq_detail[[#This Row],[country]],I_PPP[country],0), MATCH(TEXT(C_UKEq_detail[[#This Row],[award_year]], "#"),I_PPP[#Headers],0)) -> 0.694643 | V33: =INDEX(I_PPP[],MATCH("United Kingdom",I_PPP[country],0), MATCH(TEXT(C_UKEq_detail[[#This Row],[award_year]], "#"),I_PPP[#Headers],0)) -> 0.651256 | W33: =C_UKEq_detail[[#This Row],[lsv_norm_lcy]]*C_UKEq_detail[[#This Row],[ppp_gbp]]/C_UKEq_detail[[#This Row],[ppp_lcy]] -> 73947037.51 | X33: =eff_cpi_uk/SUMIFS(I_CPI_UK[index],I_CPI_UK[month],TEXT(C_UKEq_detail[[#This Row],[award_date]],"YYYY MMM")) -> 1.10180624 | Y33: =C_UKEq_detail[[#This Row],[lsv_norm_gbp]]*C_UKEq_detail[[#This Row],[cpi_factor]] -> 81475307.34 | Z33: =INDEX(I_Population[], MATCH(C_UKEq_detail[[#This Row],[country]], I_Population[country], 0), MATCH(TEXT(C_UKEq_detail[[#This Row],[award_year]],"#"), I_Population[#Headers], 0)) -> 11685814 | AA33: =eff_pop_uk/C_UKEq_detail[[#This Row],[population]] -> 5.848972096 | AB33: =C_UKEq_detail[[#This Row],[lsv_real_gbp]]*C_UKEq_detail[[#This Row],[pop_factor]] -> 476546799.1
A34: Belgium-2022 Jun-3500 | B34: Belgium | C34: 2022-06-20 | D34: Telenet | E34: 100 | F34: 18 | G34: EUR | H34: 55800000 | I34: 1120000 | J34: 2022-09-01 | K34: 2022 | L34: 0.0225 | M34: nat | N34: 0.03477356181 | O34: nat | P34: 73 | Q34: =C_UKEq_detail[[#This Row],[headline_price]]-PV(C_UKEq_detail[[#This Row],[cod_pretax_nom]]-cod_liquidity_premium,C_UKEq_detail[[#This Row],[duration_years]],C_UKEq_detail[[#This Row],[alf]])*(1+C_UKEq_detail[[#This Row],[cod_pretax_nom]]-cod_liquidity_premium)^(-YEARFRAC(C_UKEq_detail[[#This Row],[award_date]], C_UKEq_detail[[#This Row],[award_date]]+C_UKEq_detail[[#This Row],[delay_days]])*delay_adj*(C_UKEq_detail[[#This Row],[delay_days]]>delay_threshold)) -> 72665125.67 | R34: =C_UKEq_detail[[#This Row],[lf_pv_lcy]]*(1+C_UKEq_detail[[#This Row],[wacc_posttax_real]])^(YEARFRAC(C_UKEq_detail[[#This Row],[award_date]],C_UKEq_detail[[#This Row],[award_date]]+C_UKEq_detail[[#This Row],[delay_days]])*delay_adj*(C_UKEq_detail[[#This Row],[delay_days]]>delay_threshold)) -> 72665125.67 | S34: =-PMT(C_UKEq_detail[[#This Row],[wacc_posttax_real]],C_UKEq_detail[[#This Row],[duration_years]],C_UKEq_detail[[#This Row],[lsv_lcy]]) -> 5498903.855 | T34: =-PV(C_UKEq_detail[[#This Row],[wacc_posttax_real]],notional_term,C_UKEq_detail[[#This Row],[annuity_lcy]]) -> 78313009.18 | U34: =INDEX(I_PPP[],MATCH(C_UKEq_detail[[#This Row],[country]],I_PPP[country],0), MATCH(TEXT(C_UKEq_detail[[#This Row],[award_year]], "#"),I_PPP[#Headers],0)) -> 0.694643 | V34: =INDEX(I_PPP[],MATCH("United Kingdom",I_PPP[country],0), MATCH(TEXT(C_UKEq_detail[[#This Row],[award_year]], "#"),I_PPP[#Headers],0)) -> 0.651256 | W34: =C_UKEq_detail[[#This Row],[lsv_norm_lcy]]*C_UKEq_detail[[#This Row],[ppp_gbp]]/C_UKEq_detail[[#This Row],[ppp_lcy]] -> 73421623.92 | X34: =eff_cpi_uk/SUMIFS(I_CPI_UK[index],I_CPI_UK[month],TEXT(C_UKEq_detail[[#This Row],[award_date]],"YYYY MMM")) -> 1.10180624 | Y34: =C_UKEq_detail[[#This Row],[lsv_norm_gbp]]*C_UKEq_detail[[#This Row],[cpi_factor]] -> 80896403.37 | Z34: =INDEX(I_Population[], MATCH(C_UKEq_detail[[#This Row],[country]], I_Population[country], 0), MATCH(TEXT(C_UKEq_detail[[#This Row],[award_year]],"#"), I_Population[#Headers], 0)) -> 11685814 | AA34: =eff_pop_uk/C_UKEq_detail[[#This Row],[population]] -> 5.848972096 | AB34: =C_UKEq_detail[[#This Row],[lsv_real_gbp]]*C_UKEq_detail[[#This Row],[pop_factor]] -> 473160806
A35: Portugal-2021 Oct-700 | B35: Portugal | C35: 2021-10-27 | D35: MEO | E35: 10 | F35: 20 | G35: EUR | H35: 19200000 | I35: 908000 | K35: 2021 | L35: 0.043 | M35: nat | N35: 0.04055784819 | O35: nat | Q35: =C_UKEq_detail[[#This Row],[headline_price]]-PV(C_UKEq_detail[[#This Row],[cod_pretax_nom]]-cod_liquidity_premium,C_UKEq_detail[[#This Row],[duration_years]],C_UKEq_detail[[#This Row],[alf]])*(1+C_UKEq_detail[[#This Row],[cod_pretax_nom]]-cod_liquidity_premium)^(-YEARFRAC(C_UKEq_detail[[#This Row],[award_date]], C_UKEq_detail[[#This Row],[award_date]]+C_UKEq_detail[[#This Row],[delay_days]])*delay_adj*(C_UKEq_detail[[#This Row],[delay_days]]>delay_threshold)) -> 31540016.32 | R35: =C_UKEq_detail[[#This Row],[lf_pv_lcy]]*(1+C_UKEq_detail[[#This Row],[wacc_posttax_real]])^(YEARFRAC(C_UKEq_detail[[#This Row],[award_date]],C_UKEq_detail[[#This Row],[award_date]]+C_UKEq_detail[[#This Row],[delay_days]])*delay_adj*(C_UKEq_detail[[#This Row],[delay_days]]>delay_threshold)) -> 31540016.32 | S35: =-PMT(C_UKEq_detail[[#This Row],[wacc_posttax_real]],C_UKEq_detail[[#This Row],[duration_years]],C_UKEq_detail[[#This Row],[lsv_lcy]]) -> 2332247.986 | T35: =-PV(C_UKEq_detail[[#This Row],[wacc_posttax_real]],notional_term,C_UKEq_detail[[#This Row],[annuity_lcy]]) -> 31540016.32 | U35: =INDEX(I_PPP[],MATCH(C_UKEq_detail[[#This Row],[country]],I_PPP[country],0), MATCH(TEXT(C_UKEq_detail[[#This Row],[award_year]], "#"),I_PPP[#Headers],0)) -> 0.537629 | V35: =INDEX(I_PPP[],MATCH("United Kingdom",I_PPP[country],0), MATCH(TEXT(C_UKEq_detail[[#This Row],[award_year]], "#"),I_PPP[#Headers],0)) -> 0.644896 | W35: =C_UKEq_detail[[#This Row],[lsv_norm_lcy]]*C_UKEq_detail[[#This Row],[ppp_gbp]]/C_UKEq_detail[[#This Row],[ppp_lcy]] -> 37832837.08 | X35: =eff_cpi_uk/SUMIFS(I_CPI_UK[index],I_CPI_UK[month],TEXT(C_UKEq_detail[[#This Row],[award_date]],"YYYY MMM")) -> 1.181338028 | Y35: =C_UKEq_detail[[#This Row],[lsv_norm_gbp]]*C_UKEq_detail[[#This Row],[cpi_factor]] -> 44693369.15 | Z35: =INDEX(I_Population[], MATCH(C_UKEq_detail[[#This Row],[country]], I_Population[country], 0), MATCH(TEXT(C_UKEq_detail[[#This Row],[award_year]],"#"), I_Population[#Headers], 0)) -> 10361831 | AA35: =eff_pop_uk/C_UKEq_detail[[#This Row],[population]] -> 6.59632453 | AB35: =C_UKEq_detail[[#This Row],[lsv_real_gbp]]*C_UKEq_detail[[#This Row],[pop_factor]] -> 294811967.3
A36: Portugal-2021 Oct-700 | B36: Portugal | C36: 2021-10-27 | D36: Vodafone | E36: 10 | F36: 20 | G36: EUR | H36: 19200000 | I36: 908000 | K36: 2021 | L36: 0.043 | M36: nat | N36: 0.04055784819 | O36: nat | Q36: =C_UKEq_detail[[#This Row],[headline_price]]-PV(C_UKEq_detail[[#This Row],[cod_pretax_nom]]-cod_liquidity_premium,C_UKEq_detail[[#This Row],[duration_years]],C_UKEq_detail[[#This Row],[alf]])*(1+C_UKEq_detail[[#This Row],[cod_pretax_nom]]-cod_liquidity_premium)^(-YEARFRAC(C_UKEq_detail[[#This Row],[award_date]], C_UKEq_detail[[#This Row],[award_date]]+C_UKEq_detail[[#This Row],[delay_days]])*delay_adj*(C_UKEq_detail[[#This Row],[delay_days]]>delay_threshold)) -> 31540016.32 | R36: =C_UKEq_detail[[#This Row],[lf_pv_lcy]]*(1+C_UKEq_detail[[#This Row],[wacc_posttax_real]])^(YEARFRAC(C_UKEq_detail[[#This Row],[award_date]],C_UKEq_detail[[#This Row],[award_date]]+C_UKEq_detail[[#This Row],[delay_days]])*delay_adj*(C_UKEq_detail[[#This Row],[delay_days]]>delay_threshold)) -> 31540016.32 | S36: =-PMT(C_UKEq_detail[[#This Row],[wacc_posttax_real]],C_UKEq_detail[[#This Row],[duration_years]],C_UKEq_detail[[#This Row],[lsv_lcy]]) -> 2332247.986 | T36: =-PV(C_UKEq_detail[[#This Row],[wacc_posttax_real]],notional_term,C_UKEq_detail[[#This Row],[annuity_lcy]]) -> 31540016.32 | U36: =INDEX(I_PPP[],MATCH(C_UKEq_detail[[#This Row],[country]],I_PPP[country],0), MATCH(TEXT(C_UKEq_detail[[#This Row],[award_year]], "#"),I_PPP[#Headers],0)) -> 0.537629 | V36: =INDEX(I_PPP[],MATCH("United Kingdom",I_PPP[country],0), MATCH(TEXT(C_UKEq_detail[[#This Row],[award_year]], "#"),I_PPP[#Headers],0)) -> 0.644896 | W36: =C_UKEq_detail[[#This Row],[lsv_norm_lcy]]*C_UKEq_detail[[#This Row],[ppp_gbp]]/C_UKEq_detail[[#This Row],[ppp_lcy]] -> 37832837.08 | X36: =eff_cpi_uk/SUMIFS(I_CPI_UK[index],I_CPI_UK[month],TEXT(C_UKEq_detail[[#This Row],[award_date]],"YYYY MMM")) -> 1.181338028 | Y36: =C_UKEq_detail[[#This Row],[lsv_norm_gbp]]*C_UKEq_detail[[#This Row],[cpi_factor]] -> 44693369.15 | Z36: =INDEX(I_Population[], MATCH(C_UKEq_detail[[#This Row],[country]], I_Population[country], 0), MATCH(TEXT(C_UKEq_detail[[#This Row],[award_year]],"#"), I_Population[#Headers], 0)) -> 10361831 | AA36: =eff_pop_uk/C_UKEq_detail[[#This Row],[population]] -> 6.59632453 | AB36: =C_UKEq_detail[[#This Row],[lsv_real_gbp]]*C_UKEq_detail[[#This Row],[pop_factor]] -> 294811967.3
A37: Portugal-2021 Oct-700 | B37: Portugal | C37: 2021-10-27 | D37: Vodafone | E37: 10 | F37: 20 | G37: EUR | H37: 19200000 | I37: 908000 | K37: 2021 | L37: 0.043 | M37: nat | N37: 0.04055784819 | O37: nat | Q37: =C_UKEq_detail[[#This Row],[headline_price]]-PV(C_UKEq_detail[[#This Row],[cod_pretax_nom]]-cod_liquidity_premium,C_UKEq_detail[[#This Row],[duration_years]],C_UKEq_detail[[#This Row],[alf]])*(1+C_UKEq_detail[[#This Row],[cod_pretax_nom]]-cod_liquidity_premium)^(-YEARFRAC(C_UKEq_detail[[#This Row],[award_date]], C_UKEq_detail[[#This Row],[award_date]]+C_UKEq_detail[[#This Row],[delay_days]])*delay_adj*(C_UKEq_detail[[#This Row],[delay_days]]>delay_threshold)) -> 31540016.32 | R37: =C_UKEq_detail[[#This Row],[lf_pv_lcy]]*(1+C_UKEq_detail[[#This Row],[wacc_posttax_real]])^(YEARFRAC(C_UKEq_detail[[#This Row],[award_date]],C_UKEq_detail[[#This Row],[award_date]]+C_UKEq_detail[[#This Row],[delay_days]])*delay_adj*(C_UKEq_detail[[#This Row],[delay_days]]>delay_threshold)) -> 31540016.32 | S37: =-PMT(C_UKEq_detail[[#This Row],[wacc_posttax_real]],C_UKEq_detail[[#This Row],[duration_years]],C_UKEq_detail[[#This Row],[lsv_lcy]]) -> 2332247.986 | T37: =-PV(C_UKEq_detail[[#This Row],[wacc_posttax_real]],notional_term,C_UKEq_detail[[#This Row],[annuity_lcy]]) -> 31540016.32 | U37: =INDEX(I_PPP[],MATCH(C_UKEq_detail[[#This Row],[country]],I_PPP[country],0), MATCH(TEXT(C_UKEq_detail[[#This Row],[award_year]], "#"),I_PPP[#Headers],0)) -> 0.537629 | V37: =INDEX(I_PPP[],MATCH("United Kingdom",I_PPP[country],0), MATCH(TEXT(C_UKEq_detail[[#This Row],[award_year]], "#"),I_PPP[#Headers],0)) -> 0.644896 | W37: =C_UKEq_detail[[#This Row],[lsv_norm_lcy]]*C_UKEq_detail[[#This Row],[ppp_gbp]]/C_UKEq_detail[[#This Row],[ppp_lcy]] -> 37832837.08 | X37: =eff_cpi_uk/SUMIFS(I_CPI_UK[index],I_CPI_UK[month],TEXT(C_UKEq_detail[[#This Row],[award_date]],"YYYY MMM")) -> 1.181338028 | Y37: =C_UKEq_detail[[#This Row],[lsv_norm_gbp]]*C_UKEq_detail[[#This Row],[cpi_factor]] -> 44693369.15 | Z37: =INDEX(I_Population[], MATCH(C_UKEq_detail[[#This Row],[country]], I_Population[country], 0), MATCH(TEXT(C_UKEq_detail[[#This Row],[award_year]],"#"), I_Population[#Headers], 0)) -> 10361831 | AA37: =eff_pop_uk/C_UKEq_detail[[#This Row],[population]] -> 6.59632453 | AB37: =C_UKEq_detail[[#This Row],[lsv_real_gbp]]*C_UKEq_detail[[#This Row],[pop_factor]] -> 294811967.3
A38: Portugal-2021 Oct-700 | B38: Portugal | C38: 2021-10-27 | D38: NOS | E38: 10 | F38: 20 | G38: EUR | H38: 19200000 | I38: 908000 | K38: 2021 | L38: 0.043 | M38: nat | N38: 0.04055784819 | O38: nat | Q38: =C_UKEq_detail[[#This Row],[headline_price]]-PV(C_UKEq_detail[[#This Row],[cod_pretax_nom]]-cod_liquidity_premium,C_UKEq_detail[[#This Row],[duration_years]],C_UKEq_detail[[#This Row],[alf]])*(1+C_UKEq_detail[[#This Row],[cod_pretax_nom]]-cod_liquidity_premium)^(-YEARFRAC(C_UKEq_detail[[#This Row],[award_date]], C_UKEq_detail[[#This Row],[award_date]]+C_UKEq_detail[[#This Row],[delay_days]])*delay_adj*(C_UKEq_detail[[#This Row],[delay_days]]>delay_threshold)) -> 31540016.32 | R38: =C_UKEq_detail[[#This Row],[lf_pv_lcy]]*(1+C_UKEq_detail[[#This Row],[wacc_posttax_real]])^(YEARFRAC(C_UKEq_detail[[#This Row],[award_date]],C_UKEq_detail[[#This Row],[award_date]]+C_UKEq_detail[[#This Row],[delay_days]])*delay_adj*(C_UKEq_detail[[#This Row],[delay_days]]>delay_threshold)) -> 31540016.32 | S38: =-PMT(C_UKEq_detail[[#This Row],[wacc_posttax_real]],C_UKEq_detail[[#This Row],[duration_years]],C_UKEq_detail[[#This Row],[lsv_lcy]]) -> 2332247.986 | T38: =-PV(C_UKEq_detail[[#This Row],[wacc_posttax_real]],notional_term,C_UKEq_detail[[#This Row],[annuity_lcy]]) -> 31540016.32 | U38: =INDEX(I_PPP[],MATCH(C_UKEq_detail[[#This Row],[country]],I_PPP[country],0), MATCH(TEXT(C_UKEq_detail[[#This Row],[award_year]], "#"),I_PPP[#Headers],0)) -> 0.537629 | V38: =INDEX(I_PPP[],MATCH("United Kingdom",I_PPP[country],0), MATCH(TEXT(C_UKEq_detail[[#This Row],[award_year]], "#"),I_PPP[#Headers],0)) -> 0.644896 | W38: =C_UKEq_detail[[#This Row],[lsv_norm_lcy]]*C_UKEq_detail[[#This Row],[ppp_gbp]]/C_UKEq_detail[[#This Row],[ppp_lcy]] -> 37832837.08 | X38: =eff_cpi_uk/SUMIFS(I_CPI_UK[index],I_CPI_UK[month],TEXT(C_UKEq_detail[[#This Row],[award_date]],"YYYY MMM")) -> 1.181338028 | Y38: =C_UKEq_detail[[#This Row],[lsv_norm_gbp]]*C_UKEq_detail[[#This Row],[cpi_factor]] -> 44693369.15 | Z38: =INDEX(I_Population[], MATCH(C_UKEq_detail[[#This Row],[country]], I_Population[country], 0), MATCH(TEXT(C_UKEq_detail[[#This Row],[award_year]],"#"), I_Population[#Headers], 0)) -> 10361831 | AA38: =eff_pop_uk/C_UKEq_detail[[#This Row],[population]] -> 6.59632453 | AB38: =C_UKEq_detail[[#This Row],[lsv_real_gbp]]*C_UKEq_detail[[#This Row],[pop_factor]] -> 294811967.3
A39: Portugal-2021 Oct-700 | B39: Portugal | C39: 2021-10-27 | D39: NOS | E39: 10 | F39: 20 | G39: EUR | H39: 19200000 | I39: 908000 | K39: 2021 | L39: 0.043 | M39: nat | N39: 0.04055784819 | O39: nat | Q39: =C_UKEq_detail[[#This Row],[headline_price]]-PV(C_UKEq_detail[[#This Row],[cod_pretax_nom]]-cod_liquidity_premium,C_UKEq_detail[[#This Row],[duration_years]],C_UKEq_detail[[#This Row],[alf]])*(1+C_UKEq_detail[[#This Row],[cod_pretax_nom]]-cod_liquidity_premium)^(-YEARFRAC(C_UKEq_detail[[#This Row],[award_date]], C_UKEq_detail[[#This Row],[award_date]]+C_UKEq_detail[[#This Row],[delay_days]])*delay_adj*(C_UKEq_detail[[#This Row],[delay_days]]>delay_threshold)) -> 31540016.32 | R39: =C_UKEq_detail[[#This Row],[lf_pv_lcy]]*(1+C_UKEq_detail[[#This Row],[wacc_posttax_real]])^(YEARFRAC(C_UKEq_detail[[#This Row],[award_date]],C_UKEq_detail[[#This Row],[award_date]]+C_UKEq_detail[[#This Row],[delay_days]])*delay_adj*(C_UKEq_detail[[#This Row],[delay_days]]>delay_threshold)) -> 31540016.32 | S39: =-PMT(C_UKEq_detail[[#This Row],[wacc_posttax_real]],C_UKEq_detail[[#This Row],[duration_years]],C_UKEq_detail[[#This Row],[lsv_lcy]]) -> 2332247.986 | T39: =-PV(C_UKEq_detail[[#This Row],[wacc_posttax_real]],notional_term,C_UKEq_detail[[#This Row],[annuity_lcy]]) -> 31540016.32 | U39: =INDEX(I_PPP[],MATCH(C_UKEq_detail[[#This Row],[country]],I_PPP[country],0), MATCH(TEXT(C_UKEq_detail[[#This Row],[award_year]], "#"),I_PPP[#Headers],0)) -> 0.537629 | V39: =INDEX(I_PPP[],MATCH("United Kingdom",I_PPP[country],0), MATCH(TEXT(C_UKEq_detail[[#This Row],[award_year]], "#"),I_PPP[#Headers],0)) -> 0.644896 | W39: =C_UKEq_detail[[#This Row],[lsv_norm_lcy]]*C_UKEq_detail[[#This Row],[ppp_gbp]]/C_UKEq_detail[[#This Row],[ppp_lcy]] -> 37832837.08 | X39: =eff_cpi_uk/SUMIFS(I_CPI_UK[index],I_CPI_UK[month],TEXT(C_UKEq_detail[[#This Row],[award_date]],"YYYY MMM")) -> 1.181338028 | Y39: =C_UKEq_detail[[#This Row],[lsv_norm_gbp]]*C_UKEq_detail[[#This Row],[cpi_factor]] -> 44693369.15 | Z39: =INDEX(I_Population[], MATCH(C_UKEq_detail[[#This Row],[country]], I_Population[country], 0), MATCH(TEXT(C_UKEq_detail[[#This Row],[award_year]],"#"), I_Population[#Headers], 0)) -> 10361831 | AA39: =eff_pop_uk/C_UKEq_detail[[#This Row],[population]] -> 6.59632453 | AB39: =C_UKEq_detail[[#This Row],[lsv_real_gbp]]*C_UKEq_detail[[#This Row],[pop_factor]] -> 294811967.3
A40: Portugal-2021 Oct-2100 | B40: Portugal | C40: 2021-10-27 | D40: NOS | E40: 10 | F40: 20 | G40: EUR | H40: 10616000 | I40: 908000 | K40: 2021 | L40: 0.043 | M40: nat | N40: 0.04055784819 | O40: nat | Q40: =C_UKEq_detail[[#This Row],[headline_price]]-PV(C_UKEq_detail[[#This Row],[cod_pretax_nom]]-cod_liquidity_premium,C_UKEq_detail[[#This Row],[duration_years]],C_UKEq_detail[[#This Row],[alf]])*(1+C_UKEq_detail[[#This Row],[cod_pretax_nom]]-cod_liquidity_premium)^(-YEARFRAC(C_UKEq_detail[[#This Row],[award_date]], C_UKEq_detail[[#This Row],[award_date]]+C_UKEq_detail[[#This Row],[delay_days]])*delay_adj*(C_UKEq_detail[[#This Row],[delay_days]]>delay_threshold)) -> 22956016.32 | R40: =C_UKEq_detail[[#This Row],[lf_pv_lcy]]*(1+C_UKEq_detail[[#This Row],[wacc_posttax_real]])^(YEARFRAC(C_UKEq_detail[[#This Row],[award_date]],C_UKEq_detail[[#This Row],[award_date]]+C_UKEq_detail[[#This Row],[delay_days]])*delay_adj*(C_UKEq_detail[[#This Row],[delay_days]]>delay_threshold)) -> 22956016.32 | S40: =-PMT(C_UKEq_detail[[#This Row],[wacc_posttax_real]],C_UKEq_detail[[#This Row],[duration_years]],C_UKEq_detail[[#This Row],[lsv_lcy]]) -> 1697498.26 | T40: =-PV(C_UKEq_detail[[#This Row],[wacc_posttax_real]],notional_term,C_UKEq_detail[[#This Row],[annuity_lcy]]) -> 22956016.32 | U40: =INDEX(I_PPP[],MATCH(C_UKEq_detail[[#This Row],[country]],I_PPP[country],0), MATCH(TEXT(C_UKEq_detail[[#This Row],[award_year]], "#"),I_PPP[#Headers],0)) -> 0.537629 | V40: =INDEX(I_PPP[],MATCH("United Kingdom",I_PPP[country],0), MATCH(TEXT(C_UKEq_detail[[#This Row],[award_year]], "#"),I_PPP[#Headers],0)) -> 0.644896 | W40: =C_UKEq_detail[[#This Row],[lsv_norm_lcy]]*C_UKEq_detail[[#This Row],[ppp_gbp]]/C_UKEq_detail[[#This Row],[ppp_lcy]] -> 27536169.18 | X40: =eff_cpi_uk/SUMIFS(I_CPI_UK[index],I_CPI_UK[month],TEXT(C_UKEq_detail[[#This Row],[award_date]],"YYYY MMM")) -> 1.181338028 | Y40: =C_UKEq_detail[[#This Row],[lsv_norm_gbp]]*C_UKEq_detail[[#This Row],[cpi_factor]] -> 32529523.81 | Z40: =INDEX(I_Population[], MATCH(C_UKEq_detail[[#This Row],[country]], I_Population[country], 0), MATCH(TEXT(C_UKEq_detail[[#This Row],[award_year]],"#"), I_Population[#Headers], 0)) -> 10361831 | AA40: =eff_pop_uk/C_UKEq_detail[[#This Row],[population]] -> 6.59632453 | AB40: =C_UKEq_detail[[#This Row],[lsv_real_gbp]]*C_UKEq_detail[[#This Row],[pop_factor]] -> 214575295.8
